Workbook

Sheet ＴＯＰ
B5: 基本情報 | D5: データの取込 | F5: 資金繰り関係 帳票の出力 | J5: 損益関係 帳票の出力
L16: 提供：小林敬幸税理士事務所
L17: Ver. 1.0

Sheet 基本情報
A8: １、会社名を入力します
B9: 株式会社弥生トレーディング
A11: ２、現金同等物の範囲となる（現預金残高に含まれる）勘定科目を入力します（弥生会計の登録通りに入力します）
B12: 勘定科目
B13: 現金
B14: 小口現金
B15: 普通預金
B16: 当座預金
B21: 資金諸口
A23: ３、現金同等物の期首残高を入力します
B24: 345731402
A26: ４、期首年月日を入力します
B27: 2016-04-01 | C27: ←期首年月日 | K27: =YEAR(B27) -> 2016
B28: =EOMONTH(B27,11) -> 2017-03-31 | C28: ←期末年月日
A30: ５、会計事務所名を入力します
B31: 小林敬幸税理士事務所
A33: ６、売上に含める勘定科目を入力します（弥生会計の登録通りに入力します）
B34: 勘定科目
B35: 売上高

Sheet 入出金対比グラフ
B1: =基本情報!B9 -> 株式会社弥生トレーディング | N1: =IF(基本情報!B31="","",基本情報!B31) -> 小林敬幸税理士事務所
B3: 総合収支額と資金残高の対比
C19: =月別資金繰り表!C6 -> 2016-04-01 | D19: =EOMONTH(C19,1) -> 2016-05-31 | E19: =EOMONTH(D19,1) -> 2016-06-30 | F19: 2016-07-31 | G19: 2016-08-31 | H19: 2016-09-30 | I19: 2016-10-31 | J19: 2016-11-30 | K19: 2016-12-31 | L19: 2017-01-31 | M19: 2017-02-28 | N19: 2017-03-31
B20: 総合収入額 | C20: =月別資金繰り表!C58 -> 14899860 | D20: =月別資金繰り表!D58 -> 24405466 | E20: =月別資金繰り表!E58 -> 28782767 | F20: =月別資金繰り表!F58 -> 22851732 | G20: =月別資金繰り表!G58 -> 26404089 | H20: =月別資金繰り表!H58 -> 30886080 | I20: =月別資金繰り表!I58 -> 32328464 | J20: =月別資金繰り表!J58 -> 28120136 | K20: =月別資金繰り表!K58 -> 35571586 | L20: =月別資金繰り表!L58 -> 24661352 | M20: =月別資金繰り表!M58 -> 33755714 | N20: =月別資金繰り表!N58 -> 16092539
B21: 総合支出額 | C21: =月別資金繰り表!C59 -> 14481199 | D21: =月別資金繰り表!D59 -> 23178059 | E21: =月別資金繰り表!E59 -> 28313164 | F21: =月別資金繰り表!F59 -> 25334228 | G21: =月別資金繰り表!G59 -> 27392779 | H21: =月別資金繰り表!H59 -> 24118995 | I21: =月別資金繰り表!I59 -> 27641129 | J21: =月別資金繰り表!J59 -> 26143117 | K21: =月別資金繰り表!K59 -> 24908258 | L21: =月別資金繰り表!L59 -> 20966885 | M21: =月別資金繰り表!M59 -> 23659950 | N21: =月別資金繰り表!N59 -> 19528588
B22: 資金残高 | C22: =月別資金繰り表!C63 -> 346150063 | D22: =月別資金繰り表!D63 -> 347377470 | E22: =月別資金繰り表!E63 -> 347847073 | F22: =月別資金繰り表!F63 -> 345364577 | G22: =月別資金繰り表!G63 -> 344375887 | H22: =月別資金繰り表!H63 -> 351142972 | I22: =月別資金繰り表!I63 -> 355830307 | J22: =月別資金繰り表!J63 -> 357807326 | K22: =月別資金繰り表!K63 -> 368470654 | L22: =月別資金繰り表!L63 -> 372165121 | M22: =月別資金繰り表!M63 -> 382260885 | N22: =月別資金繰り表!N63 -> 378824836
B25: 経常収支と借入金返済額の対比
C42: =月別資金繰り表!C6 -> 2016-04-01 | D42: =EOMONTH(C42,1) -> 2016-05-31 | E42: =EOMONTH(D42,1) -> 2016-06-30 | F42: =EOMONTH(E42,1) -> 2016-07-31 | G42: =EOMONTH(F42,1) -> 2016-08-31 | H42: =EOMONTH(G42,1) -> 2016-09-30 | I42: =EOMONTH(H42,1) -> 2016-10-31 | J42: =EOMONTH(I42,1) -> 2016-11-30 | K42: =EOMONTH(J42,1) -> 2016-12-31 | L42: =EOMONTH(K42,1) -> 2017-01-31 | M42: =EOMONTH(L42,1) -> 2017-02-28 | N42: =EOMONTH(M42,1) -> 2017-03-31
B43: 経常収支額 | C43: =月別資金繰り表!C28 -> 1120994 | D43: =月別資金繰り表!D28 -> 5966296 | E43: =月別資金繰り表!E28 -> 1172848 | F43: =月別資金繰り表!F28 -> -1778794 | G43: =月別資金繰り表!G28 -> -284066 | H43: =月別資金繰り表!H28 -> 7476705 | I43: =月別資金繰り表!I28 -> 5392415 | J43: =月別資金繰り表!J28 -> 7613411 | K43: =月別資金繰り表!K28 -> 5369332 | L43: =月別資金繰り表!L28 -> 4400935 | M43: =月別資金繰り表!M28 -> 10802716 | N43: =月別資金繰り表!N28 -> -2723651
B44: 短期借入金返済 | C44: =月別資金繰り表!C43 -> 500000 | D44: =月別資金繰り表!D43 -> 500000 | E44: =月別資金繰り表!E43 -> 500000 | F44: =月別資金繰り表!F43 -> 500000 | G44: =月別資金繰り表!G43 -> 500000 | H44: =月別資金繰り表!H43 -> 500000 | I44: =月別資金繰り表!I43 -> 500000 | J44: =月別資金繰り表!J43 -> 500000 | K44: =月別資金繰り表!K43 -> 500000 | L44: =月別資金繰り表!L43 -> 500000 | M44: =月別資金繰り表!M43 -> 500000 | N44: =月別資金繰り表!N43 -> 500000
B45: 長期借入金返済 | C45: =月別資金繰り表!C44 -> 202333 | D45: =月別資金繰り表!D44 -> 202789 | E45: =月別資金繰り表!E44 -> 203245 | F45: =月別資金繰り表!F44 -> 203702 | G45: =月別資金繰り表!G44 -> 204161 | H45: =月別資金繰り表!H44 -> 204620 | I45: =月別資金繰り表!I44 -> 205080 | J45: =月別資金繰り表!J44 -> 205542 | K45: =月別資金繰り表!K44 -> 206004 | L45: =月別資金繰り表!L44 -> 206468 | M45: =月別資金繰り表!M44 -> 206932 | N45: =月別資金繰り表!N44 -> 207398
B46: 役員・関係会社等借入金返済 | C46: =月別資金繰り表!C45 -> 0 | D46: =月別資金繰り表!D45 -> 0 | E46: =月別資金繰り表!E45 -> 0 | F46: =月別資金繰り表!F45 -> 0 | G46: =月別資金繰り表!G45 -> 0 | H46: =月別資金繰り表!H45 -> 0 | I46: =月別資金繰り表!I45 -> 0 | J46: =月別資金繰り表!J45 -> 0 | K46: =月別資金繰り表!K45 -> 0 | L46: =月別資金繰り表!L45 -> 0 | M46: =月別資金繰り表!M45 -> 0 | N46: =月別資金繰り表!N45 -> 0
B47: 長期未払金支払 | C47: =月別資金繰り表!C46 -> 0 | D47: =月別資金繰り表!D46 -> 0 | E47: =月別資金繰り表!E46 -> 0 | F47: =月別資金繰り表!F46 -> 0 | G47: =月別資金繰り表!G46 -> 0 | H47: =月別資金繰り表!H46 -> 0 | I47: =月別資金繰り表!I46 -> 0 | J47: =月別資金繰り表!J46 -> 0 | K47: =月別資金繰り表!K46 -> 0 | L47: =月別資金繰り表!L46 -> 0 | M47: =月別資金繰り表!M46 -> 0 | N47: =月別資金繰り表!N46 -> 0
B48: 資金残高 | C48: =月別資金繰り表!C63 -> 346150063 | D48: =月別資金繰り表!D63 -> 347377470 | E48: =月別資金繰り表!E63 -> 347847073 | F48: =月別資金繰り表!F63 -> 345364577 | G48: =月別資金繰り表!G63 -> 344375887 | H48: =月別資金繰り表!H63 -> 351142972 | I48: =月別資金繰り表!I63 -> 355830307 | J48: =月別資金繰り表!J63 -> 357807326 | K48: =月別資金繰り表!K63 -> 368470654 | L48: =月別資金繰り表!L63 -> 372165121 | M48: =月別資金繰り表!M63 -> 382260885 | N48: =月別資金繰り表!N63 -> 378824836

Sheet 月別資金繰り表
B1: =基本情報!B9 -> 株式会社弥生トレーディング | O1: =IF(基本情報!B31="","",基本情報!B31) -> 小林敬幸税理士事務所
B3: 月次資金繰り表
C5: =MONTH(C6)&"月" -> 4月 | D5: =MONTH(D6)&"月" -> 5月 | E5: 6月 | F5: 7月 | G5: 8月 | H5: 9月 | I5: 10月 | J5: 11月 | K5: 12月 | L5: 1月 | M5: 2月 | N5: 3月
C6: =基本情報!B27 -> 2016-04-01 | D6: =EOMONTH(C6,1) -> 2016-05-31 | E6: =EOMONTH(D6,1) -> 2016-06-30 | F6: 2016-07-31 | G6: 2016-08-31 | H6: 2016-09-30 | I6: 2016-10-31 | J6: 2016-11-30 | K6: 2016-12-31 | L6: 2017-01-31 | M6: 2017-02-28 | N6: 2017-03-31 | O6: 合計
B8: 経常収入
B9: 現金売上 | C9: =IF(ISERROR(VLOOKUP($B9,月次ピボット!$A:$N,MATCH(C$5,月次ピボット!$B$3:$N$3,0)+1,FALSE)),0,VLOOKUP($B9,月次ピボット!$A:$N,MATCH(C$5,月次ピボット!$B$3:$N$3,0)+1,FALSE)) -> 2952629 | D9: =IF(ISERROR(VLOOKUP($B9,月次ピボット!$A:$N,MATCH(D$5,月次ピボット!$B$3:$N$3,0)+1,FALSE)),0,VLOOKUP($B9,月次ピボット!$A:$N,MATCH(D$5,月次ピボット!$B$3:$N$3,0)+1,FALSE)) -> 3111196 | E9: =IF(ISERROR(VLOOKUP($B9,月次ピボット!$A:$N,MATCH(E$5,月次ピボット!$B$3:$N$3,0)+1,FALSE)),0,VLOOKUP($B9,月次ピボット!$A:$N,MATCH(E$5,月次ピボット!$B$3:$N$3,0)+1,FALSE)) -> 3621918 | F9: =IF(ISERROR(VLOOKUP($B9,月次ピボット!$A:$N,MATCH(F$5,月次ピボット!$B$3:$N$3,0)+1,FALSE)),0,VLOOKUP($B9,月次ピボット!$A:$N,MATCH(F$5,月次ピボット!$B$3:$N$3,0)+1,FALSE)) -> 3350444 | G9: =IF(ISERROR(VLOOKUP($B9,月次ピボット!$A:$N,MATCH(G$5,月次ピボット!$B$3:$N$3,0)+1,FALSE)),0,VLOOKUP($B9,月次ピボット!$A:$N,MATCH(G$5,月次ピボット!$B$3:$N$3,0)+1,FALSE)) -> 3623791 | H9: =IF(ISERROR(VLOOKUP($B9,月次ピボット!$A:$N,MATCH(H$5,月次ピボット!$B$3:$N$3,0)+1,FALSE)),0,VLOOKUP($B9,月次ピボット!$A:$N,MATCH(H$5,月次ピボット!$B$3:$N$3,0)+1,FALSE)) -> 3640449 | I9: =IF(ISERROR(VLOOKUP($B9,月次ピボット!$A:$N,MATCH(I$5,月次ピボット!$B$3:$N$3,0)+1,FALSE)),0,VLOOKUP($B9,月次ピボット!$A:$N,MATCH(I$5,月次ピボット!$B$3:$N$3,0)+1,FALSE)) -> 3321745 | J9: =IF(ISERROR(VLOOKUP($B9,月次ピボット!$A:$N,MATCH(J$5,月次ピボット!$B$3:$N$3,0)+1,FALSE)),0,VLOOKUP($B9,月次ピボット!$A:$N,MATCH(J$5,月次ピボット!$B$3:$N$3,0)+1,FALSE)) -> 3407612 | K9: =IF(ISERROR(VLOOKUP($B9,月次ピボット!$A:$N,MATCH(K$5,月次ピボット!$B$3:$N$3,0)+1,FALSE)),0,VLOOKUP($B9,月次ピボット!$A:$N,MATCH(K$5,月次ピボット!$B$3:$N$3,0)+1,FALSE)) -> 3562395 | L9: =IF(ISERROR(VLOOKUP($B9,月次ピボット!$A:$N,MATCH(L$5,月次ピボット!$B$3:$N$3,0)+1,FALSE)),0,VLOOKUP($B9,月次ピボット!$A:$N,MATCH(L$5,月次ピボット!$B$3:$N$3,0)+1,FALSE)) -> 2922534 | M9: =IF(ISERROR(VLOOKUP($B9,月次ピボット!$A:$N,MATCH(M$5,月次ピボット!$B$3:$N$3,0)+1,FALSE)),0,VLOOKUP($B9,月次ピボット!$A:$N,MATCH(M$5,月次ピボット!$B$3:$N$3,0)+1,FALSE)) -> 3034107 | N9: =IF(ISERROR(VLOOKUP($B9,月次ピボット!$A:$N,MATCH(N$5,月次ピボット!$B$3:$N$3,0)+1,FALSE)),0,VLOOKUP($B9,月次ピボット!$A:$N,MATCH(N$5,月次ピボット!$B$3:$N$3,0)+1,FALSE)) -> 3325582 | O9: =SUM(C9:N9) -> 39874402
B10: 売掛金回収 | C10: =IF(ISERROR(VLOOKUP($B10,月次ピボット!$A:$N,MATCH(C$5,月次ピボット!$B$3:$N$3,0)+1,FALSE)),0,VLOOKUP($B10,月次ピボット!$A:$N,MATCH(C$5,月次ピボット!$B$3:$N$3,0)+1,FALSE)) -> 11208357 | D10: =IF(ISERROR(VLOOKUP($B10,月次ピボット!$A:$N,MATCH(D$5,月次ピボット!$B$3:$N$3,0)+1,FALSE)),0,VLOOKUP($B10,月次ピボット!$A:$N,MATCH(D$5,月次ピボット!$B$3:$N$3,0)+1,FALSE)) -> 18802578 | E10: =IF(ISERROR(VLOOKUP($B10,月次ピボット!$A:$N,MATCH(E$5,月次ピボット!$B$3:$N$3,0)+1,FALSE)),0,VLOOKUP($B10,月次ピボット!$A:$N,MATCH(E$5,月次ピボット!$B$3:$N$3,0)+1,FALSE)) -> 21647624 | F10: =IF(ISERROR(VLOOKUP($B10,月次ピボット!$A:$N,MATCH(F$5,月次ピボット!$B$3:$N$3,0)+1,FALSE)),0,VLOOKUP($B10,月次ピボット!$A:$N,MATCH(F$5,月次ピボット!$B$3:$N$3,0)+1,FALSE)) -> 17355144 | G10: =IF(ISERROR(VLOOKUP($B10,月次ピボット!$A:$N,MATCH(G$5,月次ピボット!$B$3:$N$3,0)+1,FALSE)),0,VLOOKUP($B10,月次ピボット!$A:$N,MATCH(G$5,月次ピボット!$B$3:$N$3,0)+1,FALSE)) -> 19032267 | H10: =IF(ISERROR(VLOOKUP($B10,月次ピボット!$A:$N,MATCH(H$5,月次ピボット!$B$3:$N$3,0)+1,FALSE)),0,VLOOKUP($B10,月次ピボット!$A:$N,MATCH(H$5,月次ピボット!$B$3:$N$3,0)+1,FALSE)) -> 23142392 | I10: =IF(ISERROR(VLOOKUP($B10,月次ピボット!$A:$N,MATCH(I$5,月次ピボット!$B$3:$N$3,0)+1,FALSE)),0,VLOOKUP($B10,月次ピボット!$A:$N,MATCH(I$5,月次ピボット!$B$3:$N$3,0)+1,FALSE)) -> 24155465 | J10: =IF(ISERROR(VLOOKUP($B10,月次ピボット!$A:$N,MATCH(J$5,月次ピボット!$B$3:$N$3,0)+1,FALSE)),0,VLOOKUP($B10,月次ピボット!$A:$N,MATCH(J$5,月次ピボット!$B$3:$N$3,0)+1,FALSE)) -> 17100551 | K10: =IF(ISERROR(VLOOKUP($B10,月次ピボット!$A:$N,MATCH(K$5,月次ピボット!$B$3:$N$3,0)+1,FALSE)),0,VLOOKUP($B10,月次ピボット!$A:$N,MATCH(K$5,月次ピボット!$B$3:$N$3,0)+1,FALSE)) -> 22541780 | L10: =IF(ISERROR(VLOOKUP($B10,月次ピボット!$A:$N,MATCH(L$5,月次ピボット!$B$3:$N$3,0)+1,FALSE)),0,VLOOKUP($B10,月次ピボット!$A:$N,MATCH(L$5,月次ピボット!$B$3:$N$3,0)+1,FALSE)) -> 19399264 | M10: =IF(ISERROR(VLOOKUP($B10,月次ピボット!$A:$N,MATCH(M$5,月次ピボット!$B$3:$N$3,0)+1,FALSE)),0,VLOOKUP($B10,月次ピボット!$A:$N,MATCH(M$5,月次ピボット!$B$3:$N$3,0)+1,FALSE)) -> 28427257 | N10: =IF(ISERROR(VLOOKUP($B10,月次ピボット!$A:$N,MATCH(N$5,月次ピボット!$B$3:$N$3,0)+1,FALSE)),0,VLOOKUP($B10,月次ピボット!$A:$N,MATCH(N$5,月次ピボット!$B$3:$N$3,0)+1,FALSE)) -> 13735919 | O10: =SUM(C10:N10) -> 236548598
B11: 受取手形期日取立 | C11: =IF(ISERROR(VLOOKUP($B11,月次ピボット!$A:$N,MATCH(C$5,月次ピボット!$B$3:$N$3,0)+1,FALSE)),0,VLOOKUP($B11,月次ピボット!$A:$N,MATCH(C$5,月次ピボット!$B$3:$N$3,0)+1,FALSE)) -> 273420 | D11: =IF(ISERROR(VLOOKUP($B11,月次ピボット!$A:$N,MATCH(D$5,月次ピボット!$B$3:$N$3,0)+1,FALSE)),0,VLOOKUP($B11,月次ピボット!$A:$N,MATCH(D$5,月次ピボット!$B$3:$N$3,0)+1,FALSE)) -> 2385598 | E11: =IF(ISERROR(VLOOKUP($B11,月次ピボット!$A:$N,MATCH(E$5,月次ピボット!$B$3:$N$3,0)+1,FALSE)),0,VLOOKUP($B11,月次ピボット!$A:$N,MATCH(E$5,月次ピボット!$B$3:$N$3,0)+1,FALSE)) -> 3047771 | F11: =IF(ISERROR(VLOOKUP($B11,月次ピボット!$A:$N,MATCH(F$5,月次ピボット!$B$3:$N$3,0)+1,FALSE)),0,VLOOKUP($B11,月次ピボット!$A:$N,MATCH(F$5,月次ピボット!$B$3:$N$3,0)+1,FALSE)) -> 1273654 | G11: =IF(ISERROR(VLOOKUP($B11,月次ピボット!$A:$N,MATCH(G$5,月次ピボット!$B$3:$N$3,0)+1,FALSE)),0,VLOOKUP($B11,月次ピボット!$A:$N,MATCH(G$5,月次ピボット!$B$3:$N$3,0)+1,FALSE)) -> 3734949 | H11: =IF(ISERROR(VLOOKUP($B11,月次ピボット!$A:$N,MATCH(H$5,月次ピボット!$B$3:$N$3,0)+1,FALSE)),0,VLOOKUP($B11,月次ピボット!$A:$N,MATCH(H$5,月次ピボット!$B$3:$N$3,0)+1,FALSE)) -> 3762685 | I11: =IF(ISERROR(VLOOKUP($B11,月次ピボット!$A:$N,MATCH(I$5,月次ピボット!$B$3:$N$3,0)+1,FALSE)),0,VLOOKUP($B11,月次ピボット!$A:$N,MATCH(I$5,月次ピボット!$B$3:$N$3,0)+1,FALSE)) -> 4739300 | J11: =IF(ISERROR(VLOOKUP($B11,月次ピボット!$A:$N,MATCH(J$5,月次ピボット!$B$3:$N$3,0)+1,FALSE)),0,VLOOKUP($B11,月次ピボット!$A:$N,MATCH(J$5,月次ピボット!$B$3:$N$3,0)+1,FALSE)) -> 4646519 | K11: =IF(ISERROR(VLOOKUP($B11,月次ピボット!$A:$N,MATCH(K$5,月次ピボット!$B$3:$N$3,0)+1,FALSE)),0,VLOOKUP($B11,月次ピボット!$A:$N,MATCH(K$5,月次ピボット!$B$3:$N$3,0)+1,FALSE)) -> 2428274 | L11: =IF(ISERROR(VLOOKUP($B11,月次ピボット!$A:$N,MATCH(L$5,月次ピボット!$B$3:$N$3,0)+1,FALSE)),0,VLOOKUP($B11,月次ピボット!$A:$N,MATCH(L$5,月次ピボット!$B$3:$N$3,0)+1,FALSE)) -> 1874100 | M11: =IF(ISERROR(VLOOKUP($B11,月次ピボット!$A:$N,MATCH(M$5,月次ピボット!$B$3:$N$3,0)+1,FALSE)),0,VLOOKUP($B11,月次ピボット!$A:$N,MATCH(M$5,月次ピボット!$B$3:$N$3,0)+1,FALSE)) -> 1999796 | N11: =IF(ISERROR(VLOOKUP($B11,月次ピボット!$A:$N,MATCH(N$5,月次ピボット!$B$3:$N$3,0)+1,FALSE)),0,VLOOKUP($B11,月次ピボット!$A:$N,MATCH(N$5,月次ピボット!$B$3:$N$3,0)+1,FALSE)) -> 949431 | O11: 31115497
B12: 受取手形割引 | C12: =IF(ISERROR(VLOOKUP($B12,月次ピボット!$A:$N,MATCH(C$5,月次ピボット!$B$3:$N$3,0)+1,FALSE)),0,VLOOKUP($B12,月次ピボット!$A:$N,MATCH(C$5,月次ピボット!$B$3:$N$3,0)+1,FALSE)) -> 0 | D12: =IF(ISERROR(VLOOKUP($B12,月次ピボット!$A:$N,MATCH(D$5,月次ピボット!$B$3:$N$3,0)+1,FALSE)),0,VLOOKUP($B12,月次ピボット!$A:$N,MATCH(D$5,月次ピボット!$B$3:$N$3,0)+1,FALSE)) -> 0 | E12: =IF(ISERROR(VLOOKUP($B12,月次ピボット!$A:$N,MATCH(E$5,月次ピボット!$B$3:$N$3,0)+1,FALSE)),0,VLOOKUP($B12,月次ピボット!$A:$N,MATCH(E$5,月次ピボット!$B$3:$N$3,0)+1,FALSE)) -> 0 | F12: =IF(ISERROR(VLOOKUP($B12,月次ピボット!$A:$N,MATCH(F$5,月次ピボット!$B$3:$N$3,0)+1,FALSE)),0,VLOOKUP($B12,月次ピボット!$A:$N,MATCH(F$5,月次ピボット!$B$3:$N$3,0)+1,FALSE)) -> 0 | G12: =IF(ISERROR(VLOOKUP($B12,月次ピボット!$A:$N,MATCH(G$5,月次ピボット!$B$3:$N$3,0)+1,FALSE)),0,VLOOKUP($B12,月次ピボット!$A:$N,MATCH(G$5,月次ピボット!$B$3:$N$3,0)+1,FALSE)) -> 0 | H12: =IF(ISERROR(VLOOKUP($B12,月次ピボット!$A:$N,MATCH(H$5,月次ピボット!$B$3:$N$3,0)+1,FALSE)),0,VLOOKUP($B12,月次ピボット!$A:$N,MATCH(H$5,月次ピボット!$B$3:$N$3,0)+1,FALSE)) -> 0 | I12: =IF(ISERROR(VLOOKUP($B12,月次ピボット!$A:$N,MATCH(I$5,月次ピボット!$B$3:$N$3,0)+1,FALSE)),0,VLOOKUP($B12,月次ピボット!$A:$N,MATCH(I$5,月次ピボット!$B$3:$N$3,0)+1,FALSE)) -> 0 | J12: =IF(ISERROR(VLOOKUP($B12,月次ピボット!$A:$N,MATCH(J$5,月次ピボット!$B$3:$N$3,0)+1,FALSE)),0,VLOOKUP($B12,月次ピボット!$A:$N,MATCH(J$5,月次ピボット!$B$3:$N$3,0)+1,FALSE)) -> 0 | K12: =IF(ISERROR(VLOOKUP($B12,月次ピボット!$A:$N,MATCH(K$5,月次ピボット!$B$3:$N$3,0)+1,FALSE)),0,VLOOKUP($B12,月次ピボット!$A:$N,MATCH(K$5,月次ピボット!$B$3:$N$3,0)+1,FALSE)) -> 0 | L12: =IF(ISERROR(VLOOKUP($B12,月次ピボット!$A:$N,MATCH(L$5,月次ピボット!$B$3:$N$3,0)+1,FALSE)),0,VLOOKUP($B12,月次ピボット!$A:$N,MATCH(L$5,月次ピボット!$B$3:$N$3,0)+1,FALSE)) -> 0 | M12: =IF(ISERROR(VLOOKUP($B12,月次ピボット!$A:$N,MATCH(M$5,月次ピボット!$B$3:$N$3,0)+1,FALSE)),0,VLOOKUP($B12,月次ピボット!$A:$N,MATCH(M$5,月次ピボット!$B$3:$N$3,0)+1,FALSE)) -> 0 | N12: =IF(ISERROR(VLOOKUP($B12,月次ピボット!$A:$N,MATCH(N$5,月次ピボット!$B$3:$N$3,0)+1,FALSE)),0,VLOOKUP($B12,月次ピボット!$A:$N,MATCH(N$5,月次ピボット!$B$3:$N$3,0)+1,FALSE)) -> 0 | O12: 0
B13: 利息等収入 | C13: =IF(ISERROR(VLOOKUP($B13,月次ピボット!$A:$N,MATCH(C$5,月次ピボット!$B$3:$N$3,0)+1,FALSE)),0,VLOOKUP($B13,月次ピボット!$A:$N,MATCH(C$5,月次ピボット!$B$3:$N$3,0)+1,FALSE)) -> 0 | D13: =IF(ISERROR(VLOOKUP($B13,月次ピボット!$A:$N,MATCH(D$5,月次ピボット!$B$3:$N$3,0)+1,FALSE)),0,VLOOKUP($B13,月次ピボット!$A:$N,MATCH(D$5,月次ピボット!$B$3:$N$3,0)+1,FALSE)) -> 640 | E13: =IF(ISERROR(VLOOKUP($B13,月次ピボット!$A:$N,MATCH(E$5,月次ピボット!$B$3:$N$3,0)+1,FALSE)),0,VLOOKUP($B13,月次ピボット!$A:$N,MATCH(E$5,月次ピボット!$B$3:$N$3,0)+1,FALSE)) -> 0 | F13: =IF(ISERROR(VLOOKUP($B13,月次ピボット!$A:$N,MATCH(F$5,月次ピボット!$B$3:$N$3,0)+1,FALSE)),0,VLOOKUP($B13,月次ピボット!$A:$N,MATCH(F$5,月次ピボット!$B$3:$N$3,0)+1,FALSE)) -> 0 | G13: =IF(ISERROR(VLOOKUP($B13,月次ピボット!$A:$N,MATCH(G$5,月次ピボット!$B$3:$N$3,0)+1,FALSE)),0,VLOOKUP($B13,月次ピボット!$A:$N,MATCH(G$5,月次ピボット!$B$3:$N$3,0)+1,FALSE)) -> 2328 | H13: =IF(ISERROR(VLOOKUP($B13,月次ピボット!$A:$N,MATCH(H$5,月次ピボット!$B$3:$N$3,0)+1,FALSE)),0,VLOOKUP($B13,月次ピボット!$A:$N,MATCH(H$5,月次ピボット!$B$3:$N$3,0)+1,FALSE)) -> 5000 | I13: =IF(ISERROR(VLOOKUP($B13,月次ピボット!$A:$N,MATCH(I$5,月次ピボット!$B$3:$N$3,0)+1,FALSE)),0,VLOOKUP($B13,月次ピボット!$A:$N,MATCH(I$5,月次ピボット!$B$3:$N$3,0)+1,FALSE)) -> 0 | J13: =IF(ISERROR(VLOOKUP($B13,月次ピボット!$A:$N,MATCH(J$5,月次ピボット!$B$3:$N$3,0)+1,FALSE)),0,VLOOKUP($B13,月次ピボット!$A:$N,MATCH(J$5,月次ピボット!$B$3:$N$3,0)+1,FALSE)) -> 0 | K13: =IF(ISERROR(VLOOKUP($B13,月次ピボット!$A:$N,MATCH(K$5,月次ピボット!$B$3:$N$3,0)+1,FALSE)),0,VLOOKUP($B13,月次ピボット!$A:$N,MATCH(K$5,月次ピボット!$B$3:$N$3,0)+1,FALSE)) -> 0 | L13: =IF(ISERROR(VLOOKUP($B13,月次ピボット!$A:$N,MATCH(L$5,月次ピボット!$B$3:$N$3,0)+1,FALSE)),0,VLOOKUP($B13,月次ピボット!$A:$N,MATCH(L$5,月次ピボット!$B$3:$N$3,0)+1,FALSE)) -> 0 | M13: =IF(ISERROR(VLOOKUP($B13,月次ピボット!$A:$N,MATCH(M$5,月次ピボット!$B$3:$N$3,0)+1,FALSE)),0,VLOOKUP($B13,月次ピボット!$A:$N,MATCH(M$5,月次ピボット!$B$3:$N$3,0)+1,FALSE)) -> 100 | N13: =IF(ISERROR(VLOOKUP($B13,月次ピボット!$A:$N,MATCH(N$5,月次ピボット!$B$3:$N$3,0)+1,FALSE)),0,VLOOKUP($B13,月次ピボット!$A:$N,MATCH(N$5,月次ピボット!$B$3:$N$3,0)+1,FALSE)) -> 5000 | O13: 13068
B14: 雑収入 | C14: =IF(ISERROR(VLOOKUP($B14,月次ピボット!$A:$N,MATCH(C$5,月次ピボット!$B$3:$N$3,0)+1,FALSE)),0,VLOOKUP($B14,月次ピボット!$A:$N,MATCH(C$5,月次ピボット!$B$3:$N$3,0)+1,FALSE)) -> 0 | D14: =IF(ISERROR(VLOOKUP($B14,月次ピボット!$A:$N,MATCH(D$5,月次ピボット!$B$3:$N$3,0)+1,FALSE)),0,VLOOKUP($B14,月次ピボット!$A:$N,MATCH(D$5,月次ピボット!$B$3:$N$3,0)+1,FALSE)) -> 0 | E14: =IF(ISERROR(VLOOKUP($B14,月次ピボット!$A:$N,MATCH(E$5,月次ピボット!$B$3:$N$3,0)+1,FALSE)),0,VLOOKUP($B14,月次ピボット!$A:$N,MATCH(E$5,月次ピボット!$B$3:$N$3,0)+1,FALSE)) -> 0 | F14: =IF(ISERROR(VLOOKUP($B14,月次ピボット!$A:$N,MATCH(F$5,月次ピボット!$B$3:$N$3,0)+1,FALSE)),0,VLOOKUP($B14,月次ピボット!$A:$N,MATCH(F$5,月次ピボット!$B$3:$N$3,0)+1,FALSE)) -> 0 | G14: =IF(ISERROR(VLOOKUP($B14,月次ピボット!$A:$N,MATCH(G$5,月次ピボット!$B$3:$N$3,0)+1,FALSE)),0,VLOOKUP($B14,月次ピボット!$A:$N,MATCH(G$5,月次ピボット!$B$3:$N$3,0)+1,FALSE)) -> 0 | H14: =IF(ISERROR(VLOOKUP($B14,月次ピボット!$A:$N,MATCH(H$5,月次ピボット!$B$3:$N$3,0)+1,FALSE)),0,VLOOKUP($B14,月次ピボット!$A:$N,MATCH(H$5,月次ピボット!$B$3:$N$3,0)+1,FALSE)) -> 0 | I14: =IF(ISERROR(VLOOKUP($B14,月次ピボット!$A:$N,MATCH(I$5,月次ピボット!$B$3:$N$3,0)+1,FALSE)),0,VLOOKUP($B14,月次ピボット!$A:$N,MATCH(I$5,月次ピボット!$B$3:$N$3,0)+1,FALSE)) -> 0 | J14: =IF(ISERROR(VLOOKUP($B14,月次ピボット!$A:$N,MATCH(J$5,月次ピボット!$B$3:$N$3,0)+1,FALSE)),0,VLOOKUP($B14,月次ピボット!$A:$N,MATCH(J$5,月次ピボット!$B$3:$N$3,0)+1,FALSE)) -> 0 | K14: =IF(ISERROR(VLOOKUP($B14,月次ピボット!$A:$N,MATCH(K$5,月次ピボット!$B$3:$N$3,0)+1,FALSE)),0,VLOOKUP($B14,月次ピボット!$A:$N,MATCH(K$5,月次ピボット!$B$3:$N$3,0)+1,FALSE)) -> 0 | L14: =IF(ISERROR(VLOOKUP($B14,月次ピボット!$A:$N,MATCH(L$5,月次ピボット!$B$3:$N$3,0)+1,FALSE)),0,VLOOKUP($B14,月次ピボット!$A:$N,MATCH(L$5,月次ピボット!$B$3:$N$3,0)+1,FALSE)) -> 0 | M14: =IF(ISERROR(VLOOKUP($B14,月次ピボット!$A:$N,MATCH(M$5,月次ピボット!$B$3:$N$3,0)+1,FALSE)),0,VLOOKUP($B14,月次ピボット!$A:$N,MATCH(M$5,月次ピボット!$B$3:$N$3,0)+1,FALSE)) -> 0 | N14: =IF(ISERROR(VLOOKUP($B14,月次ピボット!$A:$N,MATCH(N$5,月次ピボット!$B$3:$N$3,0)+1,FALSE)),0,VLOOKUP($B14,月次ピボット!$A:$N,MATCH(N$5,月次ピボット!$B$3:$N$3,0)+1,FALSE)) -> 0 | O14: 0
B15: その他経常収入 | C15: =IF(ISERROR(VLOOKUP($B15,月次ピボット!$A:$N,MATCH(C$5,月次ピボット!$B$3:$N$3,0)+1,FALSE)),0,VLOOKUP($B15,月次ピボット!$A:$N,MATCH(C$5,月次ピボット!$B$3:$N$3,0)+1,FALSE)) -> 465454 | D15: =IF(ISERROR(VLOOKUP($B15,月次ピボット!$A:$N,MATCH(D$5,月次ピボット!$B$3:$N$3,0)+1,FALSE)),0,VLOOKUP($B15,月次ピボット!$A:$N,MATCH(D$5,月次ピボット!$B$3:$N$3,0)+1,FALSE)) -> 105454 | E15: =IF(ISERROR(VLOOKUP($B15,月次ピボット!$A:$N,MATCH(E$5,月次ピボット!$B$3:$N$3,0)+1,FALSE)),0,VLOOKUP($B15,月次ピボット!$A:$N,MATCH(E$5,月次ピボット!$B$3:$N$3,0)+1,FALSE)) -> 465454 | F15: =IF(ISERROR(VLOOKUP($B15,月次ピボット!$A:$N,MATCH(F$5,月次ピボット!$B$3:$N$3,0)+1,FALSE)),0,VLOOKUP($B15,月次ピボット!$A:$N,MATCH(F$5,月次ピボット!$B$3:$N$3,0)+1,FALSE)) -> 872490 | G15: =IF(ISERROR(VLOOKUP($B15,月次ピボット!$A:$N,MATCH(G$5,月次ピボット!$B$3:$N$3,0)+1,FALSE)),0,VLOOKUP($B15,月次ピボット!$A:$N,MATCH(G$5,月次ピボット!$B$3:$N$3,0)+1,FALSE)) -> 10754 | H15: =IF(ISERROR(VLOOKUP($B15,月次ピボット!$A:$N,MATCH(H$5,月次ピボット!$B$3:$N$3,0)+1,FALSE)),0,VLOOKUP($B15,月次ピボット!$A:$N,MATCH(H$5,月次ピボット!$B$3:$N$3,0)+1,FALSE)) -> 335554 | I15: =IF(ISERROR(VLOOKUP($B15,月次ピボット!$A:$N,MATCH(I$5,月次ピボット!$B$3:$N$3,0)+1,FALSE)),0,VLOOKUP($B15,月次ピボット!$A:$N,MATCH(I$5,月次ピボット!$B$3:$N$3,0)+1,FALSE)) -> 111954 | J15: =IF(ISERROR(VLOOKUP($B15,月次ピボット!$A:$N,MATCH(J$5,月次ピボット!$B$3:$N$3,0)+1,FALSE)),0,VLOOKUP($B15,月次ピボット!$A:$N,MATCH(J$5,月次ピボット!$B$3:$N$3,0)+1,FALSE)) -> 2965454 | K15: =IF(ISERROR(VLOOKUP($B15,月次ピボット!$A:$N,MATCH(K$5,月次ピボット!$B$3:$N$3,0)+1,FALSE)),0,VLOOKUP($B15,月次ピボット!$A:$N,MATCH(K$5,月次ピボット!$B$3:$N$3,0)+1,FALSE)) -> 1039137 | L15: =IF(ISERROR(VLOOKUP($B15,月次ピボット!$A:$N,MATCH(L$5,月次ピボット!$B$3:$N$3,0)+1,FALSE)),0,VLOOKUP($B15,月次ピボット!$A:$N,MATCH(L$5,月次ピボット!$B$3:$N$3,0)+1,FALSE)) -> 465454 | M15: =IF(ISERROR(VLOOKUP($B15,月次ピボット!$A:$N,MATCH(M$5,月次ピボット!$B$3:$N$3,0)+1,FALSE)),0,VLOOKUP($B15,月次ピボット!$A:$N,MATCH(M$5,月次ピボット!$B$3:$N$3,0)+1,FALSE)) -> 294454 | N15: =IF(ISERROR(VLOOKUP($B15,月次ピボット!$A:$N,MATCH(N$5,月次ピボット!$B$3:$N$3,0)+1,FALSE)),0,VLOOKUP($B15,月次ピボット!$A:$N,MATCH(N$5,月次ピボット!$B$3:$N$3,0)+1,FALSE)) -> -1923393 | O15: 5208220
B16: 経常収入合計 | C16: =SUM(C9:C15) -> 14899860 | D16: =SUM(D9:D15) -> 24405466 | E16: 28782767 | F16: 22851732 | G16: 26404089 | H16: 30886080 | I16: 32328464 | J16: 28120136 | K16: 29571586 | L16: 24661352 | M16: 33755714 | N16: 16092539 | O16: 312759785
B18: 経常支出
B19: 現金仕入 | C19: =IF(ISERROR(VLOOKUP($B19,月次ピボット!$A:$N,MATCH(C$5,月次ピボット!$B$3:$N$3,0)+1,FALSE)),0,VLOOKUP($B19,月次ピボット!$A:$N,MATCH(C$5,月次ピボット!$B$3:$N$3,0)+1,FALSE)) -> 0 | D19: =IF(ISERROR(VLOOKUP($B19,月次ピボット!$A:$N,MATCH(D$5,月次ピボット!$B$3:$N$3,0)+1,FALSE)),0,VLOOKUP($B19,月次ピボット!$A:$N,MATCH(D$5,月次ピボット!$B$3:$N$3,0)+1,FALSE)) -> 0 | E19: =IF(ISERROR(VLOOKUP($B19,月次ピボット!$A:$N,MATCH(E$5,月次ピボット!$B$3:$N$3,0)+1,FALSE)),0,VLOOKUP($B19,月次ピボット!$A:$N,MATCH(E$5,月次ピボット!$B$3:$N$3,0)+1,FALSE)) -> 0 | F19: =IF(ISERROR(VLOOKUP($B19,月次ピボット!$A:$N,MATCH(F$5,月次ピボット!$B$3:$N$3,0)+1,FALSE)),0,VLOOKUP($B19,月次ピボット!$A:$N,MATCH(F$5,月次ピボット!$B$3:$N$3,0)+1,FALSE)) -> 0 | G19: =IF(ISERROR(VLOOKUP($B19,月次ピボット!$A:$N,MATCH(G$5,月次ピボット!$B$3:$N$3,0)+1,FALSE)),0,VLOOKUP($B19,月次ピボット!$A:$N,MATCH(G$5,月次ピボット!$B$3:$N$3,0)+1,FALSE)) -> 0 | H19: =IF(ISERROR(VLOOKUP($B19,月次ピボット!$A:$N,MATCH(H$5,月次ピボット!$B$3:$N$3,0)+1,FALSE)),0,VLOOKUP($B19,月次ピボット!$A:$N,MATCH(H$5,月次ピボット!$B$3:$N$3,0)+1,FALSE)) -> 0 | I19: =IF(ISERROR(VLOOKUP($B19,月次ピボット!$A:$N,MATCH(I$5,月次ピボット!$B$3:$N$3,0)+1,FALSE)),0,VLOOKUP($B19,月次ピボット!$A:$N,MATCH(I$5,月次ピボット!$B$3:$N$3,0)+1,FALSE)) -> 0 | J19: =IF(ISERROR(VLOOKUP($B19,月次ピボット!$A:$N,MATCH(J$5,月次ピボット!$B$3:$N$3,0)+1,FALSE)),0,VLOOKUP($B19,月次ピボット!$A:$N,MATCH(J$5,月次ピボット!$B$3:$N$3,0)+1,FALSE)) -> 0 | K19: =IF(ISERROR(VLOOKUP($B19,月次ピボット!$A:$N,MATCH(K$5,月次ピボット!$B$3:$N$3,0)+1,FALSE)),0,VLOOKUP($B19,月次ピボット!$A:$N,MATCH(K$5,月次ピボット!$B$3:$N$3,0)+1,FALSE)) -> 0 | L19: =IF(ISERROR(VLOOKUP($B19,月次ピボット!$A:$N,MATCH(L$5,月次ピボット!$B$3:$N$3,0)+1,FALSE)),0,VLOOKUP($B19,月次ピボット!$A:$N,MATCH(L$5,月次ピボット!$B$3:$N$3,0)+1,FALSE)) -> 0 | M19: =IF(ISERROR(VLOOKUP($B19,月次ピボット!$A:$N,MATCH(M$5,月次ピボット!$B$3:$N$3,0)+1,FALSE)),0,VLOOKUP($B19,月次ピボット!$A:$N,MATCH(M$5,月次ピボット!$B$3:$N$3,0)+1,FALSE)) -> 0 | N19: =IF(ISERROR(VLOOKUP($B19,月次ピボット!$A:$N,MATCH(N$5,月次ピボット!$B$3:$N$3,0)+1,FALSE)),0,VLOOKUP($B19,月次ピボット!$A:$N,MATCH(N$5,月次ピボット!$B$3:$N$3,0)+1,FALSE)) -> 0 | O19: =SUM(C19:N19) -> 0
B20: 買掛金支払 | C20: =IF(ISERROR(VLOOKUP($B20,月次ピボット!$A:$N,MATCH(C$5,月次ピボット!$B$3:$N$3,0)+1,FALSE)),0,VLOOKUP($B20,月次ピボット!$A:$N,MATCH(C$5,月次ピボット!$B$3:$N$3,0)+1,FALSE)) -> 8178262 | D20: =IF(ISERROR(VLOOKUP($B20,月次ピボット!$A:$N,MATCH(D$5,月次ピボット!$B$3:$N$3,0)+1,FALSE)),0,VLOOKUP($B20,月次ピボット!$A:$N,MATCH(D$5,月次ピボット!$B$3:$N$3,0)+1,FALSE)) -> 9753120 | E20: =IF(ISERROR(VLOOKUP($B20,月次ピボット!$A:$N,MATCH(E$5,月次ピボット!$B$3:$N$3,0)+1,FALSE)),0,VLOOKUP($B20,月次ピボット!$A:$N,MATCH(E$5,月次ピボット!$B$3:$N$3,0)+1,FALSE)) -> 21288579 | F20: =IF(ISERROR(VLOOKUP($B20,月次ピボット!$A:$N,MATCH(F$5,月次ピボット!$B$3:$N$3,0)+1,FALSE)),0,VLOOKUP($B20,月次ピボット!$A:$N,MATCH(F$5,月次ピボット!$B$3:$N$3,0)+1,FALSE)) -> 14939352 | G20: =IF(ISERROR(VLOOKUP($B20,月次ピボット!$A:$N,MATCH(G$5,月次ピボット!$B$3:$N$3,0)+1,FALSE)),0,VLOOKUP($B20,月次ピボット!$A:$N,MATCH(G$5,月次ピボット!$B$3:$N$3,0)+1,FALSE)) -> 21381980 | H20: =IF(ISERROR(VLOOKUP($B20,月次ピボット!$A:$N,MATCH(H$5,月次ピボット!$B$3:$N$3,0)+1,FALSE)),0,VLOOKUP($B20,月次ピボット!$A:$N,MATCH(H$5,月次ピボット!$B$3:$N$3,0)+1,FALSE)) -> 18618842 | I20: =IF(ISERROR(VLOOKUP($B20,月次ピボット!$A:$N,MATCH(I$5,月次ピボット!$B$3:$N$3,0)+1,FALSE)),0,VLOOKUP($B20,月次ピボット!$A:$N,MATCH(I$5,月次ピボット!$B$3:$N$3,0)+1,FALSE)) -> 18815277 | J20: =IF(ISERROR(VLOOKUP($B20,月次ピボット!$A:$N,MATCH(J$5,月次ピボット!$B$3:$N$3,0)+1,FALSE)),0,VLOOKUP($B20,月次ピボット!$A:$N,MATCH(J$5,月次ピボット!$B$3:$N$3,0)+1,FALSE)) -> 15705685 | K20: =IF(ISERROR(VLOOKUP($B20,月次ピボット!$A:$N,MATCH(K$5,月次ピボット!$B$3:$N$3,0)+1,FALSE)),0,VLOOKUP($B20,月次ピボット!$A:$N,MATCH(K$5,月次ピボット!$B$3:$N$3,0)+1,FALSE)) -> 14133186 | L20: =IF(ISERROR(VLOOKUP($B20,月次ピボット!$A:$N,MATCH(L$5,月次ピボット!$B$3:$N$3,0)+1,FALSE)),0,VLOOKUP($B20,月次ピボット!$A:$N,MATCH(L$5,月次ピボット!$B$3:$N$3,0)+1,FALSE)) -> 12996327 | M20: =IF(ISERROR(VLOOKUP($B20,月次ピボット!$A:$N,MATCH(M$5,月次ピボット!$B$3:$N$3,0)+1,FALSE)),0,VLOOKUP($B20,月次ピボット!$A:$N,MATCH(M$5,月次ピボット!$B$3:$N$3,0)+1,FALSE)) -> 17481521 | N20: =IF(ISERROR(VLOOKUP($B20,月次ピボット!$A:$N,MATCH(N$5,月次ピボット!$B$3:$N$3,0)+1,FALSE)),0,VLOOKUP($B20,月次ピボット!$A:$N,MATCH(N$5,月次ピボット!$B$3:$N$3,0)+1,FALSE)) -> 16108220 | O20: 189400351
B21: 支払手形決済 | C21: =IF(ISERROR(VLOOKUP($B21,月次ピボット!$A:$N,MATCH(C$5,月次ピボット!$B$3:$N$3,0)+1,FALSE)),0,VLOOKUP($B21,月次ピボット!$A:$N,MATCH(C$5,月次ピボット!$B$3:$N$3,0)+1,FALSE)) -> 1060642 | D21: =IF(ISERROR(VLOOKUP($B21,月次ピボット!$A:$N,MATCH(D$5,月次ピボット!$B$3:$N$3,0)+1,FALSE)),0,VLOOKUP($B21,月次ピボット!$A:$N,MATCH(D$5,月次ピボット!$B$3:$N$3,0)+1,FALSE)) -> 3558215 | E21: =IF(ISERROR(VLOOKUP($B21,月次ピボット!$A:$N,MATCH(E$5,月次ピボット!$B$3:$N$3,0)+1,FALSE)),0,VLOOKUP($B21,月次ピボット!$A:$N,MATCH(E$5,月次ピボット!$B$3:$N$3,0)+1,FALSE)) -> 0 | F21: =IF(ISERROR(VLOOKUP($B21,月次ピボット!$A:$N,MATCH(F$5,月次ピボット!$B$3:$N$3,0)+1,FALSE)),0,VLOOKUP($B21,月次ピボット!$A:$N,MATCH(F$5,月次ピボット!$B$3:$N$3,0)+1,FALSE)) -> 0 | G21: =IF(ISERROR(VLOOKUP($B21,月次ピボット!$A:$N,MATCH(G$5,月次ピボット!$B$3:$N$3,0)+1,FALSE)),0,VLOOKUP($B21,月次ピボット!$A:$N,MATCH(G$5,月次ピボット!$B$3:$N$3,0)+1,FALSE)) -> 0 | H21: =IF(ISERROR(VLOOKUP($B21,月次ピボット!$A:$N,MATCH(H$5,月次ピボット!$B$3:$N$3,0)+1,FALSE)),0,VLOOKUP($B21,月次ピボット!$A:$N,MATCH(H$5,月次ピボット!$B$3:$N$3,0)+1,FALSE)) -> 0 | I21: =IF(ISERROR(VLOOKUP($B21,月次ピボット!$A:$N,MATCH(I$5,月次ピボット!$B$3:$N$3,0)+1,FALSE)),0,VLOOKUP($B21,月次ピボット!$A:$N,MATCH(I$5,月次ピボット!$B$3:$N$3,0)+1,FALSE)) -> 0 | J21: =IF(ISERROR(VLOOKUP($B21,月次ピボット!$A:$N,MATCH(J$5,月次ピボット!$B$3:$N$3,0)+1,FALSE)),0,VLOOKUP($B21,月次ピボット!$A:$N,MATCH(J$5,月次ピボット!$B$3:$N$3,0)+1,FALSE)) -> 0 | K21: =IF(ISERROR(VLOOKUP($B21,月次ピボット!$A:$N,MATCH(K$5,月次ピボット!$B$3:$N$3,0)+1,FALSE)),0,VLOOKUP($B21,月次ピボット!$A:$N,MATCH(K$5,月次ピボット!$B$3:$N$3,0)+1,FALSE)) -> 0 | L21: =IF(ISERROR(VLOOKUP($B21,月次ピボット!$A:$N,MATCH(L$5,月次ピボット!$B$3:$N$3,0)+1,FALSE)),0,VLOOKUP($B21,月次ピボット!$A:$N,MATCH(L$5,月次ピボット!$B$3:$N$3,0)+1,FALSE)) -> 0 | M21: =IF(ISERROR(VLOOKUP($B21,月次ピボット!$A:$N,MATCH(M$5,月次ピボット!$B$3:$N$3,0)+1,FALSE)),0,VLOOKUP($B21,月次ピボット!$A:$N,MATCH(M$5,月次ピボット!$B$3:$N$3,0)+1,FALSE)) -> 0 | N21: =IF(ISERROR(VLOOKUP($B21,月次ピボット!$A:$N,MATCH(N$5,月次ピボット!$B$3:$N$3,0)+1,FALSE)),0,VLOOKUP($B21,月次ピボット!$A:$N,MATCH(N$5,月次ピボット!$B$3:$N$3,0)+1,FALSE)) -> 0 | O21: 4618857
B22: 人件費支出 | C22: =IF(ISERROR(VLOOKUP($B22,月次ピボット!$A:$N,MATCH(C$5,月次ピボット!$B$3:$N$3,0)+1,FALSE)),0,VLOOKUP($B22,月次ピボット!$A:$N,MATCH(C$5,月次ピボット!$B$3:$N$3,0)+1,FALSE)) -> 2082600 | D22: =IF(ISERROR(VLOOKUP($B22,月次ピボット!$A:$N,MATCH(D$5,月次ピボット!$B$3:$N$3,0)+1,FALSE)),0,VLOOKUP($B22,月次ピボット!$A:$N,MATCH(D$5,月次ピボット!$B$3:$N$3,0)+1,FALSE)) -> 2582415 | E22: =IF(ISERROR(VLOOKUP($B22,月次ピボット!$A:$N,MATCH(E$5,月次ピボット!$B$3:$N$3,0)+1,FALSE)),0,VLOOKUP($B22,月次ピボット!$A:$N,MATCH(E$5,月次ピボット!$B$3:$N$3,0)+1,FALSE)) -> 2372586 | F22: =IF(ISERROR(VLOOKUP($B22,月次ピボット!$A:$N,MATCH(F$5,月次ピボット!$B$3:$N$3,0)+1,FALSE)),0,VLOOKUP($B22,月次ピボット!$A:$N,MATCH(F$5,月次ピボット!$B$3:$N$3,0)+1,FALSE)) -> 6271474 | G22: =IF(ISERROR(VLOOKUP($B22,月次ピボット!$A:$N,MATCH(G$5,月次ピボット!$B$3:$N$3,0)+1,FALSE)),0,VLOOKUP($B22,月次ピボット!$A:$N,MATCH(G$5,月次ピボット!$B$3:$N$3,0)+1,FALSE)) -> 2498137 | H22: =IF(ISERROR(VLOOKUP($B22,月次ピボット!$A:$N,MATCH(H$5,月次ピボット!$B$3:$N$3,0)+1,FALSE)),0,VLOOKUP($B22,月次ピボット!$A:$N,MATCH(H$5,月次ピボット!$B$3:$N$3,0)+1,FALSE)) -> 2374067 | I22: =IF(ISERROR(VLOOKUP($B22,月次ピボット!$A:$N,MATCH(I$5,月次ピボット!$B$3:$N$3,0)+1,FALSE)),0,VLOOKUP($B22,月次ピボット!$A:$N,MATCH(I$5,月次ピボット!$B$3:$N$3,0)+1,FALSE)) -> 2401375 | J22: =IF(ISERROR(VLOOKUP($B22,月次ピボット!$A:$N,MATCH(J$5,月次ピボット!$B$3:$N$3,0)+1,FALSE)),0,VLOOKUP($B22,月次ピボット!$A:$N,MATCH(J$5,月次ピボット!$B$3:$N$3,0)+1,FALSE)) -> 2399433 | K22: =IF(ISERROR(VLOOKUP($B22,月次ピボット!$A:$N,MATCH(K$5,月次ピボット!$B$3:$N$3,0)+1,FALSE)),0,VLOOKUP($B22,月次ピボット!$A:$N,MATCH(K$5,月次ピボット!$B$3:$N$3,0)+1,FALSE)) -> 7357954 | L22: =IF(ISERROR(VLOOKUP($B22,月次ピボット!$A:$N,MATCH(L$5,月次ピボット!$B$3:$N$3,0)+1,FALSE)),0,VLOOKUP($B22,月次ピボット!$A:$N,MATCH(L$5,月次ピボット!$B$3:$N$3,0)+1,FALSE)) -> 2550892 | M22: =IF(ISERROR(VLOOKUP($B22,月次ピボット!$A:$N,MATCH(M$5,月次ピボット!$B$3:$N$3,0)+1,FALSE)),0,VLOOKUP($B22,月次ピボット!$A:$N,MATCH(M$5,月次ピボット!$B$3:$N$3,0)+1,FALSE)) -> 3221935 | N22: =IF(ISERROR(VLOOKUP($B22,月次ピボット!$A:$N,MATCH(N$5,月次ピボット!$B$3:$N$3,0)+1,FALSE)),0,VLOOKUP($B22,月次ピボット!$A:$N,MATCH(N$5,月次ピボット!$B$3:$N$3,0)+1,FALSE)) -> 2418183 | O22: 38531051
B23: 諸経費支出 | C23: =IF(ISERROR(VLOOKUP($B23,月次ピボット!$A:$N,MATCH(C$5,月次ピボット!$B$3:$N$3,0)+1,FALSE)),0,VLOOKUP($B23,月次ピボット!$A:$N,MATCH(C$5,月次ピボット!$B$3:$N$3,0)+1,FALSE)) -> 2223858 | D23: =IF(ISERROR(VLOOKUP($B23,月次ピボット!$A:$N,MATCH(D$5,月次ピボット!$B$3:$N$3,0)+1,FALSE)),0,VLOOKUP($B23,月次ピボット!$A:$N,MATCH(D$5,月次ピボット!$B$3:$N$3,0)+1,FALSE)) -> 2090114 | E23: =IF(ISERROR(VLOOKUP($B23,月次ピボット!$A:$N,MATCH(E$5,月次ピボット!$B$3:$N$3,0)+1,FALSE)),0,VLOOKUP($B23,月次ピボット!$A:$N,MATCH(E$5,月次ピボット!$B$3:$N$3,0)+1,FALSE)) -> 3694450 | F23: =IF(ISERROR(VLOOKUP($B23,月次ピボット!$A:$N,MATCH(F$5,月次ピボット!$B$3:$N$3,0)+1,FALSE)),0,VLOOKUP($B23,月次ピボット!$A:$N,MATCH(F$5,月次ピボット!$B$3:$N$3,0)+1,FALSE)) -> 1907672 | G23: =IF(ISERROR(VLOOKUP($B23,月次ピボット!$A:$N,MATCH(G$5,月次ピボット!$B$3:$N$3,0)+1,FALSE)),0,VLOOKUP($B23,月次ピボット!$A:$N,MATCH(G$5,月次ピボット!$B$3:$N$3,0)+1,FALSE)) -> 2556609 | H23: =IF(ISERROR(VLOOKUP($B23,月次ピボット!$A:$N,MATCH(H$5,月次ピボット!$B$3:$N$3,0)+1,FALSE)),0,VLOOKUP($B23,月次ピボット!$A:$N,MATCH(H$5,月次ピボット!$B$3:$N$3,0)+1,FALSE)) -> 2166475 | I23: =IF(ISERROR(VLOOKUP($B23,月次ピボット!$A:$N,MATCH(I$5,月次ピボット!$B$3:$N$3,0)+1,FALSE)),0,VLOOKUP($B23,月次ピボット!$A:$N,MATCH(I$5,月次ピボット!$B$3:$N$3,0)+1,FALSE)) -> 5470845 | J23: =IF(ISERROR(VLOOKUP($B23,月次ピボット!$A:$N,MATCH(J$5,月次ピボット!$B$3:$N$3,0)+1,FALSE)),0,VLOOKUP($B23,月次ピボット!$A:$N,MATCH(J$5,月次ピボット!$B$3:$N$3,0)+1,FALSE)) -> 2154496 | K23: =IF(ISERROR(VLOOKUP($B23,月次ピボット!$A:$N,MATCH(K$5,月次ピボット!$B$3:$N$3,0)+1,FALSE)),0,VLOOKUP($B23,月次ピボット!$A:$N,MATCH(K$5,月次ピボット!$B$3:$N$3,0)+1,FALSE)) -> 2465444 | L23: =IF(ISERROR(VLOOKUP($B23,月次ピボット!$A:$N,MATCH(L$5,月次ピボット!$B$3:$N$3,0)+1,FALSE)),0,VLOOKUP($B23,月次ピボット!$A:$N,MATCH(L$5,月次ピボット!$B$3:$N$3,0)+1,FALSE)) -> 2308866 | M23: =IF(ISERROR(VLOOKUP($B23,月次ピボット!$A:$N,MATCH(M$5,月次ピボット!$B$3:$N$3,0)+1,FALSE)),0,VLOOKUP($B23,月次ピボット!$A:$N,MATCH(M$5,月次ピボット!$B$3:$N$3,0)+1,FALSE)) -> 1995009 | N23: =IF(ISERROR(VLOOKUP($B23,月次ピボット!$A:$N,MATCH(N$5,月次ピボット!$B$3:$N$3,0)+1,FALSE)),0,VLOOKUP($B23,月次ピボット!$A:$N,MATCH(N$5,月次ピボット!$B$3:$N$3,0)+1,FALSE)) -> 2425546 | O23: 31459384
B24: 利息等支出 | C24: =IF(ISERROR(VLOOKUP($B24,月次ピボット!$A:$N,MATCH(C$5,月次ピボット!$B$3:$N$3,0)+1,FALSE)),0,VLOOKUP($B24,月次ピボット!$A:$N,MATCH(C$5,月次ピボット!$B$3:$N$3,0)+1,FALSE)) -> 20507 | D24: =IF(ISERROR(VLOOKUP($B24,月次ピボット!$A:$N,MATCH(D$5,月次ピボット!$B$3:$N$3,0)+1,FALSE)),0,VLOOKUP($B24,月次ピボット!$A:$N,MATCH(D$5,月次ピボット!$B$3:$N$3,0)+1,FALSE)) -> 19072 | E24: =IF(ISERROR(VLOOKUP($B24,月次ピボット!$A:$N,MATCH(E$5,月次ピボット!$B$3:$N$3,0)+1,FALSE)),0,VLOOKUP($B24,月次ピボット!$A:$N,MATCH(E$5,月次ピボット!$B$3:$N$3,0)+1,FALSE)) -> 17637 | F24: =IF(ISERROR(VLOOKUP($B24,月次ピボット!$A:$N,MATCH(F$5,月次ピボット!$B$3:$N$3,0)+1,FALSE)),0,VLOOKUP($B24,月次ピボット!$A:$N,MATCH(F$5,月次ピボット!$B$3:$N$3,0)+1,FALSE)) -> 16201 | G24: =IF(ISERROR(VLOOKUP($B24,月次ピボット!$A:$N,MATCH(G$5,月次ピボット!$B$3:$N$3,0)+1,FALSE)),0,VLOOKUP($B24,月次ピボット!$A:$N,MATCH(G$5,月次ピボット!$B$3:$N$3,0)+1,FALSE)) -> 14762 | H24: =IF(ISERROR(VLOOKUP($B24,月次ピボット!$A:$N,MATCH(H$5,月次ピボット!$B$3:$N$3,0)+1,FALSE)),0,VLOOKUP($B24,月次ピボット!$A:$N,MATCH(H$5,月次ピボット!$B$3:$N$3,0)+1,FALSE)) -> 13324 | I24: =IF(ISERROR(VLOOKUP($B24,月次ピボット!$A:$N,MATCH(I$5,月次ピボット!$B$3:$N$3,0)+1,FALSE)),0,VLOOKUP($B24,月次ピボット!$A:$N,MATCH(I$5,月次ピボット!$B$3:$N$3,0)+1,FALSE)) -> 11885 | J24: =IF(ISERROR(VLOOKUP($B24,月次ピボット!$A:$N,MATCH(J$5,月次ピボット!$B$3:$N$3,0)+1,FALSE)),0,VLOOKUP($B24,月次ピボット!$A:$N,MATCH(J$5,月次ピボット!$B$3:$N$3,0)+1,FALSE)) -> 10444 | K24: =IF(ISERROR(VLOOKUP($B24,月次ピボット!$A:$N,MATCH(K$5,月次ピボット!$B$3:$N$3,0)+1,FALSE)),0,VLOOKUP($B24,月次ピボット!$A:$N,MATCH(K$5,月次ピボット!$B$3:$N$3,0)+1,FALSE)) -> 9003 | L24: =IF(ISERROR(VLOOKUP($B24,月次ピボット!$A:$N,MATCH(L$5,月次ピボット!$B$3:$N$3,0)+1,FALSE)),0,VLOOKUP($B24,月次ピボット!$A:$N,MATCH(L$5,月次ピボット!$B$3:$N$3,0)+1,FALSE)) -> 19149 | M24: =IF(ISERROR(VLOOKUP($B24,月次ピボット!$A:$N,MATCH(M$5,月次ピボット!$B$3:$N$3,0)+1,FALSE)),0,VLOOKUP($B24,月次ピボット!$A:$N,MATCH(M$5,月次ピボット!$B$3:$N$3,0)+1,FALSE)) -> 17866 | N24: =IF(ISERROR(VLOOKUP($B24,月次ピボット!$A:$N,MATCH(N$5,月次ピボット!$B$3:$N$3,0)+1,FALSE)),0,VLOOKUP($B24,月次ピボット!$A:$N,MATCH(N$5,月次ピボット!$B$3:$N$3,0)+1,FALSE)) -> 16421 | O24: 186271
B25: その他経常支出 | C25: =IF(ISERROR(VLOOKUP($B25,月次ピボット!$A:$N,MATCH(C$5,月次ピボット!$B$3:$N$3,0)+1,FALSE)),0,VLOOKUP($B25,月次ピボット!$A:$N,MATCH(C$5,月次ピボット!$B$3:$N$3,0)+1,FALSE)) -> 212997 | D25: =IF(ISERROR(VLOOKUP($B25,月次ピボット!$A:$N,MATCH(D$5,月次ピボット!$B$3:$N$3,0)+1,FALSE)),0,VLOOKUP($B25,月次ピボット!$A:$N,MATCH(D$5,月次ピボット!$B$3:$N$3,0)+1,FALSE)) -> 436234 | E25: =IF(ISERROR(VLOOKUP($B25,月次ピボット!$A:$N,MATCH(E$5,月次ピボット!$B$3:$N$3,0)+1,FALSE)),0,VLOOKUP($B25,月次ピボット!$A:$N,MATCH(E$5,月次ピボット!$B$3:$N$3,0)+1,FALSE)) -> 236667 | F25: =IF(ISERROR(VLOOKUP($B25,月次ピボット!$A:$N,MATCH(F$5,月次ピボット!$B$3:$N$3,0)+1,FALSE)),0,VLOOKUP($B25,月次ピボット!$A:$N,MATCH(F$5,月次ピボット!$B$3:$N$3,0)+1,FALSE)) -> 1495827 | G25: =IF(ISERROR(VLOOKUP($B25,月次ピボット!$A:$N,MATCH(G$5,月次ピボット!$B$3:$N$3,0)+1,FALSE)),0,VLOOKUP($B25,月次ピボット!$A:$N,MATCH(G$5,月次ピボット!$B$3:$N$3,0)+1,FALSE)) -> 236667 | H25: =IF(ISERROR(VLOOKUP($B25,月次ピボット!$A:$N,MATCH(H$5,月次ピボット!$B$3:$N$3,0)+1,FALSE)),0,VLOOKUP($B25,月次ピボット!$A:$N,MATCH(H$5,月次ピボット!$B$3:$N$3,0)+1,FALSE)) -> 236667 | I25: =IF(ISERROR(VLOOKUP($B25,月次ピボット!$A:$N,MATCH(I$5,月次ピボット!$B$3:$N$3,0)+1,FALSE)),0,VLOOKUP($B25,月次ピボット!$A:$N,MATCH(I$5,月次ピボット!$B$3:$N$3,0)+1,FALSE)) -> 236667 | J25: =IF(ISERROR(VLOOKUP($B25,月次ピボット!$A:$N,MATCH(J$5,月次ピボット!$B$3:$N$3,0)+1,FALSE)),0,VLOOKUP($B25,月次ピボット!$A:$N,MATCH(J$5,月次ピボット!$B$3:$N$3,0)+1,FALSE)) -> 236667 | K25: =IF(ISERROR(VLOOKUP($B25,月次ピボット!$A:$N,MATCH(K$5,月次ピボット!$B$3:$N$3,0)+1,FALSE)),0,VLOOKUP($B25,月次ピボット!$A:$N,MATCH(K$5,月次ピボット!$B$3:$N$3,0)+1,FALSE)) -> 236667 | L25: =IF(ISERROR(VLOOKUP($B25,月次ピボット!$A:$N,MATCH(L$5,月次ピボット!$B$3:$N$3,0)+1,FALSE)),0,VLOOKUP($B25,月次ピボット!$A:$N,MATCH(L$5,月次ピボット!$B$3:$N$3,0)+1,FALSE)) -> 2385183 | M25: =IF(ISERROR(VLOOKUP($B25,月次ピボット!$A:$N,MATCH(M$5,月次ピボット!$B$3:$N$3,0)+1,FALSE)),0,VLOOKUP($B25,月次ピボット!$A:$N,MATCH(M$5,月次ピボット!$B$3:$N$3,0)+1,FALSE)) -> 236667 | N25: =IF(ISERROR(VLOOKUP($B25,月次ピボット!$A:$N,MATCH(N$5,月次ピボット!$B$3:$N$3,0)+1,FALSE)),0,VLOOKUP($B25,月次ピボット!$A:$N,MATCH(N$5,月次ピボット!$B$3:$N$3,0)+1,FALSE)) -> -2152180 | O25: 4034730
B26: 経常支出合計 | C26: =SUM(C19:C25) -> 13778866 | D26: =SUM(D19:D25) -> 18439170 | E26: 27609919 | F26: 24630526 | G26: 26688155 | H26: 23409375 | I26: 26936049 | J26: 20506725 | K26: 24202254 | L26: 20260417 | M26: 22952998 | N26: 18816190 | O26: 268230644
B28: 経常収支過不足 | C28: =C16-C26 -> 1120994 | D28: =D16-D26 -> 5966296 | E28: 1172848 | F28: -1778794 | G28: -284066 | H28: 7476705 | I28: 5392415 | J28: 7613411 | K28: 5369332 | L28: 4400935 | M28: 10802716 | N28: -2723651 | O28: =SUM(C28:N28) -> 44529141
B31: 財務等収入
B32: 短期借入金借入 | C32: =IF(ISERROR(VLOOKUP($B32,月次ピボット!$A:$N,MATCH(C$5,月次ピボット!$B$3:$N$3,0)+1,FALSE)),0,VLOOKUP($B32,月次ピボット!$A:$N,MATCH(C$5,月次ピボット!$B$3:$N$3,0)+1,FALSE)) -> 0 | D32: =IF(ISERROR(VLOOKUP($B32,月次ピボット!$A:$N,MATCH(D$5,月次ピボット!$B$3:$N$3,0)+1,FALSE)),0,VLOOKUP($B32,月次ピボット!$A:$N,MATCH(D$5,月次ピボット!$B$3:$N$3,0)+1,FALSE)) -> 0 | E32: =IF(ISERROR(VLOOKUP($B32,月次ピボット!$A:$N,MATCH(E$5,月次ピボット!$B$3:$N$3,0)+1,FALSE)),0,VLOOKUP($B32,月次ピボット!$A:$N,MATCH(E$5,月次ピボット!$B$3:$N$3,0)+1,FALSE)) -> 0 | F32: =IF(ISERROR(VLOOKUP($B32,月次ピボット!$A:$N,MATCH(F$5,月次ピボット!$B$3:$N$3,0)+1,FALSE)),0,VLOOKUP($B32,月次ピボット!$A:$N,MATCH(F$5,月次ピボット!$B$3:$N$3,0)+1,FALSE)) -> 0 | G32: =IF(ISERROR(VLOOKUP($B32,月次ピボット!$A:$N,MATCH(G$5,月次ピボット!$B$3:$N$3,0)+1,FALSE)),0,VLOOKUP($B32,月次ピボット!$A:$N,MATCH(G$5,月次ピボット!$B$3:$N$3,0)+1,FALSE)) -> 0 | H32: =IF(ISERROR(VLOOKUP($B32,月次ピボット!$A:$N,MATCH(H$5,月次ピボット!$B$3:$N$3,0)+1,FALSE)),0,VLOOKUP($B32,月次ピボット!$A:$N,MATCH(H$5,月次ピボット!$B$3:$N$3,0)+1,FALSE)) -> 0 | I32: =IF(ISERROR(VLOOKUP($B32,月次ピボット!$A:$N,MATCH(I$5,月次ピボット!$B$3:$N$3,0)+1,FALSE)),0,VLOOKUP($B32,月次ピボット!$A:$N,MATCH(I$5,月次ピボット!$B$3:$N$3,0)+1,FALSE)) -> 0 | J32: =IF(ISERROR(VLOOKUP($B32,月次ピボット!$A:$N,MATCH(J$5,月次ピボット!$B$3:$N$3,0)+1,FALSE)),0,VLOOKUP($B32,月次ピボット!$A:$N,MATCH(J$5,月次ピボット!$B$3:$N$3,0)+1,FALSE)) -> 0 | K32: =IF(ISERROR(VLOOKUP($B32,月次ピボット!$A:$N,MATCH(K$5,月次ピボット!$B$3:$N$3,0)+1,FALSE)),0,VLOOKUP($B32,月次ピボット!$A:$N,MATCH(K$5,月次ピボット!$B$3:$N$3,0)+1,FALSE)) -> 6000000 | L32: =IF(ISERROR(VLOOKUP($B32,月次ピボット!$A:$N,MATCH(L$5,月次ピボット!$B$3:$N$3,0)+1,FALSE)),0,VLOOKUP($B32,月次ピボット!$A:$N,MATCH(L$5,月次ピボット!$B$3:$N$3,0)+1,FALSE)) -> 0 | M32: =IF(ISERROR(VLOOKUP($B32,月次ピボット!$A:$N,MATCH(M$5,月次ピボット!$B$3:$N$3,0)+1,FALSE)),0,VLOOKUP($B32,月次ピボット!$A:$N,MATCH(M$5,月次ピボット!$B$3:$N$3,0)+1,FALSE)) -> 0 | N32: =IF(ISERROR(VLOOKUP($B32,月次ピボット!$A:$N,MATCH(N$5,月次ピボット!$B$3:$N$3,0)+1,FALSE)),0,VLOOKUP($B32,月次ピボット!$A:$N,MATCH(N$5,月次ピボット!$B$3:$N$3,0)+1,FALSE)) -> 0 | O32: =SUM(C32:N32) -> 6000000
B33: 長期借入金借入 | C33: =IF(ISERROR(VLOOKUP($B33,月次ピボット!$A:$N,MATCH(C$5,月次ピボット!$B$3:$N$3,0)+1,FALSE)),0,VLOOKUP($B33,月次ピボット!$A:$N,MATCH(C$5,月次ピボット!$B$3:$N$3,0)+1,FALSE)) -> 0 | D33: =IF(ISERROR(VLOOKUP($B33,月次ピボット!$A:$N,MATCH(D$5,月次ピボット!$B$3:$N$3,0)+1,FALSE)),0,VLOOKUP($B33,月次ピボット!$A:$N,MATCH(D$5,月次ピボット!$B$3:$N$3,0)+1,FALSE)) -> 0 | E33: =IF(ISERROR(VLOOKUP($B33,月次ピボット!$A:$N,MATCH(E$5,月次ピボット!$B$3:$N$3,0)+1,FALSE)),0,VLOOKUP($B33,月次ピボット!$A:$N,MATCH(E$5,月次ピボット!$B$3:$N$3,0)+1,FALSE)) -> 0 | F33: =IF(ISERROR(VLOOKUP($B33,月次ピボット!$A:$N,MATCH(F$5,月次ピボット!$B$3:$N$3,0)+1,FALSE)),0,VLOOKUP($B33,月次ピボット!$A:$N,MATCH(F$5,月次ピボット!$B$3:$N$3,0)+1,FALSE)) -> 0 | G33: =IF(ISERROR(VLOOKUP($B33,月次ピボット!$A:$N,MATCH(G$5,月次ピボット!$B$3:$N$3,0)+1,FALSE)),0,VLOOKUP($B33,月次ピボット!$A:$N,MATCH(G$5,月次ピボット!$B$3:$N$3,0)+1,FALSE)) -> 0 | H33: =IF(ISERROR(VLOOKUP($B33,月次ピボット!$A:$N,MATCH(H$5,月次ピボット!$B$3:$N$3,0)+1,FALSE)),0,VLOOKUP($B33,月次ピボット!$A:$N,MATCH(H$5,月次ピボット!$B$3:$N$3,0)+1,FALSE)) -> 0 | I33: =IF(ISERROR(VLOOKUP($B33,月次ピボット!$A:$N,MATCH(I$5,月次ピボット!$B$3:$N$3,0)+1,FALSE)),0,VLOOKUP($B33,月次ピボット!$A:$N,MATCH(I$5,月次ピボット!$B$3:$N$3,0)+1,FALSE)) -> 0 | J33: =IF(ISERROR(VLOOKUP($B33,月次ピボット!$A:$N,MATCH(J$5,月次ピボット!$B$3:$N$3,0)+1,FALSE)),0,VLOOKUP($B33,月次ピボット!$A:$N,MATCH(J$5,月次ピボット!$B$3:$N$3,0)+1,FALSE)) -> 0 | K33: =IF(ISERROR(VLOOKUP($B33,月次ピボット!$A:$N,MATCH(K$5,月次ピボット!$B$3:$N$3,0)+1,FALSE)),0,VLOOKUP($B33,月次ピボット!$A:$N,MATCH(K$5,月次ピボット!$B$3:$N$3,0)+1,FALSE)) -> 0 | L33: =IF(ISERROR(VLOOKUP($B33,月次ピボット!$A:$N,MATCH(L$5,月次ピボット!$B$3:$N$3,0)+1,FALSE)),0,VLOOKUP($B33,月次ピボット!$A:$N,MATCH(L$5,月次ピボット!$B$3:$N$3,0)+1,FALSE)) -> 0 | M33: =IF(ISERROR(VLOOKUP($B33,月次ピボット!$A:$N,MATCH(M$5,月次ピボット!$B$3:$N$3,0)+1,FALSE)),0,VLOOKUP($B33,月次ピボット!$A:$N,MATCH(M$5,月次ピボット!$B$3:$N$3,0)+1,FALSE)) -> 0 | N33: =IF(ISERROR(VLOOKUP($B33,月次ピボット!$A:$N,MATCH(N$5,月次ピボット!$B$3:$N$3,0)+1,FALSE)),0,VLOOKUP($B33,月次ピボット!$A:$N,MATCH(N$5,月次ピボット!$B$3:$N$3,0)+1,FALSE)) -> 0 | O33: 0
B34: 役員・関係会社等借入 | C34: =IF(ISERROR(VLOOKUP($B34,月次ピボット!$A:$N,MATCH(C$5,月次ピボット!$B$3:$N$3,0)+1,FALSE)),0,VLOOKUP($B34,月次ピボット!$A:$N,MATCH(C$5,月次ピボット!$B$3:$N$3,0)+1,FALSE)) -> 0 | D34: =IF(ISERROR(VLOOKUP($B34,月次ピボット!$A:$N,MATCH(D$5,月次ピボット!$B$3:$N$3,0)+1,FALSE)),0,VLOOKUP($B34,月次ピボット!$A:$N,MATCH(D$5,月次ピボット!$B$3:$N$3,0)+1,FALSE)) -> 0 | E34: =IF(ISERROR(VLOOKUP($B34,月次ピボット!$A:$N,MATCH(E$5,月次ピボット!$B$3:$N$3,0)+1,FALSE)),0,VLOOKUP($B34,月次ピボット!$A:$N,MATCH(E$5,月次ピボット!$B$3:$N$3,0)+1,FALSE)) -> 0 | F34: =IF(ISERROR(VLOOKUP($B34,月次ピボット!$A:$N,MATCH(F$5,月次ピボット!$B$3:$N$3,0)+1,FALSE)),0,VLOOKUP($B34,月次ピボット!$A:$N,MATCH(F$5,月次ピボット!$B$3:$N$3,0)+1,FALSE)) -> 0 | G34: =IF(ISERROR(VLOOKUP($B34,月次ピボット!$A:$N,MATCH(G$5,月次ピボット!$B$3:$N$3,0)+1,FALSE)),0,VLOOKUP($B34,月次ピボット!$A:$N,MATCH(G$5,月次ピボット!$B$3:$N$3,0)+1,FALSE)) -> 0 | H34: =IF(ISERROR(VLOOKUP($B34,月次ピボット!$A:$N,MATCH(H$5,月次ピボット!$B$3:$N$3,0)+1,FALSE)),0,VLOOKUP($B34,月次ピボット!$A:$N,MATCH(H$5,月次ピボット!$B$3:$N$3,0)+1,FALSE)) -> 0 | I34: =IF(ISERROR(VLOOKUP($B34,月次ピボット!$A:$N,MATCH(I$5,月次ピボット!$B$3:$N$3,0)+1,FALSE)),0,VLOOKUP($B34,月次ピボット!$A:$N,MATCH(I$5,月次ピボット!$B$3:$N$3,0)+1,FALSE)) -> 0 | J34: =IF(ISERROR(VLOOKUP($B34,月次ピボット!$A:$N,MATCH(J$5,月次ピボット!$B$3:$N$3,0)+1,FALSE)),0,VLOOKUP($B34,月次ピボット!$A:$N,MATCH(J$5,月次ピボット!$B$3:$N$3,0)+1,FALSE)) -> 0 | K34: =IF(ISERROR(VLOOKUP($B34,月次ピボット!$A:$N,MATCH(K$5,月次ピボット!$B$3:$N$3,0)+1,FALSE)),0,VLOOKUP($B34,月次ピボット!$A:$N,MATCH(K$5,月次ピボット!$B$3:$N$3,0)+1,FALSE)) -> 0 | L34: =IF(ISERROR(VLOOKUP($B34,月次ピボット!$A:$N,MATCH(L$5,月次ピボット!$B$3:$N$3,0)+1,FALSE)),0,VLOOKUP($B34,月次ピボット!$A:$N,MATCH(L$5,月次ピボット!$B$3:$N$3,0)+1,FALSE)) -> 0 | M34: =IF(ISERROR(VLOOKUP($B34,月次ピボット!$A:$N,MATCH(M$5,月次ピボット!$B$3:$N$3,0)+1,FALSE)),0,VLOOKUP($B34,月次ピボット!$A:$N,MATCH(M$5,月次ピボット!$B$3:$N$3,0)+1,FALSE)) -> 0 | N34: =IF(ISERROR(VLOOKUP($B34,月次ピボット!$A:$N,MATCH(N$5,月次ピボット!$B$3:$N$3,0)+1,FALSE)),0,VLOOKUP($B34,月次ピボット!$A:$N,MATCH(N$5,月次ピボット!$B$3:$N$3,0)+1,FALSE)) -> 0 | O34: 0
B35: 長期未払金収入 | C35: =IF(ISERROR(VLOOKUP($B35,月次ピボット!$A:$N,MATCH(C$5,月次ピボット!$B$3:$N$3,0)+1,FALSE)),0,VLOOKUP($B35,月次ピボット!$A:$N,MATCH(C$5,月次ピボット!$B$3:$N$3,0)+1,FALSE)) -> 0 | D35: =IF(ISERROR(VLOOKUP($B35,月次ピボット!$A:$N,MATCH(D$5,月次ピボット!$B$3:$N$3,0)+1,FALSE)),0,VLOOKUP($B35,月次ピボット!$A:$N,MATCH(D$5,月次ピボット!$B$3:$N$3,0)+1,FALSE)) -> 0 | E35: =IF(ISERROR(VLOOKUP($B35,月次ピボット!$A:$N,MATCH(E$5,月次ピボット!$B$3:$N$3,0)+1,FALSE)),0,VLOOKUP($B35,月次ピボット!$A:$N,MATCH(E$5,月次ピボット!$B$3:$N$3,0)+1,FALSE)) -> 0 | F35: =IF(ISERROR(VLOOKUP($B35,月次ピボット!$A:$N,MATCH(F$5,月次ピボット!$B$3:$N$3,0)+1,FALSE)),0,VLOOKUP($B35,月次ピボット!$A:$N,MATCH(F$5,月次ピボット!$B$3:$N$3,0)+1,FALSE)) -> 0 | G35: =IF(ISERROR(VLOOKUP($B35,月次ピボット!$A:$N,MATCH(G$5,月次ピボット!$B$3:$N$3,0)+1,FALSE)),0,VLOOKUP($B35,月次ピボット!$A:$N,MATCH(G$5,月次ピボット!$B$3:$N$3,0)+1,FALSE)) -> 0 | H35: =IF(ISERROR(VLOOKUP($B35,月次ピボット!$A:$N,MATCH(H$5,月次ピボット!$B$3:$N$3,0)+1,FALSE)),0,VLOOKUP($B35,月次ピボット!$A:$N,MATCH(H$5,月次ピボット!$B$3:$N$3,0)+1,FALSE)) -> 0 | I35: =IF(ISERROR(VLOOKUP($B35,月次ピボット!$A:$N,MATCH(I$5,月次ピボット!$B$3:$N$3,0)+1,FALSE)),0,VLOOKUP($B35,月次ピボット!$A:$N,MATCH(I$5,月次ピボット!$B$3:$N$3,0)+1,FALSE)) -> 0 | J35: =IF(ISERROR(VLOOKUP($B35,月次ピボット!$A:$N,MATCH(J$5,月次ピボット!$B$3:$N$3,0)+1,FALSE)),0,VLOOKUP($B35,月次ピボット!$A:$N,MATCH(J$5,月次ピボット!$B$3:$N$3,0)+1,FALSE)) -> 0 | K35: =IF(ISERROR(VLOOKUP($B35,月次ピボット!$A:$N,MATCH(K$5,月次ピボット!$B$3:$N$3,0)+1,FALSE)),0,VLOOKUP($B35,月次ピボット!$A:$N,MATCH(K$5,月次ピボット!$B$3:$N$3,0)+1,FALSE)) -> 0 | L35: =IF(ISERROR(VLOOKUP($B35,月次ピボット!$A:$N,MATCH(L$5,月次ピボット!$B$3:$N$3,0)+1,FALSE)),0,VLOOKUP($B35,月次ピボット!$A:$N,MATCH(L$5,月次ピボット!$B$3:$N$3,0)+1,FALSE)) -> 0 | M35: =IF(ISERROR(VLOOKUP($B35,月次ピボット!$A:$N,MATCH(M$5,月次ピボット!$B$3:$N$3,0)+1,FALSE)),0,VLOOKUP($B35,月次ピボット!$A:$N,MATCH(M$5,月次ピボット!$B$3:$N$3,0)+1,FALSE)) -> 0 | N35: =IF(ISERROR(VLOOKUP($B35,月次ピボット!$A:$N,MATCH(N$5,月次ピボット!$B$3:$N$3,0)+1,FALSE)),0,VLOOKUP($B35,月次ピボット!$A:$N,MATCH(N$5,月次ピボット!$B$3:$N$3,0)+1,FALSE)) -> 0 | O35: 0
B36: 固定資産売却収入 | C36: =IF(ISERROR(VLOOKUP($B36,月次ピボット!$A:$N,MATCH(C$5,月次ピボット!$B$3:$N$3,0)+1,FALSE)),0,VLOOKUP($B36,月次ピボット!$A:$N,MATCH(C$5,月次ピボット!$B$3:$N$3,0)+1,FALSE)) -> 0 | D36: =IF(ISERROR(VLOOKUP($B36,月次ピボット!$A:$N,MATCH(D$5,月次ピボット!$B$3:$N$3,0)+1,FALSE)),0,VLOOKUP($B36,月次ピボット!$A:$N,MATCH(D$5,月次ピボット!$B$3:$N$3,0)+1,FALSE)) -> 0 | E36: =IF(ISERROR(VLOOKUP($B36,月次ピボット!$A:$N,MATCH(E$5,月次ピボット!$B$3:$N$3,0)+1,FALSE)),0,VLOOKUP($B36,月次ピボット!$A:$N,MATCH(E$5,月次ピボット!$B$3:$N$3,0)+1,FALSE)) -> 0 | F36: =IF(ISERROR(VLOOKUP($B36,月次ピボット!$A:$N,MATCH(F$5,月次ピボット!$B$3:$N$3,0)+1,FALSE)),0,VLOOKUP($B36,月次ピボット!$A:$N,MATCH(F$5,月次ピボット!$B$3:$N$3,0)+1,FALSE)) -> 0 | G36: =IF(ISERROR(VLOOKUP($B36,月次ピボット!$A:$N,MATCH(G$5,月次ピボット!$B$3:$N$3,0)+1,FALSE)),0,VLOOKUP($B36,月次ピボット!$A:$N,MATCH(G$5,月次ピボット!$B$3:$N$3,0)+1,FALSE)) -> 0 | H36: =IF(ISERROR(VLOOKUP($B36,月次ピボット!$A:$N,MATCH(H$5,月次ピボット!$B$3:$N$3,0)+1,FALSE)),0,VLOOKUP($B36,月次ピボット!$A:$N,MATCH(H$5,月次ピボット!$B$3:$N$3,0)+1,FALSE)) -> 0 | I36: =IF(ISERROR(VLOOKUP($B36,月次ピボット!$A:$N,MATCH(I$5,月次ピボット!$B$3:$N$3,0)+1,FALSE)),0,VLOOKUP($B36,月次ピボット!$A:$N,MATCH(I$5,月次ピボット!$B$3:$N$3,0)+1,FALSE)) -> 0 | J36: =IF(ISERROR(VLOOKUP($B36,月次ピボット!$A:$N,MATCH(J$5,月次ピボット!$B$3:$N$3,0)+1,FALSE)),0,VLOOKUP($B36,月次ピボット!$A:$N,MATCH(J$5,月次ピボット!$B$3:$N$3,0)+1,FALSE)) -> 0 | K36: =IF(ISERROR(VLOOKUP($B36,月次ピボット!$A:$N,MATCH(K$5,月次ピボット!$B$3:$N$3,0)+1,FALSE)),0,VLOOKUP($B36,月次ピボット!$A:$N,MATCH(K$5,月次ピボット!$B$3:$N$3,0)+1,FALSE)) -> 0 | L36: =IF(ISERROR(VLOOKUP($B36,月次ピボット!$A:$N,MATCH(L$5,月次ピボット!$B$3:$N$3,0)+1,FALSE)),0,VLOOKUP($B36,月次ピボット!$A:$N,MATCH(L$5,月次ピボット!$B$3:$N$3,0)+1,FALSE)) -> 0 | M36: =IF(ISERROR(VLOOKUP($B36,月次ピボット!$A:$N,MATCH(M$5,月次ピボット!$B$3:$N$3,0)+1,FALSE)),0,VLOOKUP($B36,月次ピボット!$A:$N,MATCH(M$5,月次ピボット!$B$3:$N$3,0)+1,FALSE)) -> 0 | N36: =IF(ISERROR(VLOOKUP($B36,月次ピボット!$A:$N,MATCH(N$5,月次ピボット!$B$3:$N$3,0)+1,FALSE)),0,VLOOKUP($B36,月次ピボット!$A:$N,MATCH(N$5,月次ピボット!$B$3:$N$3,0)+1,FALSE)) -> 0 | O36: 0
B37: 定期性預金払戻 | C37: =IF(ISERROR(VLOOKUP($B37,月次ピボット!$A:$N,MATCH(C$5,月次ピボット!$B$3:$N$3,0)+1,FALSE)),0,VLOOKUP($B37,月次ピボット!$A:$N,MATCH(C$5,月次ピボット!$B$3:$N$3,0)+1,FALSE)) -> 0 | D37: =IF(ISERROR(VLOOKUP($B37,月次ピボット!$A:$N,MATCH(D$5,月次ピボット!$B$3:$N$3,0)+1,FALSE)),0,VLOOKUP($B37,月次ピボット!$A:$N,MATCH(D$5,月次ピボット!$B$3:$N$3,0)+1,FALSE)) -> 0 | E37: =IF(ISERROR(VLOOKUP($B37,月次ピボット!$A:$N,MATCH(E$5,月次ピボット!$B$3:$N$3,0)+1,FALSE)),0,VLOOKUP($B37,月次ピボット!$A:$N,MATCH(E$5,月次ピボット!$B$3:$N$3,0)+1,FALSE)) -> 0 | F37: =IF(ISERROR(VLOOKUP($B37,月次ピボット!$A:$N,MATCH(F$5,月次ピボット!$B$3:$N$3,0)+1,FALSE)),0,VLOOKUP($B37,月次ピボット!$A:$N,MATCH(F$5,月次ピボット!$B$3:$N$3,0)+1,FALSE)) -> 0 | G37: =IF(ISERROR(VLOOKUP($B37,月次ピボット!$A:$N,MATCH(G$5,月次ピボット!$B$3:$N$3,0)+1,FALSE)),0,VLOOKUP($B37,月次ピボット!$A:$N,MATCH(G$5,月次ピボット!$B$3:$N$3,0)+1,FALSE)) -> 0 | H37: =IF(ISERROR(VLOOKUP($B37,月次ピボット!$A:$N,MATCH(H$5,月次ピボット!$B$3:$N$3,0)+1,FALSE)),0,VLOOKUP($B37,月次ピボット!$A:$N,MATCH(H$5,月次ピボット!$B$3:$N$3,0)+1,FALSE)) -> 0 | I37: =IF(ISERROR(VLOOKUP($B37,月次ピボット!$A:$N,MATCH(I$5,月次ピボット!$B$3:$N$3,0)+1,FALSE)),0,VLOOKUP($B37,月次ピボット!$A:$N,MATCH(I$5,月次ピボット!$B$3:$N$3,0)+1,FALSE)) -> 0 | J37: =IF(ISERROR(VLOOKUP($B37,月次ピボット!$A:$N,MATCH(J$5,月次ピボット!$B$3:$N$3,0)+1,FALSE)),0,VLOOKUP($B37,月次ピボット!$A:$N,MATCH(J$5,月次ピボット!$B$3:$N$3,0)+1,FALSE)) -> 0 | K37: =IF(ISERROR(VLOOKUP($B37,月次ピボット!$A:$N,MATCH(K$5,月次ピボット!$B$3:$N$3,0)+1,FALSE)),0,VLOOKUP($B37,月次ピボット!$A:$N,MATCH(K$5,月次ピボット!$B$3:$N$3,0)+1,FALSE)) -> 0 | L37: =IF(ISERROR(VLOOKUP($B37,月次ピボット!$A:$N,MATCH(L$5,月次ピボット!$B$3:$N$3,0)+1,FALSE)),0,VLOOKUP($B37,月次ピボット!$A:$N,MATCH(L$5,月次ピボット!$B$3:$N$3,0)+1,FALSE)) -> 0 | M37: =IF(ISERROR(VLOOKUP($B37,月次ピボット!$A:$N,MATCH(M$5,月次ピボット!$B$3:$N$3,0)+1,FALSE)),0,VLOOKUP($B37,月次ピボット!$A:$N,MATCH(M$5,月次ピボット!$B$3:$N$3,0)+1,FALSE)) -> 0 | N37: =IF(ISERROR(VLOOKUP($B37,月次ピボット!$A:$N,MATCH(N$5,月次ピボット!$B$3:$N$3,0)+1,FALSE)),0,VLOOKUP($B37,月次ピボット!$A:$N,MATCH(N$5,月次ピボット!$B$3:$N$3,0)+1,FALSE)) -> 0 | O37: 0
B38: 投資・貸付金等回収 | C38: =IF(ISERROR(VLOOKUP($B38,月次ピボット!$A:$N,MATCH(C$5,月次ピボット!$B$3:$N$3,0)+1,FALSE)),0,VLOOKUP($B38,月次ピボット!$A:$N,MATCH(C$5,月次ピボット!$B$3:$N$3,0)+1,FALSE)) -> 0 | D38: =IF(ISERROR(VLOOKUP($B38,月次ピボット!$A:$N,MATCH(D$5,月次ピボット!$B$3:$N$3,0)+1,FALSE)),0,VLOOKUP($B38,月次ピボット!$A:$N,MATCH(D$5,月次ピボット!$B$3:$N$3,0)+1,FALSE)) -> 0 | E38: =IF(ISERROR(VLOOKUP($B38,月次ピボット!$A:$N,MATCH(E$5,月次ピボット!$B$3:$N$3,0)+1,FALSE)),0,VLOOKUP($B38,月次ピボット!$A:$N,MATCH(E$5,月次ピボット!$B$3:$N$3,0)+1,FALSE)) -> 0 | F38: =IF(ISERROR(VLOOKUP($B38,月次ピボット!$A:$N,MATCH(F$5,月次ピボット!$B$3:$N$3,0)+1,FALSE)),0,VLOOKUP($B38,月次ピボット!$A:$N,MATCH(F$5,月次ピボット!$B$3:$N$3,0)+1,FALSE)) -> 0 | G38: =IF(ISERROR(VLOOKUP($B38,月次ピボット!$A:$N,MATCH(G$5,月次ピボット!$B$3:$N$3,0)+1,FALSE)),0,VLOOKUP($B38,月次ピボット!$A:$N,MATCH(G$5,月次ピボット!$B$3:$N$3,0)+1,FALSE)) -> 0 | H38: =IF(ISERROR(VLOOKUP($B38,月次ピボット!$A:$N,MATCH(H$5,月次ピボット!$B$3:$N$3,0)+1,FALSE)),0,VLOOKUP($B38,月次ピボット!$A:$N,MATCH(H$5,月次ピボット!$B$3:$N$3,0)+1,FALSE)) -> 0 | I38: =IF(ISERROR(VLOOKUP($B38,月次ピボット!$A:$N,MATCH(I$5,月次ピボット!$B$3:$N$3,0)+1,FALSE)),0,VLOOKUP($B38,月次ピボット!$A:$N,MATCH(I$5,月次ピボット!$B$3:$N$3,0)+1,FALSE)) -> 0 | J38: =IF(ISERROR(VLOOKUP($B38,月次ピボット!$A:$N,MATCH(J$5,月次ピボット!$B$3:$N$3,0)+1,FALSE)),0,VLOOKUP($B38,月次ピボット!$A:$N,MATCH(J$5,月次ピボット!$B$3:$N$3,0)+1,FALSE)) -> 0 | K38: =IF(ISERROR(VLOOKUP($B38,月次ピボット!$A:$N,MATCH(K$5,月次ピボット!$B$3:$N$3,0)+1,FALSE)),0,VLOOKUP($B38,月次ピボット!$A:$N,MATCH(K$5,月次ピボット!$B$3:$N$3,0)+1,FALSE)) -> 0 | L38: =IF(ISERROR(VLOOKUP($B38,月次ピボット!$A:$N,MATCH(L$5,月次ピボット!$B$3:$N$3,0)+1,FALSE)),0,VLOOKUP($B38,月次ピボット!$A:$N,MATCH(L$5,月次ピボット!$B$3:$N$3,0)+1,FALSE)) -> 0 | M38: =IF(ISERROR(VLOOKUP($B38,月次ピボット!$A:$N,MATCH(M$5,月次ピボット!$B$3:$N$3,0)+1,FALSE)),0,VLOOKUP($B38,月次ピボット!$A:$N,MATCH(M$5,月次ピボット!$B$3:$N$3,0)+1,FALSE)) -> 0 | N38: =IF(ISERROR(VLOOKUP($B38,月次ピボット!$A:$N,MATCH(N$5,月次ピボット!$B$3:$N$3,0)+1,FALSE)),0,VLOOKUP($B38,月次ピボット!$A:$N,MATCH(N$5,月次ピボット!$B$3:$N$3,0)+1,FALSE)) -> 0 | O38: 0
B39: その他財務等収入 | C39: =IF(ISERROR(VLOOKUP($B39,月次ピボット!$A:$N,MATCH(C$5,月次ピボット!$B$3:$N$3,0)+1,FALSE)),0,VLOOKUP($B39,月次ピボット!$A:$N,MATCH(C$5,月次ピボット!$B$3:$N$3,0)+1,FALSE)) -> 0 | D39: =IF(ISERROR(VLOOKUP($B39,月次ピボット!$A:$N,MATCH(D$5,月次ピボット!$B$3:$N$3,0)+1,FALSE)),0,VLOOKUP($B39,月次ピボット!$A:$N,MATCH(D$5,月次ピボット!$B$3:$N$3,0)+1,FALSE)) -> 0 | E39: =IF(ISERROR(VLOOKUP($B39,月次ピボット!$A:$N,MATCH(E$5,月次ピボット!$B$3:$N$3,0)+1,FALSE)),0,VLOOKUP($B39,月次ピボット!$A:$N,MATCH(E$5,月次ピボット!$B$3:$N$3,0)+1,FALSE)) -> 0 | F39: =IF(ISERROR(VLOOKUP($B39,月次ピボット!$A:$N,MATCH(F$5,月次ピボット!$B$3:$N$3,0)+1,FALSE)),0,VLOOKUP($B39,月次ピボット!$A:$N,MATCH(F$5,月次ピボット!$B$3:$N$3,0)+1,FALSE)) -> 0 | G39: =IF(ISERROR(VLOOKUP($B39,月次ピボット!$A:$N,MATCH(G$5,月次ピボット!$B$3:$N$3,0)+1,FALSE)),0,VLOOKUP($B39,月次ピボット!$A:$N,MATCH(G$5,月次ピボット!$B$3:$N$3,0)+1,FALSE)) -> 0 | H39: =IF(ISERROR(VLOOKUP($B39,月次ピボット!$A:$N,MATCH(H$5,月次ピボット!$B$3:$N$3,0)+1,FALSE)),0,VLOOKUP($B39,月次ピボット!$A:$N,MATCH(H$5,月次ピボット!$B$3:$N$3,0)+1,FALSE)) -> 0 | I39: =IF(ISERROR(VLOOKUP($B39,月次ピボット!$A:$N,MATCH(I$5,月次ピボット!$B$3:$N$3,0)+1,FALSE)),0,VLOOKUP($B39,月次ピボット!$A:$N,MATCH(I$5,月次ピボット!$B$3:$N$3,0)+1,FALSE)) -> 0 | J39: =IF(ISERROR(VLOOKUP($B39,月次ピボット!$A:$N,MATCH(J$5,月次ピボット!$B$3:$N$3,0)+1,FALSE)),0,VLOOKUP($B39,月次ピボット!$A:$N,MATCH(J$5,月次ピボット!$B$3:$N$3,0)+1,FALSE)) -> 0 | K39: =IF(ISERROR(VLOOKUP($B39,月次ピボット!$A:$N,MATCH(K$5,月次ピボット!$B$3:$N$3,0)+1,FALSE)),0,VLOOKUP($B39,月次ピボット!$A:$N,MATCH(K$5,月次ピボット!$B$3:$N$3,0)+1,FALSE)) -> 0 | L39: =IF(ISERROR(VLOOKUP($B39,月次ピボット!$A:$N,MATCH(L$5,月次ピボット!$B$3:$N$3,0)+1,FALSE)),0,VLOOKUP($B39,月次ピボット!$A:$N,MATCH(L$5,月次ピボット!$B$3:$N$3,0)+1,FALSE)) -> 0 | M39: =IF(ISERROR(VLOOKUP($B39,月次ピボット!$A:$N,MATCH(M$5,月次ピボット!$B$3:$N$3,0)+1,FALSE)),0,VLOOKUP($B39,月次ピボット!$A:$N,MATCH(M$5,月次ピボット!$B$3:$N$3,0)+1,FALSE)) -> 0 | N39: =IF(ISERROR(VLOOKUP($B39,月次ピボット!$A:$N,MATCH(N$5,月次ピボット!$B$3:$N$3,0)+1,FALSE)),0,VLOOKUP($B39,月次ピボット!$A:$N,MATCH(N$5,月次ピボット!$B$3:$N$3,0)+1,FALSE)) -> 0 | O39: 0
B40: 財務等収入合計 | C40: =SUM(C32:C39) -> 0 | D40: =SUM(D32:D39) -> 0 | E40: 0 | F40: 0 | G40: 0 | H40: 0 | I40: 0 | J40: 0 | K40: 6000000 | L40: 0 | M40: 0 | N40: 0 | O40: 6000000
B42: 財務等支出
B43: 短期借入金返済 | C43: =IF(ISERROR(VLOOKUP($B43,月次ピボット!$A:$N,MATCH(C$5,月次ピボット!$B$3:$N$3,0)+1,FALSE)),0,VLOOKUP($B43,月次ピボット!$A:$N,MATCH(C$5,月次ピボット!$B$3:$N$3,0)+1,FALSE)) -> 500000 | D43: =IF(ISERROR(VLOOKUP($B43,月次ピボット!$A:$N,MATCH(D$5,月次ピボット!$B$3:$N$3,0)+1,FALSE)),0,VLOOKUP($B43,月次ピボット!$A:$N,MATCH(D$5,月次ピボット!$B$3:$N$3,0)+1,FALSE)) -> 500000 | E43: =IF(ISERROR(VLOOKUP($B43,月次ピボット!$A:$N,MATCH(E$5,月次ピボット!$B$3:$N$3,0)+1,FALSE)),0,VLOOKUP($B43,月次ピボット!$A:$N,MATCH(E$5,月次ピボット!$B$3:$N$3,0)+1,FALSE)) -> 500000 | F43: =IF(ISERROR(VLOOKUP($B43,月次ピボット!$A:$N,MATCH(F$5,月次ピボット!$B$3:$N$3,0)+1,FALSE)),0,VLOOKUP($B43,月次ピボット!$A:$N,MATCH(F$5,月次ピボット!$B$3:$N$3,0)+1,FALSE)) -> 500000 | G43: =IF(ISERROR(VLOOKUP($B43,月次ピボット!$A:$N,MATCH(G$5,月次ピボット!$B$3:$N$3,0)+1,FALSE)),0,VLOOKUP($B43,月次ピボット!$A:$N,MATCH(G$5,月次ピボット!$B$3:$N$3,0)+1,FALSE)) -> 500000 | H43: =IF(ISERROR(VLOOKUP($B43,月次ピボット!$A:$N,MATCH(H$5,月次ピボット!$B$3:$N$3,0)+1,FALSE)),0,VLOOKUP($B43,月次ピボット!$A:$N,MATCH(H$5,月次ピボット!$B$3:$N$3,0)+1,FALSE)) -> 500000 | I43: =IF(ISERROR(VLOOKUP($B43,月次ピボット!$A:$N,MATCH(I$5,月次ピボット!$B$3:$N$3,0)+1,FALSE)),0,VLOOKUP($B43,月次ピボット!$A:$N,MATCH(I$5,月次ピボット!$B$3:$N$3,0)+1,FALSE)) -> 500000 | J43: =IF(ISERROR(VLOOKUP($B43,月次ピボット!$A:$N,MATCH(J$5,月次ピボット!$B$3:$N$3,0)+1,FALSE)),0,VLOOKUP($B43,月次ピボット!$A:$N,MATCH(J$5,月次ピボット!$B$3:$N$3,0)+1,FALSE)) -> 500000 | K43: =IF(ISERROR(VLOOKUP($B43,月次ピボット!$A:$N,MATCH(K$5,月次ピボット!$B$3:$N$3,0)+1,FALSE)),0,VLOOKUP($B43,月次ピボット!$A:$N,MATCH(K$5,月次ピボット!$B$3:$N$3,0)+1,FALSE)) -> 500000 | L43: =IF(ISERROR(VLOOKUP($B43,月次ピボット!$A:$N,MATCH(L$5,月次ピボット!$B$3:$N$3,0)+1,FALSE)),0,VLOOKUP($B43,月次ピボット!$A:$N,MATCH(L$5,月次ピボット!$B$3:$N$3,0)+1,FALSE)) -> 500000 | M43: =IF(ISERROR(VLOOKUP($B43,月次ピボット!$A:$N,MATCH(M$5,月次ピボット!$B$3:$N$3,0)+1,FALSE)),0,VLOOKUP($B43,月次ピボット!$A:$N,MATCH(M$5,月次ピボット!$B$3:$N$3,0)+1,FALSE)) -> 500000 | N43: =IF(ISERROR(VLOOKUP($B43,月次ピボット!$A:$N,MATCH(N$5,月次ピボット!$B$3:$N$3,0)+1,FALSE)),0,VLOOKUP($B43,月次ピボット!$A:$N,MATCH(N$5,月次ピボット!$B$3:$N$3,0)+1,FALSE)) -> 500000 | O43: =SUM(C43:N43) -> 6000000
B44: 長期借入金返済 | C44: =IF(ISERROR(VLOOKUP($B44,月次ピボット!$A:$N,MATCH(C$5,月次ピボット!$B$3:$N$3,0)+1,FALSE)),0,VLOOKUP($B44,月次ピボット!$A:$N,MATCH(C$5,月次ピボット!$B$3:$N$3,0)+1,FALSE)) -> 202333 | D44: =IF(ISERROR(VLOOKUP($B44,月次ピボット!$A:$N,MATCH(D$5,月次ピボット!$B$3:$N$3,0)+1,FALSE)),0,VLOOKUP($B44,月次ピボット!$A:$N,MATCH(D$5,月次ピボット!$B$3:$N$3,0)+1,FALSE)) -> 202789 | E44: =IF(ISERROR(VLOOKUP($B44,月次ピボット!$A:$N,MATCH(E$5,月次ピボット!$B$3:$N$3,0)+1,FALSE)),0,VLOOKUP($B44,月次ピボット!$A:$N,MATCH(E$5,月次ピボット!$B$3:$N$3,0)+1,FALSE)) -> 203245 | F44: =IF(ISERROR(VLOOKUP($B44,月次ピボット!$A:$N,MATCH(F$5,月次ピボット!$B$3:$N$3,0)+1,FALSE)),0,VLOOKUP($B44,月次ピボット!$A:$N,MATCH(F$5,月次ピボット!$B$3:$N$3,0)+1,FALSE)) -> 203702 | G44: =IF(ISERROR(VLOOKUP($B44,月次ピボット!$A:$N,MATCH(G$5,月次ピボット!$B$3:$N$3,0)+1,FALSE)),0,VLOOKUP($B44,月次ピボット!$A:$N,MATCH(G$5,月次ピボット!$B$3:$N$3,0)+1,FALSE)) -> 204161 | H44: =IF(ISERROR(VLOOKUP($B44,月次ピボット!$A:$N,MATCH(H$5,月次ピボット!$B$3:$N$3,0)+1,FALSE)),0,VLOOKUP($B44,月次ピボット!$A:$N,MATCH(H$5,月次ピボット!$B$3:$N$3,0)+1,FALSE)) -> 204620 | I44: =IF(ISERROR(VLOOKUP($B44,月次ピボット!$A:$N,MATCH(I$5,月次ピボット!$B$3:$N$3,0)+1,FALSE)),0,VLOOKUP($B44,月次ピボット!$A:$N,MATCH(I$5,月次ピボット!$B$3:$N$3,0)+1,FALSE)) -> 205080 | J44: =IF(ISERROR(VLOOKUP($B44,月次ピボット!$A:$N,MATCH(J$5,月次ピボット!$B$3:$N$3,0)+1,FALSE)),0,VLOOKUP($B44,月次ピボット!$A:$N,MATCH(J$5,月次ピボット!$B$3:$N$3,0)+1,FALSE)) -> 205542 | K44: =IF(ISERROR(VLOOKUP($B44,月次ピボット!$A:$N,MATCH(K$5,月次ピボット!$B$3:$N$3,0)+1,FALSE)),0,VLOOKUP($B44,月次ピボット!$A:$N,MATCH(K$5,月次ピボット!$B$3:$N$3,0)+1,FALSE)) -> 206004 | L44: =IF(ISERROR(VLOOKUP($B44,月次ピボット!$A:$N,MATCH(L$5,月次ピボット!$B$3:$N$3,0)+1,FALSE)),0,VLOOKUP($B44,月次ピボット!$A:$N,MATCH(L$5,月次ピボット!$B$3:$N$3,0)+1,FALSE)) -> 206468 | M44: =IF(ISERROR(VLOOKUP($B44,月次ピボット!$A:$N,MATCH(M$5,月次ピボット!$B$3:$N$3,0)+1,FALSE)),0,VLOOKUP($B44,月次ピボット!$A:$N,MATCH(M$5,月次ピボット!$B$3:$N$3,0)+1,FALSE)) -> 206932 | N44: =IF(ISERROR(VLOOKUP($B44,月次ピボット!$A:$N,MATCH(N$5,月次ピボット!$B$3:$N$3,0)+1,FALSE)),0,VLOOKUP($B44,月次ピボット!$A:$N,MATCH(N$5,月次ピボット!$B$3:$N$3,0)+1,FALSE)) -> 207398 | O44: 2458274
B45: 役員・関係会社等返済 | C45: =IF(ISERROR(VLOOKUP($B45,月次ピボット!$A:$N,MATCH(C$5,月次ピボット!$B$3:$N$3,0)+1,FALSE)),0,VLOOKUP($B45,月次ピボット!$A:$N,MATCH(C$5,月次ピボット!$B$3:$N$3,0)+1,FALSE)) -> 0 | D45: =IF(ISERROR(VLOOKUP($B45,月次ピボット!$A:$N,MATCH(D$5,月次ピボット!$B$3:$N$3,0)+1,FALSE)),0,VLOOKUP($B45,月次ピボット!$A:$N,MATCH(D$5,月次ピボット!$B$3:$N$3,0)+1,FALSE)) -> 0 | E45: =IF(ISERROR(VLOOKUP($B45,月次ピボット!$A:$N,MATCH(E$5,月次ピボット!$B$3:$N$3,0)+1,FALSE)),0,VLOOKUP($B45,月次ピボット!$A:$N,MATCH(E$5,月次ピボット!$B$3:$N$3,0)+1,FALSE)) -> 0 | F45: =IF(ISERROR(VLOOKUP($B45,月次ピボット!$A:$N,MATCH(F$5,月次ピボット!$B$3:$N$3,0)+1,FALSE)),0,VLOOKUP($B45,月次ピボット!$A:$N,MATCH(F$5,月次ピボット!$B$3:$N$3,0)+1,FALSE)) -> 0 | G45: =IF(ISERROR(VLOOKUP($B45,月次ピボット!$A:$N,MATCH(G$5,月次ピボット!$B$3:$N$3,0)+1,FALSE)),0,VLOOKUP($B45,月次ピボット!$A:$N,MATCH(G$5,月次ピボット!$B$3:$N$3,0)+1,FALSE)) -> 0 | H45: =IF(ISERROR(VLOOKUP($B45,月次ピボット!$A:$N,MATCH(H$5,月次ピボット!$B$3:$N$3,0)+1,FALSE)),0,VLOOKUP($B45,月次ピボット!$A:$N,MATCH(H$5,月次ピボット!$B$3:$N$3,0)+1,FALSE)) -> 0 | I45: =IF(ISERROR(VLOOKUP($B45,月次ピボット!$A:$N,MATCH(I$5,月次ピボット!$B$3:$N$3,0)+1,FALSE)),0,VLOOKUP($B45,月次ピボット!$A:$N,MATCH(I$5,月次ピボット!$B$3:$N$3,0)+1,FALSE)) -> 0 | J45: =IF(ISERROR(VLOOKUP($B45,月次ピボット!$A:$N,MATCH(J$5,月次ピボット!$B$3:$N$3,0)+1,FALSE)),0,VLOOKUP($B45,月次ピボット!$A:$N,MATCH(J$5,月次ピボット!$B$3:$N$3,0)+1,FALSE)) -> 0 | K45: =IF(ISERROR(VLOOKUP($B45,月次ピボット!$A:$N,MATCH(K$5,月次ピボット!$B$3:$N$3,0)+1,FALSE)),0,VLOOKUP($B45,月次ピボット!$A:$N,MATCH(K$5,月次ピボット!$B$3:$N$3,0)+1,FALSE)) -> 0 | L45: =IF(ISERROR(VLOOKUP($B45,月次ピボット!$A:$N,MATCH(L$5,月次ピボット!$B$3:$N$3,0)+1,FALSE)),0,VLOOKUP($B45,月次ピボット!$A:$N,MATCH(L$5,月次ピボット!$B$3:$N$3,0)+1,FALSE)) -> 0 | M45: =IF(ISERROR(VLOOKUP($B45,月次ピボット!$A:$N,MATCH(M$5,月次ピボット!$B$3:$N$3,0)+1,FALSE)),0,VLOOKUP($B45,月次ピボット!$A:$N,MATCH(M$5,月次ピボット!$B$3:$N$3,0)+1,FALSE)) -> 0 | N45: =IF(ISERROR(VLOOKUP($B45,月次ピボット!$A:$N,MATCH(N$5,月次ピボット!$B$3:$N$3,0)+1,FALSE)),0,VLOOKUP($B45,月次ピボット!$A:$N,MATCH(N$5,月次ピボット!$B$3:$N$3,0)+1,FALSE)) -> 0 | O45: 0
B46: 長期未払金支払 | C46: =IF(ISERROR(VLOOKUP($B46,月次ピボット!$A:$N,MATCH(C$5,月次ピボット!$B$3:$N$3,0)+1,FALSE)),0,VLOOKUP($B46,月次ピボット!$A:$N,MATCH(C$5,月次ピボット!$B$3:$N$3,0)+1,FALSE)) -> 0 | D46: =IF(ISERROR(VLOOKUP($B46,月次ピボット!$A:$N,MATCH(D$5,月次ピボット!$B$3:$N$3,0)+1,FALSE)),0,VLOOKUP($B46,月次ピボット!$A:$N,MATCH(D$5,月次ピボット!$B$3:$N$3,0)+1,FALSE)) -> 0 | E46: =IF(ISERROR(VLOOKUP($B46,月次ピボット!$A:$N,MATCH(E$5,月次ピボット!$B$3:$N$3,0)+1,FALSE)),0,VLOOKUP($B46,月次ピボット!$A:$N,MATCH(E$5,月次ピボット!$B$3:$N$3,0)+1,FALSE)) -> 0 | F46: =IF(ISERROR(VLOOKUP($B46,月次ピボット!$A:$N,MATCH(F$5,月次ピボット!$B$3:$N$3,0)+1,FALSE)),0,VLOOKUP($B46,月次ピボット!$A:$N,MATCH(F$5,月次ピボット!$B$3:$N$3,0)+1,FALSE)) -> 0 | G46: =IF(ISERROR(VLOOKUP($B46,月次ピボット!$A:$N,MATCH(G$5,月次ピボット!$B$3:$N$3,0)+1,FALSE)),0,VLOOKUP($B46,月次ピボット!$A:$N,MATCH(G$5,月次ピボット!$B$3:$N$3,0)+1,FALSE)) -> 0 | H46: =IF(ISERROR(VLOOKUP($B46,月次ピボット!$A:$N,MATCH(H$5,月次ピボット!$B$3:$N$3,0)+1,FALSE)),0,VLOOKUP($B46,月次ピボット!$A:$N,MATCH(H$5,月次ピボット!$B$3:$N$3,0)+1,FALSE)) -> 0 | I46: =IF(ISERROR(VLOOKUP($B46,月次ピボット!$A:$N,MATCH(I$5,月次ピボット!$B$3:$N$3,0)+1,FALSE)),0,VLOOKUP($B46,月次ピボット!$A:$N,MATCH(I$5,月次ピボット!$B$3:$N$3,0)+1,FALSE)) -> 0 | J46: =IF(ISERROR(VLOOKUP($B46,月次ピボット!$A:$N,MATCH(J$5,月次ピボット!$B$3:$N$3,0)+1,FALSE)),0,VLOOKUP($B46,月次ピボット!$A:$N,MATCH(J$5,月次ピボット!$B$3:$N$3,0)+1,FALSE)) -> 0 | K46: =IF(ISERROR(VLOOKUP($B46,月次ピボット!$A:$N,MATCH(K$5,月次ピボット!$B$3:$N$3,0)+1,FALSE)),0,VLOOKUP($B46,月次ピボット!$A:$N,MATCH(K$5,月次ピボット!$B$3:$N$3,0)+1,FALSE)) -> 0 | L46: =IF(ISERROR(VLOOKUP($B46,月次ピボット!$A:$N,MATCH(L$5,月次ピボット!$B$3:$N$3,0)+1,FALSE)),0,VLOOKUP($B46,月次ピボット!$A:$N,MATCH(L$5,月次ピボット!$B$3:$N$3,0)+1,FALSE)) -> 0 | M46: =IF(ISERROR(VLOOKUP($B46,月次ピボット!$A:$N,MATCH(M$5,月次ピボット!$B$3:$N$3,0)+1,FALSE)),0,VLOOKUP($B46,月次ピボット!$A:$N,MATCH(M$5,月次ピボット!$B$3:$N$3,0)+1,FALSE)) -> 0 | N46: =IF(ISERROR(VLOOKUP($B46,月次ピボット!$A:$N,MATCH(N$5,月次ピボット!$B$3:$N$3,0)+1,FALSE)),0,VLOOKUP($B46,月次ピボット!$A:$N,MATCH(N$5,月次ピボット!$B$3:$N$3,0)+1,FALSE)) -> 0 | O46: 0
B47: 固定資産取得 | C47: =IF(ISERROR(VLOOKUP($B47,月次ピボット!$A:$N,MATCH(C$5,月次ピボット!$B$3:$N$3,0)+1,FALSE)),0,VLOOKUP($B47,月次ピボット!$A:$N,MATCH(C$5,月次ピボット!$B$3:$N$3,0)+1,FALSE)) -> 0 | D47: =IF(ISERROR(VLOOKUP($B47,月次ピボット!$A:$N,MATCH(D$5,月次ピボット!$B$3:$N$3,0)+1,FALSE)),0,VLOOKUP($B47,月次ピボット!$A:$N,MATCH(D$5,月次ピボット!$B$3:$N$3,0)+1,FALSE)) -> 0 | E47: =IF(ISERROR(VLOOKUP($B47,月次ピボット!$A:$N,MATCH(E$5,月次ピボット!$B$3:$N$3,0)+1,FALSE)),0,VLOOKUP($B47,月次ピボット!$A:$N,MATCH(E$5,月次ピボット!$B$3:$N$3,0)+1,FALSE)) -> 0 | F47: =IF(ISERROR(VLOOKUP($B47,月次ピボット!$A:$N,MATCH(F$5,月次ピボット!$B$3:$N$3,0)+1,FALSE)),0,VLOOKUP($B47,月次ピボット!$A:$N,MATCH(F$5,月次ピボット!$B$3:$N$3,0)+1,FALSE)) -> 0 | G47: =IF(ISERROR(VLOOKUP($B47,月次ピボット!$A:$N,MATCH(G$5,月次ピボット!$B$3:$N$3,0)+1,FALSE)),0,VLOOKUP($B47,月次ピボット!$A:$N,MATCH(G$5,月次ピボット!$B$3:$N$3,0)+1,FALSE)) -> 0 | H47: =IF(ISERROR(VLOOKUP($B47,月次ピボット!$A:$N,MATCH(H$5,月次ピボット!$B$3:$N$3,0)+1,FALSE)),0,VLOOKUP($B47,月次ピボット!$A:$N,MATCH(H$5,月次ピボット!$B$3:$N$3,0)+1,FALSE)) -> 0 | I47: =IF(ISERROR(VLOOKUP($B47,月次ピボット!$A:$N,MATCH(I$5,月次ピボット!$B$3:$N$3,0)+1,FALSE)),0,VLOOKUP($B47,月次ピボット!$A:$N,MATCH(I$5,月次ピボット!$B$3:$N$3,0)+1,FALSE)) -> 0 | J47: =IF(ISERROR(VLOOKUP($B47,月次ピボット!$A:$N,MATCH(J$5,月次ピボット!$B$3:$N$3,0)+1,FALSE)),0,VLOOKUP($B47,月次ピボット!$A:$N,MATCH(J$5,月次ピボット!$B$3:$N$3,0)+1,FALSE)) -> 0 | K47: =IF(ISERROR(VLOOKUP($B47,月次ピボット!$A:$N,MATCH(K$5,月次ピボット!$B$3:$N$3,0)+1,FALSE)),0,VLOOKUP($B47,月次ピボット!$A:$N,MATCH(K$5,月次ピボット!$B$3:$N$3,0)+1,FALSE)) -> 0 | L47: =IF(ISERROR(VLOOKUP($B47,月次ピボット!$A:$N,MATCH(L$5,月次ピボット!$B$3:$N$3,0)+1,FALSE)),0,VLOOKUP($B47,月次ピボット!$A:$N,MATCH(L$5,月次ピボット!$B$3:$N$3,0)+1,FALSE)) -> 0 | M47: =IF(ISERROR(VLOOKUP($B47,月次ピボット!$A:$N,MATCH(M$5,月次ピボット!$B$3:$N$3,0)+1,FALSE)),0,VLOOKUP($B47,月次ピボット!$A:$N,MATCH(M$5,月次ピボット!$B$3:$N$3,0)+1,FALSE)) -> 0 | N47: =IF(ISERROR(VLOOKUP($B47,月次ピボット!$A:$N,MATCH(N$5,月次ピボット!$B$3:$N$3,0)+1,FALSE)),0,VLOOKUP($B47,月次ピボット!$A:$N,MATCH(N$5,月次ピボット!$B$3:$N$3,0)+1,FALSE)) -> 0 | O47: 0
B48: 定期性預金預入 | C48: =IF(ISERROR(VLOOKUP($B48,月次ピボット!$A:$N,MATCH(C$5,月次ピボット!$B$3:$N$3,0)+1,FALSE)),0,VLOOKUP($B48,月次ピボット!$A:$N,MATCH(C$5,月次ピボット!$B$3:$N$3,0)+1,FALSE)) -> 0 | D48: =IF(ISERROR(VLOOKUP($B48,月次ピボット!$A:$N,MATCH(D$5,月次ピボット!$B$3:$N$3,0)+1,FALSE)),0,VLOOKUP($B48,月次ピボット!$A:$N,MATCH(D$5,月次ピボット!$B$3:$N$3,0)+1,FALSE)) -> 0 | E48: =IF(ISERROR(VLOOKUP($B48,月次ピボット!$A:$N,MATCH(E$5,月次ピボット!$B$3:$N$3,0)+1,FALSE)),0,VLOOKUP($B48,月次ピボット!$A:$N,MATCH(E$5,月次ピボット!$B$3:$N$3,0)+1,FALSE)) -> 0 | F48: =IF(ISERROR(VLOOKUP($B48,月次ピボット!$A:$N,MATCH(F$5,月次ピボット!$B$3:$N$3,0)+1,FALSE)),0,VLOOKUP($B48,月次ピボット!$A:$N,MATCH(F$5,月次ピボット!$B$3:$N$3,0)+1,FALSE)) -> 0 | G48: =IF(ISERROR(VLOOKUP($B48,月次ピボット!$A:$N,MATCH(G$5,月次ピボット!$B$3:$N$3,0)+1,FALSE)),0,VLOOKUP($B48,月次ピボット!$A:$N,MATCH(G$5,月次ピボット!$B$3:$N$3,0)+1,FALSE)) -> 0 | H48: =IF(ISERROR(VLOOKUP($B48,月次ピボット!$A:$N,MATCH(H$5,月次ピボット!$B$3:$N$3,0)+1,FALSE)),0,VLOOKUP($B48,月次ピボット!$A:$N,MATCH(H$5,月次ピボット!$B$3:$N$3,0)+1,FALSE)) -> 4000 | I48: =IF(ISERROR(VLOOKUP($B48,月次ピボット!$A:$N,MATCH(I$5,月次ピボット!$B$3:$N$3,0)+1,FALSE)),0,VLOOKUP($B48,月次ピボット!$A:$N,MATCH(I$5,月次ピボット!$B$3:$N$3,0)+1,FALSE)) -> 0 | J48: =IF(ISERROR(VLOOKUP($B48,月次ピボット!$A:$N,MATCH(J$5,月次ピボット!$B$3:$N$3,0)+1,FALSE)),0,VLOOKUP($B48,月次ピボット!$A:$N,MATCH(J$5,月次ピボット!$B$3:$N$3,0)+1,FALSE)) -> 0 | K48: =IF(ISERROR(VLOOKUP($B48,月次ピボット!$A:$N,MATCH(K$5,月次ピボット!$B$3:$N$3,0)+1,FALSE)),0,VLOOKUP($B48,月次ピボット!$A:$N,MATCH(K$5,月次ピボット!$B$3:$N$3,0)+1,FALSE)) -> 0 | L48: =IF(ISERROR(VLOOKUP($B48,月次ピボット!$A:$N,MATCH(L$5,月次ピボット!$B$3:$N$3,0)+1,FALSE)),0,VLOOKUP($B48,月次ピボット!$A:$N,MATCH(L$5,月次ピボット!$B$3:$N$3,0)+1,FALSE)) -> 0 | M48: =IF(ISERROR(VLOOKUP($B48,月次ピボット!$A:$N,MATCH(M$5,月次ピボット!$B$3:$N$3,0)+1,FALSE)),0,VLOOKUP($B48,月次ピボット!$A:$N,MATCH(M$5,月次ピボット!$B$3:$N$3,0)+1,FALSE)) -> 0 | N48: =IF(ISERROR(VLOOKUP($B48,月次ピボット!$A:$N,MATCH(N$5,月次ピボット!$B$3:$N$3,0)+1,FALSE)),0,VLOOKUP($B48,月次ピボット!$A:$N,MATCH(N$5,月次ピボット!$B$3:$N$3,0)+1,FALSE)) -> 4000 | O48: 8000
B49: 投資・貸付金等支出 | C49: =IF(ISERROR(VLOOKUP($B49,月次ピボット!$A:$N,MATCH(C$5,月次ピボット!$B$3:$N$3,0)+1,FALSE)),0,VLOOKUP($B49,月次ピボット!$A:$N,MATCH(C$5,月次ピボット!$B$3:$N$3,0)+1,FALSE)) -> 0 | D49: =IF(ISERROR(VLOOKUP($B49,月次ピボット!$A:$N,MATCH(D$5,月次ピボット!$B$3:$N$3,0)+1,FALSE)),0,VLOOKUP($B49,月次ピボット!$A:$N,MATCH(D$5,月次ピボット!$B$3:$N$3,0)+1,FALSE)) -> 0 | E49: =IF(ISERROR(VLOOKUP($B49,月次ピボット!$A:$N,MATCH(E$5,月次ピボット!$B$3:$N$3,0)+1,FALSE)),0,VLOOKUP($B49,月次ピボット!$A:$N,MATCH(E$5,月次ピボット!$B$3:$N$3,0)+1,FALSE)) -> 0 | F49: =IF(ISERROR(VLOOKUP($B49,月次ピボット!$A:$N,MATCH(F$5,月次ピボット!$B$3:$N$3,0)+1,FALSE)),0,VLOOKUP($B49,月次ピボット!$A:$N,MATCH(F$5,月次ピボット!$B$3:$N$3,0)+1,FALSE)) -> 0 | G49: =IF(ISERROR(VLOOKUP($B49,月次ピボット!$A:$N,MATCH(G$5,月次ピボット!$B$3:$N$3,0)+1,FALSE)),0,VLOOKUP($B49,月次ピボット!$A:$N,MATCH(G$5,月次ピボット!$B$3:$N$3,0)+1,FALSE)) -> 0 | H49: =IF(ISERROR(VLOOKUP($B49,月次ピボット!$A:$N,MATCH(H$5,月次ピボット!$B$3:$N$3,0)+1,FALSE)),0,VLOOKUP($B49,月次ピボット!$A:$N,MATCH(H$5,月次ピボット!$B$3:$N$3,0)+1,FALSE)) -> 0 | I49: =IF(ISERROR(VLOOKUP($B49,月次ピボット!$A:$N,MATCH(I$5,月次ピボット!$B$3:$N$3,0)+1,FALSE)),0,VLOOKUP($B49,月次ピボット!$A:$N,MATCH(I$5,月次ピボット!$B$3:$N$3,0)+1,FALSE)) -> 0 | J49: =IF(ISERROR(VLOOKUP($B49,月次ピボット!$A:$N,MATCH(J$5,月次ピボット!$B$3:$N$3,0)+1,FALSE)),0,VLOOKUP($B49,月次ピボット!$A:$N,MATCH(J$5,月次ピボット!$B$3:$N$3,0)+1,FALSE)) -> 0 | K49: =IF(ISERROR(VLOOKUP($B49,月次ピボット!$A:$N,MATCH(K$5,月次ピボット!$B$3:$N$3,0)+1,FALSE)),0,VLOOKUP($B49,月次ピボット!$A:$N,MATCH(K$5,月次ピボット!$B$3:$N$3,0)+1,FALSE)) -> 0 | L49: =IF(ISERROR(VLOOKUP($B49,月次ピボット!$A:$N,MATCH(L$5,月次ピボット!$B$3:$N$3,0)+1,FALSE)),0,VLOOKUP($B49,月次ピボット!$A:$N,MATCH(L$5,月次ピボット!$B$3:$N$3,0)+1,FALSE)) -> 0 | M49: =IF(ISERROR(VLOOKUP($B49,月次ピボット!$A:$N,MATCH(M$5,月次ピボット!$B$3:$N$3,0)+1,FALSE)),0,VLOOKUP($B49,月次ピボット!$A:$N,MATCH(M$5,月次ピボット!$B$3:$N$3,0)+1,FALSE)) -> 0 | N49: =IF(ISERROR(VLOOKUP($B49,月次ピボット!$A:$N,MATCH(N$5,月次ピボット!$B$3:$N$3,0)+1,FALSE)),0,VLOOKUP($B49,月次ピボット!$A:$N,MATCH(N$5,月次ピボット!$B$3:$N$3,0)+1,FALSE)) -> 0 | O49: 0
B50: 法人税等支払 | C50: =IF(ISERROR(VLOOKUP($B50,月次ピボット!$A:$N,MATCH(C$5,月次ピボット!$B$3:$N$3,0)+1,FALSE)),0,VLOOKUP($B50,月次ピボット!$A:$N,MATCH(C$5,月次ピボット!$B$3:$N$3,0)+1,FALSE)) -> 0 | D50: =IF(ISERROR(VLOOKUP($B50,月次ピボット!$A:$N,MATCH(D$5,月次ピボット!$B$3:$N$3,0)+1,FALSE)),0,VLOOKUP($B50,月次ピボット!$A:$N,MATCH(D$5,月次ピボット!$B$3:$N$3,0)+1,FALSE)) -> 1614500 | E50: =IF(ISERROR(VLOOKUP($B50,月次ピボット!$A:$N,MATCH(E$5,月次ピボット!$B$3:$N$3,0)+1,FALSE)),0,VLOOKUP($B50,月次ピボット!$A:$N,MATCH(E$5,月次ピボット!$B$3:$N$3,0)+1,FALSE)) -> 0 | F50: =IF(ISERROR(VLOOKUP($B50,月次ピボット!$A:$N,MATCH(F$5,月次ピボット!$B$3:$N$3,0)+1,FALSE)),0,VLOOKUP($B50,月次ピボット!$A:$N,MATCH(F$5,月次ピボット!$B$3:$N$3,0)+1,FALSE)) -> 0 | G50: =IF(ISERROR(VLOOKUP($B50,月次ピボット!$A:$N,MATCH(G$5,月次ピボット!$B$3:$N$3,0)+1,FALSE)),0,VLOOKUP($B50,月次ピボット!$A:$N,MATCH(G$5,月次ピボット!$B$3:$N$3,0)+1,FALSE)) -> 463 | H50: =IF(ISERROR(VLOOKUP($B50,月次ピボット!$A:$N,MATCH(H$5,月次ピボット!$B$3:$N$3,0)+1,FALSE)),0,VLOOKUP($B50,月次ピボット!$A:$N,MATCH(H$5,月次ピボット!$B$3:$N$3,0)+1,FALSE)) -> 1000 | I50: =IF(ISERROR(VLOOKUP($B50,月次ピボット!$A:$N,MATCH(I$5,月次ピボット!$B$3:$N$3,0)+1,FALSE)),0,VLOOKUP($B50,月次ピボット!$A:$N,MATCH(I$5,月次ピボット!$B$3:$N$3,0)+1,FALSE)) -> 0 | J50: =IF(ISERROR(VLOOKUP($B50,月次ピボット!$A:$N,MATCH(J$5,月次ピボット!$B$3:$N$3,0)+1,FALSE)),0,VLOOKUP($B50,月次ピボット!$A:$N,MATCH(J$5,月次ピボット!$B$3:$N$3,0)+1,FALSE)) -> 2650000 | K50: =IF(ISERROR(VLOOKUP($B50,月次ピボット!$A:$N,MATCH(K$5,月次ピボット!$B$3:$N$3,0)+1,FALSE)),0,VLOOKUP($B50,月次ピボット!$A:$N,MATCH(K$5,月次ピボット!$B$3:$N$3,0)+1,FALSE)) -> 0 | L50: =IF(ISERROR(VLOOKUP($B50,月次ピボット!$A:$N,MATCH(L$5,月次ピボット!$B$3:$N$3,0)+1,FALSE)),0,VLOOKUP($B50,月次ピボット!$A:$N,MATCH(L$5,月次ピボット!$B$3:$N$3,0)+1,FALSE)) -> 0 | M50: =IF(ISERROR(VLOOKUP($B50,月次ピボット!$A:$N,MATCH(M$5,月次ピボット!$B$3:$N$3,0)+1,FALSE)),0,VLOOKUP($B50,月次ピボット!$A:$N,MATCH(M$5,月次ピボット!$B$3:$N$3,0)+1,FALSE)) -> 20 | N50: =IF(ISERROR(VLOOKUP($B50,月次ピボット!$A:$N,MATCH(N$5,月次ピボット!$B$3:$N$3,0)+1,FALSE)),0,VLOOKUP($B50,月次ピボット!$A:$N,MATCH(N$5,月次ピボット!$B$3:$N$3,0)+1,FALSE)) -> 1000 | O50: 4266983
B51: 消費税等支払 | C51: =IF(ISERROR(VLOOKUP($B51,月次ピボット!$A:$N,MATCH(C$5,月次ピボット!$B$3:$N$3,0)+1,FALSE)),0,VLOOKUP($B51,月次ピボット!$A:$N,MATCH(C$5,月次ピボット!$B$3:$N$3,0)+1,FALSE)) -> 0 | D51: =IF(ISERROR(VLOOKUP($B51,月次ピボット!$A:$N,MATCH(D$5,月次ピボット!$B$3:$N$3,0)+1,FALSE)),0,VLOOKUP($B51,月次ピボット!$A:$N,MATCH(D$5,月次ピボット!$B$3:$N$3,0)+1,FALSE)) -> 2421600 | E51: =IF(ISERROR(VLOOKUP($B51,月次ピボット!$A:$N,MATCH(E$5,月次ピボット!$B$3:$N$3,0)+1,FALSE)),0,VLOOKUP($B51,月次ピボット!$A:$N,MATCH(E$5,月次ピボット!$B$3:$N$3,0)+1,FALSE)) -> 0 | F51: =IF(ISERROR(VLOOKUP($B51,月次ピボット!$A:$N,MATCH(F$5,月次ピボット!$B$3:$N$3,0)+1,FALSE)),0,VLOOKUP($B51,月次ピボット!$A:$N,MATCH(F$5,月次ピボット!$B$3:$N$3,0)+1,FALSE)) -> 0 | G51: =IF(ISERROR(VLOOKUP($B51,月次ピボット!$A:$N,MATCH(G$5,月次ピボット!$B$3:$N$3,0)+1,FALSE)),0,VLOOKUP($B51,月次ピボット!$A:$N,MATCH(G$5,月次ピボット!$B$3:$N$3,0)+1,FALSE)) -> 0 | H51: =IF(ISERROR(VLOOKUP($B51,月次ピボット!$A:$N,MATCH(H$5,月次ピボット!$B$3:$N$3,0)+1,FALSE)),0,VLOOKUP($B51,月次ピボット!$A:$N,MATCH(H$5,月次ピボット!$B$3:$N$3,0)+1,FALSE)) -> 0 | I51: =IF(ISERROR(VLOOKUP($B51,月次ピボット!$A:$N,MATCH(I$5,月次ピボット!$B$3:$N$3,0)+1,FALSE)),0,VLOOKUP($B51,月次ピボット!$A:$N,MATCH(I$5,月次ピボット!$B$3:$N$3,0)+1,FALSE)) -> 0 | J51: =IF(ISERROR(VLOOKUP($B51,月次ピボット!$A:$N,MATCH(J$5,月次ピボット!$B$3:$N$3,0)+1,FALSE)),0,VLOOKUP($B51,月次ピボット!$A:$N,MATCH(J$5,月次ピボット!$B$3:$N$3,0)+1,FALSE)) -> 2280850 | K51: =IF(ISERROR(VLOOKUP($B51,月次ピボット!$A:$N,MATCH(K$5,月次ピボット!$B$3:$N$3,0)+1,FALSE)),0,VLOOKUP($B51,月次ピボット!$A:$N,MATCH(K$5,月次ピボット!$B$3:$N$3,0)+1,FALSE)) -> 0 | L51: =IF(ISERROR(VLOOKUP($B51,月次ピボット!$A:$N,MATCH(L$5,月次ピボット!$B$3:$N$3,0)+1,FALSE)),0,VLOOKUP($B51,月次ピボット!$A:$N,MATCH(L$5,月次ピボット!$B$3:$N$3,0)+1,FALSE)) -> 0 | M51: =IF(ISERROR(VLOOKUP($B51,月次ピボット!$A:$N,MATCH(M$5,月次ピボット!$B$3:$N$3,0)+1,FALSE)),0,VLOOKUP($B51,月次ピボット!$A:$N,MATCH(M$5,月次ピボット!$B$3:$N$3,0)+1,FALSE)) -> 0 | N51: =IF(ISERROR(VLOOKUP($B51,月次ピボット!$A:$N,MATCH(N$5,月次ピボット!$B$3:$N$3,0)+1,FALSE)),0,VLOOKUP($B51,月次ピボット!$A:$N,MATCH(N$5,月次ピボット!$B$3:$N$3,0)+1,FALSE)) -> 0 | O51: 4702450
B52: その他財務等支出 | C52: =IF(ISERROR(VLOOKUP($B52,月次ピボット!$A:$N,MATCH(C$5,月次ピボット!$B$3:$N$3,0)+1,FALSE)),0,VLOOKUP($B52,月次ピボット!$A:$N,MATCH(C$5,月次ピボット!$B$3:$N$3,0)+1,FALSE)) -> 0 | D52: =IF(ISERROR(VLOOKUP($B52,月次ピボット!$A:$N,MATCH(D$5,月次ピボット!$B$3:$N$3,0)+1,FALSE)),0,VLOOKUP($B52,月次ピボット!$A:$N,MATCH(D$5,月次ピボット!$B$3:$N$3,0)+1,FALSE)) -> 0 | E52: =IF(ISERROR(VLOOKUP($B52,月次ピボット!$A:$N,MATCH(E$5,月次ピボット!$B$3:$N$3,0)+1,FALSE)),0,VLOOKUP($B52,月次ピボット!$A:$N,MATCH(E$5,月次ピボット!$B$3:$N$3,0)+1,FALSE)) -> 0 | F52: =IF(ISERROR(VLOOKUP($B52,月次ピボット!$A:$N,MATCH(F$5,月次ピボット!$B$3:$N$3,0)+1,FALSE)),0,VLOOKUP($B52,月次ピボット!$A:$N,MATCH(F$5,月次ピボット!$B$3:$N$3,0)+1,FALSE)) -> 0 | G52: =IF(ISERROR(VLOOKUP($B52,月次ピボット!$A:$N,MATCH(G$5,月次ピボット!$B$3:$N$3,0)+1,FALSE)),0,VLOOKUP($B52,月次ピボット!$A:$N,MATCH(G$5,月次ピボット!$B$3:$N$3,0)+1,FALSE)) -> 0 | H52: =IF(ISERROR(VLOOKUP($B52,月次ピボット!$A:$N,MATCH(H$5,月次ピボット!$B$3:$N$3,0)+1,FALSE)),0,VLOOKUP($B52,月次ピボット!$A:$N,MATCH(H$5,月次ピボット!$B$3:$N$3,0)+1,FALSE)) -> 0 | I52: =IF(ISERROR(VLOOKUP($B52,月次ピボット!$A:$N,MATCH(I$5,月次ピボット!$B$3:$N$3,0)+1,FALSE)),0,VLOOKUP($B52,月次ピボット!$A:$N,MATCH(I$5,月次ピボット!$B$3:$N$3,0)+1,FALSE)) -> 0 | J52: =IF(ISERROR(VLOOKUP($B52,月次ピボット!$A:$N,MATCH(J$5,月次ピボット!$B$3:$N$3,0)+1,FALSE)),0,VLOOKUP($B52,月次ピボット!$A:$N,MATCH(J$5,月次ピボット!$B$3:$N$3,0)+1,FALSE)) -> 0 | K52: =IF(ISERROR(VLOOKUP($B52,月次ピボット!$A:$N,MATCH(K$5,月次ピボット!$B$3:$N$3,0)+1,FALSE)),0,VLOOKUP($B52,月次ピボット!$A:$N,MATCH(K$5,月次ピボット!$B$3:$N$3,0)+1,FALSE)) -> 0 | L52: =IF(ISERROR(VLOOKUP($B52,月次ピボット!$A:$N,MATCH(L$5,月次ピボット!$B$3:$N$3,0)+1,FALSE)),0,VLOOKUP($B52,月次ピボット!$A:$N,MATCH(L$5,月次ピボット!$B$3:$N$3,0)+1,FALSE)) -> 0 | M52: =IF(ISERROR(VLOOKUP($B52,月次ピボット!$A:$N,MATCH(M$5,月次ピボット!$B$3:$N$3,0)+1,FALSE)),0,VLOOKUP($B52,月次ピボット!$A:$N,MATCH(M$5,月次ピボット!$B$3:$N$3,0)+1,FALSE)) -> 0 | N52: =IF(ISERROR(VLOOKUP($B52,月次ピボット!$A:$N,MATCH(N$5,月次ピボット!$B$3:$N$3,0)+1,FALSE)),0,VLOOKUP($B52,月次ピボット!$A:$N,MATCH(N$5,月次ピボット!$B$3:$N$3,0)+1,FALSE)) -> 0 | O52: 0
B53: 財務等支出合計 | C53: =SUM(C43:C52) -> 702333 | D53: =SUM(D43:D52) -> 4738889 | E53: 703245 | F53: 703702 | G53: 704624 | H53: 709620 | I53: 705080 | J53: 5636392 | K53: 706004 | L53: 706468 | M53: 706952 | N53: 712398 | O53: 17435707
B55: 財務収支過不足 | C55: =C40-C53 -> -702333 | D55: =D40-D53 -> -4738889 | E55: -703245 | F55: -703702 | G55: -704624 | H55: -709620 | I55: -705080 | J55: -5636392 | K55: 5293996 | L55: -706468 | M55: -706952 | N55: -712398 | O55: -11435707
B58: 総合収入額 | C58: =SUM(C16,C40) -> 14899860 | D58: =SUM(D16,D40) -> 24405466 | E58: 28782767 | F58: 22851732 | G58: 26404089 | H58: 30886080 | I58: 32328464 | J58: 28120136 | K58: 35571586 | L58: 24661352 | M58: 33755714 | N58: 16092539 | O58: 318759785
B59: 総合支出額 | C59: =SUM(C26,C53) -> 14481199 | D59: =SUM(D26,D53) -> 23178059 | E59: 28313164 | F59: 25334228 | G59: 27392779 | H59: 24118995 | I59: 27641129 | J59: 26143117 | K59: 24908258 | L59: 20966885 | M59: 23659950 | N59: 19528588 | O59: 285666351
B60: 総合収支過不足 | C60: =C58-C59 -> 418661 | D60: =D58-D59 -> 1227407 | E60: 469603 | F60: -2482496 | G60: -988690 | H60: 6767085 | I60: 4687335 | J60: 1977019 | K60: 10663328 | L60: 3694467 | M60: 10095764 | N60: -3436049 | O60: 33093434
B62: 月初資金残高 | C62: =基本情報!B24 -> 345731402 | D62: =C63 -> 346150063 | E62: =D63 -> 347377470 | F62: 347847073 | G62: 345364577 | H62: 344375887 | I62: 351142972 | J62: 355830307 | K62: 357807326 | L62: 368470654 | M62: 372165121 | N62: 382260885
B63: 月末資金残高 | C63: =C62+C60 -> 346150063 | D63: =D62+D60 -> 347377470 | E63: =E62+E60 -> 347847073 | F63: 345364577 | G63: 344375887 | H63: 351142972 | I63: 355830307 | J63: 357807326 | K63: 368470654 | L63: 372165121 | M63: 382260885 | N63: 378824836

Sheet 日次資金繰りグラフ
B1: =基本情報!B9 -> 株式会社弥生トレーディング | O1: =IF(基本情報!B31="","",基本情報!B31) -> 小林敬幸税理士事務所
B3: 日々の資金残高推移
B29: 資金残高と売上金額の対比
C51: =月別資金繰り表!C6 -> 2016-04-01 | D51: =EOMONTH(C51,1) -> 2016-05-31 | E51: =EOMONTH(D51,1) -> 2016-06-30 | F51: 2016-07-31 | G51: 2016-08-31 | H51: 2016-09-30 | I51: 2016-10-31 | J51: 2016-11-30 | K51: 2016-12-31 | L51: 2017-01-31 | M51: 2017-02-28 | N51: 2017-03-31 | O51: 総計
B52: 資金残高 | C52: =月別資金繰り表!C63 -> 346150063 | D52: =月別資金繰り表!D63 -> 347377470 | E52: =月別資金繰り表!E63 -> 347847073 | F52: =月別資金繰り表!F63 -> 345364577 | G52: =月別資金繰り表!G63 -> 344375887 | H52: =月別資金繰り表!H63 -> 351142972 | I52: =月別資金繰り表!I63 -> 355830307 | J52: =月別資金繰り表!J63 -> 357807326 | K52: =月別資金繰り表!K63 -> 368470654 | L52: =月別資金繰り表!L63 -> 372165121 | M52: =月別資金繰り表!M63 -> 382260885 | N52: =月別資金繰り表!N63 -> 378824836
B53: 売上金額 | C53: =VLOOKUP("総計",売上ピボット!$A:$M,2,0) -> 22358301 | D53: =VLOOKUP("総計",売上ピボット!$A:$M,3,0) -> 27824433 | E53: =VLOOKUP("総計",売上ピボット!$A:$M,4,0) -> 23009312 | F53: =VLOOKUP("総計",売上ピボット!$A:$M,5,0) -> 24430937 | G53: =VLOOKUP("総計",売上ピボット!$A:$M,6,0) -> 25340101 | H53: =VLOOKUP("総計",売上ピボット!$A:$M,7,0) -> 28682224 | I53: =VLOOKUP("総計",売上ピボット!$A:$M,8,0) -> 27696047 | J53: =VLOOKUP("総計",売上ピボット!$A:$M,9,0) -> 18513042 | K53: =VLOOKUP("総計",売上ピボット!$A:$M,10,0) -> 25265320 | L53: =VLOOKUP("総計",売上ピボット!$A:$M,11,0) -> 31165851 | M53: =VLOOKUP("総計",売上ピボット!$A:$M,12,0) -> 14861459 | N53: =VLOOKUP("総計",売上ピボット!$A:$M,13,0) -> 13967303 | O53: =SUM(C53:N53) -> 283114330
B54: 資金残高平均月商倍率 | C54: =C52/($O53/COUNTIF($C53:$N53,"<>0")) -> 14.67181388 | D54: =D52/($O53/COUNTIF($C53:$N53,"<>0")) -> 14.72383839 | E54: 14.74374284 | F54: 14.6385205 | G54: 14.59661418 | H54: 14.88344184 | I54: 15.08211783 | J54: 15.16591517 | K54: 15.61788783 | L54: 15.77448041 | M54: 16.20239647 | N54: 16.05675711

Sheet 日次資金繰り表サマリー
B1: =基本情報!B9 -> 株式会社弥生トレーディング | P1: =IF(基本情報!B31="","",基本情報!B31) -> 小林敬幸税理士事務所
B3: 摘要別月次資金繰り表
D5: =MONTH(D6)&"月" -> 4月 | E5: =MONTH(E6)&"月" -> 5月 | F5: 6月 | G5: 7月 | H5: 8月 | I5: 9月 | J5: 10月 | K5: 11月 | L5: 12月 | M5: 1月 | N5: 2月 | O5: 3月
D6: =月別資金繰り表!C6 -> 2016-04-01 | E6: =月別資金繰り表!D6 -> 2016-05-31 | F6: =月別資金繰り表!E6 -> 2016-06-30 | G6: =月別資金繰り表!F6 -> 2016-07-31 | H6: =月別資金繰り表!G6 -> 2016-08-31 | I6: =月別資金繰り表!H6 -> 2016-09-30 | J6: =月別資金繰り表!I6 -> 2016-10-31 | K6: =月別資金繰り表!J6 -> 2016-11-30 | L6: =月別資金繰り表!K6 -> 2016-12-31 | M6: =月別資金繰り表!L6 -> 2017-01-31 | N6: =月別資金繰り表!M6 -> 2017-02-28 | O6: =月別資金繰り表!N6 -> 2017-03-31 | P6: =月別資金繰り表!O6 -> 合計
B8: 売上高 | C8: 本日売上 | D8: 2952629 | E8: 3111196 | F8: 3621918 | G8: 3350444 | H8: 3623791 | I8: 3640449 | J8: 3321745 | K8: 3407612 | L8: 3562395 | M8: 2922534 | N8: 3034107 | O8: 3325582 | P8: 39874402
B9: 現金売上 小計 | D9: 2952629 | E9: 3111196 | F9: 3621918 | G9: 3350444 | H9: 3623791 | I9: 3640449 | J9: 3321745 | K9: 3407612 | L9: 3562395 | M9: 2922534 | N9: 3034107 | O9: 3325582 | P9: 39874402
B10: 売掛金 | C10: A002厚木産業 | D10: 1645350 | E10: 1645350 | F10: 1018080 | G10: 1559040 | H10: 785400 | I10: 1905960 | J10: 1344000 | K10: 1322160 | P10: 11225340
B11: 売掛金 | C11: B001文京食器店 | D11: 1502025 | P11: 1502025
B12: 売掛金 | C12: C001中央産業 | K12: 334530 | L12: 614498 | M12: 415800 | P12: 1364828
B13: 売掛金 | C13: C002中央産業仙台 | D13: 122010 | F13: 44982 | G13: 435855 | I13: 549780 | J13: 117600 | K13: 135460 | L13: 44982 | M13: 194040 | N13: 65709 | O13: 222852 | P13: 1933270
B14: 売掛金 | C14: E001エヌ商会 | E14: 1730400 | P14: 1730400
B15: 売掛金 | C15: F001ﾌｧﾐﾘｰｽﾄｱふいた | E15: 1034250 | F15: 2237655 | G15: 1904490 | H15: 1714912 | I15: 1207237 | J15: 1385737 | K15: 1034250 | M15: 1714912 | P15: 12233443
B16: 売掛金 | C16: F002福山商店 | E16: 62748 | F16: 372827 | H16: 331430 | J16: 259707 | K16: 62748 | L16: 237919 | M16: 228768 | N16: 62748 | P16: 1618895
B17: 売掛金 | C17: G001御殿場リビング | D17: 462000 | E17: 376588 | F17: 556416 | G17: 572544 | H17: 131712 | I17: 16170 | J17: 196896 | K17: 376588 | L17: 160520 | M17: 747812 | N17: 376600 | P17: 3973846
B18: 売掛金 | C18: H001ハマ屋 | E18: 255150 | G18: 359887 | H18: 481320 | I18: 387607 | J18: 248850 | L18: 811912 | M18: 240202 | N18: 231540 | O18: 414476 | P18: 3430944
B19: 売掛金 | C19: H002彦商会 | E19: 221676 | F19: 378787 | G19: 110565 | H19: 128310 | I19: 92137 | J19: 229320 | K19: 449631 | L19: 379209 | M19: 215682 | N19: 453738 | P19: 2659055
B20: 売掛金 | C20: I001池袋リビング | E20: 167580 | F20: 249900 | G20: 173827 | H20: 160650 | I20: 88200 | J20: 259087 | K20: 396900 | L20: 378000 | M20: 146093 | N20: 368212 | P20: 2388449
B21: 売掛金 | C21: I002市川ストア | E21: 306600 | F21: 159862 | G21: 176400 | H21: 585900 | I21: 198843 | J21: 177187 | K21: 102375 | L21: 241342 | M21: 184170 | N21: 86205 | O21: 312050 | P21: 2530934
B22: 売掛金 | C22: K001海北商店 | E22: 196980 | F22: 88788 | G22: 123480 | I22: 349272 | J22: 115101 | K22: 896700 | L22: 370478 | P22: 2140799
B23: 売掛金 | C23: K002川崎ﾎｰﾑｼｮｯﾌﾟ | E23: 386820 | F23: 324891 | G23: 446740 | H23: 380135 | I23: 329616 | K23: 138915 | L23: 418611 | M23: 594130 | N23: 293200 | O23: 350610 | P23: 3663668
B24: 売掛金 | C24: L001ＬＳリビング大 | M24: 435127 | N24: 406712 | O24: 226812 | P24: 1068651
B25: 売掛金 | C25: L001ＬＳリビング大分 | D25: 376245 | G25: 98846 | H25: 130680 | I25: 166500 | J25: 110340 | K25: 62100 | P25: 944711
B26: 売掛金 | C26: L002ＬＳリビング福 | M26: 354690 | N26: 449820 | O26: 326418 | P26: 1130928
B27: 売掛金 | C27: L002ＬＳリビング福岡 | D27: 542430 | G27: 108465 | H27: 505575 | I27: 340200 | J27: 106312 | K27: 92043 | P27: 1695025
B28: 売掛金 | C28: L003愛知マート | D28: 1958775 | F28: 2101512 | L28: 1555639 | M28: 1555627 | P28: 7171553
B29: 売掛金 | C29: M001三島商会 | E29: 360885 | G29: 208740 | H29: 224910 | I29: 158760 | J29: 102900 | K29: 361620 | L29: 269002 | M29: 705612 | N29: 308712 | P29: 2701141
B30: 売掛金 | C30: M002有限会社ミナミ | E30: 858480 | F30: 1198785 | G30: 840472 | H30: 545575 | I30: 459170 | J30: 668850 | K30: 2148405 | L30: 688327 | M30: 818802 | P30: 8226866
B31: 売掛金 | C31: N001長島商事 | G31: 441000 | H31: 257460 | I31: 331800 | J31: 358260 | K31: 830760 | L31: 756220 | P31: 2975500
B32: 売掛金 | C32: O001大津商会 | E32: 145293 | F32: 243810 | G32: 236250 | H32: 225193 | J32: 154035 | K32: 319551 | P32: 1324132
B33: 売掛金 | C33: O002大阪食器 | E33: 193158 | F33: 128520 | G33: 252504 | H33: 189000 | I33: 59535 | J33: 97524 | K33: 405972 | L33: 231264 | M33: 140629 | N33: 449657 | P33: 2147763
B34: 売掛金 | C34: O003オリエント商会 | E34: 2565485 | J34: 258800 | K34: 71400 | L34: 33600 | M34: 113064 | P34: 3042349
B35: 売掛金 | C35: P001プラザ調布 | E35: 134400 | F35: 164220 | G35: 154125 | H35: 254812 | I35: 210375 | J35: 126150 | K35: 126150 | L35: 168732 | M35: 43062 | N35: 151170 | P35: 1533196
B36: 売掛金 | C36: R001ﾘﾋﾞﾝｸﾞｼｮｯﾌﾟ佐 | E36: 103477 | J36: 40320 | K36: 265765 | L36: 53772 | M36: 73932 | N36: 103489 | P36: 640755
B37: 売掛金 | C37: S001品川屋 | F37: 89040 | G37: 45864 | H37: 17136 | K37: 40320 | L37: 114240 | M37: 85680 | O37: 124320 | P37: 516600
B38: 売掛金 | C38: W001ﾜｰｸｼｮｯﾌﾟ鈴鹿 | I38: 16065 | J38: 14085 | K38: 10170 | L38: 23625 | N38: 42997 | O38: 5670 | P38: 112612
B39: 売掛金 | C39: Y001山口商事 | E39: 12600 | F39: 12390 | H39: 5376 | K39: 105420 | L39: 14124 | M39: 18900 | N39: 26712 | P39: 195522
B40: 売掛金 | C40: 愛知マート | G40: 1109850 | H40: 2932400 | I40: 2024373 | J40: 2395628 | K40: 1890000 | P40: 10352251
B41: 売掛金 | C41: 掛代金回収 | E41: 920850 | L41: 1682758 | M41: 4159594 | N41: 14651407 | P41: 21414609
B42: 売掛金 | C42: 掛代金回収 B001文京食器店 | E42: 1518760 | F42: 856492 | G42: 557130 | H42: 948920 | I42: 805196 | J42: 1502025 | K42: 626360 | P42: 6814883
B43: 売掛金 | C43: 掛代金回収 C001中央産業 | E43: 520905 | F43: 723686 | G43: 461475 | H43: 520905 | I43: 194906 | N43: 549675 | O43: 189225 | P43: 3160777
B44: 売掛金 | C44: 掛代金回収 E001エヌ商会 | D44: 758625 | F44: 1575000 | G44: 2777900 | H44: 1091350 | J44: 2234400 | K44: 2507441 | P44: 10944716
B45: 売掛金 | C45: 掛代金回収 越後屋 | D45: 1658600 | F45: 589400 | H45: 1732500 | J45: 1956200 | P45: 5936700
B46: 売掛金 | C46: 小切手持込み・佐藤 | F46: 5280000 | P46: 5280000
B47: 売掛金 | C47: 振込・近藤商会 | J47: 6150000 | P47: 6150000
B48: 売掛金 | C48: 振込・斎藤 | L48: 5520000 | P48: 5520000
B49: 売掛金 | C49: 振込・山口聖子 | O49: 4100000 | P49: 4100000
B50: 売掛金 | C50: 振込・田中 | I50: 6500000 | P50: 6500000
B51: 売掛金 | C51: 滞留分売掛金残高回収 | M51: 248445 | N51: 452892 | P51: 701337
B52: 売掛金 | C52: 売掛金小切手入金 | F52: 1335284 | G52: 1098527 | H52: 918023 | I52: 1897526 | J52: 1058742 | K52: 664582 | L52: 1354897 | M52: 1263587 | N52: 718955 | O52: 1066778 | P52: 11376901
B53: 売掛金 | C53: 売掛金振込入金 | D53: 325452 | E53: 5084143 | F53: 1917297 | G53: 3101168 | H53: 3832683 | I53: 4853164 | J53: 2487409 | K53: 758978 | L53: 4934909 | M53: 4700904 | N53: 7191507 | O53: 3372708 | P53: 42560322
B54: 売掛金 | C54: 売掛金請求 | D54: 1856845 | K54: 563257 | P54: 2420102
B55: 売掛金 | C55: 未回収売掛金残高回収 | O55: 3024000 | P55: 3024000
B56: 売掛金 | C56: (空白) | L56: 1483200 | N56: 985600 | P56: 2468800
B57: 売掛金回収 小計 | D57: 11208357 | E57: 18802578 | F57: 21647624 | G57: 17355144 | H57: 19032267 | I57: 23142392 | J57: 24155465 | K57: 17100551 | L57: 22541780 | M57: 19399264 | N57: 28427257 | O57: 13735919 | P57: 236548598
B58: 受取手形 | C58: 決済,振出人:九州物産 | D58: 126000 | E58: 583800 | G58: 515000 | H58: 1140000 | I58: 1011920 | J58: 905750 | K58: 829360 | L58: 858800 | M58: 887800 | N58: 1336796 | P58: 8195226
B59: 受取手形 | C59: 決済,振出人:中央産業大阪 | E59: 1214100 | F59: 2502150 | H59: 2070920 | I59: 2750765 | J59: 3465000 | K59: 3046000 | L59: 1050000 | N59: 663000 | P59: 16761935
B60: 受取手形 | C60: 決済,振出人:中野産業 | D60: 147420 | E60: 587698 | F60: 545621 | G60: 758654 | H60: 524029 | J60: 368550 | K60: 771159 | L60: 519474 | M60: 986300 | O60: 949431 | P60: 6158336
B61: 受取手形期日取立 小計 | D61: 273420 | E61: 2385598 | F61: 3047771 | G61: 1273654 | H61: 3734949 | I61: 3762685 | J61: 4739300 | K61: 4646519 | L61: 2428274 | M61: 1874100 | N61: 1999796 | O61: 949431 | P61: 31115497
B62: 受取配当金 | C62: 出資配当 | E62: 640 | P62: 640
B63: 受取利息 | C63: 源泉所得税 | H63: 463 | N63: 20 | P63: 483
B64: 受取利息 | C64: 普通預金利息 | H64: 1865 | N64: 80 | P64: 1945
B65: 受取利息 | C65: 利息 | I65: 5000 | O65: 5000 | P65: 10000
B66: 利息等収入 小計 | D66: 0 | E66: 640 | F66: 0 | G66: 0 | H66: 2328 | I66: 5000 | J66: 0 | K66: 0 | L66: 0 | M66: 0 | N66: 100 | O66: 5000 | P66: 13068
B67: 仮受消費税等 | C67: 消費税振替 | O67: -30366605 | P67: -30366605
B68: 仮払消費税等 | C68: 消費税振替 | O68: 23379058 | P68: 23379058
B69: 仮払消費税等 | C69: 東京税関 | E69: -360000 | H69: -454700 | I69: -129900 | J69: -353500 | N69: -171000 | P69: -1469100
B70: 買掛金 | C70: 11/18決済予定支払手形（伝票No.3509）の取立てないため修正 | K70: 2500000 | P70: 2500000
B71: 未払消費税等 | C71: 確定消費税 | O71: 4598700 | P71: 4598700
B72: 預り金 | C72: //介護保険料 10月分 | J72: 9050 | P72: 9050
B73: 預り金 | C73: //介護保険料 11月分 | K73: 9050 | P73: 9050
B74: 預り金 | C74: //介護保険料 12月分 | L74: 9050 | P74: 9050
B75: 預り金 | C75: //介護保険料 1月分 | M75: 9050 | P75: 9050
B76: 預り金 | C76: //介護保険料 2月分 | N76: 9050 | P76: 9050
B77: 預り金 | C77: //介護保険料 3月分 | O77: 9050 | P77: 9050
B78: 預り金 | C78: //介護保険料 4月分 | D78: 9050 | P78: 9050
B79: 預り金 | C79: //介護保険料 5月分 | E79: 9050 | P79: 9050
B80: 預り金 | C80: //介護保険料 6月分 | F80: 9050 | P80: 9050
B81: 預り金 | C81: //介護保険料 7月分 | G81: 9050 | P81: 9050
B82: 預り金 | C82: //介護保険料 8月分 | H82: 9050 | P82: 9050
B83: 預り金 | C83: //介護保険料 9月分 | I83: 9050 | P83: 9050
B84: 預り金 | C84: //社会保険料 10月分 | J84: 199567 | P84: 199567
B85: 預り金 | C85: //社会保険料 11月分 | K85: 199567 | P85: 199567
B86: 預り金 | C86: //社会保険料 12月分 | L86: 199567 | P86: 199567
B87: 預り金 | C87: //社会保険料 1月分 | M87: 199567 | P87: 199567
B88: 預り金 | C88: //社会保険料 2月分 | N88: 199567 | P88: 199567
B89: 預り金 | C89: //社会保険料 3月分 | O89: 199567 | P89: 199567
B90: 預り金 | C90: //社会保険料 4月分 | D90: 199567 | P90: 199567
B91: 預り金 | C91: //社会保険料 5月分 | E91: 199567 | P91: 199567
B92: 預り金 | C92: //社会保険料 6月分 | F92: 199567 | P92: 199567
B93: 預り金 | C93: //社会保険料 7月分 | G93: 199567 | P93: 199567
B94: 預り金 | C94: //社会保険料 8月分 | H94: 199567 | P94: 199567
B95: 預り金 | C95: //社会保険料 9月分 | I95: 199567 | P95: 199567
B96: 預り金 | C96: //住民税 10月分 | J96: 37100 | P96: 37100
B97: 預り金 | C97: //住民税 11月分 | K97: 37100 | P97: 37100
B98: 預り金 | C98: //住民税 12月分 | L98: 37100 | P98: 37100
B99: 預り金 | C99: //住民税 1月分 | M99: 37100 | P99: 37100
B100: 預り金 | C100: //住民税 2月分 | N100: 37100 | P100: 37100
B101: 預り金 | C101: //住民税 3月分 | O101: 37100 | P101: 37100
B102: 預り金 | C102: //住民税 4月分 | D102: 37100 | P102: 37100
B103: 預り金 | C103: //住民税 5月分 | E103: 37100 | P103: 37100
B104: 預り金 | C104: //住民税 6月分 | F104: 37100 | P104: 37100
B105: 預り金 | C105: //住民税 7月分 | G105: 37100 | P105: 37100
B106: 預り金 | C106: //住民税 8月分 | H106: 37100 | P106: 37100
B107: 預り金 | C107: //住民税 9月分 | I107: 37100 | P107: 37100
B108: 預り金 | C108: ／顧問料源泉 | D108: 5000 | P108: 5000
B109: 預り金 | C109: 夏季賞与 | G109: 373276 | P109: 373276
B110: 預り金 | C110: 給与 10月分//源泉所得税 10月分 | J110: 204860 | P110: 204860
B111: 預り金 | C111: 給与 11月分//源泉所得税 11月分 | K111: 204860 | P111: 204860
B112: 預り金 | C112: 給与 12月分//源泉所得税 12月分 | L112: 204860 | P112: 204860
B113: 預り金 | C113: 給与 1月分//源泉所得税 1月分 | M113: 204860 | P113: 204860
B114: 預り金 | C114: 給与 2月分//源泉所得税 2月分 | N114: 204860 | P114: 204860
B115: 預り金 | C115: 給与 3月分//源泉所得税 3月分 | O115: 204860 | P115: 204860
B116: 預り金 | C116: 給与 4月分//源泉所得税 4月分 | D116: 204860 | P116: 204860
B117: 預り金 | C117: 給与 5月分//源泉所得税 5月分 | E117: 204860 | P117: 204860
B118: 預り金 | C118: 給与 6月分//源泉所得税 6月分 | F118: 204860 | P118: 204860
B119: 預り金 | C119: 給与 7月分//源泉所得税 7月分 | G119: 204860 | P119: 204860
B120: 預り金 | C120: 給与 8月分//源泉所得税 8月分 | H120: 204860 | P120: 204860
B121: 預り金 | C121: 給与 9月分//源泉所得税 9月分 | I121: 204860 | P121: 204860
B122: 預り金 | C122: 冬季賞与 | L122: 516080 | P122: 516080
B123: 預り金 | C123: (空白) | E123: 5000 | F123: 5000 | G123: 38760 | H123: 5000 | I123: 5000 | J123: 5000 | K123: 5000 | L123: 35145 | M123: 5000 | N123: 5000 | O123: 5000 | P123: 118905
B124: 立替金 | C124: 弥生幸子 10月分//雇用保険 10月分 | J124: 9877 | P124: 9877
B125: 立替金 | C125: 弥生幸子 11月分//雇用保険 11月分 | K125: 9877 | P125: 9877
B126: 立替金 | C126: 弥生幸子 12月分//雇用保険 12月分 | L126: 9877 | P126: 9877
B127: 立替金 | C127: 弥生幸子 1月分//雇用保険 1月分 | M127: 9877 | P127: 9877
B128: 立替金 | C128: 弥生幸子 2月分//雇用保険 2月分 | N128: 9877 | P128: 9877
B129: 立替金 | C129: 弥生幸子 3月分//雇用保険 3月分 | O129: 9877 | P129: 9877
B130: 立替金 | C130: 弥生幸子 4月分//雇用保険 4月分 | D130: 9877 | P130: 9877
B131: 立替金 | C131: 弥生幸子 5月分//雇用保険 5月分 | E131: 9877 | P131: 9877
B132: 立替金 | C132: 弥生幸子 6月分//雇用保険 6月分 | F132: 9877 | P132: 9877
B133: 立替金 | C133: 弥生幸子 7月分//雇用保険 7月分 | G133: 9877 | P133: 9877
B134: 立替金 | C134: 弥生幸子 8月分//雇用保険 8月分 | H134: 9877 | P134: 9877
B135: 立替金 | C135: 弥生幸子 9月分//雇用保険 9月分 | I135: 9877 | P135: 9877
B136: 立替金 | C136: (空白) | L136: 27458 | P136: 27458
B137: その他経常収入 小計 | D137: 465454 | E137: 105454 | F137: 465454 | G137: 872490 | H137: 10754 | I137: 335554 | J137: 111954 | K137: 2965454 | L137: 1039137 | M137: 465454 | N137: 294454 | O137: -1923393 | P137: 5208220
B138: 経常収入 合計 | D138: 14899860 | E138: 24405466 | F138: 28782767 | G138: 22851732 | H138: 26404089 | I138: 30886080 | J138: 32328464 | K138: 28120136 | L138: 29571586 | M138: 24661352 | N138: 33755714 | O138: 16092539 | P138: 312759785
B139: 買掛金 | C139: ４月仕入分支払い | E139: 208250 | P139: 208250
B140: 買掛金 | C140: ５月仕入分支払い | F140: 239400 | P140: 239400
B141: 買掛金 | C141: ６月仕入分支払い | G141: 288950 | P141: 288950
B142: 買掛金 | C142: ７月仕入分支払い | H142: 6412 | P142: 6412
B143: 買掛金 | C143: ９月仕入分支払い | J143: 144000 | K143: 312700 | P143: 456700
B144: 買掛金 | C144: A201アトラス | E144: 1197000 | F144: 2456788 | G144: 1716750 | H144: 2190037 | I144: 1305150 | J144: 427875 | K144: 326550 | L144: 296625 | M144: 646800 | N144: 2112600 | P144: 12676175
B145: 買掛金 | C145: E001 | L145: 378525 | P145: 378525
B146: 買掛金 | C146: F201有限会社富士 | E146: 1118460 | F146: 1053675 | G146: 404075 | H146: 1142312 | I146: 690900 | J146: 231000 | L146: 254940 | P146: 4895362
B147: 買掛金 | C147: H001橋本商会 | D147: 3192929 | E147: 1406654 | F147: 2559862 | G147: 1887241 | I147: 918495 | P147: 9965181
B148: 買掛金 | C148: H002北海商事 | F148: 1563920 | G148: 1936203 | H148: 623087 | I148: 74700 | J148: 563446 | K148: 394097 | L148: 92100 | M148: 995779 | N148: 919292 | O148: 1986745 | P148: 9149369
B149: 買掛金 | C149: I201イーグル | E149: 151200 | F149: 809550 | G149: 616612 | H149: 370650 | I149: 81900 | J149: 339675 | M149: 20160 | N149: 235200 | O149: 260925 | P149: 2885872
B150: 買掛金 | C150: M201ミラクル | E150: 12340 | F150: 218400 | G150: 573300 | H150: 651950 | I150: 1219937 | J150: 1519770 | K150: 487950 | L150: 169559 | M150: 319200 | N150: 147000 | O150: 138250 | P150: 5457656
B151: 買掛金 | C151: O001オーヤマ | H151: 1034250 | I151: 701449 | K151: 439842 | P151: 2175541
B152: 買掛金 | C152: S201ｻﾝﾗｲｽﾞ | E152: 248000 | F152: 206400 | G152: 282175 | H152: 781020 | I152: 140975 | J152: 231740 | K152: 161950 | L152: 204550 | M152: 234930 | N152: 247430 | P152: 2739170
B153: 買掛金 | C153: T010日本橋商会 | E153: 2100000 | F153: 2373000 | G153: 2295300 | H153: 2345542 | I153: 2357250 | J153: 2151200 | K153: 2692922 | L153: 2337300 | M153: 94500 | N153: 234097 | P153: 18981111
B154: 買掛金 | C154: U001キャラクト株式 | E154: 153405 | F154: 364350 | G154: 261975 | H154: 260400 | I154: 147630 | J154: 252000 | K154: 310275 | L154: 233730 | M154: 252000 | N154: 308700 | P154: 2544465
B155: 買掛金 | C155: V001株式会社吉野 | L155: 1494016 | M155: 108000 | N155: 310900 | P155: 1912916
B156: 買掛金 | C156: Y001山田商事 | E156: 151199 | F156: 891175 | G156: 536982 | H156: 2461526 | I156: 536548 | J156: 1075978 | P156: 5653408
B157: 買掛金 | C157: YU001 | K157: 903000 | M157: 1403850 | N157: 2450752 | P157: 4757602
B158: 買掛金 | C158: 掛代金支払 | D158: 964370 | P158: 964370
B159: 買掛金 | C159: 買掛金支払 | D159: 4020963 | E159: 3006612 | F159: 4052059 | G159: 4139789 | H159: 9514794 | I159: 4758708 | J159: 10254093 | K159: 5256399 | L159: 8671841 | M159: 8921108 | N159: 10515550 | O159: 9323700 | P159: 82435616
B160: 買掛金 | C160: 買掛金支払い | O160: 978600 | P160: 978600
B161: 買掛金 | C161: 買掛金送金 | F161: 4500000 | I161: 5685200 | J161: 1624500 | K161: 4420000 | O161: 3420000 | P161: 19649700
B162: 買掛金支払 小計 | D162: 8178262 | E162: 9753120 | F162: 21288579 | G162: 14939352 | H162: 21381980 | I162: 18618842 | J162: 18815277 | K162: 15705685 | L162: 14133186 | M162: 12996327 | N162: 17481521 | O162: 16108220 | P162: 189400351
B163: 支払手形 | C163: 決済 | D163: 1060642 | E163: 3558215 | P163: 4618857
B164: 支払手形決済 小計 | D164: 1060642 | E164: 3558215 | F164: 0 | G164: 0 | H164: 0 | I164: 0 | J164: 0 | K164: 0 | L164: 0 | M164: 0 | N164: 0 | O164: 0 | P164: 4618857
B165: [製]給料手当 | C165: 給与 10月分//源泉所得税 10月分 | J165: 267600 | P165: 267600
B166: [製]給料手当 | C166: 給与 11月分//源泉所得税 11月分 | K166: 267600 | P166: 267600
B167: [製]給料手当 | C167: 給与 12月分//源泉所得税 12月分 | L167: 267600 | P167: 267600
B168: [製]給料手当 | C168: 給与 1月分//源泉所得税 1月分 | M168: 267600 | P168: 267600
B169: [製]給料手当 | C169: 給与 2月分//源泉所得税 2月分 | N169: 267600 | P169: 267600
B170: [製]給料手当 | C170: 給与 3月分//源泉所得税 3月分 | O170: 267600 | P170: 267600
B171: [製]給料手当 | C171: 給与 4月分//源泉所得税 4月分 | D171: 267600 | P171: 267600
B172: [製]給料手当 | C172: 給与 5月分//源泉所得税 5月分 | E172: 267600 | P172: 267600
B173: [製]給料手当 | C173: 給与 6月分//源泉所得税 6月分 | F173: 267600 | P173: 267600
B174: [製]給料手当 | C174: 給与 7月分//源泉所得税 7月分 | G174: 267600 | P174: 267600
B175: [製]給料手当 | C175: 給与 8月分//源泉所得税 8月分 | H175: 267600 | P175: 267600
B176: [製]給料手当 | C176: 給与 9月分//源泉所得税 9月分 | I176: 267600 | P176: 267600
B177: [製]賞与 | C177: 夏季賞与 | G177: 650000 | P177: 650000
B178: [製]賞与 | C178: 冬季賞与 | L178: 700000 | P178: 700000
B179: [製]福利厚生費 | C179: お茶、コンビニストア | O179: 5825 | P179: 5825
B180: [製]福利厚生費 | C180: お茶等、コンビニストア | E180: 2671 | F180: 1642 | I180: 800 | L180: 3215 | P180: 8328
B181: [製]福利厚生費 | C181: みんなのユニホーム店、作業服、品 | G181: 16842 | L181: 8527 | N181: 6823 | P181: 32192
B182: 給料手当 | C182: アルバイト店員 | E182: 68000 | F182: 65800 | G182: 65800 | H182: 56300 | I182: 45800 | J182: 71200 | K182: 75600 | L182: 68500 | M182: 78500 | N182: 53200 | O182: 85200 | P182: 733900
B183: 給料手当 | C183: 給与 10月分// | J183: 1010800 | P183: 1010800
B184: 給料手当 | C184: 給与 11月分// | K184: 1010800 | P184: 1010800
B185: 給料手当 | C185: 給与 12月分// | L185: 1010800 | P185: 1010800
B186: 給料手当 | C186: 給与 1月分// | M186: 1010800 | P186: 1010800
B187: 給料手当 | C187: 給与 2月分// | N187: 1010800 | P187: 1010800
B188: 給料手当 | C188: 給与 3月分// | O188: 1010800 | P188: 1010800
B189: 給料手当 | C189: 給与 4月分// | D189: 1010800 | P189: 1010800
B190: 給料手当 | C190: 給与 5月分// | E190: 1010800 | P190: 1010800
B191: 給料手当 | C191: 給与 6月分// | F191: 1010800 | P191: 1010800
B192: 給料手当 | C192: 給与 7月分// | G192: 1010800 | P192: 1010800
B193: 給料手当 | C193: 給与 8月分// | H193: 1010800 | P193: 1010800
B194: 給料手当 | C194: 給与 9月分// | I194: 1010800 | P194: 1010800
B195: 採用教育費 | C195: パソコン研修 | N195: 840000 | P195: 840000
B196: 賞与 | C196: 夏季賞与 | G196: 3245000 | P196: 3245000
B197: 賞与 | C197: 冬季賞与 | L197: 4210000 | P197: 4210000
B198: 福利厚生費 | C198: お茶 セブンマート城西店（中村） | F198: 6200 | P198: 6200
B199: 福利厚生費 | C199: お茶菓子 セブンマート城西店（清水） | F199: 2312 | P199: 2312
B200: 福利厚生費 | C200: お茶菓子 セブンマート城西店（佐藤） | J200: 4927 | P200: 4927
B201: 福利厚生費 | C201: お茶菓子 セブンマート城西店（上原） | H201: 4703 | P201: 4703
B202: 福利厚生費 | C202: お茶菓子 セブンマート城西店（清水） | E202: 1500 | P202: 1500
B203: 福利厚生費 | C203: お茶菓子 セブンマート城西店（中村） | H203: 2350 | J203: 3336 | O203: 546 | P203: 6232
... 316 more rows

Sheet 補助科目別資金繰り表
B1: =基本情報!B9 -> 株式会社弥生トレーディング | P1: =IF(基本情報!B31="","",基本情報!B31) -> 小林敬幸税理士事務所
B3: 補助科目別月次資金繰り表
D5: =MONTH(D6)&"月" -> 4月 | E5: =MONTH(E6)&"月" -> 5月 | F5: 6月 | G5: 7月 | H5: 8月 | I5: 9月 | J5: 10月 | K5: 11月 | L5: 12月 | M5: 1月 | N5: 2月 | O5: 3月
D6: =月別資金繰り表!C6 -> 2016-04-01 | E6: =月別資金繰り表!D6 -> 2016-05-31 | F6: =月別資金繰り表!E6 -> 2016-06-30 | G6: =月別資金繰り表!F6 -> 2016-07-31 | H6: =月別資金繰り表!G6 -> 2016-08-31 | I6: =月別資金繰り表!H6 -> 2016-09-30 | J6: =月別資金繰り表!I6 -> 2016-10-31 | K6: =月別資金繰り表!J6 -> 2016-11-30 | L6: =月別資金繰り表!K6 -> 2016-12-31 | M6: =月別資金繰り表!L6 -> 2017-01-31 | N6: =月別資金繰り表!M6 -> 2017-02-28 | O6: =月別資金繰り表!N6 -> 2017-03-31 | P6: =月別資金繰り表!O6 -> 合計
B8: 売上高 | C8: (空白) | D8: 2952629 | E8: 3111196 | F8: 3621918 | G8: 3350444 | H8: 3623791 | I8: 3640449 | J8: 3321745 | K8: 3407612 | L8: 3562395 | M8: 2922534 | N8: 3034107 | O8: 3325582 | P8: 39874402
B9: 現金売上 小計 | D9: 2952629 | E9: 3111196 | F9: 3621918 | G9: 3350444 | H9: 3623791 | I9: 3640449 | J9: 3321745 | K9: 3407612 | L9: 3562395 | M9: 2922534 | N9: 3034107 | O9: 3325582 | P9: 39874402
B10: 売掛金 | C10: ＬＳリビング 大分店 | D10: 376245 | G10: 98846 | H10: 130680 | I10: 166500 | J10: 110340 | K10: 62100 | M10: 435127 | N10: 406712 | O10: 226812 | P10: 2013362
B11: 売掛金 | C11: ＬＳリビング 福岡店 | D11: 542430 | G11: 108465 | H11: 505575 | I11: 340200 | J11: 106312 | K11: 92043 | M11: 354690 | N11: 449820 | O11: 326418 | P11: 2825953
B12: 売掛金 | C12: エヌ商会 | D12: 758625 | E12: 1730400 | F12: 1575000 | G12: 2777900 | H12: 1091350 | J12: 2234400 | K12: 2507441 | L12: 2638494 | M12: 1159764 | N12: 2515872 | O12: 856478 | P12: 19845724
B13: 売掛金 | C13: オリエント商会 | D13: 1856845 | E13: 2565485 | F13: 1335284 | G13: 1098527 | H13: 918023 | I13: 1897526 | J13: 1317542 | K13: 735982 | L13: 1388497 | M13: 1376651 | N13: 718955 | O13: 1066778 | P13: 16276095
B14: 売掛金 | C14: ハマ屋 | E14: 255150 | G14: 359887 | H14: 481320 | I14: 387607 | J14: 248850 | L14: 811912 | M14: 240202 | N14: 231540 | O14: 414476 | P14: 3430944
B15: 売掛金 | C15: ﾌｧﾐﾘｰｽﾄｱふいた | E15: 1034250 | F15: 2237655 | G15: 1904490 | H15: 1714912 | I15: 1207237 | J15: 1385737 | K15: 1034250 | M15: 1714912 | N15: 2930156 | P15: 15163599
B16: 売掛金 | C16: プラザ調布 | E16: 134400 | F16: 164220 | G16: 154125 | H16: 254812 | I16: 210375 | J16: 126150 | K16: 126150 | L16: 168732 | M16: 43062 | N16: 151170 | P16: 1533196
B17: 売掛金 | C17: ミナミ産業 | D17: 325452 | E17: 2258456 | F17: 929643 | G17: 1548790 | H17: 1010109 | I17: 1254689 | J17: 589756 | K17: 758978 | L17: 1008950 | M17: 768975 | N17: 1070394 | O17: 973643 | P17: 12497835
B18: 売掛金 | C18: リビングショップ佐渡 | E18: 103477 | J18: 40320 | K18: 265765 | L18: 53772 | M18: 73932 | N18: 103489 | P18: 640755
B19: 売掛金 | C19: ﾜｰｸｼｮｯﾌﾟ鈴鹿 | I19: 16065 | J19: 14085 | K19: 10170 | L19: 23625 | N19: 42997 | O19: 5670 | P19: 112612
B20: 売掛金 | C20: 愛知マート | D20: 1958775 | E20: 920850 | F20: 2101512 | G20: 1109850 | H20: 2932400 | I20: 2024373 | J20: 2395628 | K20: 1890000 | L20: 1555639 | M20: 2983756 | N20: 870617 | P20: 20743400
B21: 売掛金 | C21: 越後屋百貨店 | D21: 1658600 | F21: 589400 | H21: 1732500 | J21: 1956200 | L21: 1483200 | N21: 985600 | P21: 8405500
B22: 売掛金 | C22: 海北商店 | E22: 196980 | F22: 88788 | G22: 123480 | I22: 349272 | J22: 115101 | K22: 896700 | L22: 370478 | M22: 248445 | N22: 452892 | P22: 2842136
B23: 売掛金 | C23: 近藤商会 | J23: 6150000 | P23: 6150000
B24: 売掛金 | C24: 御殿場リビング | D24: 462000 | E24: 376588 | F24: 556416 | G24: 572544 | H24: 131712 | I24: 16170 | J24: 196896 | K24: 376588 | L24: 160520 | M24: 747812 | N24: 376600 | P24: 3973846
B25: 売掛金 | C25: 厚木産業 | D25: 1645350 | E25: 1645350 | F25: 1018080 | G25: 1559040 | H25: 785400 | I25: 1905960 | J25: 1344000 | K25: 1322160 | L25: 814800 | M25: 1308680 | N25: 3999660 | P25: 17348480
B26: 売掛金 | C26: 佐藤角栄 | F26: 5280000 | P26: 5280000
B27: 売掛金 | C27: 斎藤涼子 | L27: 5520000 | P27: 5520000
B28: 売掛金 | C28: 三島商会 | E28: 360885 | G28: 208740 | H28: 224910 | I28: 158760 | J28: 102900 | K28: 361620 | L28: 269002 | M28: 705612 | N28: 308712 | P28: 2701141
B29: 売掛金 | C29: 山口商事 | E29: 12600 | F29: 12390 | H29: 5376 | K29: 105420 | L29: 14124 | M29: 18900 | N29: 26712 | P29: 195522
B30: 売掛金 | C30: 山口聖子 | O30: 4100000 | P30: 4100000
B31: 売掛金 | C31: 市川ストア | E31: 306600 | F31: 159862 | G31: 176400 | H31: 585900 | I31: 198843 | J31: 177187 | K31: 102375 | L31: 241342 | M31: 184170 | N31: 86205 | O31: 312050 | P31: 2530934
B32: 売掛金 | C32: 川崎ﾎｰﾑｼｮｯﾌﾟ | E32: 386820 | F32: 324891 | G32: 446740 | H32: 380135 | I32: 329616 | K32: 138915 | L32: 418611 | M32: 594130 | N32: 293200 | O32: 350610 | P32: 3663668
B33: 売掛金 | C33: 大阪食器 | E33: 193158 | F33: 128520 | G33: 252504 | H33: 189000 | I33: 59535 | J33: 97524 | K33: 405972 | L33: 231264 | M33: 140629 | N33: 449657 | P33: 2147763
B34: 売掛金 | C34: 大津商会 | E34: 145293 | F34: 243810 | G34: 236250 | H34: 225193 | J34: 154035 | K34: 319551 | L34: 384615 | M34: 204120 | N34: 399309 | P34: 2312176
B35: 売掛金 | C35: 池袋リビング | E35: 167580 | F35: 249900 | G35: 173827 | H35: 160650 | I35: 88200 | J35: 259087 | K35: 396900 | L35: 378000 | M35: 146093 | N35: 368212 | P35: 2388449
B36: 売掛金 | C36: 中央産業 | E36: 520905 | F36: 723686 | G36: 461475 | H36: 520905 | I36: 194906 | K36: 334530 | L36: 614498 | M36: 415800 | N36: 549675 | O36: 189225 | P36: 4525605
B37: 売掛金 | C37: 中央産業仙台 | D37: 122010 | F37: 44982 | G37: 435855 | I37: 549780 | J37: 117600 | K37: 135460 | L37: 44982 | M37: 194040 | N37: 65709 | O37: 222852 | P37: 1933270
B38: 売掛金 | C38: 中央産業大阪 | N38: 2955750 | O38: 3024000 | P38: 5979750
B39: 売掛金 | C39: 長島商事 | E39: 2825687 | F39: 987654 | G39: 1993378 | H39: 3080034 | I39: 3930275 | J39: 2255913 | K39: 1394017 | L39: 2043685 | M39: 2772165 | N39: 3605241 | O39: 1542587 | P39: 26430636
B40: 売掛金 | C40: 田中栄作 | I40: 6500000 | P40: 6500000
B41: 売掛金 | C41: 彦商会 | E41: 221676 | F41: 378787 | G41: 110565 | H41: 128310 | I41: 92137 | J41: 229320 | K41: 449631 | L41: 379209 | M41: 215682 | N41: 453738 | P41: 2659055
B42: 売掛金 | C42: 品川屋 | F42: 89040 | G42: 45864 | H42: 17136 | K42: 40320 | L42: 114240 | M42: 85680 | O42: 124320 | P42: 516600
B43: 売掛金 | C43: 福山商店 | E43: 62748 | F43: 372827 | H43: 331430 | J43: 259707 | K43: 62748 | L43: 237919 | M43: 228768 | N43: 62748 | P43: 1618895
B44: 売掛金 | C44: 文京食器店 | D44: 1502025 | E44: 1518760 | F44: 856492 | G44: 557130 | H44: 948920 | I44: 805196 | J44: 1502025 | K44: 626360 | L44: 483343 | M44: 1218665 | N44: 1684560 | P44: 11703476
B45: 売掛金 | C45: 有限会社ミナミ | E45: 858480 | F45: 1198785 | G45: 840472 | H45: 545575 | I45: 459170 | J45: 668850 | K45: 2148405 | L45: 688327 | M45: 818802 | N45: 1811355 | P45: 10038221
B46: 売掛金回収 小計 | D46: 11208357 | E46: 18802578 | F46: 21647624 | G46: 17355144 | H46: 19032267 | I46: 23142392 | J46: 24155465 | K46: 17100551 | L46: 22541780 | M46: 19399264 | N46: 28427257 | O46: 13735919 | P46: 236548598
B47: 受取手形 | C47: (空白) | D47: 273420 | E47: 2385598 | F47: 3047771 | G47: 1273654 | H47: 3734949 | I47: 3762685 | J47: 4739300 | K47: 4646519 | L47: 2428274 | M47: 1874100 | N47: 1999796 | O47: 949431 | P47: 31115497
B48: 受取手形期日取立 小計 | D48: 273420 | E48: 2385598 | F48: 3047771 | G48: 1273654 | H48: 3734949 | I48: 3762685 | J48: 4739300 | K48: 4646519 | L48: 2428274 | M48: 1874100 | N48: 1999796 | O48: 949431 | P48: 31115497
B49: 受取配当金 | C49: (空白) | E49: 640 | P49: 640
B50: 受取利息 | C50: (空白) | H50: 2328 | I50: 5000 | N50: 100 | O50: 5000 | P50: 12428
B51: 利息等収入 小計 | D51: 0 | E51: 640 | F51: 0 | G51: 0 | H51: 2328 | I51: 5000 | J51: 0 | K51: 0 | L51: 0 | M51: 0 | N51: 100 | O51: 5000 | P51: 13068
B52: 仮受消費税等 | C52: (空白) | O52: -30366605 | P52: -30366605
B53: 仮払消費税等 | C53: (空白) | E53: -360000 | H53: -454700 | I53: -129900 | J53: -353500 | N53: -171000 | O53: 23379058 | P53: 21909958
B54: 買掛金 | C54: アンデス | K54: 2500000 | P54: 2500000
B55: 未払消費税等 | C55: (空白) | O55: 4598700 | P55: 4598700
B56: 預り金 | C56: 介護保険料 | D56: 9050 | E56: 9050 | F56: 9050 | G56: 9050 | H56: 9050 | I56: 9050 | J56: 9050 | K56: 9050 | L56: 39195 | M56: 9050 | N56: 9050 | O56: 9050 | P56: 138745
B57: 預り金 | C57: 源泉所得税 | D57: 209860 | E57: 209860 | F57: 209860 | G57: 583136 | H57: 209860 | I57: 209860 | J57: 209860 | K57: 209860 | L57: 683860 | M57: 209860 | N57: 209860 | O57: 209860 | P57: 3365596
B58: 預り金 | C58: 社会保険料 | D58: 199567 | E58: 199567 | F58: 199567 | G58: 233327 | H58: 199567 | I58: 199567 | J58: 199567 | K58: 199567 | L58: 241647 | M58: 199567 | N58: 199567 | O58: 199567 | P58: 2470644
B59: 預り金 | C59: 住民税 | D59: 37100 | E59: 37100 | F59: 37100 | G59: 37100 | H59: 37100 | I59: 37100 | J59: 37100 | K59: 37100 | L59: 37100 | M59: 37100 | N59: 37100 | O59: 37100 | P59: 445200
B60: 立替金 | C60: 雇用保険 | D60: 9877 | E60: 9877 | F60: 9877 | G60: 9877 | H60: 9877 | I60: 9877 | J60: 9877 | K60: 9877 | L60: 37335 | M60: 9877 | N60: 9877 | O60: 9877 | P60: 145982
B61: その他経常収入 小計 | D61: 465454 | E61: 105454 | F61: 465454 | G61: 872490 | H61: 10754 | I61: 335554 | J61: 111954 | K61: 2965454 | L61: 1039137 | M61: 465454 | N61: 294454 | O61: -1923393 | P61: 5208220
B62: 経常収入 合計 | D62: 14899860 | E62: 24405466 | F62: 28782767 | G62: 22851732 | H62: 26404089 | I62: 30886080 | J62: 32328464 | K62: 28120136 | L62: 29571586 | M62: 24661352 | N62: 33755714 | O62: 16092539 | P62: 312759785
B63: 買掛金 | C63: アース商店 | D63: 236000 | E63: 1220000 | F63: 1515000 | G63: 1235000 | H63: 2213000 | I63: 1224000 | J63: 3210000 | K63: 1220000 | L63: 3216000 | M63: 210000 | N63: 235000 | O63: 220000 | P63: 15954000
B64: 買掛金 | C64: アトラス | E64: 1197000 | F64: 2456788 | G64: 1716750 | H64: 2190037 | I64: 1305150 | J64: 427875 | K64: 326550 | L64: 296625 | M64: 646800 | N64: 2112600 | O64: 978600 | P64: 13654775
B65: 買掛金 | C65: イーグル | E65: 151200 | F65: 809550 | G65: 616612 | H65: 370650 | I65: 81900 | J65: 339675 | L65: 378525 | M65: 20160 | N65: 235200 | O65: 260925 | P65: 3264397
B66: 買掛金 | C66: オーヤマ | E66: 1234612 | F66: 536185 | G66: 1243205 | H66: 1034250 | I66: 1194595 | J66: 701449 | K66: 439842 | L66: 1367376 | M66: 791298 | N66: 1487081 | O66: 1258756 | P66: 11288649
B67: 買掛金 | C67: キャラクト | E67: 153405 | F67: 364350 | G67: 261975 | H67: 260400 | I67: 147630 | J67: 252000 | K67: 310275 | L67: 233730 | M67: 252000 | N67: 308700 | P67: 2544465
B68: 買掛金 | C68: コスモ | D68: 78000 | E68: 372000 | F68: 800000 | G68: 674000 | H68: 1172300 | I68: 1071000 | J68: 2876500 | K68: 1971000 | L68: 1072000 | M68: 74000 | N68: 72500 | O68: 72000 | P68: 10305300
B69: 買掛金 | C69: サンライズ | E69: 248000 | F69: 206400 | G69: 282175 | H69: 781020 | I69: 140975 | J69: 231740 | K69: 161950 | L69: 204550 | M69: 234930 | N69: 247430 | P69: 2739170
B70: 買掛金 | C70: スター工芸 | D70: 198000 | E70: 180000 | F70: 185000 | G70: 170000 | H70: 178000 | I70: 190000 | J70: 886000 | K70: 1200000 | L70: 1195000 | M70: 198000 | N70: 185000 | O70: 199500 | P70: 4964500
B71: 買掛金 | C71: ソウル美術 | O71: 3420000 | P71: 3420000
B72: 買掛金 | C72: タンランド興商 | J72: 1624500 | P72: 1624500
B73: 買掛金 | C73: マレー物産 | I73: 5685200 | P73: 5685200
B74: 買掛金 | C74: ミラクル | E74: 12340 | F74: 218400 | G74: 573300 | H74: 651950 | I74: 1219937 | J74: 1519770 | K74: 487950 | L74: 169559 | M74: 319200 | N74: 147000 | O74: 138250 | P74: 5457656
B75: 買掛金 | C75: 株式会社吉野 | E75: 208250 | F75: 239400 | G75: 288950 | H75: 6412 | J75: 144000 | K75: 312700 | L75: 225275 | M75: 108000 | N75: 310900 | P75: 1843887
B76: 買掛金 | C76: 橋本商会 | D76: 3192929 | E76: 1406654 | F76: 2559862 | G76: 1887241 | H76: 1963749 | I76: 918495 | J76: 1016265 | K76: 147525 | L76: 1312939 | M76: 2255004 | N76: 3156349 | O76: 2058793 | P76: 21875805
B77: 買掛金 | C77: 広東公司 | K77: 4420000 | P77: 4420000
B78: 買掛金 | C78: 山田商事 | E78: 151199 | F78: 891175 | G78: 536982 | H78: 2461526 | I78: 536548 | J78: 1075978 | K78: 612616 | L78: 1268741 | M78: 1845954 | N78: 1320996 | O78: 985687 | P78: 11687402
B79: 買掛金 | C79: 中東貿易 | F79: 4500000 | P79: 4500000
B80: 買掛金 | C80: 日本橋商会 | E80: 2100000 | F80: 2373000 | G80: 2295300 | H80: 2345542 | I80: 2357250 | J80: 2151200 | K80: 2692922 | L80: 2337300 | M80: 94500 | N80: 234097 | P80: 18981111
B81: 買掛金 | C81: 富士興産 | D81: 3508963 | F81: 1015874 | G81: 817584 | H81: 3987745 | I81: 1780562 | J81: 1563879 | K81: 105258 | L81: 508526 | M81: 3546852 | N81: 4058624 | O81: 4528964 | P81: 25422831
B82: 買掛金 | C82: 北海商事 | D82: 964370 | F82: 1563920 | G82: 1936203 | H82: 623087 | I82: 74700 | J82: 563446 | K82: 394097 | L82: 92100 | M82: 995779 | N82: 919292 | O82: 1986745 | P82: 10113739
B83: 買掛金 | C83: 有限会社富士 | E83: 1118460 | F83: 1053675 | G83: 404075 | H83: 1142312 | I83: 690900 | J83: 231000 | K83: 903000 | L83: 254940 | M83: 1403850 | N83: 2450752 | P83: 9652964
B84: 買掛金支払 小計 | D84: 8178262 | E84: 9753120 | F84: 21288579 | G84: 14939352 | H84: 21381980 | I84: 18618842 | J84: 18815277 | K84: 15705685 | L84: 14133186 | M84: 12996327 | N84: 17481521 | O84: 16108220 | P84: 189400351
B85: 支払手形 | C85: (空白) | D85: 1060642 | E85: 3558215 | P85: 4618857
B86: 支払手形決済 小計 | D86: 1060642 | E86: 3558215 | F86: 0 | G86: 0 | H86: 0 | I86: 0 | J86: 0 | K86: 0 | L86: 0 | M86: 0 | N86: 0 | O86: 0 | P86: 4618857
B87: [製]給料手当 | C87: (空白) | D87: 267600 | E87: 267600 | F87: 267600 | G87: 267600 | H87: 267600 | I87: 267600 | J87: 267600 | K87: 267600 | L87: 267600 | M87: 267600 | N87: 267600 | O87: 267600 | P87: 3211200
B88: [製]賞与 | C88: (空白) | G88: 650000 | L88: 700000 | P88: 1350000
B89: [製]福利厚生費 | C89: (空白) | E89: 2671 | F89: 1642 | G89: 16842 | I89: 800 | L89: 11742 | N89: 6823 | O89: 5825 | P89: 46345
B90: 給料手当 | C90: (空白) | D90: 1010800 | E90: 1078800 | F90: 1076600 | G90: 1076600 | H90: 1067100 | I90: 1056600 | J90: 1082000 | K90: 1086400 | L90: 1079300 | M90: 1089300 | N90: 1064000 | O90: 1096000 | P90: 12863500
B91: 採用教育費 | C91: (空白) | N91: 840000 | P91: 840000
B92: 賞与 | C92: (空白) | G92: 3245000 | L92: 4210000 | P92: 7455000
B93: 福利厚生費 | C93: (空白) | D93: 4200 | E93: 2480 | F93: 11312 | H93: 119925 | I93: 5555 | J93: 8263 | K93: 1921 | L93: 45800 | M93: 108400 | O93: 5246 | P93: 313102
B94: 法定福利費 | C94: (空白) | E94: 430864 | F94: 215432 | G94: 215432 | H94: 243512 | I94: 243512 | J94: 243512 | K94: 243512 | L94: 243512 | M94: 285592 | N94: 243512 | O94: 243512 | P94: 2851904
B95: 役員報酬 | C95: (空白) | D95: 800000 | E95: 800000 | F95: 800000 | G95: 800000 | H95: 800000 | I95: 800000 | J95: 800000 | K95: 800000 | L95: 800000 | M95: 800000 | N95: 800000 | O95: 800000 | P95: 9600000
B96: 人件費支出 小計 | D96: 2082600 | E96: 2582415 | F96: 2372586 | G96: 6271474 | H96: 2498137 | I96: 2374067 | J96: 2401375 | K96: 2399433 | L96: 7357954 | M96: 2550892 | N96: 3221935 | O96: 2418183 | P96: 38531051
B97: [製]修繕費 | C97: (空白) | D97: 55000 | F97: 30000 | K97: 30000 | P97: 115000
B98: [製]消耗工具費 | C98: (空白) | F98: 32500 | I98: 15200 | P98: 47700
B99: [製]消耗品費 | C99: (空白) | D99: 33900 | E99: 47430 | F99: 10995 | G99: 50950 | H99: 12275 | I99: 11050 | J99: 45407 | K99: 8050 | L99: 2990 | M99: 37850 | N99: 2250 | O99: 1050 | P99: 264197
B100: [製]水道光熱費 | C100: (空白) | D100: 35000 | E100: 45500 | F100: 59600 | G100: 26000 | H100: 62000 | I100: 26600 | J100: 59200 | K100: 25970 | L100: 363600 | M100: 116900 | N100: 160950 | O100: 170000 | P100: 1151320
B101: [製]地代家賃 | C101: (空白) | D101: 115000 | E101: 115000 | F101: 115000 | G101: 115000 | H101: 115000 | I101: 115000 | J101: 115000 | K101: 115000 | L101: 115000 | N101: 230000 | O101: 115000 | P101: 1380000
B102: [製]賃借料 | C102: (空白) | D102: 44625 | E102: 44625 | F102: 44625 | G102: 44625 | H102: 44625 | I102: 44625 | J102: 44625 | K102: 44625 | L102: 44625 | M102: 44625 | N102: 44625 | O102: 44625 | P102: 535500
B103: [製]通信費 | C103: (空白) | D103: 36103 | E103: 23516 | F103: 32987 | G103: 44218 | H103: 34197 | I103: 32987 | J103: 45297 | K103: 34628 | L103: 3169 | M103: 6284 | N103: 5284 | O103: 6008 | P103: 304678
B104: [製]旅費交通費 | C104: (空白) | D104: 7800 | E104: 7800 | F104: 7800 | G104: 7800 | H104: 7800 | I104: 7800 | J104: 7800 | K104: 7800 | L104: 7800 | M104: 7800 | N104: 7800 | O104: 7800 | P104: 93600
B105: リース料 | C105: (空白) | D105: 17550 | E105: 17550 | F105: 17550 | G105: 17550 | H105: 17550 | I105: 17550 | J105: 17550 | K105: 17550 | L105: 17550 | M105: 17550 | N105: 17550 | O105: 17550 | P105: 210600
B106: 荷造運賃 | C106: (空白) | D106: 358000 | E106: 356000 | F106: 389500 | G106: 401000 | H106: 421000 | I106: 521500 | J106: 630800 | K106: 268900 | L106: 358000 | M106: 378000 | N106: 398500 | O106: 365200 | P106: 4846400
B107: 交際費 | C107: (空白) | D107: 76280 | E107: 100000 | F107: 92400 | G107: 48000 | H107: 55000 | J107: 165900 | K107: 273000 | L107: 45000 | M107: 107500 | N107: 43700 | O107: 207900 | P107: 1214680
B108: 広告宣伝費 | C108: (空白) | F108: 1399000 | J108: 3000000 | M108: 472500 | O108: 420000 | P108: 5291500
B109: 雑費 | C109: (空白) | I109: 42000 | P109: 42000
B110: 支払手数料 | C110: (空白) | D110: 2160 | E110: 2700 | F110: 2160 | G110: 2160 | H110: 2160 | I110: 2160 | J110: 3024 | K110: 8748 | L110: 16548 | M110: 6264 | N110: 6804 | O110: 3672 | P110: 58560
B111: 支払報酬料 | C111: (空白) | D111: 50000 | E111: 50000 | F111: 50000 | G111: 50000 | H111: 50000 | I111: 50000 | J111: 50000 | K111: 50000 | L111: 50000 | M111: 50000 | N111: 50000 | O111: 50000 | P111: 600000
B112: 事務用品費 | C112: (空白) | D112: 6650 | F112: 10500 | G112: 12100 | H112: 15015 | I112: 2100 | J112: 10287 | L112: 31500 | M112: 3200 | N112: 38400 | O112: 7530 | P112: 137282
B113: 車両費 | C113: ガソリン | D113: 87953 | E113: 89561 | F113: 92512 | G113: 79851 | H113: 89561 | I113: 102512 | J113: 89563 | K113: 98562 | L113: 97632 | M113: 89561 | N113: 98524 | O113: 89653 | P113: 1105445
B114: 車両費 | C114: その他 | E114: 2210 | H114: 165900 | I114: 1410 | J114: 8200 | K114: 2610 | L114: 7210 | O114: 1210 | P114: 188750
B115: 修繕費 | C115: (空白) | D115: 85000 | G115: 51000 | K115: 53000 | L115: 15000 | N115: 21545 | P115: 225545
B116: 消耗品費 | C116: (空白) | D116: 46800 | F116: 79458 | G116: 9014 | I116: 4502 | J116: 8400 | K116: 7595 | L116: 48812 | M116: 1125 | N116: 2239 | P116: 207945
B117: 水道光熱費 | C117: (空白) | D117: 77047 | E117: 85825 | F117: 127447 | G117: 81483 | H117: 150606 | I117: 82451 | J117: 142232 | K117: 101497 | L117: 154303 | M117: 86600 | N117: 76266 | O117: 77607 | P117: 1243364
B118: 租税公課 | C118: (空白) | D118: 135400 | E118: 25000 | F118: 5000 | G118: 5000 | I118: 8000 | M118: 40000 | N118: 0 | P118: 218400
B119: 地代家賃 | C119: ABビル | D119: 492000 | E119: 492000 | F119: 492000 | G119: 492000 | H119: 492000 | I119: 492000 | J119: 492000 | K119: 492000 | L119: 252000 | M119: 252000 | N119: 240000 | O119: 252000 | P119: 4932000
B120: 地代家賃 | C120: 山田さん | D120: 189000 | E120: 189000 | F120: 189000 | H120: 378000 | I120: 189000 | J120: 189000 | K120: 189000 | L120: 189000 | M120: 189000 | N120: 189000 | O120: 189000 | P120: 2268000
B121: 地代家賃 | C121: 駐車場 | D121: 6000 | E121: 6000 | F121: 6000 | G121: 6000 | H121: 6000 | I121: 6000 | J121: 6000 | K121: 6000 | L121: 21000 | M121: 21000 | N121: 21000 | O121: 21000 | P121: 132000
B122: 通信費 | C122: 国際電話 | D122: 5630 | F122: 63250 | H122: 5230 | I122: 4250 | J122: 3250 | L122: 12158 | M122: 6897 | N122: 12350 | O122: 2513 | P122: 115528
B123: 通信費 | C123: (空白) | D123: 36520 | E123: 159537 | F123: 114886 | G123: 133061 | H123: 43250 | I123: 156338 | J123: 104290 | K123: 88521 | L123: 152267 | M123: 137512 | N123: 119782 | O123: 168948 | P123: 1414912
B124: 保険料 | C124: 損害保険 | D124: 92000 | E124: 92000 | F124: 92000 | G124: 92000 | H124: 92000 | I124: 92000 | J124: 92000 | K124: 92000 | L124: 322000 | M124: 97258 | N124: 69000 | O124: 69000 | P124: 1293258
B125: 旅費交通費 | C125: (空白) | D125: 132440 | E125: 138860 | F125: 138280 | G125: 138860 | H125: 297440 | I125: 139440 | J125: 141020 | K125: 139440 | L125: 138280 | M125: 139440 | N125: 139440 | O125: 138280 | P125: 1821220
B126: 諸経費支出 小計 | D126: 2223858 | E126: 2090114 | F126: 3694450 | G126: 1907672 | H126: 2556609 | I126: 2166475 | J126: 5470845 | K126: 2154496 | L126: 2465444 | M126: 2308866 | N126: 1995009 | O126: 2425546 | P126: 31459384
B127: 支払利息 | C127: (空白) | D127: 20507 | E127: 19072 | F127: 17637 | G127: 16201 | H127: 14762 | I127: 13324 | J127: 11885 | K127: 10444 | L127: 9003 | M127: 19149 | N127: 17866 | O127: 16421 | P127: 186271
B128: 利息等支出 小計 | D128: 20507 | E128: 19072 | F128: 17637 | G128: 16201 | H128: 14762 | I128: 13324 | J128: 11885 | K128: 10444 | L128: 9003 | M128: 19149 | N128: 17866 | O128: 16421 | P128: 186271
B129: 雑損失 | C129: (空白) | O129: -2388847 | P129: -2388847
B130: 預り金 | C130: 源泉所得税 | G130: 1259160 | M130: 2106436 | P130: 3365596
B131: 預り金 | C131: 社会保険料 | E131: 399134 | F131: 199567 | G131: 199567 | H131: 199567 | I131: 199567 | J131: 199567 | K131: 199567 | L131: 199567 | M131: 241647 | N131: 199567 | O131: 199567 | P131: 2436884
B132: 預り金 | C132: 住民税 | D132: 37100 | E132: 37100 | F132: 37100 | G132: 37100 | H132: 37100 | I132: 37100 | J132: 37100 | K132: 37100 | L132: 37100 | M132: 37100 | N132: 37100 | O132: 37100 | P132: 445200
B133: 立替金 | C133: 雇用保険 | D133: 175897 | P133: 175897
B134: その他経常支出 小計 | D134: 212997 | E134: 436234 | F134: 236667 | G134: 1495827 | H134: 236667 | I134: 236667 | J134: 236667 | K134: 236667 | L134: 236667 | M134: 2385183 | N134: 236667 | O134: -2152180 | P134: 4034730
B135: 経常支出 合計 | D135: 13778866 | E135: 18439170 | F135: 27609919 | G135: 24630526 | H135: 26688155 | I135: 23409375 | J135: 26936049 | K135: 20506725 | L135: 24202254 | M135: 20260417 | N135: 22952998 | O135: 18816190 | P135: 268230644
B136: 経常収支過不足 | D136: 1120994 | E136: 5966296 | F136: 1172848 | G136: -1778794 | H136: -284066 | I136: 7476705 | J136: 5392415 | K136: 7613411 | L136: 5369332 | M136: 4400935 | N136: 10802716 | O136: -2723651 | P136: 44529141
B137: 短期借入金 | C137: 港銀行 城西支店 | L137: 6000000 | P137: 6000000
B138: 短期借入金借入 小計 | D138: 0 | E138: 0 | F138: 0 | G138: 0 | H138: 0 | I138: 0 | J138: 0 | K138: 0 | L138: 6000000 | M138: 0 | N138: 0 | O138: 0 | P138: 6000000
B139: 財務等収入 合計 | D139: 0 | E139: 0 | F139: 0 | G139: 0 | H139: 0 | I139: 0 | J139: 0 | K139: 0 | L139: 6000000 | M139: 0 | N139: 0 | O139: 0 | P139: 6000000
B140: 短期借入金 | C140: 港銀行 城西支店 | D140: 500000 | E140: 500000 | F140: 500000 | G140: 500000 | H140: 500000 | I140: 500000 | J140: 500000 | K140: 500000 | L140: 500000 | M140: 500000 | N140: 500000 | O140: 500000 | P140: 6000000
B141: 短期借入金返済 小計 | D141: 500000 | E141: 500000 | F141: 500000 | G141: 500000 | H141: 500000 | I141: 500000 | J141: 500000 | K141: 500000 | L141: 500000 | M141: 500000 | N141: 500000 | O141: 500000 | P141: 6000000
B142: 長期借入金 | C142: 北東銀行 築地支店 | D142: 202333 | E142: 202789 | F142: 203245 | G142: 203702 | H142: 204161 | I142: 204620 | J142: 205080 | K142: 205542 | L142: 206004 | M142: 206468 | N142: 206932 | O142: 207398 | P142: 2458274
B143: 長期借入金返済 小計 | D143: 202333 | E143: 202789 | F143: 203245 | G143: 203702 | H143: 204161 | I143: 204620 | J143: 205080 | K143: 205542 | L143: 206004 | M143: 206468 | N143: 206932 | O143: 207398 | P143: 2458274
B144: 定期預金 | C144: 北東銀行 築地支店 | I144: 4000 | O144: 4000 | P144: 8000
B145: 定期性預金預入 小計 | D145: 0 | E145: 0 | F145: 0 | G145: 0 | H145: 0 | I145: 4000 | J145: 0 | K145: 0 | L145: 0 | M145: 0 | N145: 0 | O145: 4000 | P145: 8000
B146: 法人税、住民税及び事業税 | C146: (空白) | H146: 463 | I146: 1000 | K146: 2650000 | N146: 20 | O146: 1000 | P146: 2652483
B147: 未払法人税等 | C147: (空白) | E147: 1614500 | P147: 1614500
B148: 法人税等支払 小計 | D148: 0 | E148: 1614500 | F148: 0 | G148: 0 | H148: 463 | I148: 1000 | J148: 0 | K148: 2650000 | L148: 0 | M148: 0 | N148: 20 | O148: 1000 | P148: 4266983
B149: 未払消費税等 | C149: (空白) | E149: 2421600 | K149: 2280850 | P149: 4702450
B150: 消費税等支払 小計 | D150: 0 | E150: 2421600 | F150: 0 | G150: 0 | H150: 0 | I150: 0 | J150: 0 | K150: 2280850 | L150: 0 | M150: 0 | N150: 0 | O150: 0 | P150: 4702450
B151: 財務等支出 合計 | D151: 702333 | E151: 4738889 | F151: 703245 | G151: 703702 | H151: 704624 | I151: 709620 | J151: 705080 | K151: 5636392 | L151: 706004 | M151: 706468 | N151: 706952 | O151: 712398 | P151: 17435707
B152: 財務等収支過不足 | D152: -702333 | E152: -4738889 | F152: -703245 | G152: -703702 | H152: -704624 | I152: -709620 | J152: -705080 | K152: -5636392 | L152: 5293996 | M152: -706468 | N152: -706952 | O152: -712398 | P152: -11435707
B153: 総合収入額 | D153: 14899860 | E153: 24405466 | F153: 28782767 | G153: 22851732 | H153: 26404089 | I153: 30886080 | J153: 32328464 | K153: 28120136 | L153: 35571586 | M153: 24661352 | N153: 33755714 | O153: 16092539 | P153: 318759785
B154: 総合支出額 | D154: 14481199 | E154: 23178059 | F154: 28313164 | G154: 25334228 | H154: 27392779 | I154: 24118995 | J154: 27641129 | K154: 26143117 | L154: 24908258 | M154: 20966885 | N154: 23659950 | O154: 19528588 | P154: 285666351
B155: 総合収支過不足 | D155: 418661 | E155: 1227407 | F155: 469603 | G155: -2482496 | H155: -988690 | I155: 6767085 | J155: 4687335 | K155: 1977019 | L155: 10663328 | M155: 3694467 | N155: 10095764 | O155: -3436049 | P155: 33093434
B156: 月初資金残高 | D156: 345731402 | E156: 346150063 | F156: 347377470 | G156: 347847073 | H156: 345364577 | I156: 344375887 | J156: 351142972 | K156: 355830307 | L156: 357807326 | M156: 368470654 | N156: 372165121 | O156: 382260885
B157: 月末資金残高 | D157: 346150063 | E157: 347377470 | F157: 347847073 | G157: 345364577 | H157: 344375887 | I157: 351142972 | J157: 355830307 | K157: 357807326 | L157: 368470654 | M157: 372165121 | N157: 382260885 | O157: 378824836

Sheet 日次資金繰り表
B1: =基本情報!$B$9 -> 株式会社弥生トレーディング
B3: 摘要別日次資金繰り表
B5: 相手科目 | C5: 摘要 | D5: 2016-04-05 | E5: 2016-04-06 | F5: 2016-04-07 | G5: 2016-04-08 | H5: 2016-04-09 | I5: 2016-04-10 | J5: 2016-04-11 | K5: 2016-04-12 | L5: 2016-04-13 | M5: 2016-04-14 | N5: 2016-04-15 | O5: 2016-04-16 | P5: 2016-04-17 | Q5: 2016-04-19 | R5: 2016-04-20 | S5: 2016-04-21 | T5: 2016-04-22 | U5: 2016-04-23 | V5: 2016-04-24 | W5: 2016-04-25 | X5: 2016-04-26 | Y5: 2016-04-27 | Z5: 2016-04-28 | AA5: 2016-04-29 | AB5: 2016-04-30 | AC5: 2016-05-01 | AD5: 2016-05-03 | AE5: 2016-05-04 | AF5: 2016-05-05 | AG5: 2016-05-06 | AH5: 2016-05-07 | AI5: 2016-05-08 | AJ5: 2016-05-09 | AK5: 2016-05-10 | AL5: 2016-05-11 | AM5: 2016-05-12 | AN5: 2016-05-13 | AO5: 2016-05-14 | AP5: 2016-05-15 | AQ5: 2016-05-17 | AR5: 2016-05-18 | AS5: 2016-05-19 | AT5: 2016-05-20 | AU5: 2016-05-21 | AV5: 2016-05-22 | AW5: 2016-05-24 | AX5: 2016-05-25 | AY5: 2016-05-26 | AZ5: 2016-05-27 | BA5: 2016-05-28 | BB5: 2016-05-29 | BC5: 2016-05-30 | BD5: 2016-05-31 | BE5: 2016-06-01 | BF5: 2016-06-02 | BG5: 2016-06-03 | BH5: 2016-06-04 | BI5: 2016-06-05 | BJ5: 2016-06-07 | BK5: 2016-06-08 | BL5: 2016-06-09 | BM5: 2016-06-10 | BN5: 2016-06-11 | BO5: 2016-06-14 | BP5: 2016-06-15 | BQ5: 2016-06-16 | BR5: 2016-06-17 | BS5: 2016-06-18 | BT5: 2016-06-19 | BU5: 2016-06-20 | BV5: 2016-06-21 | BW5: 2016-06-22 | BX5: 2016-06-23 | BY5: 2016-06-24 | BZ5: 2016-06-25 | CA5: 2016-06-26 | CB5: 2016-06-28 | CC5: 2016-06-29 | CD5: 2016-06-30 | CE5: 2016-07-01 | CF5: 2016-07-02 | CG5: 2016-07-05 | CH5: 2016-07-06 | CI5: 2016-07-07 | CJ5: 2016-07-08 | CK5: 2016-07-09 | CL5: 2016-07-10 | CM5: 2016-07-12 | CN5: 2016-07-13 | CO5: 2016-07-14 | CP5: 2016-07-15 | CQ5: 2016-07-16 | CR5: 2016-07-19 | CS5: 2016-07-20 | CT5: 2016-07-21 | CU5: 2016-07-22 | CV5: 2016-07-23 | CW5: 2016-07-24 | CX5: 2016-07-25 | CY5: 2016-07-26 | CZ5: 2016-07-27 | DA5: 2016-07-28 | DB5: 2016-07-29 | DC5: 2016-07-30 | DD5: 2016-07-31 | DE5: 2016-08-01 | DF5: 2016-08-02 | DG5: 2016-08-03 | DH5: 2016-08-04 | DI5: 2016-08-05 | DJ5: 2016-08-06 | DK5: 2016-08-08 | DL5: 2016-08-09 | DM5: 2016-08-10 | DN5: 2016-08-11 | DO5: 2016-08-12 | DP5: 2016-08-13 | DQ5: 2016-08-14 | DR5: 2016-08-16 | DS5: 2016-08-17 | DT5: 2016-08-18 | DU5: 2016-08-19 | DV5: 2016-08-20 | DW5: 2016-08-22 | DX5: 2016-08-23 | DY5: 2016-08-24 | DZ5: 2016-08-25 | EA5: 2016-08-26 | EB5: 2016-08-27 | EC5: 2016-08-28 | ED5: 2016-08-29 | EE5: 2016-08-30 | EF5: 2016-08-31 | EG5: 2016-09-01 | EH5: 2016-09-02 | EI5: 2016-09-03 | EJ5: 2016-09-04 | EK5: 2016-09-05 | EL5: 2016-09-06 | EM5: 2016-09-07 | EN5: 2016-09-08 | EO5: 2016-09-09 | EP5: 2016-09-10 | EQ5: 2016-09-13 | ER5: 2016-09-14 | ES5: 2016-09-15 | ET5: 2016-09-16 | EU5: 2016-09-17 | EV5: 2016-09-18 | EW5: 2016-09-19 | EX5: 2016-09-20 | EY5: 2016-09-21 | EZ5: 2016-09-22 | FA5: 2016-09-23 | FB5: 2016-09-24 | FC5: 2016-09-25 | FD5: 2016-09-26 | FE5: 2016-09-27 | FF5: 2016-09-28 | FG5: 2016-09-29 | FH5: 2016-09-30 | FI5: 2016-10-01 | FJ5: 2016-10-04 | FK5: 2016-10-05 | FL5: 2016-10-06 | FM5: 2016-10-07 | FN5: 2016-10-08 | FO5: 2016-10-09 | FP5: 2016-10-10 | FQ5: 2016-10-11 | FR5: 2016-10-12 | FS5: 2016-10-13 | FT5: 2016-10-14 | FU5: 2016-10-15 | FV5: 2016-10-18 | FW5: 2016-10-19 | FX5: 2016-10-20 | FY5: 2016-10-21 | FZ5: 2016-10-22 | GA5: 2016-10-23 | GB5: 2016-10-24 | GC5: 2016-10-25 | GD5: 2016-10-26 | GE5: 2016-10-27 | GF5: 2016-10-28 | GG5: 2016-10-29 | GH5: 2016-10-30 | GI5: 2016-10-31 | GJ5: 2016-11-01 | GK5: 2016-11-02 | GL5: 2016-11-03 | GM5: 2016-11-04 | GN5: 2016-11-05 | GO5: 2016-11-08 | GP5: 2016-11-09 | GQ5: 2016-11-10 | GR5: 2016-11-11 | GS5: 2016-11-12 | GT5: 2016-11-13 | GU5: 2016-11-14 | GV5: 2016-11-15 | GW5: 2016-11-16 | GX5: 2016-11-17 | GY5: 2016-11-18 | GZ5: 2016-11-19 | HA5: 2016-11-20 | HB5: 2016-11-22 | HC5: 2016-11-23 | HD5: 2016-11-24 | HE5: 2016-11-25 | HF5: 2016-11-26 | HG5: 2016-11-27 | HH5: 2016-11-28 | HI5: 2016-11-29 | HJ5: 2016-11-30 | HK5: 2016-12-01 | HL5: 2016-12-02 | HM5: 2016-12-03 | HN5: 2016-12-05 | HO5: 2016-12-06 | HP5: 2016-12-07 | HQ5: 2016-12-08 | HR5: 2016-12-09 | HS5: 2016-12-10 | HT5: 2016-12-13 | HU5: 2016-12-14 | HV5: 2016-12-15 | HW5: 2016-12-16 | HX5: 2016-12-17 | HY5: 2016-12-19 | HZ5: 2016-12-20 | IA5: 2016-12-21 | IB5: 2016-12-22 | IC5: 2016-12-23 | ID5: 2016-12-24 | IE5: 2016-12-25 | IF5: 2016-12-26 | IG5: 2016-12-27 | IH5: 2016-12-28 | II5: 2016-12-29 | IJ5: 2016-12-30 | IK5: 2016-12-31 | IL5: 2017-01-03 | IM5: 2017-01-04 | IN5: 2017-01-05 | IO5: 2017-01-06 | IP5: 2017-01-07 | IQ5: 2017-01-08 | IR5: 2017-01-10 | IS5: 2017-01-11 | IT5: 2017-01-12 | IU5: 2017-01-13 | IV5: 2017-01-14 | IW5: 2017-01-15 | IX5: 2017-01-17 | IY5: 2017-01-18 | IZ5: 2017-01-19 | JA5: 2017-01-20 | JB5: 2017-01-21 | JC5: 2017-01-22 | JD5: 2017-01-24 | JE5: 2017-01-25 | JF5: 2017-01-26 | JG5: 2017-01-27 | JH5: 2017-01-28 | JI5: 2017-01-29 | JJ5: 2017-01-30 | JK5: 2017-01-31 | JL5: 2017-02-01 | JM5: 2017-02-02 | JN5: 2017-02-03 | JO5: 2017-02-04 | JP5: 2017-02-05 | JQ5: 2017-02-07 | JR5: 2017-02-08 | JS5: 2017-02-09 | JT5: 2017-02-10 | JU5: 2017-02-11 | JV5: 2017-02-13 | JW5: 2017-02-14 | JX5: 2017-02-15 | JY5: 2017-02-16 | JZ5: 2017-02-17 | KA5: 2017-02-18 | KB5: 2017-02-19 | KC5: 2017-02-20 | KD5: 2017-02-21 | KE5: 2017-02-22 | KF5: 2017-02-23 | KG5: 2017-02-24 | KH5: 2017-02-25 | KI5: 2017-02-26 | KJ5: 2017-02-27 | KK5: 2017-02-28 | KL5: 2017-03-01 | KM5: 2017-03-02 | KN5: 2017-03-03 | KO5: 2017-03-05 | KP5: 2017-03-06 | KQ5: 2017-03-07 | KR5: 2017-03-08 | KS5: 2017-03-09 | KT5: 2017-03-10 | KU5: 2017-03-13 | KV5: 2017-03-14 | KW5: 2017-03-15 | KX5: 2017-03-16 | KY5: 2017-03-17 | KZ5: 2017-03-19 | LA5: 2017-03-20 | LB5: 2017-03-21 | LC5: 2017-03-22 | LD5: 2017-03-23 | LE5: 2017-03-24 | LF5: 2017-03-25 | LG5: 2017-03-27 | LH5: 2017-03-28 | LI5: 2017-03-29 | LJ5: 2017-03-30 | LK5: 2017-03-31 | LL5: 総計
B6: 売上高 | C6: 本日売上 | D6: 230100 | E6: 186345 | F6: 163410 | G6: 182829 | H6: 163997 | K6: 89997 | L6: 162058 | M6: 186068 | N6: 160005 | Q6: 135562 | R6: 163058 | S6: 162591 | T6: 98918 | U6: 88105 | X6: 169449 | Y6: 143850 | Z6: 150848 | AA6: 176791 | AB6: 138648 | AD6: 128220 | AE6: 150800 | AF6: 174698 | AG6: 171600 | AH6: 143849 | AK6: 122039 | AL6: 147477 | AM6: 157591 | AN6: 117324 | AO6: 120343 | AQ6: 147660 | AR6: 142220 | AS6: 162620 | AT6: 148572 | AU6: 127781 | AW6: 146886 | AX6: 167153 | AY6: 157172 | AZ6: 167658 | BA6: 167580 | BD6: 141953 | BE6: 183724 | BF6: 158962 | BG6: 161067 | BH6: 158696 | BJ6: 133067 | BK6: 144572 | BL6: 152781 | BM6: 148620 | BN6: 146724 | BO6: 191220 | BP6: 201020 | BQ6: 142172 | BR6: 180324 | BS6: 160334 | BV6: 153629 | BW6: 209620 | BX6: 196915 | BY6: 172580 | BZ6: 172600 | CB6: 161500 | CC6: 169543 | CD6: 122248 | CE6: 136334 | CF6: 119924 | CG6: 147915 | CH6: 201587 | CI6: 161505 | CJ6: 128658 | CK6: 158694 | CM6: 161781 | CN6: 140477 | CO6: 119496 | CP6: 146191 | CQ6: 129134 | CR6: 161429 | CS6: 168077 | CT6: 168696 | CU6: 152039 | CV6: 169962 | CY6: 128829 | CZ6: 158943 | DA6: 165667 | DB6: 174534 | DC6: 150572 | DF6: 146734 | DG6: 267400 | DH6: 275239 | DI6: 183639 | DJ6: 187134 | DL6: 147620 | DM6: 178724 | DN6: 160667 | DO6: 146105 | DP6: 118629 | DR6: 119039 | DS6: 220781 | DT6: 114800 | DU6: 187362 | DV6: 127391 | DX6: 134058 | DY6: 177839 | DZ6: 96562 | EA6: 152858 | EB6: 183543 | EE6: 102724 | EF6: 194943 | EG6: 190991 | EH6: 127772 | EI6: 190353 | EL6: 139677 | EM6: 146877 | EN6: 137191 | EO6: 150696 | EP6: 182696 | EQ6: 177458 | ER6: 152010 | ES6: 150086 | ET6: 175981 | EU6: 180962 | EX6: 174658 | EY6: 181762 | EZ6: 167981 | FA6: 149229 | FB6: 139829 | FE6: 169086 | FF6: 187620 | FG6: 185600 | FH6: 181934 | FI6: 145648 | FJ6: 155248 | FK6: 174210 | FL6: 141905 | FM6: 166810 | FN6: 147048 | FQ6: 138086 | FR6: 174486 | FS6: 134172 | FT6: 185496 | FU6: 137334 | FV6: 127743 | FW6: 209572 | FX6: 178258 | FY6: 133686 | FZ6: 169429 | GC6: 170850 | GD6: 175058 | GE6: 187362 | GF6: 145239 | GG6: 124105 | GJ6: 130848 | GK6: 158667 | GL6: 168877 | GM6: 157448 | GN6: 159429 | GO6: 135686 | GP6: 161048 | GQ6: 108362 | GR6: 135820 | GS6: 189420 | GV6: 231686 | GW6: 175020 | GX6: 174220 | GY6: 171153 | GZ6: 149477 | HB6: 105915 | HC6: 160581 | HD6: 160762 | HE6: 116039 | HF6: 155353 | HI6: 130724 | HJ6: 171077 | HK6: 161162 | HL6: 137820 | HM6: 163391 | HO6: 163153 | HP6: 195534 | HQ6: 143867 | HR6: 176420 | HS6: 160115 | HT6: 155172 | HU6: 196077 | HV6: 189686 | HW6: 140820 | HX6: 129715 | HZ6: 145200 | IA6: 150467 | IB6: 183353 | IC6: 169867 | ID6: 131610 | IG6: 143829 | IH6: 104972 | II6: 131781 | IJ6: 172115 | IK6: 116269 | IL6: 131362 | IM6: 148781 | IN6: 143581 | IO6: 142772 | IP6: 141667 | IR6: 112125 | IS6: 177296 | IT6: 188877 | IU6: 135934 | IV6: 122991 | IX6: 107096 | IY6: 131239 | IZ6: 138191 | JA6: 140200 | JB6: 133296 | JD6: 91086 | JE6: 133848 | JF6: 172848 | JG6: 155496 | JH6: 145724 | JK6: 128124 | JL6: 133620 | JM6: 150496 | JN6: 144534 | JO6: 136505 | JQ6: 112039 | JR6: 168820 | JS6: 120115 | JT6: 147867 | JU6: 153648 | JW6: 131905 | JX6: 153639 | JY6: 125305 | JZ6: 146010 | KA6: 161315 | KD6: 97077 | KE6: 183172 | KF6: 143677 | KG6: 145343 | KH6: 131400 | KK6: 347620 | KL6: 125439 | KM6: 178572 | KN6: 129400 | KQ6: 290886 | KR6: 137629 | KS6: 182515 | KT6: 183372 | KU6: 193696 | KV6: 116391 | KW6: 100010 | KX6: 165962 | KY6: 119096 | LA6: 184600 | LB6: 121753 | LC6: 140791 | LD6: 87905 | LE6: 124505 | LG6: 238886 | LH6: 143458 | LI6: 170248 | LJ6: 94658 | LK6: 95810 | LL6: 39874402
B7: 現金売上 小計 | D7: 230100 | E7: 186345 | F7: 163410 | G7: 182829 | H7: 163997 | I7: 0 | J7: 0 | K7: 89997 | L7: 162058 | M7: 186068 | N7: 160005 | O7: 0 | P7: 0 | Q7: 135562 | R7: 163058 | S7: 162591 | T7: 98918 | U7: 88105 | V7: 0 | W7: 0 | X7: 169449 | Y7: 143850 | Z7: 150848 | AA7: 176791 | AB7: 138648 | AC7: 0 | AD7: 128220 | AE7: 150800 | AF7: 174698 | AG7: 171600 | AH7: 143849 | AI7: 0 | AJ7: 0 | AK7: 122039 | AL7: 147477 | AM7: 157591 | AN7: 117324 | AO7: 120343 | AP7: 0 | AQ7: 147660 | AR7: 142220 | AS7: 162620 | AT7: 148572 | AU7: 127781 | AV7: 0 | AW7: 146886 | AX7: 167153 | AY7: 157172 | AZ7: 167658 | BA7: 167580 | BB7: 0 | BC7: 0 | BD7: 141953 | BE7: 183724 | BF7: 158962 | BG7: 161067 | BH7: 158696 | BI7: 0 | BJ7: 133067 | BK7: 144572 | BL7: 152781 | BM7: 148620 | BN7: 146724 | BO7: 191220 | BP7: 201020 | BQ7: 142172 | BR7: 180324 | BS7: 160334 | BT7: 0 | BU7: 0 | BV7: 153629 | BW7: 209620 | BX7: 196915 | BY7: 172580 | BZ7: 172600 | CA7: 0 | CB7: 161500 | CC7: 169543 | CD7: 122248 | CE7: 136334 | CF7: 119924 | CG7: 147915 | CH7: 201587 | CI7: 161505 | CJ7: 128658 | CK7: 158694 | CL7: 0 | CM7: 161781 | CN7: 140477 | CO7: 119496 | CP7: 146191 | CQ7: 129134 | CR7: 161429 | CS7: 168077 | CT7: 168696 | CU7: 152039 | CV7: 169962 | CW7: 0 | CX7: 0 | CY7: 128829 | CZ7: 158943 | DA7: 165667 | DB7: 174534 | DC7: 150572 | DD7: 0 | DE7: 0 | DF7: 146734 | DG7: 267400 | DH7: 275239 | DI7: 183639 | DJ7: 187134 | DK7: 0 | DL7: 147620 | DM7: 178724 | DN7: 160667 | DO7: 146105 | DP7: 118629 | DQ7: 0 | DR7: 119039 | DS7: 220781 | DT7: 114800 | DU7: 187362 | DV7: 127391 | DW7: 0 | DX7: 134058 | DY7: 177839 | DZ7: 96562 | EA7: 152858 | EB7: 183543 | EC7: 0 | ED7: 0 | EE7: 102724 | EF7: 194943 | EG7: 190991 | EH7: 127772 | EI7: 190353 | EJ7: 0 | EK7: 0 | EL7: 139677 | EM7: 146877 | EN7: 137191 | EO7: 150696 | EP7: 182696 | EQ7: 177458 | ER7: 152010 | ES7: 150086 | ET7: 175981 | EU7: 180962 | EV7: 0 | EW7: 0 | EX7: 174658 | EY7: 181762 | EZ7: 167981 | FA7: 149229 | FB7: 139829 | FC7: 0 | FD7: 0 | FE7: 169086 | FF7: 187620 | FG7: 185600 | FH7: 181934 | FI7: 145648 | FJ7: 155248 | FK7: 174210 | FL7: 141905 | FM7: 166810 | FN7: 147048 | FO7: 0 | FP7: 0 | FQ7: 138086 | FR7: 174486 | FS7: 134172 | FT7: 185496 | FU7: 137334 | FV7: 127743 | FW7: 209572 | FX7: 178258 | FY7: 133686 | FZ7: 169429 | GA7: 0 | GB7: 0 | GC7: 170850 | GD7: 175058 | GE7: 187362 | GF7: 145239 | GG7: 124105 | GH7: 0 | GI7: 0 | GJ7: 130848 | GK7: 158667 | GL7: 168877 | GM7: 157448 | GN7: 159429 | GO7: 135686 | GP7: 161048 | GQ7: 108362 | GR7: 135820 | GS7: 189420 | GT7: 0 | GU7: 0 | GV7: 231686 | GW7: 175020 | GX7: 174220 | GY7: 171153 | GZ7: 149477 | HA7: 0 | HB7: 105915 | HC7: 160581 | HD7: 160762 | HE7: 116039 | HF7: 155353 | HG7: 0 | HH7: 0 | HI7: 130724 | HJ7: 171077 | HK7: 161162 | HL7: 137820 | HM7: 163391 | HN7: 0 | HO7: 163153 | HP7: 195534 | HQ7: 143867 | HR7: 176420 | HS7: 160115 | HT7: 155172 | HU7: 196077 | HV7: 189686 | HW7: 140820 | HX7: 129715 | HY7: 0 | HZ7: 145200 | IA7: 150467 | IB7: 183353 | IC7: 169867 | ID7: 131610 | IE7: 0 | IF7: 0 | IG7: 143829 | IH7: 104972 | II7: 131781 | IJ7: 172115 | IK7: 116269 | IL7: 131362 | IM7: 148781 | IN7: 143581 | IO7: 142772 | IP7: 141667 | IQ7: 0 | IR7: 112125 | IS7: 177296 | IT7: 188877 | IU7: 135934 | IV7: 122991 | IW7: 0 | IX7: 107096 | IY7: 131239 | IZ7: 138191 | JA7: 140200 | JB7: 133296 | JC7: 0 | JD7: 91086 | JE7: 133848 | JF7: 172848 | JG7: 155496 | JH7: 145724 | JI7: 0 | JJ7: 0 | JK7: 128124 | JL7: 133620 | JM7: 150496 | JN7: 144534 | JO7: 136505 | JP7: 0 | JQ7: 112039 | JR7: 168820 | JS7: 120115 | JT7: 147867 | JU7: 153648 | JV7: 0 | JW7: 131905 | JX7: 153639 | JY7: 125305 | JZ7: 146010 | KA7: 161315 | KB7: 0 | KC7: 0 | KD7: 97077 | KE7: 183172 | KF7: 143677 | KG7: 145343 | KH7: 131400 | KI7: 0 | KJ7: 0 | KK7: 347620 | KL7: 125439 | KM7: 178572 | KN7: 129400 | KO7: 0 | KP7: 0 | KQ7: 290886 | KR7: 137629 | KS7: 182515 | KT7: 183372 | KU7: 193696 | KV7: 116391 | KW7: 100010 | KX7: 165962 | KY7: 119096 | KZ7: 0 | LA7: 184600 | LB7: 121753 | LC7: 140791 | LD7: 87905 | LE7: 124505 | LF7: 0 | LG7: 238886 | LH7: 143458 | LI7: 170248 | LJ7: 94658 | LK7: 95810 | LL7: 39874402
B8: 売掛金 | C8: A002厚木産業 | AB8: 1645350 | BD8: 1645350 | CD8: 1018080 | DB8: 1559040 | EE8: 785400 | FG8: 1905960 | GG8: 1344000 | HJ8: 1322160 | LL8: 11225340
B9: 売掛金 | C9: B001文京食器店 | AB9: 1502025 | LL9: 1502025
B10: 売掛金 | C10: C001中央産業 | GQ10: 334530 | HS10: 614498 | IR10: 415800 | LL10: 1364828
B11: 売掛金 | C11: C002中央産業仙台 | H11: 122010 | BL11: 44982 | CJ11: 435855 | EP11: 549780 | FP11: 117600 | GQ11: 135460 | HS11: 44982 | IR11: 194040 | JT11: 65709 | KT11: 222852 | LL11: 1933270
B12: 売掛金 | C12: E001エヌ商会 | BD12: 1730400 | LL12: 1730400
B13: 売掛金 | C13: F001ﾌｧﾐﾘｰｽﾄｱふいた | BD13: 1034250 | CC13: 2237655 | DB13: 1904490 | EF13: 1714912 | FH13: 1207237 | GG13: 1385737 | HE13: 1034250 | JK13: 1714912 | LL13: 12233443
B14: 売掛金 | C14: F002福山商店 | BD14: 62748 | CC14: 372827 | EF14: 331430 | GH14: 259707 | HF14: 62748 | II14: 237919 | JK14: 228768 | KK14: 62748 | LL14: 1618895
B15: 売掛金 | C15: G001御殿場リビング | AB15: 462000 | BB15: 376588 | CD15: 556416 | DD15: 572544 | EF15: 131712 | FH15: 16170 | GH15: 196896 | HJ15: 376588 | II15: 160520 | JK15: 747812 | KK15: 376600 | LL15: 3973846
B16: 売掛金 | C16: H001ハマ屋 | AL16: 255150 | CL16: 359887 | DM16: 481320 | EP16: 387607 | FP16: 248850 | HS16: 811912 | IR16: 240202 | JT16: 231540 | KT16: 414476 | LL16: 3430944
B17: 売掛金 | C17: H002彦商会 | BB17: 221676 | CD17: 378787 | DD17: 110565 | EF17: 128310 | FH17: 92137 | GH17: 229320 | HJ17: 449631 | II17: 379209 | JK17: 215682 | KK17: 453738 | LL17: 2659055
B18: 売掛金 | C18: I001池袋リビング | BA18: 167580 | CD18: 249900 | DB18: 173827 | EF18: 160650 | FH18: 88200 | GG18: 259087 | HI18: 396900 | ID18: 378000 | JK18: 146093 | KK18: 368212 | LL18: 2388449
B19: 売掛金 | C19: I002市川ストア | BA19: 306600 | CD19: 159862 | DB19: 176400 | EF19: 585900 | FH19: 198843 | GG19: 177187 | HI19: 102375 | II19: 241342 | JK19: 184170 | KK19: 86205 | LJ19: 312050 | LL19: 2530934
B20: 売掛金 | C20: K001海北商店 | BA20: 196980 | CD20: 88788 | DB20: 123480 | FH20: 349272 | GG20: 115101 | HI20: 896700 | ID20: 370478 | LL20: 2140799
B21: 売掛金 | C21: K002川崎ﾎｰﾑｼｮｯﾌﾟ | AX21: 386820 | BZ21: 324891 | CX21: 446740 | DZ21: 380135 | FC21: 329616 | HE21: 138915 | IC21: 418611 | JE21: 594130 | KH21: 293200 | LF21: 350610 | LL21: 3663668
B22: 売掛金 | C22: L001ＬＳリビング大 | JK22: 435127 | KK22: 406712 | LK22: 226812 | LL22: 1068651
B23: 売掛金 | C23: L001ＬＳリビング大分 | AB23: 376245 | DD23: 98846 | EF23: 130680 | FH23: 166500 | GH23: 110340 | HJ23: 62100 | LL23: 944711
B24: 売掛金 | C24: L002ＬＳリビング福 | JK24: 354690 | KK24: 449820 | LK24: 326418 | LL24: 1130928
B25: 売掛金 | C25: L002ＬＳリビング福岡 | AB25: 542430 | DD25: 108465 | EF25: 505575 | FH25: 340200 | GH25: 106312 | HJ25: 92043 | LL25: 1695025
B26: 売掛金 | C26: L003愛知マート | Z26: 1958775 | BL26: 154350 | CC26: 1947162 | IH26: 1555639 | IR26: 1555627 | LL26: 7171553
B27: 売掛金 | C27: M001三島商会 | BA27: 76440 | BB27: 284445 | DD27: 208740 | EF27: 224910 | FH27: 158760 | GG27: 102900 | HJ27: 361620 | II27: 269002 | JK27: 705612 | KK27: 308712 | LL27: 2701141
B28: 売掛金 | C28: M002有限会社ミナミ | BB28: 858480 | CD28: 1198785 | DD28: 840472 | EF28: 545575 | FH28: 459170 | GH28: 668850 | HJ28: 2148405 | II28: 688327 | JK28: 818802 | LL28: 8226866
B29: 売掛金 | C29: N001長島商事 | DD29: 441000 | EF29: 257460 | FH29: 331800 | GH29: 358260 | HJ29: 830760 | IC29: 756220 | LL29: 2975500
B30: 売掛金 | C30: O001大津商会 | BB30: 145293 | CD30: 243810 | DD30: 236250 | EF30: 225193 | GH30: 154035 | HJ30: 319551 | LL30: 1324132
B31: 売掛金 | C31: O002大阪食器 | BB31: 193158 | CD31: 128520 | DD31: 252504 | EF31: 189000 | FH31: 59535 | GG31: 97524 | HJ31: 405972 | ID31: 231264 | JK31: 140629 | KK31: 449657 | LL31: 2147763
B32: 売掛金 | C32: O003オリエント商会 | AP32: 2565485 | FU32: 258800 | GT32: 71400 | HV32: 33600 | IW32: 113064 | LL32: 3042349
B33: 売掛金 | C33: P001プラザ調布 | AT33: 134400 | BT33: 164220 | CS33: 154125 | DV33: 254812 | EV33: 210375 | FX33: 126150 | HA33: 126150 | HZ33: 168732 | JA33: 43062 | KC33: 151170 | LL33: 1533196
B34: 売掛金 | C34: R001ﾘﾋﾞﾝｸﾞｼｮｯﾌﾟ佐 | BB34: 103477 | GH34: 40320 | HJ34: 265765 | IG34: 53772 | JJ34: 73932 | KK34: 103489 | LL34: 640755
B35: 売掛金 | C35: S001品川屋 | BM35: 89040 | CL35: 45864 | DM35: 17136 | GQ35: 40320 | HS35: 114240 | IR35: 85680 | KT35: 124320 | LL35: 516600
B36: 売掛金 | C36: W001ﾜｰｸｼｮｯﾌﾟ鈴鹿 | FH36: 16065 | GH36: 14085 | HJ36: 10170 | IG36: 23625 | KK36: 42997 | LK36: 5670 | LL36: 112612
B37: 売掛金 | C37: Y001山口商事 | BB37: 12600 | CD37: 12390 | EF37: 5376 | HJ37: 105420 | IG37: 14124 | JJ37: 18900 | KK37: 26712 | LL37: 195522
B38: 売掛金 | C38: 愛知マート | DB38: 1109850 | EE38: 2932400 | FH38: 2024373 | GG38: 2395628 | HJ38: 1890000 | LL38: 10352251
B39: 売掛金 | C39: 掛代金回収 | BD39: 920850 | II39: 1682758 | JJ39: 1308680 | JK39: 2850914 | KH39: 4741511 | KJ39: 8639970 | KK39: 1269926 | LL39: 21414609
B40: 売掛金 | C40: 掛代金回収 B001文京食器店 | BD40: 1518760 | CD40: 856492 | DB40: 557130 | EE40: 948920 | FG40: 805196 | GG40: 1502025 | HJ40: 626360 | LL40: 6814883
B41: 売掛金 | C41: 掛代金回収 C001中央産業 | AK41: 520905 | BM41: 723686 | CL41: 461475 | DM41: 520905 | EP41: 194906 | JT41: 549675 | KT41: 189225 | LL41: 3160777
B42: 売掛金 | C42: 掛代金回収 E001エヌ商会 | AB42: 758625 | CD42: 1575000 | DC42: 966650 | DD42: 1811250 | EF42: 1091350 | GG42: 2234400 | HI42: 2507441 | LL42: 10944716
B43: 売掛金 | C43: 掛代金回収 越後屋 | D43: 1658600 | BH43: 589400 | DI43: 1732500 | FK43: 1956200 | LL43: 5936700
B44: 売掛金 | C44: 小切手持込み・佐藤 | CD44: 5280000 | LL44: 5280000
B45: 売掛金 | C45: 振込・近藤商会 | GI45: 6150000 | LL45: 6150000
B46: 売掛金 | C46: 振込・斎藤 | HV46: 5520000 | LL46: 5520000
B47: 売掛金 | C47: 振込・山口聖子 | LK47: 4100000 | LL47: 4100000
B48: 売掛金 | C48: 振込・田中 | FH48: 6500000 | LL48: 6500000
B49: 売掛金 | C49: 滞留分売掛金残高回収 | JK49: 248445 | KK49: 452892 | LL49: 701337
B50: 売掛金 | C50: 売掛金小切手入金 | BP50: 1335284 | CP50: 1098527 | DQ50: 918023 | ES50: 1897526 | FU50: 1058742 | GT50: 664582 | HV50: 1354897 | IW50: 1263587 | JX50: 718955 | KW50: 1066778 | LL50: 11376901
B51: 売掛金 | C51: 売掛金振込入金 | X51: 325452 | BB51: 2825687 | BD51: 2258456 | CD51: 1917297 | DD51: 3101168 | EF51: 3832683 | FH51: 4853164 | GH51: 1897653 | GI51: 589756 | HJ51: 758978 | II51: 2296415 | IJ51: 2638494 | JJ51: 1159764 | JK51: 3541140 | KK51: 7191507 | LF51: 973643 | LI51: 856478 | LK51: 1542587 | LL51: 42560322
B52: 売掛金 | C52: 売掛金請求 | N52: 1856845 | HJ52: 563257 | LL52: 2420102
B53: 売掛金 | C53: 未回収売掛金残高回収 | LK53: 3024000 | LL53: 3024000
B54: 売掛金 | C54: (空白) | HN54: 1483200 | JP54: 985600 | LL54: 2468800
B55: 売掛金回収 小計 | D55: 1658600 | E55: 0 | F55: 0 | G55: 0 | H55: 122010 | I55: 0 | J55: 0 | K55: 0 | L55: 0 | M55: 0 | N55: 1856845 | O55: 0 | P55: 0 | Q55: 0 | R55: 0 | S55: 0 | T55: 0 | U55: 0 | V55: 0 | W55: 0 | X55: 325452 | Y55: 0 | Z55: 1958775 | AA55: 0 | AB55: 5286675 | AC55: 0 | AD55: 0 | AE55: 0 | AF55: 0 | AG55: 0 | AH55: 0 | AI55: 0 | AJ55: 0 | AK55: 520905 | AL55: 255150 | AM55: 0 | AN55: 0 | AO55: 0 | AP55: 2565485 | AQ55: 0 | AR55: 0 | AS55: 0 | AT55: 134400 | AU55: 0 | AV55: 0 | AW55: 0 | AX55: 386820 | AY55: 0 | AZ55: 0 | BA55: 747600 | BB55: 5021404 | BC55: 0 | BD55: 9170814 | BE55: 0 | BF55: 0 | BG55: 0 | BH55: 589400 | BI55: 0 | BJ55: 0 | BK55: 0 | BL55: 199332 | BM55: 812726 | BN55: 0 | BO55: 0 | BP55: 1335284 | BQ55: 0 | BR55: 0 | BS55: 0 | BT55: 164220 | BU55: 0 | BV55: 0 | BW55: 0 | BX55: 0 | BY55: 0 | BZ55: 324891 | CA55: 0 | CB55: 0 | CC55: 4557644 | CD55: 13664127 | CE55: 0 | CF55: 0 | CG55: 0 | CH55: 0 | CI55: 0 | CJ55: 435855 | CK55: 0 | CL55: 867226 | CM55: 0 | CN55: 0 | CO55: 0 | CP55: 1098527 | CQ55: 0 | CR55: 0 | CS55: 154125 | CT55: 0 | CU55: 0 | CV55: 0 | CW55: 0 | CX55: 446740 | CY55: 0 | CZ55: 0 | DA55: 0 | DB55: 5604217 | DC55: 966650 | DD55: 7781804 | DE55: 0 | DF55: 0 | DG55: 0 | DH55: 0 | DI55: 1732500 | DJ55: 0 | DK55: 0 | DL55: 0 | DM55: 1019361 | DN55: 0 | DO55: 0 | DP55: 0 | DQ55: 918023 | DR55: 0 | DS55: 0 | DT55: 0 | DU55: 0 | DV55: 254812 | DW55: 0 | DX55: 0 | DY55: 0 | DZ55: 380135 | EA55: 0 | EB55: 0 | EC55: 0 | ED55: 0 | EE55: 4666720 | EF55: 10060716 | EG55: 0 | EH55: 0 | EI55: 0 | EJ55: 0 | EK55: 0 | EL55: 0 | EM55: 0 | EN55: 0 | EO55: 0 | EP55: 1132293 | EQ55: 0 | ER55: 0 | ES55: 1897526 | ET55: 0 | EU55: 0 | EV55: 210375 | EW55: 0 | EX55: 0 | EY55: 0 | EZ55: 0 | FA55: 0 | FB55: 0 | FC55: 329616 | FD55: 0 | FE55: 0 | FF55: 0 | FG55: 2711156 | FH55: 16861426 | FI55: 0 | FJ55: 0 | FK55: 1956200 | FL55: 0 | FM55: 0 | FN55: 0 | FO55: 0 | FP55: 366450 | FQ55: 0 | FR55: 0 | FS55: 0 | FT55: 0 | FU55: 1317542 | FV55: 0 | FW55: 0 | FX55: 126150 | FY55: 0 | FZ55: 0 | GA55: 0 | GB55: 0 | GC55: 0 | GD55: 0 | GE55: 0 | GF55: 0 | GG55: 9613589 | GH55: 4035778 | GI55: 6739756 | GJ55: 0 | GK55: 0 | GL55: 0 | GM55: 0 | GN55: 0 | GO55: 0 | GP55: 0 | GQ55: 510310 | GR55: 0 | GS55: 0 | GT55: 735982 | GU55: 0 | GV55: 0 | GW55: 0 | GX55: 0 | GY55: 0 | GZ55: 0 | HA55: 126150 | HB55: 0 | HC55: 0 | HD55: 0 | HE55: 1173165 | HF55: 62748 | HG55: 0 | HH55: 0 | HI55: 3903416 | HJ55: 10588780 | HK55: 0 | HL55: 0 | HM55: 0 | HN55: 1483200 | HO55: 0 | HP55: 0 | HQ55: 0 | HR55: 0 | HS55: 1585632 | HT55: 0 | HU55: 0 | HV55: 6908497 | HW55: 0 | HX55: 0 | HY55: 0 | HZ55: 168732 | IA55: 0 | IB55: 0 | IC55: 1174831 | ID55: 979742 | IE55: 0 | IF55: 0 | IG55: 91521 | IH55: 1555639 | II55: 5955492 | IJ55: 2638494 | IK55: 0 | IL55: 0 | IM55: 0 | IN55: 0 | IO55: 0 | IP55: 0 | IQ55: 0 | IR55: 2491349 | IS55: 0 | IT55: 0 | IU55: 0 | IV55: 0 | IW55: 1376651 | IX55: 0 | IY55: 0 | IZ55: 0 | JA55: 43062 | JB55: 0 | JC55: 0 | JD55: 0 | JE55: 594130 | JF55: 0 | JG55: 0 | JH55: 0 | JI55: 0 | JJ55: 2561276 | JK55: 12332796 | JL55: 0 | JM55: 0 | JN55: 0 | JO55: 0 | JP55: 985600 | JQ55: 0 | JR55: 0 | JS55: 0 | JT55: 846924 | JU55: 0 | JV55: 0 | JW55: 0 | JX55: 718955 | JY55: 0 | JZ55: 0 | KA55: 0 | KB55: 0 | KC55: 151170 | KD55: 0 | KE55: 0 | KF55: 0 | KG55: 0 | KH55: 5034711 | KI55: 0 | KJ55: 8639970 | KK55: 12049927 | KL55: 0 | KM55: 0 | KN55: 0 | KO55: 0 | KP55: 0 | KQ55: 0 | KR55: 0 | KS55: 0 | KT55: 950873 | KU55: 0 | KV55: 0 | KW55: 1066778 | KX55: 0 | KY55: 0 | KZ55: 0 | LA55: 0 | LB55: 0 | LC55: 0 | LD55: 0 | LE55: 0 | LF55: 1324253 | LG55: 0 | LH55: 0 | LI55: 856478 | LJ55: 312050 | LK55: 9225487 | LL55: 236548598
B56: 受取手形 | C56: 決済,振出人:九州物産 | AA56: 126000 | AZ56: 583800 | DA56: 515000 | EC56: 1140000 | FF56: 1011920 | GF56: 905750 | HH56: 829360 | IH56: 858800 | JH56: 887800 | KJ56: 1336796 | LL56: 8195226
B57: 受取手形 | C57: 決済,振出人:中央産業大阪 | AS57: 1214100 | BS57: 2502150 | DT57: 2070920 | EV57: 2750765 | FW57: 3465000 | GY57: 3046000 | HY57: 1050000 | KB57: 663000 | LL57: 16761935
B58: 受取手形 | C58: 決済,振出人:中野産業 | F58: 147420 | AJ58: 587698 | BK58: 545621 | CK58: 758654 | DK58: 524029 | FN58: 209790 | FO58: 158760 | GP58: 771159 | HR58: 519474 | IQ58: 504350 | JG58: 481950 | KT58: 949431 | LL58: 6158336
B59: 受取手形期日取立 小計 | D59: 0 | E59: 0 | F59: 147420 | G59: 0 | H59: 0 | I59: 0 | J59: 0 | K59: 0 | L59: 0 | M59: 0 | N59: 0 | O59: 0 | P59: 0 | Q59: 0 | R59: 0 | S59: 0 | T59: 0 | U59: 0 | V59: 0 | W59: 0 | X59: 0 | Y59: 0 | Z59: 0 | AA59: 126000 | AB59: 0 | AC59: 0 | AD59: 0 | AE59: 0 | AF59: 0 | AG59: 0 | AH59: 0 | AI59: 0 | AJ59: 587698 | AK59: 0 | AL59: 0 | AM59: 0 | AN59: 0 | AO59: 0 | AP59: 0 | AQ59: 0 | AR59: 0 | AS59: 1214100 | AT59: 0 | AU59: 0 | AV59: 0 | AW59: 0 | AX59: 0 | AY59: 0 | AZ59: 583800 | BA59: 0 | BB59: 0 | BC59: 0 | BD59: 0 | BE59: 0 | BF59: 0 | BG59: 0 | BH59: 0 | BI59: 0 | BJ59: 0 | BK59: 545621 | BL59: 0 | BM59: 0 | BN59: 0 | BO59: 0 | BP59: 0 | BQ59: 0 | BR59: 0 | BS59: 2502150 | BT59: 0 | BU59: 0 | BV59: 0 | BW59: 0 | BX59: 0 | BY59: 0 | BZ59: 0 | CA59: 0 | CB59: 0 | CC59: 0 | CD59: 0 | CE59: 0 | CF59: 0 | CG59: 0 | CH59: 0 | CI59: 0 | CJ59: 0 | CK59: 758654 | CL59: 0 | CM59: 0 | CN59: 0 | CO59: 0 | CP59: 0 | CQ59: 0 | CR59: 0 | CS59: 0 | CT59: 0 | CU59: 0 | CV59: 0 | CW59: 0 | CX59: 0 | CY59: 0 | CZ59: 0 | DA59: 515000 | DB59: 0 | DC59: 0 | DD59: 0 | DE59: 0 | DF59: 0 | DG59: 0 | DH59: 0 | DI59: 0 | DJ59: 0 | DK59: 524029 | DL59: 0 | DM59: 0 | DN59: 0 | DO59: 0 | DP59: 0 | DQ59: 0 | DR59: 0 | DS59: 0 | DT59: 2070920 | DU59: 0 | DV59: 0 | DW59: 0 | DX59: 0 | DY59: 0 | DZ59: 0 | EA59: 0 | EB59: 0 | EC59: 1140000 | ED59: 0 | EE59: 0 | EF59: 0 | EG59: 0 | EH59: 0 | EI59: 0 | EJ59: 0 | EK59: 0 | EL59: 0 | EM59: 0 | EN59: 0 | EO59: 0 | EP59: 0 | EQ59: 0 | ER59: 0 | ES59: 0 | ET59: 0 | EU59: 0 | EV59: 2750765 | EW59: 0 | EX59: 0 | EY59: 0 | EZ59: 0 | FA59: 0 | FB59: 0 | FC59: 0 | FD59: 0 | FE59: 0 | FF59: 1011920 | FG59: 0 | FH59: 0 | FI59: 0 | FJ59: 0 | FK59: 0 | FL59: 0 | FM59: 0 | FN59: 209790 | FO59: 158760 | FP59: 0 | FQ59: 0 | FR59: 0 | FS59: 0 | FT59: 0 | FU59: 0 | FV59: 0 | FW59: 3465000 | FX59: 0 | FY59: 0 | FZ59: 0 | GA59: 0 | GB59: 0 | GC59: 0 | GD59: 0 | GE59: 0 | GF59: 905750 | GG59: 0 | GH59: 0 | GI59: 0 | GJ59: 0 | GK59: 0 | GL59: 0 | GM59: 0 | GN59: 0 | GO59: 0 | GP59: 771159 | GQ59: 0 | GR59: 0 | GS59: 0 | GT59: 0 | GU59: 0 | GV59: 0 | GW59: 0 | GX59: 0 | GY59: 3046000 | GZ59: 0 | HA59: 0 | HB59: 0 | HC59: 0 | HD59: 0 | HE59: 0 | HF59: 0 | HG59: 0 | HH59: 829360 | HI59: 0 | HJ59: 0 | HK59: 0 | HL59: 0 | HM59: 0 | HN59: 0 | HO59: 0 | HP59: 0 | HQ59: 0 | HR59: 519474 | HS59: 0 | HT59: 0 | HU59: 0 | HV59: 0 | HW59: 0 | HX59: 0 | HY59: 1050000 | HZ59: 0 | IA59: 0 | IB59: 0 | IC59: 0 | ID59: 0 | IE59: 0 | IF59: 0 | IG59: 0 | IH59: 858800 | II59: 0 | IJ59: 0 | IK59: 0 | IL59: 0 | IM59: 0 | IN59: 0 | IO59: 0 | IP59: 0 | IQ59: 504350 | IR59: 0 | IS59: 0 | IT59: 0 | IU59: 0 | IV59: 0 | IW59: 0 | IX59: 0 | IY59: 0 | IZ59: 0 | JA59: 0 | JB59: 0 | JC59: 0 | JD59: 0 | JE59: 0 | JF59: 0 | JG59: 481950 | JH59: 887800 | JI59: 0 | JJ59: 0 | JK59: 0 | JL59: 0 | JM59: 0 | JN59: 0 | JO59: 0 | JP59: 0 | JQ59: 0 | JR59: 0 | JS59: 0 | JT59: 0 | JU59: 0 | JV59: 0 | JW59: 0 | JX59: 0 | JY59: 0 | JZ59: 0 | KA59: 0 | KB59: 663000 | KC59: 0 | KD59: 0 | KE59: 0 | KF59: 0 | KG59: 0 | KH59: 0 | KI59: 0 | KJ59: 1336796 | KK59: 0 | KL59: 0 | KM59: 0 | KN59: 0 | KO59: 0 | KP59: 0 | KQ59: 0 | KR59: 0 | KS59: 0 | KT59: 949431 | KU59: 0 | KV59: 0 | KW59: 0 | KX59: 0 | KY59: 0 | KZ59: 0 | LA59: 0 | LB59: 0 | LC59: 0 | LD59: 0 | LE59: 0 | LF59: 0 | LG59: 0 | LH59: 0 | LI59: 0 | LJ59: 0 | LK59: 0 | LL59: 31115497
B60: 受取配当金 | C60: 出資配当 | BD60: 640 | LL60: 640
B61: 受取利息 | C61: 源泉所得税 | DT61: 463 | KA61: 20 | LL61: 483
B62: 受取利息 | C62: 普通預金利息 | DT62: 1865 | KA62: 80 | LL62: 1945
B63: 受取利息 | C63: 利息 | EK63: 5000 | KO63: 5000 | LL63: 10000
B64: 利息等収入 小計 | D64: 0 | E64: 0 | F64: 0 | G64: 0 | H64: 0 | I64: 0 | J64: 0 | K64: 0 | L64: 0 | M64: 0 | N64: 0 | O64: 0 | P64: 0 | Q64: 0 | R64: 0 | S64: 0 | T64: 0 | U64: 0 | V64: 0 | W64: 0 | X64: 0 | Y64: 0 | Z64: 0 | AA64: 0 | AB64: 0 | AC64: 0 | AD64: 0 | AE64: 0 | AF64: 0 | AG64: 0 | AH64: 0 | AI64: 0 | AJ64: 0 | AK64: 0 | AL64: 0 | AM64: 0 | AN64: 0 | AO64: 0 | AP64: 0 | AQ64: 0 | AR64: 0 | AS64: 0 | AT64: 0 | AU64: 0 | AV64: 0 | AW64: 0 | AX64: 0 | AY64: 0 | AZ64: 0 | BA64: 0 | BB64: 0 | BC64: 0 | BD64: 640 | BE64: 0 | BF64: 0 | BG64: 0 | BH64: 0 | BI64: 0 | BJ64: 0 | BK64: 0 | BL64: 0 | BM64: 0 | BN64: 0 | BO64: 0 | BP64: 0 | BQ64: 0 | BR64: 0 | BS64: 0 | BT64: 0 | BU64: 0 | BV64: 0 | BW64: 0 | BX64: 0 | BY64: 0 | BZ64: 0 | CA64: 0 | CB64: 0 | CC64: 0 | CD64: 0 | CE64: 0 | CF64: 0 | CG64: 0 | CH64: 0 | CI64: 0 | CJ64: 0 | CK64: 0 | CL64: 0 | CM64: 0 | CN64: 0 | CO64: 0 | CP64: 0 | CQ64: 0 | CR64: 0 | CS64: 0 | CT64: 0 | CU64: 0 | CV64: 0 | CW64: 0 | CX64: 0 | CY64: 0 | CZ64: 0 | DA64: 0 | DB64: 0 | DC64: 0 | DD64: 0 | DE64: 0 | DF64: 0 | DG64: 0 | DH64: 0 | DI64: 0 | DJ64: 0 | DK64: 0 | DL64: 0 | DM64: 0 | DN64: 0 | DO64: 0 | DP64: 0 | DQ64: 0 | DR64: 0 | DS64: 0 | DT64: 2328 | DU64: 0 | DV64: 0 | DW64: 0 | DX64: 0 | DY64: 0 | DZ64: 0 | EA64: 0 | EB64: 0 | EC64: 0 | ED64: 0 | EE64: 0 | EF64: 0 | EG64: 0 | EH64: 0 | EI64: 0 | EJ64: 0 | EK64: 5000 | EL64: 0 | EM64: 0 | EN64: 0 | EO64: 0 | EP64: 0 | EQ64: 0 | ER64: 0 | ES64: 0 | ET64: 0 | EU64: 0 | EV64: 0 | EW64: 0 | EX64: 0 | EY64: 0 | EZ64: 0 | FA64: 0 | FB64: 0 | FC64: 0 | FD64: 0 | FE64: 0 | FF64: 0 | FG64: 0 | FH64: 0 | FI64: 0 | FJ64: 0 | FK64: 0 | FL64: 0 | FM64: 0 | FN64: 0 | FO64: 0 | FP64: 0 | FQ64: 0 | FR64: 0 | FS64: 0 | FT64: 0 | FU64: 0 | FV64: 0 | FW64: 0 | FX64: 0 | FY64: 0 | FZ64: 0 | GA64: 0 | GB64: 0 | GC64: 0 | GD64: 0 | GE64: 0 | GF64: 0 | GG64: 0 | GH64: 0 | GI64: 0 | GJ64: 0 | GK64: 0 | GL64: 0 | GM64: 0 | GN64: 0 | GO64: 0 | GP64: 0 | GQ64: 0 | GR64: 0 | GS64: 0 | GT64: 0 | GU64: 0 | GV64: 0 | GW64: 0 | GX64: 0 | GY64: 0 | GZ64: 0 | HA64: 0 | HB64: 0 | HC64: 0 | HD64: 0 | HE64: 0 | HF64: 0 | HG64: 0 | HH64: 0 | HI64: 0 | HJ64: 0 | HK64: 0 | HL64: 0 | HM64: 0 | HN64: 0 | HO64: 0 | HP64: 0 | HQ64: 0 | HR64: 0 | HS64: 0 | HT64: 0 | HU64: 0 | HV64: 0 | HW64: 0 | HX64: 0 | HY64: 0 | HZ64: 0 | IA64: 0 | IB64: 0 | IC64: 0 | ID64: 0 | IE64: 0 | IF64: 0 | IG64: 0 | IH64: 0 | II64: 0 | IJ64: 0 | IK64: 0 | IL64: 0 | IM64: 0 | IN64: 0 | IO64: 0 | IP64: 0 | IQ64: 0 | IR64: 0 | IS64: 0 | IT64: 0 | IU64: 0 | IV64: 0 | IW64: 0 | IX64: 0 | IY64: 0 | IZ64: 0 | JA64: 0 | JB64: 0 | JC64: 0 | JD64: 0 | JE64: 0 | JF64: 0 | JG64: 0 | JH64: 0 | JI64: 0 | JJ64: 0 | JK64: 0 | JL64: 0 | JM64: 0 | JN64: 0 | JO64: 0 | JP64: 0 | JQ64: 0 | JR64: 0 | JS64: 0 | JT64: 0 | JU64: 0 | JV64: 0 | JW64: 0 | JX64: 0 | JY64: 0 | JZ64: 0 | KA64: 100 | KB64: 0 | KC64: 0 | KD64: 0 | KE64: 0 | KF64: 0 | KG64: 0 | KH64: 0 | KI64: 0 | KJ64: 0 | KK64: 0 | KL64: 0 | KM64: 0 | KN64: 0 | KO64: 5000 | KP64: 0 | KQ64: 0 | KR64: 0 | KS64: 0 | KT64: 0 | KU64: 0 | KV64: 0 | KW64: 0 | KX64: 0 | KY64: 0 | KZ64: 0 | LA64: 0 | LB64: 0 | LC64: 0 | LD64: 0 | LE64: 0 | LF64: 0 | LG64: 0 | LH64: 0 | LI64: 0 | LJ64: 0 | LK64: 0 | LL64: 13068
B65: 仮受消費税等 | C65: 消費税振替 | LK65: -30366605 | LL65: -30366605
B66: 仮払消費税等 | C66: 消費税振替 | LK66: 23379058 | LL66: 23379058
B67: 仮払消費税等 | C67: 東京税関 | AV67: -360000 | DZ67: -454700 | FC67: -129900 | FX67: -353500 | KC67: -171000 | LL67: -1469100
B68: 買掛金 | C68: 11/18決済予定支払手形（伝票No.3509）の取立てないため修正 | HA68: 2500000 | LL68: 2500000
B69: 未払消費税等 | C69: 確定消費税 | LK69: 4598700 | LL69: 4598700
B70: 預り金 | C70: //介護保険料 10月分 | GC70: 9050 | LL70: 9050
B71: 預り金 | C71: //介護保険料 11月分 | HE71: 9050 | LL71: 9050
B72: 預り金 | C72: //介護保険料 12月分 | IE72: 9050 | LL72: 9050
B73: 預り金 | C73: //介護保険料 1月分 | JE73: 9050 | LL73: 9050
B74: 預り金 | C74: //介護保険料 2月分 | KF74: 9050 | LL74: 9050
B75: 預り金 | C75: //介護保険料 3月分 | LD75: 9050 | LL75: 9050
B76: 預り金 | C76: //介護保険料 4月分 | W76: 9050 | LL76: 9050
B77: 預り金 | C77: //介護保険料 5月分 | AX77: 9050 | LL77: 9050
B78: 預り金 | C78: //介護保険料 6月分 | BZ78: 9050 | LL78: 9050
B79: 預り金 | C79: //介護保険料 7月分 | CX79: 9050 | LL79: 9050
B80: 預り金 | C80: //介護保険料 8月分 | DY80: 9050 | LL80: 9050
B81: 預り金 | C81: //介護保険料 9月分 | FC81: 9050 | LL81: 9050
B82: 預り金 | C82: //社会保険料 10月分 | GC82: 199567 | LL82: 199567
B83: 預り金 | C83: //社会保険料 11月分 | HE83: 199567 | LL83: 199567
B84: 預り金 | C84: //社会保険料 12月分 | IE84: 199567 | LL84: 199567
B85: 預り金 | C85: //社会保険料 1月分 | JE85: 199567 | LL85: 199567
B86: 預り金 | C86: //社会保険料 2月分 | KF86: 199567 | LL86: 199567
B87: 預り金 | C87: //社会保険料 3月分 | LD87: 199567 | LL87: 199567
B88: 預り金 | C88: //社会保険料 4月分 | W88: 199567 | LL88: 199567
B89: 預り金 | C89: //社会保険料 5月分 | AX89: 199567 | LL89: 199567
B90: 預り金 | C90: //社会保険料 6月分 | BZ90: 199567 | LL90: 199567
B91: 預り金 | C91: //社会保険料 7月分 | CX91: 199567 | LL91: 199567
B92: 預り金 | C92: //社会保険料 8月分 | DY92: 199567 | LL92: 199567
B93: 預り金 | C93: //社会保険料 9月分 | FC93: 199567 | LL93: 199567
B94: 預り金 | C94: //住民税 10月分 | GC94: 37100 | LL94: 37100
B95: 預り金 | C95: //住民税 11月分 | HE95: 37100 | LL95: 37100
B96: 預り金 | C96: //住民税 12月分 | IE96: 37100 | LL96: 37100
B97: 預り金 | C97: //住民税 1月分 | JE97: 37100 | LL97: 37100
B98: 預り金 | C98: //住民税 2月分 | KF98: 37100 | LL98: 37100
B99: 預り金 | C99: //住民税 3月分 | LD99: 37100 | LL99: 37100
B100: 預り金 | C100: //住民税 4月分 | W100: 37100 | LL100: 37100
B101: 預り金 | C101: //住民税 5月分 | AX101: 37100 | LL101: 37100
B102: 預り金 | C102: //住民税 6月分 | BZ102: 37100 | LL102: 37100
B103: 預り金 | C103: //住民税 7月分 | CX103: 37100 | LL103: 37100
B104: 預り金 | C104: //住民税 8月分 | DY104: 37100 | LL104: 37100
B105: 預り金 | C105: //住民税 9月分 | FC105: 37100 | LL105: 37100
B106: 預り金 | C106: ／顧問料源泉 | AB106: 5000 | LL106: 5000
B107: 預り金 | C107: 夏季賞与 | CL107: 373276 | LL107: 373276
B108: 預り金 | C108: 給与 10月分//源泉所得税 10月分 | GC108: 204860 | LL108: 204860
B109: 預り金 | C109: 給与 11月分//源泉所得税 11月分 | HE109: 204860 | LL109: 204860
B110: 預り金 | C110: 給与 12月分//源泉所得税 12月分 | IE110: 204860 | LL110: 204860
B111: 預り金 | C111: 給与 1月分//源泉所得税 1月分 | JE111: 204860 | LL111: 204860
B112: 預り金 | C112: 給与 2月分//源泉所得税 2月分 | KF112: 204860 | LL112: 204860
B113: 預り金 | C113: 給与 3月分//源泉所得税 3月分 | LD113: 204860 | LL113: 204860
B114: 預り金 | C114: 給与 4月分//源泉所得税 4月分 | W114: 204860 | LL114: 204860
B115: 預り金 | C115: 給与 5月分//源泉所得税 5月分 | AX115: 204860 | LL115: 204860
B116: 預り金 | C116: 給与 6月分//源泉所得税 6月分 | BZ116: 204860 | LL116: 204860
B117: 預り金 | C117: 給与 7月分//源泉所得税 7月分 | CX117: 204860 | LL117: 204860
B118: 預り金 | C118: 給与 8月分//源泉所得税 8月分 | DY118: 204860 | LL118: 204860
B119: 預り金 | C119: 給与 9月分//源泉所得税 9月分 | FC119: 204860 | LL119: 204860
B120: 預り金 | C120: 冬季賞与 | HS120: 516080 | LL120: 516080
B121: 預り金 | C121: (空白) | BA121: 5000 | CD121: 5000 | CL121: 33760 | DD121: 5000 | ED121: 5000 | FH121: 5000 | GI121: 5000 | HH121: 5000 | HS121: 30145 | II121: 5000 | JJ121: 5000 | KJ121: 5000 | LH121: 5000 | LL121: 118905
B122: 立替金 | C122: 弥生幸子 10月分//雇用保険 10月分 | GC122: 9877 | LL122: 9877
B123: 立替金 | C123: 弥生幸子 11月分//雇用保険 11月分 | HE123: 9877 | LL123: 9877
B124: 立替金 | C124: 弥生幸子 12月分//雇用保険 12月分 | IE124: 9877 | LL124: 9877
B125: 立替金 | C125: 弥生幸子 1月分//雇用保険 1月分 | JE125: 9877 | LL125: 9877
... 156 more rows

Sheet 補助科目別PL
B1: =基本情報!B9 -> 株式会社弥生トレーディング | P1: =IF(基本情報!B31="","",基本情報!B31) -> 小林敬幸税理士事務所
B3: 補助科目別損益計算書
D5: =MONTH(D6)&"月" -> 4月 | E5: =MONTH(E6)&"月" -> 5月 | F5: 6月 | G5: 7月 | H5: 8月 | I5: 9月 | J5: 10月 | K5: 11月 | L5: 12月 | M5: 1月 | N5: 2月 | O5: 3月
D6: =月別資金繰り表!C6 -> 2016-04-01 | E6: =月別資金繰り表!D6 -> 2016-05-31 | F6: =月別資金繰り表!E6 -> 2016-06-30 | G6: =月別資金繰り表!F6 -> 2016-07-31 | H6: =月別資金繰り表!G6 -> 2016-08-31 | I6: =月別資金繰り表!H6 -> 2016-09-30 | J6: =月別資金繰り表!I6 -> 2016-10-31 | K6: =月別資金繰り表!J6 -> 2016-11-30 | L6: =月別資金繰り表!K6 -> 2016-12-31 | M6: =月別資金繰り表!L6 -> 2017-01-31 | N6: =月別資金繰り表!M6 -> 2017-02-28 | O6: =月別資金繰り表!N6 -> 2017-03-31 | P6: =月別資金繰り表!O6 -> 合計
B8: 売上高 | C8: (空白) | D8: 22358301 | E8: 27824433 | F8: 23009312 | G8: 24430937 | H8: 25340101 | I8: 28682224 | J8: 27696047 | K8: 18513042 | L8: 25265320 | M8: 31165851 | N8: 14861459 | O8: 13967303 | P8: 283114330
B9: [売上高] 小計 | D9: 22358301 | E9: 27824433 | F9: 23009312 | G9: 24430937 | H9: 25340101 | I9: 28682224 | J9: 27696047 | K9: 18513042 | L9: 25265320 | M9: 31165851 | N9: 14861459 | O9: 13967303 | P9: 283114330
B10: 期首商品棚卸高 | C10: (空白) | O10: 24500000 | P10: 24500000
B11: 仕入高 | C11: 輸入仕入 | E11: 4500000 | H11: 5685200 | I11: 1624500 | J11: 4420000 | N11: 3420000 | P11: 19649700
B12: 仕入高 | C12: (空白) | D12: 15409942 | E12: 13324623 | F12: 15536594 | G12: 18067133 | H12: 9594356 | I12: 10604136 | J12: 10305271 | K12: 8283875 | L12: 13443111 | M12: 17884317 | N12: 12646496 | O12: 9041692 | P12: 154141546
B13: 仕入割戻し高 | C13: (空白) | N13: -55556 | P13: -55556
B14: 仕入戻し高 | C14: (空白) | N14: -138890 | P14: -138890
B15: 期末商品棚卸高 | C15: (空白) | O15: -24500000 | P15: -24500000
B16: [製]期首材料棚卸高 | C16: (空白) | O16: 456600 | P16: 456600
B17: [製]期首仕掛品 | C17: (空白) | O17: 240000 | P17: 240000
B18: [製]期首半製品 | C18: (空白) | O18: 2731000 | P18: 2731000
B19: [製]材料仕入高 | C19: (空白) | D19: 1474075 | E19: 2143519 | F19: 1767594 | G19: 3134538 | H19: 2125001 | I19: 5635649 | J19: 2954630 | K19: 3970371 | L19: 262964 | M19: 284723 | N19: 270371 | O19: 290742 | P19: 24314177
B20: [製]給料手当 | C20: (空白) | D20: 267600 | E20: 267600 | F20: 267600 | G20: 267600 | H20: 267600 | I20: 267600 | J20: 267600 | K20: 267600 | L20: 267600 | M20: 267600 | N20: 267600 | O20: 267600 | P20: 3211200
B21: [製]賞与 | C21: (空白) | G21: 650000 | L21: 700000 | P21: 1350000
B22: [製]福利厚生費 | C22: (空白) | E22: 2474 | F22: 1521 | G22: 15595 | I22: 741 | L22: 10873 | N22: 6318 | O22: 5394 | P22: 42916
B23: [製]外注加工費 | C23: (空白) | D23: 166667 | E23: 171297 | F23: 157408 | G23: 164815 | H23: 175926 | I23: 820371 | J23: 1111112 | K23: 1106482 | L23: 183334 | M23: 171297 | N23: 184723 | O23: 183334 | P23: 4596766
B24: [製]旅費交通費 | C24: (空白) | D24: 7223 | E24: 7223 | F24: 7223 | G24: 7223 | H24: 7223 | I24: 7223 | J24: 7223 | K24: 7223 | L24: 7223 | M24: 7223 | N24: 7223 | O24: 7223 | P24: 86676
B25: [製]通信費 | C25: (空白) | D25: 33429 | E25: 21775 | F25: 30544 | G25: 40943 | H25: 31664 | I25: 30544 | J25: 41942 | K25: 32063 | L25: 2935 | M25: 5819 | N25: 4893 | O25: 5563 | P25: 282114
B26: [製]消耗品費 | C26: (空白) | D26: 31391 | E26: 43918 | F26: 10181 | G26: 47177 | H26: 11367 | I26: 10232 | J26: 42045 | K26: 7454 | L26: 2770 | M26: 35048 | N26: 2085 | O26: 973 | P26: 244641
B27: [製]消耗工具費 | C27: (空白) | F27: 30093 | I27: 14075 | P27: 44168
B28: [製]修繕費 | C28: (空白) | D28: 50926 | F28: 27778 | K28: 27778 | P28: 106482
B29: [製]水道光熱費 | C29: (空白) | D29: 32408 | E29: 42130 | F29: 55186 | G29: 24075 | H29: 57409 | I29: 24630 | J29: 54815 | K29: 24047 | L29: 336668 | M29: 108241 | N29: 149028 | O29: 157408 | P29: 1066045
B30: [製]地代家賃 | C30: (空白) | D30: 106482 | E30: 106482 | F30: 106482 | G30: 106482 | H30: 106482 | I30: 106482 | J30: 106482 | K30: 106482 | L30: 106482 | N30: 212964 | O30: 106482 | P30: 1277784
B31: [製]賃借料 | C31: (空白) | D31: 41320 | E31: 41320 | F31: 41320 | G31: 41320 | H31: 41320 | I31: 41320 | J31: 41320 | K31: 41320 | L31: 41320 | M31: 41320 | N31: 41320 | O31: 41320 | P31: 495840
B32: [製]減価償却費 | C32: (空白) | O32: 284399 | P32: 284399
B33: [製]期末材料棚卸高 | C33: (空白) | O33: -456600 | P33: -456600
B34: [製]期末仕掛品 | C34: (空白) | O34: -240000 | P34: -240000
B35: [製]期末半製品 | C35: (空白) | O35: -2731000 | P35: -2731000
B36: [売上原価] 小計 | D36: 17621463 | E36: 20672361 | F36: 18039524 | G36: 22566901 | H36: 18103548 | I36: 19187503 | J36: 19352440 | K36: 13874695 | L36: 15365280 | M36: 18805588 | N36: 17018575 | O36: 10392130 | P36: 211000008
B37: 【売上総損益額】 | D37: 4736838 | E37: 7152072 | F37: 4969788 | G37: 1864036 | H37: 7236553 | I37: 9494721 | J37: 8343607 | K37: 4638347 | L37: 9900040 | M37: 12360263 | N37: -2157116 | O37: 3575173 | P37: 72114322
B38: 役員報酬 | C38: (空白) | D38: 800000 | E38: 800000 | F38: 800000 | G38: 800000 | H38: 800000 | I38: 800000 | J38: 800000 | K38: 800000 | L38: 800000 | M38: 800000 | N38: 800000 | O38: 800000 | P38: 9600000
B39: 給料手当 | C39: (空白) | D39: 1010800 | E39: 1078800 | F39: 1076600 | G39: 1076600 | H39: 1067100 | I39: 1056600 | J39: 1082000 | K39: 1086400 | L39: 1079300 | M39: 1089300 | N39: 1064000 | O39: 1096000 | P39: 12863500
B40: 賞与 | C40: (空白) | G40: 3245000 | L40: 4210000 | P40: 7455000
B41: 法定福利費 | C41: (空白) | E41: 430864 | F41: 215432 | G41: 215432 | H41: 243512 | I41: 243512 | J41: 243512 | K41: 243512 | L41: 243512 | M41: 285592 | N41: 243512 | O41: 243512 | P41: 2851904
B42: 福利厚生費 | C42: (空白) | D42: 3889 | E42: 2297 | F42: 10475 | H42: 111046 | I42: 5144 | J42: 7652 | K42: 1779 | L42: 42408 | M42: 100372 | O42: 4858 | P42: 289920
B43: [人件費] 小計 | D43: 1814689 | E43: 2311961 | F43: 2102507 | G43: 5337032 | H43: 2221658 | I43: 2105256 | J43: 2133164 | K43: 2131691 | L43: 6375220 | M43: 2275264 | N43: 2107512 | O43: 2144370 | P43: 33060324
B44: 採用教育費 | C44: (空白) | N44: 777778 | P44: 777778
B45: 荷造運賃 | C45: (空白) | D45: 331482 | E45: 329630 | F45: 360649 | G45: 371297 | H45: 389815 | I45: 482871 | J45: 584075 | K45: 248982 | L45: 331482 | M45: 350000 | N45: 368982 | O45: 338149 | P45: 4487414
B46: 広告宣伝費 | C46: (空白) | F46: 1295371 | J46: 2777778 | M46: 437500 | O46: 388889 | P46: 4899538
B47: 交際費 | C47: (空白) | D47: 70630 | E47: 92593 | F47: 85556 | G47: 44445 | H47: 50926 | J47: 153612 | K47: 252778 | L47: 43889 | M47: 99538 | N47: 40464 | O47: 192500 | P47: 1126931
B48: 旅費交通費 | C48: (空白) | D48: 122631 | E48: 128577 | F48: 128039 | G48: 128577 | H48: 287114 | I48: 129114 | J48: 130577 | K48: 129114 | L48: 128039 | M48: 129114 | N48: 129114 | O48: 128039 | P48: 1698049
B49: 通信費 | C49: 国際電話 | D49: 5630 | F49: 63250 | H49: 5230 | I49: 4250 | J49: 3250 | L49: 12158 | M49: 6897 | N49: 12350 | O49: 2513 | P49: 115528
B50: 通信費 | C50: (空白) | D50: 33815 | E50: 147721 | F50: 106377 | G50: 123206 | H50: 40047 | I50: 144760 | J50: 96566 | K50: 81965 | L50: 140990 | M50: 127329 | N50: 110910 | O50: 156435 | P50: 1310121
B51: 消耗品費 | C51: (空白) | D51: 43334 | F51: 73574 | G51: 8348 | I51: 4169 | J51: 7778 | K51: 7034 | L51: 45198 | M51: 1042 | N51: 2074 | P51: 192551
B52: 事務用品費 | C52: (空白) | D52: 6158 | F52: 9723 | G52: 11204 | H52: 13903 | I52: 1945 | J52: 9525 | L52: 29167 | M52: 2963 | N52: 35556 | O52: 6973 | P52: 127117
B53: 修繕費 | C53: (空白) | D53: 78704 | G53: 47223 | K53: 49075 | L53: 13889 | N53: 19950 | P53: 208841
B54: 水道光熱費 | C54: (空白) | D54: 71341 | E54: 79469 | F54: 118008 | G54: 75448 | H54: 139452 | I54: 76344 | J54: 131699 | K54: 93980 | L54: 142875 | M54: 80186 | N54: 70617 | O54: 71860 | P54: 1151279
B55: 支払手数料 | C55: (空白) | D55: 2000 | E55: 2500 | F55: 2000 | G55: 2000 | H55: 2000 | I55: 2000 | J55: 2800 | K55: 8100 | L55: 17523 | M55: 6600 | N55: 6700 | O55: 3400 | P55: 57623
B56: 車両費 | C56: ガソリン | D56: 81438 | E56: 82927 | F56: 85660 | G56: 73937 | H56: 82927 | I56: 94919 | J56: 82929 | K56: 91262 | L56: 90400 | M56: 82927 | N56: 91226 | O56: 83013 | P56: 1023565
B57: 車両費 | C57: その他 | E57: 2047 | H57: 153612 | I57: 1306 | J57: 7593 | K57: 2417 | L57: 6677 | O57: 1121 | P57: 174773
B58: 地代家賃 | C58: ABビル | D58: 455557 | E58: 455557 | F58: 455557 | G58: 455557 | H58: 455557 | I58: 455557 | J58: 455557 | K58: 455557 | L58: 233334 | M58: 233334 | N58: 222223 | O58: 233334 | P58: 4566681
B59: 地代家賃 | C59: 山田さん | D59: 175000 | E59: 175000 | F59: 175000 | H59: 350000 | I59: 175000 | J59: 175000 | K59: 175000 | L59: 175000 | M59: 175000 | N59: 175000 | O59: 175000 | P59: 2100000
B60: 地代家賃 | C60: 駐車場 | D60: 5556 | E60: 5556 | F60: 5556 | G60: 5556 | H60: 5556 | I60: 5556 | J60: 5556 | K60: 5556 | L60: 19445 | M60: 19445 | N60: 19445 | O60: 19445 | P60: 122228
B61: リース料 | C61: (空白) | D61: 16251 | E61: 16251 | F61: 16251 | G61: 16251 | H61: 16251 | I61: 16251 | J61: 16251 | K61: 16251 | L61: 16251 | M61: 16251 | N61: 16251 | O61: 16251 | P61: 195012
B62: 保険料 | C62: 損害保険 | D62: 92000 | E62: 92000 | F62: 92000 | G62: 92000 | H62: 92000 | I62: 92000 | J62: 92000 | K62: 92000 | L62: 322000 | M62: 97258 | N62: 69000 | O62: 69000 | P62: 1293258
B63: 租税公課 | C63: (空白) | D63: 135400 | E63: 25000 | F63: 5000 | G63: 5000 | I63: 8000 | M63: 40000 | N63: 0 | P63: 218400
B64: 支払報酬料 | C64: (空白) | D64: 46297 | E64: 46297 | F64: 46297 | G64: 46297 | H64: 46297 | I64: 46297 | J64: 46297 | K64: 46297 | L64: 46297 | M64: 46297 | N64: 46297 | O64: 46297 | P64: 555564
B65: 雑費 | C65: (空白) | I65: 38889 | P65: 38889
B66: 貸倒引当金繰入額(販) | C66: (空白) | O66: 483474 | P66: 483474
B67: 減価償却費 | C67: (空白) | O67: 449642 | P67: 449642
B68: [販売管理費] 小計 | D68: 1773224 | E68: 1681125 | F68: 3123868 | G68: 1506346 | H68: 2130687 | I68: 1779228 | J68: 4778843 | K68: 1755368 | L68: 1814614 | M68: 1951681 | N68: 2213937 | O68: 2865335 | P68: 27374256
B69: 【営業損益額】 | D69: 2963614 | E69: 5470947 | F69: 1845920 | G69: 357690 | H69: 5105866 | I69: 7715493 | J69: 3564764 | K69: 2882979 | L69: 8085426 | M69: 10408582 | N69: -4371053 | O69: 709838 | P69: 44740066
B70: 受取利息 | C70: (空白) | D70: 0 | E70: 0 | F70: 0 | G70: 0 | H70: 1865 | I70: 5000 | J70: 0 | K70: 0 | L70: 0 | M70: 0 | N70: 80 | O70: 5000 | P70: 11945
B71: 受取配当金 | C71: (空白) | D71: 0 | E71: 640 | F71: 0 | G71: 0 | H71: 0 | I71: 0 | J71: 0 | K71: 0 | L71: 0 | M71: 0 | N71: 0 | O71: 0 | P71: 640
B72: [営業外収益] 小計 | D72: 0 | E72: 640 | F72: 0 | G72: 0 | H72: 1865 | I72: 5000 | J72: 0 | K72: 0 | L72: 0 | M72: 0 | N72: 80 | O72: 5000 | P72: 12585
B73: 支払利息 | C73: (空白) | D73: 20507 | E73: 19072 | F73: 17637 | G73: 16201 | H73: 14762 | I73: 13324 | J73: 11885 | K73: 10444 | L73: 9003 | M73: 19149 | N73: 17866 | O73: 16421 | P73: 186271
B74: 雑損失 | C74: (空白) | O74: -2211896 | P74: -2211896
B75: [営業外費用] 小計 | D75: 20507 | E75: 19072 | F75: 17637 | G75: 16201 | H75: 14762 | I75: 13324 | J75: 11885 | K75: 10444 | L75: 9003 | M75: 19149 | N75: 17866 | O75: -2195475 | P75: -2025625
B76: 【経常損益額】 | D76: 2943107 | E76: 5452515 | F76: 1828283 | G76: 341489 | H76: 5092969 | I76: 7707169 | J76: 3552879 | K76: 2872535 | L76: 8076423 | M76: 10389433 | N76: -4388839 | O76: 2910313 | P76: 46778276
B77: 貸倒引当金戻入額 | C77: (空白) | D77: 0 | E77: 0 | F77: 0 | G77: 0 | H77: 0 | I77: 0 | J77: 0 | K77: 0 | L77: 0 | M77: 0 | N77: 0 | O77: 424086 | P77: 424086
B78: [特別利益] 小計 | D78: 0 | E78: 0 | F78: 0 | G78: 0 | H78: 0 | I78: 0 | J78: 0 | K78: 0 | L78: 0 | M78: 0 | N78: 0 | O78: 424086 | P78: 424086
B79: 【税引前当期純損益額】 | D79: 2943107 | E79: 5452515 | F79: 1828283 | G79: 341489 | H79: 5092969 | I79: 7707169 | J79: 3552879 | K79: 2872535 | L79: 8076423 | M79: 10389433 | N79: -4388839 | O79: 3758485 | P79: 47626448
B80: 法人税、住民税及び事業税 | C80: (空白) | H80: 115 | I80: 1000 | K80: 2650000 | N80: 5 | O80: 1615500 | P80: 4266620
B81: [当期純損益] 小計 | D81: 0 | E81: 0 | F81: 0 | G81: 0 | H81: 115 | I81: 1000 | J81: 0 | K81: 2650000 | L81: 0 | M81: 0 | N81: 5 | O81: 1615500 | P81: 4266620
B82: 【税引後当期純損益額】 | D82: 2943107 | E82: 5452515 | F82: 1828283 | G82: 341489 | H82: 5092854 | I82: 7706169 | J82: 3552879 | K82: 222535 | L82: 8076423 | M82: 10389433 | N82: -4388844 | O82: 2142985 | P82: 43359828

Sheet 摘要別PL
B1: =基本情報!B9 -> 株式会社弥生トレーディング | P1: =IF(基本情報!B31="","",基本情報!B31) -> 小林敬幸税理士事務所
B3: 摘要別損益計算書
D5: =MONTH(D6)&"月" -> 4月 | E5: =MONTH(E6)&"月" -> 5月 | F5: 6月 | G5: 7月 | H5: 8月 | I5: 9月 | J5: 10月 | K5: 11月 | L5: 12月 | M5: 1月 | N5: 2月 | O5: 3月
D6: =月別資金繰り表!C6 -> 2016-04-01 | E6: =月別資金繰り表!D6 -> 2016-05-31 | F6: =月別資金繰り表!E6 -> 2016-06-30 | G6: =月別資金繰り表!F6 -> 2016-07-31 | H6: =月別資金繰り表!G6 -> 2016-08-31 | I6: =月別資金繰り表!H6 -> 2016-09-30 | J6: =月別資金繰り表!I6 -> 2016-10-31 | K6: =月別資金繰り表!J6 -> 2016-11-30 | L6: =月別資金繰り表!K6 -> 2016-12-31 | M6: =月別資金繰り表!L6 -> 2017-01-31 | N6: =月別資金繰り表!M6 -> 2017-02-28 | O6: =月別資金繰り表!N6 -> 2017-03-31 | P6: =月別資金繰り表!O6 -> 合計
B8: 売上高 | C8: 11月分 | D8: 0 | E8: 0 | F8: 0 | G8: 0 | H8: 0 | I8: 0 | J8: 0 | K8: 0 | L8: 0 | M8: 0 | N8: 1719301 | O8: 0 | P8: 1719301
B9: 売上高 | C9: Ａ001 | D9: 0 | E9: 0 | F9: 0 | G9: 0 | H9: 0 | I9: 0 | J9: 0 | K9: 0 | L9: 72600 | M9: 0 | N9: 0 | O9: 0 | P9: 72600
B10: 売上高 | C10: A002厚木産業 | D10: 1450926 | E10: 897779 | F10: 1374815 | G10: 692594 | H10: 1680743 | I10: 1185187 | J10: 1165926 | K10: 718520 | L10: 357040 | M10: 4245563 | N10: 0 | O10: 1450926 | P10: 15220019
B11: 売上高 | C11: AT011 | D11: 0 | E11: 0 | F11: 0 | G11: 0 | H11: 0 | I11: 0 | J11: 0 | K11: 0 | L11: 659264 | M11: 0 | N11: 0 | O11: 0 | P11: 659264
B12: 売上高 | C12: B001文京食器店 | D12: 1406261 | E12: 723593 | F12: 491297 | G12: 878631 | H12: 734028 | I12: 1324538 | J12: 579964 | K12: 398612 | L12: 1102829 | M12: 1559785 | N12: 0 | O12: 1324538 | P12: 10524076
B13: 売上高 | C13: C001中央産業 | D13: 638172 | E13: 406946 | F13: 459352 | G13: 171875 | H13: 295001 | I13: 366667 | J13: 175209 | K13: 366667 | L13: 484728 | M13: 175209 | N13: 0 | O13: 459352 | P13: 3999178
B14: 売上高 | C14: C002中央産業仙台 | D14: 39667 | E14: 384353 | F14: 484815 | G14: 103705 | H14: 119455 | I14: 171112 | J14: 39667 | K14: 171112 | L14: 214803 | M14: 147260 | N14: 0 | O14: 0 | P14: 1875949
B15: 売上高 | C15: C003中央産業大阪 | D15: 2030558 | E15: 2325742 | F15: 3055556 | G15: 2611114 | H15: 925926 | I15: 2606483 | J15: 613890 | K15: 0 | L15: 2666669 | M15: 1124172 | N15: 2206484 | O15: 0 | P15: 20166594
B16: 売上高 | C16: E001エヌ商会 | D16: 1525926 | E16: 1388889 | F16: 1597224 | G16: 1814817 | H16: 0 | I16: 1970371 | J16: 1525926 | K16: 1970371 | L16: 0 | M16: 1525926 | N16: 0 | O16: 0 | P16: 13319450
B17: 売上高 | C17: F001ﾌｧﾐﾘｰｽﾄｱふいた | D17: 912038 | E17: 1973242 | F17: 1679446 | G17: 1512270 | H17: 1064584 | I17: 1221992 | J17: 912038 | K17: 0 | L17: 1512270 | M17: 2583913 | N17: 0 | O17: 0 | P17: 13371793
B18: 売上高 | C18: F002福山商店 | D18: 55334 | E18: 101292 | F18: 227482 | G18: 201738 | H18: 90532 | I18: 229019 | J18: 55334 | K18: 209806 | L18: 201738 | M18: 55334 | N18: 0 | O18: 0 | P18: 1427609
B19: 売上高 | C19: G001御殿場リビング | D19: 332090 | E19: 490668 | F19: 504889 | G19: 116149 | H19: 14260 | I19: 173631 | J19: 332090 | K19: 141631 | L19: 732149 | M19: 332090 | N19: 0 | O19: 407408 | P19: 3577055
B20: 売上高 | C20: H001ハマ屋 | D20: 225000 | E20: 317362 | F20: 424445 | G20: 139028 | H20: 202778 | I20: 219445 | J20: 496529 | K20: 431251 | L20: 204168 | M20: 365487 | N20: 0 | O20: 0 | P20: 3025493
B21: 売上高 | C21: H002彦商会 | D21: 195482 | E21: 334028 | F21: 97500 | G21: 113149 | H21: 81250 | I21: 202223 | J21: 396501 | K21: 334391 | L21: 190186 | M21: 400112 | N21: 0 | O21: 0 | P21: 2344822
B22: 売上高 | C22: I001池袋リビング | D22: 147778 | E22: 220371 | F22: 153288 | G22: 141667 | H22: 77778 | I22: 228473 | J22: 350001 | K22: 333797 | L22: 128821 | M22: 340927 | N22: 0 | O22: 0 | P22: 2122901
B23: 売上高 | C23: I002市川ストア | D23: 140973 | E23: 155556 | F23: 516667 | G23: 175348 | H23: 156250 | I23: 90278 | J23: 213196 | K23: 162778 | L23: 76389 | M23: 289029 | N23: 0 | O23: 270371 | P23: 2246835
B24: 売上高 | C24: K001海北商店 | D24: 173705 | E24: 78297 | F24: 108889 | G24: 193926 | H24: 114075 | I24: 101500 | J24: 790743 | K24: 326691 | L24: 250834 | M24: 367631 | N24: 0 | O24: 0 | P24: 2506291
B25: 売上高 | C25: K002川崎ﾎｰﾑｼｮｯﾌﾟ | D25: 286500 | E25: 393334 | F25: 335834 | G25: 143334 | H25: 147334 | I25: 122502 | J25: 369518 | K25: 523927 | L25: 258542 | M25: 309167 | N25: 0 | O25: 341112 | P25: 3231104
B26: 売上高 | C26: K003九州物産 | D26: 370371 | E26: 213334 | F26: 199075 | G26: 114075 | H26: 51852 | I26: 125927 | J26: 543913 | K26: 255094 | L26: 111112 | M26: 514816 | N26: 0 | O26: 0 | P26: 2499569
B27: 売上高 | C27: L001ＬＳリビング大 | D27: 0 | E27: 0 | F27: 0 | G27: 0 | H27: 0 | I27: 0 | J27: 0 | K27: 0 | L27: 200000 | M27: 293251 | N27: 0 | O27: 0 | P27: 493251
B28: 売上高 | C28: L001ＬＳリビング大分 | D28: 86667 | E28: 116667 | F28: 100000 | G28: 43334 | H28: 100000 | I28: 52500 | J28: 383701 | K28: 358644 | L28: 0 | M28: 0 | N28: 0 | O28: 0 | P28: 1241513
B29: 売上高 | C29: L002ＬＳリビング福 | D29: 0 | E29: 0 | F29: 0 | G29: 0 | H29: 0 | I29: 0 | J29: 0 | K29: 0 | L29: 287849 | M29: 290000 | N29: 0 | O29: 0 | P29: 577849
B30: 売上高 | C30: L002ＬＳリビング福岡 | D30: 95649 | E30: 445834 | F30: 300000 | G30: 93750 | H30: 81167 | I30: 188334 | J30: 313149 | K30: 396668 | L30: 0 | M30: 0 | N30: 0 | O30: 0 | P30: 1914551
B31: 売上高 | C31: L003愛知マート | D31: 812038 | E31: 1717075 | F31: 1114816 | G31: 1192594 | H31: 1785165 | I31: 2112548 | J31: 1666667 | K31: 1371807 | L31: 1250750 | M31: 2139550 | N31: 0 | O31: 1727317 | P31: 16890327
B32: 売上高 | C32: M001三島商会 | D32: 117963 | E32: 200279 | F32: 184075 | G32: 198334 | H32: 140001 | I32: 90741 | J32: 318890 | K32: 237223 | L32: 622223 | M32: 272223 | N32: 0 | O32: 0 | P32: 2381952
B33: 売上高 | C33: M002有限会社ミナミ | D33: 757039 | E33: 1057133 | F33: 741161 | G33: 482873 | H33: 403149 | I33: 589819 | J33: 1894540 | K33: 606994 | L33: 722040 | M33: 1597321 | N33: 0 | O33: 0 | P33: 8852069
B34: 売上高 | C34: N001長島商事 | D34: 1851852 | E34: 0 | F34: 388891 | G34: 227039 | H34: 292595 | I34: 315927 | J34: 732595 | K34: 667235 | L34: 816299 | M34: 729633 | N34: 0 | O34: 0 | P34: 6022066
B35: 売上高 | C35: N002中野産業 | D35: 0 | E35: 145834 | F35: 185000 | G35: 140000 | H35: 150417 | I35: 230002 | J35: 126667 | K35: 425003 | L35: 294686 | M35: 130001 | N35: 0 | O35: 0 | P35: 1827610
B36: 売上高 | C36: N010 | D36: 0 | E36: 0 | F36: 0 | G36: 0 | H36: 0 | I36: 0 | J36: 0 | K36: 0 | L36: 725928 | M36: 0 | N36: 0 | O36: 0 | P36: 725928
B37: 売上高 | C37: N011 | D37: 0 | E37: 0 | F37: 0 | G37: 0 | H37: 0 | I37: 0 | J37: 0 | K37: 0 | L37: 911112 | M37: 0 | N37: 0 | O37: 0 | P37: 911112
B38: 売上高 | C38: O001大津商会 | D38: 128127 | E38: 215000 | F38: 208335 | G38: 198584 | H38: 0 | I38: 135834 | J38: 281794 | K38: 339168 | L38: 180002 | M38: 352127 | N38: 0 | O38: 0 | P38: 2038971
B39: 売上高 | C39: O002大阪食器 | D39: 170334 | E39: 113334 | F39: 222667 | G39: 166667 | H39: 52500 | I39: 86000 | J39: 358001 | K39: 204400 | L39: 124000 | M39: 416334 | N39: 0 | O39: 0 | P39: 1914237
B40: 売上高 | C40: O003オリエント商会 | D40: 0 | E40: 0 | F40: 29630 | G40: 0 | H40: 51853 | I40: 62964 | J40: 29630 | K40: 99705 | L40: 31112 | M40: 20741 | N40: 0 | O40: 0 | P40: 325635
B41: 売上高 | C41: P001プラザ調布 | D41: 124446 | E41: 145834 | F41: 135418 | G41: 229167 | H41: 183334 | I41: 107640 | J41: 207780 | K41: 145834 | L41: 32570 | M41: 138335 | N41: 0 | O41: 0 | P41: 1450358
B42: 売上高 | C42: R001ﾘﾋﾞﾝｸﾞｼｮｯﾌﾟ佐 | D42: 91251 | E42: 0 | F42: 0 | G42: 0 | H42: 0 | I42: 35556 | J42: 234363 | K42: 47408 | L42: 65186 | M42: 91251 | N42: 0 | O42: 0 | P42: 565015
B43: 売上高 | C43: S001品川屋 | D43: 78520 | E43: 40445 | F43: 15112 | G43: 0 | H43: 0 | I43: 35557 | J43: 100743 | K43: 64447 | L43: 11112 | M43: 109632 | N43: 0 | O43: 0 | P43: 455568
B44: 売上高 | C44: W001ﾜｰｸｼｮｯﾌﾟ鈴鹿 | D44: 0 | E44: 0 | F44: 0 | G44: 0 | H44: 14167 | I44: 13057 | J44: 8334 | K44: 20835 | L44: 37917 | M44: 5000 | N44: 0 | O44: 0 | P44: 99310
B45: 売上高 | C45: Y001山口商事 | D45: 11112 | E45: 10927 | F45: 0 | G45: 4741 | H45: 0 | I45: 0 | J45: 92965 | K45: 12445 | L45: 16667 | M45: 23557 | N45: 0 | O45: 0 | P45: 172414
B46: 売上高 | C46: ペルシャ絨毯 | D46: 0 | E46: 4888889 | F46: 0 | G46: 0 | H46: 0 | I46: 0 | J46: 0 | K46: 0 | L46: 0 | M46: 0 | N46: 0 | O46: 0 | P46: 4888889
B47: 売上高 | C47: 愛知マート | D47: 0 | E47: 0 | F47: 0 | G47: 1462963 | H47: 0 | I47: 0 | J47: 0 | K47: 0 | L47: 0 | M47: 0 | N47: 0 | O47: 0 | P47: 1462963
B48: 売上高 | C48: 銀食器 | D48: 0 | E48: 0 | F48: 0 | G48: 0 | H48: 6018519 | I48: 0 | J48: 0 | K48: 0 | L48: 0 | M48: 0 | N48: 0 | O48: 0 | P48: 6018519
B49: 売上高 | C49: 景徳鎮 陶器 | D49: 0 | E49: 0 | F49: 0 | G49: 0 | H49: 0 | I49: 0 | J49: 5111112 | K49: 0 | L49: 0 | M49: 0 | N49: 0 | O49: 0 | P49: 5111112
B50: 売上高 | C50: 装飾品 | D50: 0 | E50: 0 | F50: 0 | G50: 0 | H50: 0 | I50: 5694445 | J50: 0 | K50: 0 | L50: 0 | M50: 0 | N50: 0 | O50: 0 | P50: 5694445
B51: 売上高 | C51: 彫刻 | D51: 0 | E51: 0 | F51: 0 | G51: 0 | H51: 0 | I51: 0 | J51: 0 | K51: 0 | L51: 0 | M51: 0 | N51: 3796297 | O51: 0 | P51: 3796297
B52: 売上高 | C52: 売掛金請求 | D52: 5368596 | E52: 5441649 | F52: 4319994 | G52: 5953900 | H52: 6956015 | I52: 5221156 | J52: 4198969 | K52: 1910680 | L52: 6413200 | M52: 7514414 | N52: 4330008 | O52: 4361283 | P52: 61989864
B53: 売上高 | C53: 本日売上 | D53: 2733926 | E53: 2880747 | F53: 3353639 | G53: 3102274 | H53: 3355373 | I53: 3370796 | J53: 3075702 | K53: 3155207 | L53: 3298525 | M53: 2706060 | N53: 2809369 | O53: 3079255 | P53: 36920873
B54: 売上高 | C54: (空白) | D54: 0 | E54: 0 | F54: 0 | G54: 1811297 | H54: 0 | I54: 0 | J54: 0 | K54: 2104691 | L54: 0 | M54: 0 | N54: 0 | O54: 545741 | P54: 4461729
B55: [売上高] 小計 | D55: 22358301 | E55: 27824433 | F55: 23009312 | G55: 24430937 | H55: 25340101 | I55: 28682224 | J55: 27696047 | K55: 18513042 | L55: 25265320 | M55: 31165851 | N55: 14861459 | O55: 13967303 | P55: 283114330
B56: 期首商品棚卸高 | C56: 期首分振替 | O56: 24500000 | P56: 24500000
B57: 仕入高 | C57: A200アンデス | D57: 5053030 | E57: 2401398 | F57: 4034729 | G57: 1620835 | H57: 1894101 | I57: 1756022 | J57: 4105433 | K57: 124447 | L57: 894172 | M57: 3237377 | N57: 3303026 | O57: 406019 | P57: 28830589
B58: 仕入高 | C58: A201アトラス | D58: 2166493 | E58: 1513892 | F58: 1931255 | G58: 1150929 | H58: 377317 | I58: 287964 | J58: 261578 | K58: 570372 | L58: 1862970 | M58: 862967 | O58: 1055556 | P58: 12041293
B59: 仕入高 | C59: F201有限会社富士 | D59: 986302 | E59: 929169 | F59: 358797 | G59: 1004862 | H59: 609261 | I59: 203704 | J59: 796309 | K59: 224816 | L59: 1237967 | M59: 2161173 | P59: 8512360
B60: 仕入高 | C60: H001橋本商会 | D60: 322232 | E60: 1254635 | F60: 1083336 | G60: 331391 | H60: 119909 | I60: 138889 | J60: 130102 | K60: 262504 | L60: 413893 | M60: 130102 | O60: 2902005 | P60: 7088998
B61: 仕入高 | C61: H002北海商事 | D61: 906947 | E61: 518334 | F61: 914123 | G61: 487733 | H61: 105556 | I61: 290743 | J61: 139587 | K61: 233335 | L61: 289355 | M61: 304404 | O61: 1429072 | P61: 5619189
B62: 仕入高 | C62: I201イーグル | D62: 662044 | E62: 293751 | F62: 720373 | G62: 99076 | H62: 142131 | I62: 172224 | J62: 230095 | K62: 121484 | L62: 207410 | M62: 230095 | P62: 2878683
B63: 仕入高 | C63: M201ミラクル | D63: 146761 | E63: 259725 | F63: 506437 | G63: 1246116 | H63: 886022 | I63: 1092367 | J63: 131441 | K63: 281483 | L63: 129630 | M63: 128015 | P63: 4807997
B64: 仕入高 | C64: O001オーヤマ | D64: 219447 | E64: 155556 | F64: 368521 | G64: 912041 | H64: 102778 | I64: 302316 | J64: 241577 | K64: 335652 | L64: 381488 | M64: 582503 | P64: 3601879
B65: 仕入高 | C65: S201ｻﾝﾗｲｽﾞ | D65: 229631 | E65: 175928 | F65: 246205 | G65: 720836 | H65: 92409 | I65: 212038 | J65: 137965 | K65: 183890 | L65: 200560 | M65: 221299 | P65: 2420761
B66: 仕入高 | C66: T010日本橋商会 | D66: 1851852 | E66: 2092594 | F66: 2024075 | G66: 2068381 | H66: 2078707 | I66: 1985186 | J66: 2286532 | K66: 2061112 | L66: 83335 | M66: 206437 | P66: 16738211
B67: 仕入高 | C67: U001キャラクト株式 | D67: 135280 | E67: 321298 | F67: 231021 | G67: 229631 | H67: 130187 | I67: 222223 | J67: 273613 | K67: 206113 | L67: 222223 | M67: 272224 | P67: 2243813
B68: 仕入高 | C68: V001株式会社吉野 | D68: 181484 | E68: 207410 | F68: 257640 | I68: 133334 | J68: 282874 | K68: 185186 | L68: 100000 | M68: 282874 | P68: 1630802
B69: 仕入高 | C69: Y001山田商事 | D69: 133335 | E69: 283337 | F69: 133335 | G69: 792133 | I69: 79631 | J69: 198383 | K69: 126389 | L69: 244446 | M69: 295605 | P69: 2286594
B70: 仕入高 | C70: ペルシャ絨毯 | E70: 4500000 | P70: 4500000
B71: 仕入高 | C71: 銀食器 | H71: 5685200 | P71: 5685200
B72: 仕入高 | C72: 景徳鎮 陶器 | J72: 4420000 | P72: 4420000
B73: 仕入高 | C73: 装飾品 | I73: 1624500 | P73: 1624500
B74: 仕入高 | C74: 彫刻 | N74: 3420000 | P74: 3420000
B75: 仕入高 | C75: 当月仕入請求／１０月分 | J75: 1089782 | P75: 1089782
B76: 仕入高 | C76: 当月仕入請求／１１月分 | K76: 3367092 | P76: 3367092
B77: 仕入高 | C77: 当月仕入請求／１２月分 | L77: 7175662 | P77: 7175662
B78: 仕入高 | C78: 当月仕入請求／１月分 | M78: 8969242 | P78: 8969242
B79: 仕入高 | C79: 当月仕入請求／２月分 | N79: 9343470 | P79: 9343470
B80: 仕入高 | C80: 当月仕入請求／３月分 | O80: 3249040 | P80: 3249040
B81: 仕入高 | C81: 当月仕入請求／４月分 | D81: 2415104 | P81: 2415104
B82: 仕入高 | C82: 当月仕入請求／５月分 | E82: 2917596 | P82: 2917596
B83: 仕入高 | C83: 当月仕入請求／６月分 | F83: 2726747 | P83: 2726747
B84: 仕入高 | C84: 当月仕入請求／７月分 | G84: 7403169 | P84: 7403169
B85: 仕入高 | C85: 当月仕入請求／８月分 | H85: 3055978 | P85: 3055978
B86: 仕入高 | C86: 当月仕入請求／９月分 | I86: 3727495 | P86: 3727495
B87: 仕入割戻し高 | C87: A200アンデス | N87: -55556 | P87: -55556
B88: 仕入戻し高 | C88: A200アンデス | N88: -138890 | P88: -138890
B89: 期末商品棚卸高 | C89: 期末分振替 | O89: -24500000 | P89: -24500000
B90: [製]期首材料棚卸高 | C90: (空白) | O90: 456600 | P90: 456600
B91: [製]期首仕掛品 | C91: (空白) | O91: 240000 | P91: 240000
B92: [製]期首半製品 | C92: (空白) | O92: 2731000 | P92: 2731000
B93: [製]材料仕入高 | C93: 10月分、パーツ代 | J93: 1825000 | P93: 1825000
B94: [製]材料仕入高 | C94: 10月分、地金 | J94: 1129630 | P94: 1129630
B95: [製]材料仕入高 | C95: 11月分、パーツ代 | K95: 992593 | P95: 992593
B96: [製]材料仕入高 | C96: 11月分、地金 | K96: 2977778 | P96: 2977778
B97: [製]材料仕入高 | C97: 12月分、パーツ代 | L97: 68519 | P97: 68519
B98: [製]材料仕入高 | C98: 12月分、地金 | L98: 194445 | P98: 194445
B99: [製]材料仕入高 | C99: 1月分、パーツ代 | M99: 67130 | P99: 67130
B100: [製]材料仕入高 | C100: 1月分、地金 | M100: 217593 | P100: 217593
B101: [製]材料仕入高 | C101: 2月分、パーツ代 | N101: 66667 | P101: 66667
B102: [製]材料仕入高 | C102: 2月分、地金 | N102: 203704 | P102: 203704
B103: [製]材料仕入高 | C103: 3月分、パーツ代 | O103: 72223 | P103: 72223
B104: [製]材料仕入高 | C104: 3月分、地金 | O104: 218519 | P104: 218519
B105: [製]材料仕入高 | C105: ４月分、クリップ、ひも | D105: 344445 | P105: 344445
B106: [製]材料仕入高 | C106: ４月分、地金 | D106: 1129630 | P106: 1129630
B107: [製]材料仕入高 | C107: ５月分、シルバー | E107: 1402778 | P107: 1402778
B108: [製]材料仕入高 | C108: 5月分、止め金 | E108: 740741 | P108: 740741
B109: [製]材料仕入高 | C109: 6月分、パーツ代 | F109: 624075 | P109: 624075
B110: [製]材料仕入高 | C110: 6月分、地金 | F110: 1143519 | P110: 1143519
B111: [製]材料仕入高 | C111: 7月分、パーツ代 | G111: 1085463 | P111: 1085463
B112: [製]材料仕入高 | C112: 7月分、地金 | G112: 2049075 | P112: 2049075
B113: [製]材料仕入高 | C113: 8月分、止め金 | H113: 991667 | P113: 991667
B114: [製]材料仕入高 | C114: 8月分、地金 | H114: 1133334 | P114: 1133334
B115: [製]材料仕入高 | C115: 9月分、パーツ代 | I115: 2663426 | P115: 2663426
B116: [製]材料仕入高 | C116: 9月分、地金 | I116: 2972223 | P116: 2972223
B117: [製]給料手当 | C117: 給与 10月分//源泉所得税 10月分 | J117: 267600 | P117: 267600
B118: [製]給料手当 | C118: 給与 11月分//源泉所得税 11月分 | K118: 267600 | P118: 267600
B119: [製]給料手当 | C119: 給与 12月分//源泉所得税 12月分 | L119: 267600 | P119: 267600
B120: [製]給料手当 | C120: 給与 1月分//源泉所得税 1月分 | M120: 267600 | P120: 267600
B121: [製]給料手当 | C121: 給与 2月分//源泉所得税 2月分 | N121: 267600 | P121: 267600
B122: [製]給料手当 | C122: 給与 3月分//源泉所得税 3月分 | O122: 267600 | P122: 267600
B123: [製]給料手当 | C123: 給与 4月分//源泉所得税 4月分 | D123: 267600 | P123: 267600
B124: [製]給料手当 | C124: 給与 5月分//源泉所得税 5月分 | E124: 267600 | P124: 267600
B125: [製]給料手当 | C125: 給与 6月分//源泉所得税 6月分 | F125: 267600 | P125: 267600
B126: [製]給料手当 | C126: 給与 7月分//源泉所得税 7月分 | G126: 267600 | P126: 267600
B127: [製]給料手当 | C127: 給与 8月分//源泉所得税 8月分 | H127: 267600 | P127: 267600
B128: [製]給料手当 | C128: 給与 9月分//源泉所得税 9月分 | I128: 267600 | P128: 267600
B129: [製]賞与 | C129: 夏季賞与 | G129: 650000 | P129: 650000
B130: [製]賞与 | C130: 冬季賞与 | L130: 700000 | P130: 700000
B131: [製]福利厚生費 | C131: お茶、コンビニストア | O131: 5394 | P131: 5394
B132: [製]福利厚生費 | C132: お茶等、コンビニストア | E132: 2474 | F132: 1521 | I132: 741 | L132: 2977 | P132: 7713
B133: [製]福利厚生費 | C133: みんなのユニホーム店、作業服、品 | G133: 15595 | L133: 7896 | N133: 6318 | P133: 29809
B134: [製]外注加工費 | C134: 10月分加工制作費 | J134: 1111112 | P134: 1111112
B135: [製]外注加工費 | C135: 11月分加工制作費 | K135: 1106482 | P135: 1106482
B136: [製]外注加工費 | C136: 12月分加工制作費 | L136: 183334 | P136: 183334
B137: [製]外注加工費 | C137: 1月分加工制作費 | M137: 171297 | P137: 171297
B138: [製]外注加工費 | C138: 2月分加工制作費 | N138: 184723 | P138: 184723
B139: [製]外注加工費 | C139: 3月分デザイン料 | O139: 183334 | P139: 183334
B140: [製]外注加工費 | C140: ４月分加工制作費 | D140: 166667 | P140: 166667
B141: [製]外注加工費 | C141: 5月分デザイン料 | E141: 171297 | P141: 171297
B142: [製]外注加工費 | C142: 6月分加工制作費 | F142: 157408 | P142: 157408
B143: [製]外注加工費 | C143: 7月分加工制作費 | G143: 164815 | P143: 164815
B144: [製]外注加工費 | C144: 8月分加工制作費 | H144: 175926 | P144: 175926
B145: [製]外注加工費 | C145: 9月分デザイン料 | I145: 820371 | P145: 820371
B146: [製]旅費交通費 | C146: 通勤定期代 | D146: 7223 | E146: 7223 | F146: 7223 | G146: 7223 | H146: 7223 | I146: 7223 | J146: 7223 | K146: 7223 | L146: 7223 | M146: 7223 | N146: 7223 | O146: 7223 | P146: 86676
B147: [製]通信費 | C147: 電話料 10月分 JＴＴ | K147: 32063 | P147: 32063
B148: [製]通信費 | C148: 電話料 11月分 JTT | L148: 2935 | P148: 2935
B149: [製]通信費 | C149: 電話料 12月分 JTT | M149: 5819 | P149: 5819
B150: [製]通信費 | C150: 電話料 １月分 JTT | N150: 4893 | P150: 4893
B151: [製]通信費 | C151: 電話料 ２月分 JTT | O151: 5563 | P151: 5563
B152: [製]通信費 | C152: 電話料 ３月分 JＴＴ | D152: 33429 | P152: 33429
B153: [製]通信費 | C153: 電話料 ４月分 JＴＴ | E153: 21775 | P153: 21775
B154: [製]通信費 | C154: 電話料 ５月分 JＴＴ | F154: 30544 | P154: 30544
B155: [製]通信費 | C155: 電話料 ６月分 JＴＴ | G155: 40943 | P155: 40943
B156: [製]通信費 | C156: 電話料 ７月分 JＴＴ | H156: 31664 | P156: 31664
B157: [製]通信費 | C157: 電話料 ８月分 JＴＴ | I157: 30544 | P157: 30544
B158: [製]通信費 | C158: 電話料 ９月分 JＴＴ | J158: 41942 | P158: 41942
B159: [製]消耗品費 | C159: ガムテープ セブンマート城西店 | D159: 3297 | P159: 3297
B160: [製]消耗品費 | C160: ゴミ処理券 | E160: 4056 | G160: 3889 | I160: 2778 | L160: 1278 | N160: 1112 | P160: 13113
B161: [製]消耗品費 | C161: ゴミ袋 まるとく商店 | D161: 1445 | H161: 2408 | L161: 519 | P161: 4372
B162: [製]消耗品費 | C162: ダンボール 山本容器 | G162: 32593 | M162: 32593 | P162: 65186
B163: [製]消耗品費 | C163: トイレットペーパー まるとく商店 | D163: 2528 | J163: 2183 | P163: 4711
B164: [製]消耗品費 | C164: トナーカートリッジ代 | E164: 32408 | P164: 32408
B165: [製]消耗品費 | C165: トナーカートリッジ代 弥生文具 | J165: 32408 | P165: 32408
B166: [製]消耗品費 | C166: マット、モップ代 | D166: 7454 | E166: 7454 | F166: 7454 | G166: 7454 | H166: 7454 | I166: 7454 | J166: 7454 | K166: 7454 | L166: 973 | M166: 973 | N166: 973 | O166: 973 | P166: 63524
B167: [製]消耗品費 | C167: 作業用品 | D167: 16667 | P167: 16667
B168: [製]消耗品費 | C168: 石鹸 セブンマート城西店 | F168: 2727 | P168: 2727
B169: [製]消耗品費 | C169: 洗剤 セブンマート城西店 | H169: 1505 | P169: 1505
B170: [製]消耗品費 | C170: 電池 セブンマート城西店 | G170: 3241 | M170: 1482 | P170: 4723
B171: [製]消耗工具費 | C171: 工具代 山田商店 | F171: 30093 | I171: 14075 | P171: 44168
B172: [製]修繕費 | C172: パソコン修理 | D172: 50926 | P172: 50926
B173: [製]修繕費 | C173: 機械部品修理、調整 | F173: 27778 | K173: 27778 | P173: 55556
B174: [製]水道光熱費 | C174: 水道代 城西市水道局 | F174: 22223 | H174: 22223 | J174: 30926 | L174: 188519 | P174: 263891
B175: [製]水道光熱費 | C175: 電気代 関東電力 | D175: 32408 | E175: 42130 | F175: 32963 | G175: 24075 | H175: 35186 | I175: 24630 | J175: 23889 | K175: 24047 | L175: 148149 | M175: 108241 | N175: 149028 | O175: 157408 | P175: 802154
B176: [製]地代家賃 | C176: 10月分 | J176: 106482 | P176: 106482
B177: [製]地代家賃 | C177: 11月分 | K177: 106482 | P177: 106482
B178: [製]地代家賃 | C178: 12月分 | L178: 106482 | P178: 106482
B179: [製]地代家賃 | C179: 1月分 | N179: 106482 | P179: 106482
B180: [製]地代家賃 | C180: 2月分 | N180: 106482 | P180: 106482
B181: [製]地代家賃 | C181: 3月分 | O181: 106482 | P181: 106482
B182: [製]地代家賃 | C182: ４月分 | D182: 106482 | P182: 106482
B183: [製]地代家賃 | C183: 5月分 | E183: 106482 | P183: 106482
B184: [製]地代家賃 | C184: 6月分 | F184: 106482 | P184: 106482
B185: [製]地代家賃 | C185: 7月分 | G185: 106482 | P185: 106482
B186: [製]地代家賃 | C186: 8月分 | H186: 106482 | P186: 106482
B187: [製]地代家賃 | C187: 9月分 | I187: 106482 | P187: 106482
B188: [製]賃借料 | C188: 弥生信販 機械リース 10月分 | K188: 41320 | P188: 41320
B189: [製]賃借料 | C189: 弥生信販 機械リース 11月分 | L189: 41320 | P189: 41320
B190: [製]賃借料 | C190: 弥生信販 機械リース 12月分 | M190: 41320 | P190: 41320
B191: [製]賃借料 | C191: 弥生信販 機械リース １月分 | N191: 41320 | P191: 41320
B192: [製]賃借料 | C192: 弥生信販 機械リース ２月分 | O192: 41320 | P192: 41320
B193: [製]賃借料 | C193: 弥生信販 機械リース ３月分 | D193: 41320 | P193: 41320
B194: [製]賃借料 | C194: 弥生信販 機械リース ４月分 | E194: 41320 | P194: 41320
B195: [製]賃借料 | C195: 弥生信販 機械リース ５月分 | F195: 41320 | P195: 41320
B196: [製]賃借料 | C196: 弥生信販 機械リース ６月分 | G196: 41320 | P196: 41320
B197: [製]賃借料 | C197: 弥生信販 機械リース ７月分 | H197: 41320 | P197: 41320
B198: [製]賃借料 | C198: 弥生信販 機械リース ８月分 | I198: 41320 | J198: 41320 | P198: 82640
B199: [製]減価償却費 | C199: (空白) | O199: 284399 | P199: 284399
B200: [製]期末材料棚卸高 | C200: (空白) | O200: -456600 | P200: -456600
B201: [製]期末仕掛品 | C201: (空白) | O201: -240000 | P201: -240000
B202: [製]期末半製品 | C202: (空白) | O202: -2731000 | P202: -2731000
B203: [売上原価] 小計 | D203: 17621463 | E203: 20672361 | F203: 18039524 | G203: 22566901 | H203: 18103548 | I203: 19187503 | J203: 19352440 | K203: 13874695 | L203: 15365280 | M203: 18805588 | N203: 17018575 | O203: 10392130 | P203: 211000008
... 258 more rows

Sheet 売上順位表
B1: =基本情報!$B$9 -> 株式会社弥生トレーディング
B3: 補助科目別売上順位表
C6: =月別資金繰り表!$C$6 -> 2016-04-01 | D6: =月別資金繰り表!$D$6 -> 2016-05-31 | E6: =月別資金繰り表!$E$6 -> 2016-06-30 | F6: =月別資金繰り表!$F$6 -> 2016-07-31 | G6: =月別資金繰り表!$G$6 -> 2016-08-31 | H6: =月別資金繰り表!$H$6 -> 2016-09-30 | I6: =月別資金繰り表!$I$6 -> 2016-10-31 | J6: =月別資金繰り表!$J$6 -> 2016-11-30 | K6: =月別資金繰り表!$K$6 -> 2016-12-31 | L6: =月別資金繰り表!$L$6 -> 2017-01-31 | M6: =月別資金繰り表!$M$6 -> 2017-02-28 | N6: =月別資金繰り表!$N$6 -> 2017-03-31 | O6: =月別資金繰り表!$O$6 -> 合計
B8: (空白) | C8: 2733926 | D8: 2880747 | E8: 3353639 | F8: 3102274 | G8: 3355373 | H8: 3370796 | I8: 3075702 | J8: 3155207 | K8: 3298525 | L8: 2706060 | M8: 2809369 | N8: 3079255 | O8: 36920873
B9: 長島商事 | C9: 2523785 | D9: 914495 | E9: 1826279 | F9: 2840534 | G9: 3624517 | H9: 2073014 | I9: 1254130 | J9: 1859333 | K9: 3958418 | L9: 3301708 | M9: 1428322 | O9: 25604535
B10: 中央産業大阪 | C10: 2030558 | D10: 2325742 | E10: 3055556 | F10: 2611114 | G10: 925926 | H10: 2606483 | I10: 613890 | K10: 2666669 | L10: 1124172 | M10: 2206484 | O10: 20166594
B11: 愛知マート | C11: 812038 | D11: 1717075 | E11: 1114816 | F11: 2655557 | G11: 1785165 | H11: 2112548 | I11: 1666667 | J11: 1371807 | K11: 1323350 | L11: 2139550 | N11: 1727317 | O11: 18425890
B12: エヌ商会 | C12: 1525926 | D12: 1388889 | E12: 1597224 | F12: 1814817 | H12: 1970371 | I12: 2245409 | J12: 2344986 | K12: 1073402 | L12: 2253215 | M12: 793036 | N12: 702431 | O12: 17709706
B13: 厚木産業 | C13: 1450926 | D13: 897779 | E13: 1374815 | F13: 692594 | G13: 1680743 | H13: 1185187 | I13: 1165926 | J13: 718520 | K13: 1016304 | L13: 4245563 | N13: 1450926 | O13: 15879283
B14: オリエント商会 | C14: 1236375 | D14: 1017155 | E14: 848541 | F14: 1756969 | G14: 1217355 | H14: 678318 | I14: 1284165 | J14: 99705 | K14: 1834133 | L14: 986721 | M14: 1719301 | N14: 2375450 | O14: 15054188
B15: ﾌｧﾐﾘｰｽﾄｱふいた | C15: 912038 | D15: 1973242 | E15: 1679446 | F15: 1512270 | G15: 1064584 | H15: 1221992 | I15: 912038 | K15: 1512270 | L15: 2583913 | O15: 13371793
B16: ミナミ産業 | C16: 2091163 | D16: 860781 | E16: 1434065 | F16: 935287 | G16: 1161750 | H16: 546071 | I16: 702758 | J16: 934213 | K16: 712014 | L16: 991106 | M16: 901522 | N16: 301345 | O16: 11572075
B17: 文京食器店 | C17: 1406261 | D17: 723593 | E17: 491297 | F17: 878631 | G17: 734028 | H17: 1324538 | I17: 579964 | J17: 398612 | K17: 1102829 | L17: 1559785 | N17: 1324538 | O17: 10524076
B18: 九州物産 | C18: 1037038 | D18: 926297 | E18: 828705 | F18: 762224 | G18: 792593 | H18: 815742 | I18: 1210580 | J18: 856946 | K18: 861112 | L18: 1237039 | M18: 662963 | N18: 476852 | O18: 10468091
B19: 有限会社ミナミ | C19: 757039 | D19: 1057133 | E19: 741161 | F19: 482873 | G19: 403149 | H19: 589819 | I19: 1894540 | J19: 606994 | K19: 722040 | L19: 1597321 | O19: 8852069
B20: 越後屋百貨店 | D20: 1604167 | F20: 1811297 | H20: 1373334 | J20: 912593 | L20: 1535741 | N20: 545741 | O20: 7782873
B21: 田中栄作 | G21: 6018519 | O21: 6018519
B22: 近藤商会 | H22: 5694445 | O22: 5694445
B23: 中野産業 | C23: 702458 | D23: 477922 | E23: 185000 | F23: 140000 | G23: 706517 | H23: 469497 | I23: 460658 | J23: 425003 | K23: 864370 | L23: 130001 | M23: 544165 | N23: 505205 | O23: 5610796
B24: 斎藤涼子 | I24: 5111112 | O24: 5111112
B25: 佐藤角栄 | D25: 4888889 | O25: 4888889
B26: 中央産業 | C26: 638172 | D26: 406946 | E26: 459352 | F26: 171875 | G26: 295001 | H26: 366667 | I26: 175209 | J26: 366667 | K26: 484728 | L26: 175209 | N26: 459352 | O26: 3999178
B27: 山口聖子 | M27: 3796297 | O27: 3796297
B28: 御殿場リビング | C28: 332090 | D28: 490668 | E28: 504889 | F28: 116149 | G28: 14260 | H28: 173631 | I28: 332090 | J28: 141631 | K28: 732149 | L28: 332090 | N28: 407408 | O28: 3577055
B29: 川崎ﾎｰﾑｼｮｯﾌﾟ | C29: 286500 | D29: 393334 | E29: 335834 | F29: 143334 | G29: 147334 | H29: 122502 | I29: 369518 | J29: 523927 | K29: 258542 | L29: 309167 | N29: 341112 | O29: 3231104
B30: ハマ屋 | C30: 225000 | D30: 317362 | E30: 424445 | F30: 139028 | G30: 202778 | H30: 219445 | I30: 496529 | J30: 431251 | K30: 204168 | L30: 365487 | O30: 3025493
B31: 海北商店 | C31: 173705 | D31: 78297 | E31: 108889 | F31: 193926 | G31: 114075 | H31: 101500 | I31: 790743 | J31: 326691 | K31: 250834 | L31: 367631 | O31: 2506291
B32: ＬＳリビング 福岡店 | C32: 95649 | D32: 445834 | E32: 300000 | F32: 93750 | G32: 81167 | H32: 188334 | I32: 313149 | J32: 396668 | K32: 287849 | L32: 290000 | O32: 2492400
B33: 三島商会 | C33: 117963 | D33: 200279 | E33: 184075 | F33: 198334 | G33: 140001 | H33: 90741 | I33: 318890 | J33: 237223 | K33: 622223 | L33: 272223 | O33: 2381952
B34: 彦商会 | C34: 195482 | D34: 334028 | E34: 97500 | F34: 113149 | G34: 81250 | H34: 202223 | I34: 396501 | J34: 334391 | K34: 190186 | L34: 400112 | O34: 2344822
B35: 市川ストア | C35: 140973 | D35: 155556 | E35: 516667 | F35: 175348 | G35: 156250 | H35: 90278 | I35: 213196 | J35: 162778 | K35: 76389 | L35: 289029 | N35: 270371 | O35: 2246835
B36: 池袋リビング | C36: 147778 | D36: 220371 | E36: 153288 | F36: 141667 | G36: 77778 | H36: 228473 | I36: 350001 | J36: 333797 | K36: 128821 | L36: 340927 | O36: 2122901
B37: 大津商会 | C37: 128127 | D37: 215000 | E37: 208335 | F37: 198584 | H37: 135834 | I37: 281794 | J37: 339168 | K37: 180002 | L37: 352127 | O37: 2038971
B38: 大阪食器 | C38: 170334 | D38: 113334 | E38: 222667 | F38: 166667 | G38: 52500 | H38: 86000 | I38: 358001 | J38: 204400 | K38: 124000 | L38: 416334 | O38: 1914237
B39: 中央産業仙台 | C39: 39667 | D39: 384353 | E39: 484815 | F39: 103705 | G39: 119455 | H39: 171112 | I39: 39667 | J39: 171112 | K39: 214803 | L39: 147260 | O39: 1875949
B40: ＬＳリビング 大分店 | C40: 86667 | D40: 116667 | E40: 100000 | F40: 43334 | G40: 100000 | H40: 52500 | I40: 383701 | J40: 358644 | K40: 200000 | L40: 293251 | O40: 1734764
B41: プラザ調布 | C41: 124446 | D41: 145834 | E41: 135418 | F41: 229167 | G41: 183334 | H41: 107640 | I41: 207780 | J41: 145834 | K41: 32570 | L41: 138335 | O41: 1450358
B42: 福山商店 | C42: 55334 | D42: 101292 | E42: 227482 | F42: 201738 | G42: 90532 | H42: 229019 | I42: 55334 | J42: 209806 | K42: 201738 | L42: 55334 | O42: 1427609
B43: リビングショップ佐渡 | C43: 91251 | H43: 35556 | I43: 234363 | J43: 47408 | K43: 65186 | L43: 91251 | O43: 565015
B44: 品川屋 | C44: 78520 | D44: 40445 | E44: 15112 | H44: 35557 | I44: 100743 | J44: 64447 | K44: 11112 | L44: 109632 | O44: 455568
B45: 山口商事 | C45: 11112 | D45: 10927 | F45: 4741 | I45: 92965 | J45: 12445 | K45: 16667 | L45: 23557 | O45: 172414
B46: ﾜｰｸｼｮｯﾌﾟ鈴鹿 | G46: 14167 | H46: 13057 | I46: 8334 | J46: 20835 | K46: 37917 | L46: 5000 | O46: 99310
B47: 合計 | C47: 22358301 | D47: 27824433 | E47: 23009312 | F47: 24430937 | G47: 25340101 | H47: 28682224 | I47: 27696047 | J47: 18513042 | K47: 25265320 | L47: 31165851 | M47: 14861459 | N47: 13967303 | O47: 283114330

Sheet 勘定科目マスター
B7: 資金繰り表関係設定 | G7: 損益計算書関係設定
B8: 勘定科目 | C8: 資金増の区分 | D8: 資金減の区分 | E8: 収入／支出 | G8: 勘定科目 | H8: 損益計算書の区分 | J8: ※資金繰り表項目一覧
B9: 定期預金 | C9: 定期性預金払戻 | D9: 定期性預金預入 | E9: =IF(ISERROR(VLOOKUP(D9,K$10:L$41,2,0)),"",VLOOKUP(D9,K$10:L$41,2,0)) -> 支出 | G9: 現金 | H9: [B/S科目] | J9: 取引の種類 | K9: 区分名 | L9: 収入／支出 | M9: 取引の種類
B10: 定期積金 | C10: 定期性預金払戻 | D10: 定期性預金預入 | E10: =IF(ISERROR(VLOOKUP(D10,K$10:L$41,2,0)),"",VLOOKUP(D10,K$10:L$41,2,0)) -> 支出 | G10: 小口現金 | H10: [B/S科目] | J10: 経常収入 | K10: 現金売上 | L10: 収入 | M10: 経常収入
B11: 郵便貯金 | C11: 定期性預金払戻 | D11: 定期性預金預入 | E11: 支出 | G11: 普通預金 | H11: [B/S科目] | K11: 売掛金回収 | L11: 収入 | M11: 経常収入
B12: 受取手形 | C12: 受取手形期日取立 | D12: その他経常支出 | E12: 支出 | G12: 当座預金 | H12: [B/S科目] | K12: 受取手形期日取立 | L12: 収入 | M12: 経常収入
B13: 売掛金 | C13: 売掛金回収 | D13: その他経常支出 | E13: 支出 | G13: 定期預金 | H13: [B/S科目] | K13: 受取手形割引 | L13: 収入 | M13: 経常収入
B14: 仕掛品 | C14: その他経常収入 | D14: 現金仕入 | E14: 支出 | G14: 定期積金 | H14: [B/S科目] | K14: 利息等収入 | L14: 収入 | M14: 経常収入
B15: 有価証券 | C15: 投資・貸付金等回収 | D15: 投資・貸付金等支出 | E15: 支出 | G15: 郵便貯金 | H15: [B/S科目] | K15: 雑収入 | L15: 収入 | M15: 経常収入
B16: 前渡金 | C16: その他経常収入 | D16: その他経常支出 | E16: 支出 | G16: 受取手形 | H16: [B/S科目] | K16: その他経常収入 | L16: 収入 | M16: 経常収入
B17: 立替金 | C17: その他経常収入 | D17: その他経常支出 | E17: 支出 | G17: 売掛金 | H17: [B/S科目] | J17: 経常支出 | K17: 現金仕入 | L17: 支出 | M17: 経常支出
B18: 前払費用 | C18: その他経常収入 | D18: その他経常支出 | E18: 支出 | G18: 貸倒引当金(売) | H18: [B/S科目] | K18: 買掛金支払 | L18: 支出 | M18: 経常支出
B19: 未収収益 | C19: その他経常収入 | D19: その他経常支出 | E19: 支出 | G19: 商品 | H19: [B/S科目] | K19: 支払手形決済 | L19: 支出 | M19: 経常支出
B20: 短期貸付金 | C20: 投資・貸付金等回収 | D20: 投資・貸付金等支出 | E20: 支出 | G20: 原材料 | H20: [B/S科目] | K20: 人件費支出 | L20: 支出 | M20: 経常支出
B21: 未収入金 | C21: その他経常収入 | D21: その他経常支出 | E21: 支出 | G21: 仕掛品 | H21: [B/S科目] | K21: 諸経費支出 | L21: 支出 | M21: 経常支出
B22: 仮払金 | C22: その他経常収入 | D22: その他経常支出 | E22: 支出 | G22: 半製品 | H22: [B/S科目] | K22: 利息等支出 | L22: 支出 | M22: 経常支出
B23: 預け金 | C23: その他経常収入 | D23: その他経常支出 | E23: 支出 | G23: 有価証券 | H23: [B/S科目] | K23: その他経常支出 | L23: 支出 | M23: 経常支出
B24: 建物 | C24: 固定資産売却収入 | D24: 固定資産取得 | E24: 支出 | G24: 前渡金 | H24: [B/S科目] | J24: 財務等収入 | K24: 短期借入金借入 | L24: 収入 | M24: 財務等収入
B25: 附属設備 | C25: 固定資産売却収入 | D25: 固定資産取得 | E25: 支出 | G25: 立替金 | H25: [B/S科目] | K25: 長期借入金借入 | L25: 収入 | M25: 財務等収入
B26: 構築物 | C26: 固定資産売却収入 | D26: 固定資産取得 | E26: 支出 | G26: 前払費用 | H26: [B/S科目] | K26: 役員・関係会社等借入 | L26: 収入 | M26: 財務等収入
B27: 機械装置 | C27: 固定資産売却収入 | D27: 固定資産取得 | E27: 支出 | G27: 未収収益 | H27: [B/S科目] | K27: 長期未払金収入 | L27: 収入 | M27: 財務等収入
B28: 車両運搬具 | C28: 固定資産売却収入 | D28: 固定資産取得 | E28: 支出 | G28: 短期貸付金 | H28: [B/S科目] | K28: 固定資産売却収入 | L28: 収入 | M28: 財務等収入
B29: 工具器具備品 | C29: 固定資産売却収入 | D29: 固定資産取得 | E29: 支出 | G29: 未収入金 | H29: [B/S科目] | K29: 定期性預金払戻 | L29: 収入 | M29: 財務等収入
B30: 土地 | C30: 固定資産売却収入 | D30: 固定資産取得 | E30: 支出 | G30: 仮払金 | H30: [B/S科目] | K30: 投資・貸付金等回収 | L30: 収入 | M30: 財務等収入
B31: 建設仮勘定 | C31: 固定資産売却収入 | D31: 固定資産取得 | E31: 支出 | G31: 預け金 | H31: [B/S科目] | K31: その他財務等収入 | L31: 収入 | M31: 財務等収入
B32: ソフトウェア | C32: 固定資産売却収入 | D32: 固定資産取得 | E32: 支出 | G32: 建物 | H32: [B/S科目] | J32: 財務等支出 | K32: 短期借入金返済 | L32: 支出 | M32: 財務等支出
B33: 投資有価証券 | C33: 投資・貸付金等回収 | D33: 投資・貸付金等支出 | E33: 支出 | G33: 附属設備 | H33: [B/S科目] | K33: 長期借入金返済 | L33: 支出 | M33: 財務等支出
B34: 出資金 | C34: 投資・貸付金等回収 | D34: 投資・貸付金等支出 | E34: 支出 | G34: 構築物 | H34: [B/S科目] | K34: 役員・関係会社等返済 | L34: 支出 | M34: 財務等支出
B35: 敷金 | C35: 固定資産売却収入 | D35: 固定資産取得 | E35: 支出 | G35: 機械装置 | H35: [B/S科目] | K35: 長期未払金支払 | L35: 支出 | M35: 財務等支出
B36: 差入保証金 | C36: 固定資産売却収入 | D36: 固定資産取得 | E36: 支出 | G36: 車両運搬具 | H36: [B/S科目] | K36: 固定資産取得 | L36: 支出 | M36: 財務等支出
B37: 長期貸付金 | C37: 投資・貸付金等回収 | D37: 投資・貸付金等支出 | E37: 支出 | G37: 工具器具備品 | H37: [B/S科目] | K37: 定期性預金預入 | L37: 支出 | M37: 財務等支出
B38: 長期前払費用 | C38: 固定資産売却収入 | D38: 固定資産取得 | E38: 支出 | G38: 土地 | H38: [B/S科目] | K38: 投資・貸付金等支出 | L38: 支出 | M38: 財務等支出
B39: 預託金 | C39: 固定資産売却収入 | D39: 固定資産取得 | E39: 支出 | G39: 建設仮勘定 | H39: [B/S科目] | K39: 法人税等支払 | L39: 支出 | M39: 財務等支出
B40: 支払手形 | C40: その他経常収入 | D40: 支払手形決済 | E40: 支出 | G40: ソフトウェア | H40: [B/S科目] | K40: 消費税等支払 | L40: 支出 | M40: 財務等支出
B41: 買掛金 | C41: その他経常収入 | D41: 買掛金支払 | E41: 支出 | G41: 投資有価証券 | H41: [B/S科目] | K41: その他財務等支出 | L41: 支出 | M41: 財務等支出
B42: 短期借入金 | C42: 短期借入金借入 | D42: 短期借入金返済 | E42: 支出 | G42: 出資金 | H42: [B/S科目]
B43: 未払金 | C43: その他経常収入 | D43: その他経常支出 | E43: 支出 | G43: 敷金 | H43: [B/S科目] | J43: ※損益計算書区分項目一覧
B44: 未払費用 | C44: その他経常収入 | D44: その他経常支出 | E44: 支出 | G44: 差入保証金 | H44: [B/S科目] | J44: [B/S科目]
B45: 未払法人税等 | C45: その他経常収入 | D45: 法人税等支払 | E45: 支出 | G45: 長期貸付金 | H45: [B/S科目] | J45: [売上高]
B46: 未払消費税等 | C46: その他経常収入 | D46: 消費税等支払 | E46: 支出 | G46: 長期前払費用 | H46: [B/S科目] | J46: [期首商品棚卸]
B47: 前受金 | C47: その他経常収入 | D47: その他経常支出 | E47: 支出 | G47: 預託金 | H47: [B/S科目] | J47: [売上原価]
B48: 預り金 | C48: その他経常収入 | D48: その他経常支出 | E48: 支出 | G48: 支払手形 | H48: [B/S科目] | J48: [期末商品棚卸]
B49: 前受収益 | C49: その他経常収入 | D49: その他経常支出 | E49: 支出 | G49: 買掛金 | H49: [B/S科目] | J49: [人件費]
B50: 仮受金 | C50: その他経常収入 | D50: その他経常支出 | E50: 支出 | G50: 短期借入金 | H50: [B/S科目] | J50: [販売管理費]
B51: 預り保証金 | C51: その他経常収入 | D51: その他経常支出 | E51: 支出 | G51: 未払金 | H51: [B/S科目] | J51: [営業外収益]
B52: 長期借入金 | C52: 長期借入金借入 | D52: 長期借入金返済 | E52: 支出 | G52: 未払費用 | H52: [B/S科目] | J52: [営業外費用]
B53: 長期未払金 | C53: その他経常収入 | D53: 長期未払金支払 | E53: 支出 | G53: 未払法人税等 | H53: [B/S科目] | J53: [特別利益]
B54: 売上高 | C54: 現金売上 | D54: 現金売上 | E54: 収入 | G54: 未払消費税等 | H54: [B/S科目] | J54: [特別損失]
B55: 仕入高 | C55: 現金仕入 | D55: 現金仕入 | E55: 支出 | G55: 前受金 | H55: [B/S科目] | J55: [当期純損益]
B56: 役員報酬 | C56: 人件費支出 | D56: 人件費支出 | E56: 支出 | G56: 預り金 | H56: [B/S科目]
B57: 役員賞与 | C57: 人件費支出 | D57: 人件費支出 | E57: 支出 | G57: 前受収益 | H57: [B/S科目]
B58: 給料手当 | C58: 人件費支出 | D58: 人件費支出 | E58: 支出 | G58: 仮受金 | H58: [B/S科目]
B59: 雑給 | C59: 人件費支出 | D59: 人件費支出 | E59: 支出 | G59: 預り保証金 | H59: [B/S科目]
B60: 賞与 | C60: 人件費支出 | D60: 人件費支出 | E60: 支出 | G60: 長期借入金 | H60: [B/S科目]
B61: 退職金 | C61: 人件費支出 | D61: 人件費支出 | E61: 支出 | G61: 長期未払金 | H61: [B/S科目]
B62: 法定福利費 | C62: 人件費支出 | D62: 人件費支出 | E62: 支出 | G62: 売上高 | H62: [売上高]
B63: 福利厚生費 | C63: 人件費支出 | D63: 人件費支出 | E63: 支出 | G63: 期首商品棚卸高 | H63: [売上原価]
B64: 採用教育費 | C64: 人件費支出 | D64: 人件費支出 | E64: 支出 | G64: 仕入高 | H64: [売上原価]
B65: 外注費 | C65: 諸経費支出 | D65: 諸経費支出 | E65: 支出 | G65: 仕入割戻し高 | H65: [売上原価]
B66: 荷造運賃 | C66: 諸経費支出 | D66: 諸経費支出 | E66: 支出 | G66: 仕入戻し高 | H66: [売上原価]
B67: 広告宣伝費 | C67: 諸経費支出 | D67: 諸経費支出 | E67: 支出 | G67: 期末商品棚卸高 | H67: [売上原価]
B68: 交際費 | C68: 諸経費支出 | D68: 諸経費支出 | E68: 支出 | G68: 役員報酬 | H68: [人件費]
B69: 会議費 | C69: 諸経費支出 | D69: 諸経費支出 | E69: 支出 | G69: 役員賞与 | H69: [人件費]
B70: 旅費交通費 | C70: 諸経費支出 | D70: 諸経費支出 | E70: 支出 | G70: 給料手当 | H70: [人件費]
B71: 通信費 | C71: 諸経費支出 | D71: 諸経費支出 | E71: 支出 | G71: 雑給 | H71: [人件費]
B72: 販売手数料 | C72: 諸経費支出 | D72: 諸経費支出 | E72: 支出 | G72: 賞与 | H72: [人件費]
B73: 販売促進費 | C73: 諸経費支出 | D73: 諸経費支出 | E73: 支出 | G73: 退職金 | H73: [人件費]
B74: 消耗品費 | C74: 諸経費支出 | D74: 諸経費支出 | E74: =IF(ISERROR(VLOOKUP(D74,K$10:L$41,2,0)),"",VLOOKUP(D74,K$10:L$41,2,0)) -> 支出 | G74: 法定福利費 | H74: [人件費]
B75: 事務用品費 | C75: 諸経費支出 | D75: 諸経費支出 | E75: 支出 | G75: 福利厚生費 | H75: [人件費]
B76: 修繕費 | C76: 諸経費支出 | D76: 諸経費支出 | E76: 支出 | G76: 採用教育費 | H76: [販売管理費]
B77: 水道光熱費 | C77: 諸経費支出 | D77: 諸経費支出 | E77: 支出 | G77: 外注費 | H77: [販売管理費]
B78: 新聞図書費 | C78: 諸経費支出 | D78: 諸経費支出 | E78: 支出 | G78: 荷造運賃 | H78: [販売管理費]
B79: 諸会費 | C79: 諸経費支出 | D79: 諸経費支出 | E79: 支出 | G79: 広告宣伝費 | H79: [販売管理費]
B80: 支払手数料 | C80: 諸経費支出 | D80: 諸経費支出 | E80: 支出 | G80: 交際費 | H80: [販売管理費]
B81: 車両費 | C81: 諸経費支出 | D81: 諸経費支出 | E81: 支出 | G81: 会議費 | H81: [販売管理費]
B82: 地代家賃 | C82: 諸経費支出 | D82: 諸経費支出 | E82: 支出 | G82: 旅費交通費 | H82: [販売管理費]
B83: 賃借料 | C83: 諸経費支出 | D83: 諸経費支出 | E83: 支出 | G83: 通信費 | H83: [販売管理費]
B84: リース料 | C84: 諸経費支出 | D84: 諸経費支出 | E84: 支出 | G84: 販売手数料 | H84: [販売管理費]
B85: 保険料 | C85: 諸経費支出 | D85: 諸経費支出 | E85: 支出 | G85: 販売促進費 | H85: [販売管理費]
B86: 租税公課 | C86: 諸経費支出 | D86: 諸経費支出 | E86: 支出 | G86: 消耗品費 | H86: [販売管理費]
B87: 支払報酬料 | C87: 諸経費支出 | D87: 諸経費支出 | E87: 支出 | G87: 事務用品費 | H87: [販売管理費]
B88: 寄付金 | C88: 諸経費支出 | D88: 諸経費支出 | E88: 支出 | G88: 修繕費 | H88: [販売管理費]
B89: 研究開発費 | C89: 諸経費支出 | D89: 諸経費支出 | E89: 支出 | G89: 水道光熱費 | H89: [販売管理費]
B90: 雑費 | C90: 諸経費支出 | D90: 諸経費支出 | E90: 支出 | G90: 新聞図書費 | H90: [販売管理費]
B91: 受取利息 | C91: 利息等収入 | D91: 利息等収入 | E91: 収入 | G91: 諸会費 | H91: [販売管理費]
B92: 受取配当金 | C92: 利息等収入 | D92: 利息等収入 | E92: 収入 | G92: 支払手数料 | H92: [販売管理費]
B93: 雑収入 | C93: 雑収入 | D93: 雑収入 | E93: 収入 | G93: 車両費 | H93: [販売管理費]
B94: 支払利息 | C94: 利息等支出 | D94: 利息等支出 | E94: 支出 | G94: 地代家賃 | H94: [販売管理費]
B95: 割引料 | C95: 利息等支出 | D95: 利息等支出 | E95: 支出 | G95: 賃借料 | H95: [販売管理費]
B96: 手形売却損 | C96: 利息等支出 | D96: 利息等支出 | E96: 支出 | G96: リース料 | H96: [販売管理費]
B97: 貸倒損失(外) | C97: 諸経費支出 | D97: 諸経費支出 | E97: 支出 | G97: 保険料 | H97: [販売管理費]
B98: 売上割引 | C98: 利息等支出 | D98: 利息等支出 | E98: 支出 | G98: 租税公課 | H98: [販売管理費]
B99: 雑損失 | C99: その他経常支出 | D99: その他経常支出 | E99: 支出 | G99: 支払報酬料 | H99: [販売管理費]
B100: 法人税、住民税及び事業税 | C100: 法人税等支払 | D100: 法人税等支払 | E100: 支出 | G100: 寄付金 | H100: [販売管理費]
B101: 法人税等 | C101: 法人税等支払 | D101: 法人税等支払 | E101: 支出 | G101: 研究開発費 | H101: [販売管理費]
B102: [製]材料仕入高 | C102: 諸経費支出 | D102: 諸経費支出 | E102: 支出 | G102: 雑費 | H102: [販売管理費]
B103: [製]役員報酬 | C103: 人件費支出 | D103: 人件費支出 | E103: 支出 | G103: 貸倒引当金繰入額(販) | H103: [販売管理費]
B104: [製]給料手当 | C104: 人件費支出 | D104: 人件費支出 | E104: 支出 | G104: 減価償却費 | H104: [販売管理費]
B105: [製]雑給 | C105: 人件費支出 | D105: 人件費支出 | E105: 支出 | G105: 受取利息 | H105: [営業外収益]
B106: [製]賞与 | C106: 人件費支出 | D106: 人件費支出 | E106: 支出 | G106: 受取配当金 | H106: [営業外収益]
B107: [製]退職金 | C107: 人件費支出 | D107: 人件費支出 | E107: 支出 | G107: 雑収入 | H107: [営業外収益]
B108: [製]法定福利費 | C108: 人件費支出 | D108: 人件費支出 | E108: 支出 | G108: 支払利息 | H108: [営業外費用]
B109: [製]福利厚生費 | C109: 人件費支出 | D109: 人件費支出 | E109: 支出 | G109: 割引料 | H109: [営業外費用]
B110: [製]外注加工費 | C110: 諸経費支出 | D110: 諸経費支出 | E110: 支出 | G110: 手形売却損 | H110: [営業外費用]
B111: [製]動力費 | C111: 諸経費支出 | D111: 諸経費支出 | E111: 支出 | G111: 貸倒損失(外) | H111: [営業外費用]
B112: [製]荷造運賃 | C112: 諸経費支出 | D112: 諸経費支出 | E112: 支出 | G112: 売上割引 | H112: [営業外費用]
B113: [製]会議費 | C113: 諸経費支出 | D113: 諸経費支出 | E113: 支出 | G113: 雑損失 | H113: [営業外費用]
B114: [製]旅費交通費 | C114: 諸経費支出 | D114: 諸経費支出 | E114: 支出 | G114: 貸倒引当金戻入額 | H114: [特別利益]
B115: [製]通信費 | C115: 諸経費支出 | D115: 諸経費支出 | E115: 支出 | G115: 法人税、住民税及び事業税 | H115: [当期純損益]
B116: [製]消耗品費 | C116: 諸経費支出 | D116: 諸経費支出 | E116: 支出 | G116: 法人税等 | H116: [当期純損益]
B117: [製]事務用品費 | C117: 諸経費支出 | D117: 諸経費支出 | E117: 支出 | G117: [製]期首材料棚卸高 | H117: [売上原価]
B118: [製]消耗工具費 | C118: 諸経費支出 | D118: 諸経費支出 | E118: 支出 | G118: [製]期首仕掛品 | H118: [売上原価]
B119: [製]車両費 | C119: 諸経費支出 | D119: 諸経費支出 | E119: 支出 | G119: [製]期首半製品 | H119: [売上原価]
B120: [製]修繕費 | C120: 諸経費支出 | D120: 諸経費支出 | E120: 支出 | G120: [製]材料仕入高 | H120: [売上原価]
B121: [製]水道光熱費 | C121: 諸経費支出 | D121: 諸経費支出 | E121: 支出 | G121: [製]役員報酬 | H121: [売上原価]
B122: [製]新聞図書費 | C122: 諸経費支出 | D122: 諸経費支出 | E122: 支出 | G122: [製]給料手当 | H122: [売上原価]
B123: [製]諸会費 | C123: 諸経費支出 | D123: 諸経費支出 | E123: 支出 | G123: [製]雑給 | H123: [売上原価]
B124: [製]地代家賃 | C124: 諸経費支出 | D124: 諸経費支出 | E124: 支出 | G124: [製]賞与 | H124: [売上原価]
B125: [製]賃借料 | C125: 諸経費支出 | D125: 諸経費支出 | E125: 支出 | G125: [製]退職金 | H125: [売上原価]
B126: [製]租税公課 | C126: 諸経費支出 | D126: 諸経費支出 | E126: 支出 | G126: [製]法定福利費 | H126: [売上原価]
B127: [製]保険料 | C127: 諸経費支出 | D127: 諸経費支出 | E127: 支出 | G127: [製]福利厚生費 | H127: [売上原価]
B128: [製]支払報酬料 | C128: 諸経費支出 | D128: 諸経費支出 | E128: 支出 | G128: [製]外注加工費 | H128: [売上原価]
B129: [製]寄付金 | C129: 諸経費支出 | D129: 諸経費支出 | E129: 支出 | G129: [製]動力費 | H129: [売上原価]
B130: [製]研究開発費 | C130: 諸経費支出 | D130: 諸経費支出 | E130: 支出 | G130: [製]荷造運賃 | H130: [売上原価]
B131: [製]保管料 | C131: 諸経費支出 | D131: 諸経費支出 | E131: 支出 | G131: [製]会議費 | H131: [売上原価]
B132: [製]特許使用料 | C132: 諸経費支出 | D132: 諸経費支出 | E132: 支出 | G132: [製]旅費交通費 | H132: [売上原価]
B133: [製]雑費 | C133: 諸経費支出 | D133: 諸経費支出 | E133: 支出 | G133: [製]通信費 | H133: [売上原価]
B134: 仮払消費税等 | C134: その他経常収入 | D134: その他経常収入 | E134: 収入 | G134: [製]消耗品費 | H134: [売上原価]
B135: 仮受消費税等 | C135: その他経常収入 | D135: その他経常収入 | E135: 収入 | G135: [製]事務用品費 | H135: [売上原価]
B136: ソフト使用料 | C136: 諸経費支出 | D136: 諸経費支出 | E136: 支出 | G136: [製]消耗工具費 | H136: [売上原価]
B137: 事業主借 | C137: その他財務等収入 | D137: その他財務等支出 | E137: 支出 | G137: [製]車両費 | H137: [売上原価]
B138: 事業主貸 | C138: その他財務等収入 | D138: その他財務等支出 | E138: =IF(ISERROR(VLOOKUP(D138,K$10:L$41,2,0)),"",VLOOKUP(D138,K$10:L$41,2,0)) -> 支出 | G138: [製]修繕費 | H138: [売上原価]
B139: 図書研究費 | C139: 諸経費支出 | D139: 諸経費支出 | E139: 支出 | G139: [製]水道光熱費 | H139: [売上原価]
B140: 前払金 | C140: その他経常収入 | D140: その他経常支出 | G140: [製]新聞図書費 | H140: [売上原価]
B141: 未払消費税 | C141: その他経常収入 | D141: 消費税等支払 | G141: [製]諸会費 | H141: [売上原価]
G142: [製]地代家賃 | H142: [売上原価]
G143: [製]賃借料 | H143: [売上原価]
G144: [製]租税公課 | H144: [売上原価]
G145: [製]保険料 | H145: [売上原価]
G146: [製]支払報酬料 | H146: [売上原価]
G147: [製]寄付金 | H147: [売上原価]
G148: [製]研究開発費 | H148: [売上原価]
G149: [製]保管料 | H149: [売上原価]
G150: [製]特許使用料 | H150: [売上原価]
G151: [製]雑費 | H151: [売上原価]
G152: [製]減価償却費 | H152: [売上原価]
G153: [製]期末材料棚卸高 | H153: [売上原価]
G154: [製]期末仕掛品 | H154: [売上原価]
G155: [製]期末半製品 | H155: [売上原価]
G156: 仮払消費税等 | H156: [B/S科目]
G157: 仮受消費税等 | H157: [B/S科目]
G158: ソフト使用料 | H158: [販売管理費]
G159: 荷造運賃手数料 | H159: [販売管理費]
G160: 事業主借 | H160: [B/S科目]
G161: 事業主貸 | H161: [B/S科目]
G162: 図書研究費 | H162: [販売管理費]
G163: 接待交際費 | H163: [販売管理費]
G164: 専従者給与 | H164: [販売管理費]
G165: 前払金 | H165: [B/S科目]
G166: 未払消費税 | H166: [B/S科目]
G167: 予定消費税 | H167: [B/S科目]

Sheet 月次ピボット
A1: 合計 / 金額 | B1: 年 | C1: 日付
B2: 2016年 | K2: 2017年 | N2: 総計
A3: 資金繰り表科目 | B3: 4月 | C3: 5月 | D3: 6月 | E3: 7月 | F3: 8月 | G3: 9月 | H3: 10月 | I3: 11月 | J3: 12月 | K3: 1月 | L3: 2月 | M3: 3月
A4: その他経常支出 | B4: 212997 | C4: 436234 | D4: 236667 | E4: 1495827 | F4: 236667 | G4: 236667 | H4: 236667 | I4: 236667 | J4: 236667 | K4: 2385183 | L4: 236667 | M4: -2152180 | N4: 4034730
A5: その他経常収入 | B5: 465454 | C5: 105454 | D5: 465454 | E5: 872490 | F5: 10754 | G5: 335554 | H5: 111954 | I5: 2965454 | J5: 1039137 | K5: 465454 | L5: 294454 | M5: -1923393 | N5: 5208220
A6: 現金売上 | B6: 2952629 | C6: 3111196 | D6: 3621918 | E6: 3350444 | F6: 3623791 | G6: 3640449 | H6: 3321745 | I6: 3407612 | J6: 3562395 | K6: 2922534 | L6: 3034107 | M6: 3325582 | N6: 39874402
A7: 支払手形決済 | B7: 1060642 | C7: 3558215 | N7: 4618857
A8: 受取手形期日取立 | B8: 273420 | C8: 2385598 | D8: 3047771 | E8: 1273654 | F8: 3734949 | G8: 3762685 | H8: 4739300 | I8: 4646519 | J8: 2428274 | K8: 1874100 | L8: 1999796 | M8: 949431 | N8: 31115497
A9: 諸経費支出 | B9: 2223858 | C9: 2090114 | D9: 3694450 | E9: 1907672 | F9: 2556609 | G9: 2166475 | H9: 5470845 | I9: 2154496 | J9: 2465444 | K9: 2308866 | L9: 1995009 | M9: 2425546 | N9: 31459384
A10: 消費税等支払 | C10: 2421600 | I10: 2280850 | N10: 4702450
A11: 人件費支出 | B11: 2082600 | C11: 2582415 | D11: 2372586 | E11: 6271474 | F11: 2498137 | G11: 2374067 | H11: 2401375 | I11: 2399433 | J11: 7357954 | K11: 2550892 | L11: 3221935 | M11: 2418183 | N11: 38531051
A12: 短期借入金借入 | J12: 6000000 | N12: 6000000
A13: 短期借入金返済 | B13: 500000 | C13: 500000 | D13: 500000 | E13: 500000 | F13: 500000 | G13: 500000 | H13: 500000 | I13: 500000 | J13: 500000 | K13: 500000 | L13: 500000 | M13: 500000 | N13: 6000000
A14: 長期借入金返済 | B14: 202333 | C14: 202789 | D14: 203245 | E14: 203702 | F14: 204161 | G14: 204620 | H14: 205080 | I14: 205542 | J14: 206004 | K14: 206468 | L14: 206932 | M14: 207398 | N14: 2458274
A15: 定期性預金預入 | G15: 4000 | M15: 4000 | N15: 8000
A16: 買掛金支払 | B16: 8178262 | C16: 9753120 | D16: 21288579 | E16: 14939352 | F16: 21381980 | G16: 18618842 | H16: 18815277 | I16: 15705685 | J16: 14133186 | K16: 12996327 | L16: 17481521 | M16: 16108220 | N16: 189400351
A17: 売掛金回収 | B17: 11208357 | C17: 18802578 | D17: 21647624 | E17: 17355144 | F17: 19032267 | G17: 23142392 | H17: 24155465 | I17: 17100551 | J17: 22541780 | K17: 19399264 | L17: 28427257 | M17: 13735919 | N17: 236548598
A18: 法人税等支払 | C18: 1614500 | F18: 463 | G18: 1000 | I18: 2650000 | L18: 20 | M18: 1000 | N18: 4266983
A19: 利息等支出 | B19: 20507 | C19: 19072 | D19: 17637 | E19: 16201 | F19: 14762 | G19: 13324 | H19: 11885 | I19: 10444 | J19: 9003 | K19: 19149 | L19: 17866 | M19: 16421 | N19: 186271
A20: 利息等収入 | C20: 640 | F20: 2328 | G20: 5000 | L20: 100 | M20: 5000 | N20: 13068
A21: 総計 | B21: 29381059 | C21: 47583525 | D21: 57095931 | E21: 48185960 | F21: 53796868 | G21: 55005075 | H21: 59969593 | I21: 54263253 | J21: 60479844 | K21: 45628237 | L21: 57415664 | M21: 35621127 | N21: 604426136

Sheet 日次ピボット
A1: 合計 / 金額 | D1: 年 | E1: 日付
D2: 2016年 | M2: 2017年 | P2: 総計
A3: 資金繰り表科目 | B3: 相手科目 | C3: 摘要 | D3: 4月 | E3: 5月 | F3: 6月 | G3: 7月 | H3: 8月 | I3: 9月 | J3: 10月 | K3: 11月 | L3: 12月 | M3: 1月 | N3: 2月 | O3: 3月
A4: その他経常支出 | B4: 雑損失 | C4: 確定消費税 | O4: -2388847 | P4: -2388847
A5: その他経常支出 | B5: 預り金 | C5: 源泉税 支払 | G5: 1259160 | M5: 2106436 | P5: 3365596
A6: その他経常支出 | B6: 預り金 | C6: 社会保険料 | E6: 399134 | F6: 199567 | G6: 199567 | H6: 199567 | I6: 199567 | J6: 199567 | K6: 199567 | L6: 199567 | M6: 241647 | N6: 199567 | O6: 199567 | P6: 2436884
A7: その他経常支出 | B7: 預り金 | C7: 住民税支払 | D7: 37100 | E7: 37100 | F7: 37100 | G7: 37100 | H7: 37100 | I7: 37100 | J7: 37100 | K7: 37100 | L7: 37100 | M7: 37100 | N7: 37100 | O7: 37100 | P7: 445200
A8: その他経常支出 | B8: 立替金 | C8: 雇用保険の納付 | D8: 175897 | P8: 175897
A9: その他経常収入 | B9: 仮受消費税等 | C9: 消費税振替 | O9: -30366605 | P9: -30366605
A10: その他経常収入 | B10: 仮払消費税等 | C10: 消費税振替 | O10: 23379058 | P10: 23379058
A11: その他経常収入 | B11: 仮払消費税等 | C11: 東京税関 | E11: -360000 | H11: -454700 | I11: -129900 | J11: -353500 | N11: -171000 | P11: -1469100
A12: その他経常収入 | B12: 買掛金 | C12: 11/18決済予定支払手形（伝票No.3509）の取立てないため修正 | K12: 2500000 | P12: 2500000
A13: その他経常収入 | B13: 未払消費税等 | C13: 確定消費税 | O13: 4598700 | P13: 4598700
A14: その他経常収入 | B14: 預り金 | C14: //介護保険料 10月分 | J14: 9050 | P14: 9050
A15: その他経常収入 | B15: 預り金 | C15: //介護保険料 11月分 | K15: 9050 | P15: 9050
A16: その他経常収入 | B16: 預り金 | C16: //介護保険料 12月分 | L16: 9050 | P16: 9050
A17: その他経常収入 | B17: 預り金 | C17: //介護保険料 1月分 | M17: 9050 | P17: 9050
A18: その他経常収入 | B18: 預り金 | C18: //介護保険料 2月分 | N18: 9050 | P18: 9050
A19: その他経常収入 | B19: 預り金 | C19: //介護保険料 3月分 | O19: 9050 | P19: 9050
A20: その他経常収入 | B20: 預り金 | C20: //介護保険料 4月分 | D20: 9050 | P20: 9050
A21: その他経常収入 | B21: 預り金 | C21: //介護保険料 5月分 | E21: 9050 | P21: 9050
A22: その他経常収入 | B22: 預り金 | C22: //介護保険料 6月分 | F22: 9050 | P22: 9050
A23: その他経常収入 | B23: 預り金 | C23: //介護保険料 7月分 | G23: 9050 | P23: 9050
A24: その他経常収入 | B24: 預り金 | C24: //介護保険料 8月分 | H24: 9050 | P24: 9050
A25: その他経常収入 | B25: 預り金 | C25: //介護保険料 9月分 | I25: 9050 | P25: 9050
A26: その他経常収入 | B26: 預り金 | C26: //社会保険料 10月分 | J26: 199567 | P26: 199567
A27: その他経常収入 | B27: 預り金 | C27: //社会保険料 11月分 | K27: 199567 | P27: 199567
A28: その他経常収入 | B28: 預り金 | C28: //社会保険料 12月分 | L28: 199567 | P28: 199567
A29: その他経常収入 | B29: 預り金 | C29: //社会保険料 1月分 | M29: 199567 | P29: 199567
A30: その他経常収入 | B30: 預り金 | C30: //社会保険料 2月分 | N30: 199567 | P30: 199567
A31: その他経常収入 | B31: 預り金 | C31: //社会保険料 3月分 | O31: 199567 | P31: 199567
A32: その他経常収入 | B32: 預り金 | C32: //社会保険料 4月分 | D32: 199567 | P32: 199567
A33: その他経常収入 | B33: 預り金 | C33: //社会保険料 5月分 | E33: 199567 | P33: 199567
A34: その他経常収入 | B34: 預り金 | C34: //社会保険料 6月分 | F34: 199567 | P34: 199567
A35: その他経常収入 | B35: 預り金 | C35: //社会保険料 7月分 | G35: 199567 | P35: 199567
A36: その他経常収入 | B36: 預り金 | C36: //社会保険料 8月分 | H36: 199567 | P36: 199567
A37: その他経常収入 | B37: 預り金 | C37: //社会保険料 9月分 | I37: 199567 | P37: 199567
A38: その他経常収入 | B38: 預り金 | C38: //住民税 10月分 | J38: 37100 | P38: 37100
A39: その他経常収入 | B39: 預り金 | C39: //住民税 11月分 | K39: 37100 | P39: 37100
A40: その他経常収入 | B40: 預り金 | C40: //住民税 12月分 | L40: 37100 | P40: 37100
A41: その他経常収入 | B41: 預り金 | C41: //住民税 1月分 | M41: 37100 | P41: 37100
A42: その他経常収入 | B42: 預り金 | C42: //住民税 2月分 | N42: 37100 | P42: 37100
A43: その他経常収入 | B43: 預り金 | C43: //住民税 3月分 | O43: 37100 | P43: 37100
A44: その他経常収入 | B44: 預り金 | C44: //住民税 4月分 | D44: 37100 | P44: 37100
A45: その他経常収入 | B45: 預り金 | C45: //住民税 5月分 | E45: 37100 | P45: 37100
A46: その他経常収入 | B46: 預り金 | C46: //住民税 6月分 | F46: 37100 | P46: 37100
A47: その他経常収入 | B47: 預り金 | C47: //住民税 7月分 | G47: 37100 | P47: 37100
A48: その他経常収入 | B48: 預り金 | C48: //住民税 8月分 | H48: 37100 | P48: 37100
A49: その他経常収入 | B49: 預り金 | C49: //住民税 9月分 | I49: 37100 | P49: 37100
A50: その他経常収入 | B50: 預り金 | C50: ／顧問料源泉 | D50: 5000 | P50: 5000
A51: その他経常収入 | B51: 預り金 | C51: 夏季賞与 | G51: 373276 | P51: 373276
A52: その他経常収入 | B52: 預り金 | C52: 給与 10月分//源泉所得税 10月分 | J52: 204860 | P52: 204860
A53: その他経常収入 | B53: 預り金 | C53: 給与 11月分//源泉所得税 11月分 | K53: 204860 | P53: 204860
A54: その他経常収入 | B54: 預り金 | C54: 給与 12月分//源泉所得税 12月分 | L54: 204860 | P54: 204860
A55: その他経常収入 | B55: 預り金 | C55: 給与 1月分//源泉所得税 1月分 | M55: 204860 | P55: 204860
A56: その他経常収入 | B56: 預り金 | C56: 給与 2月分//源泉所得税 2月分 | N56: 204860 | P56: 204860
A57: その他経常収入 | B57: 預り金 | C57: 給与 3月分//源泉所得税 3月分 | O57: 204860 | P57: 204860
A58: その他経常収入 | B58: 預り金 | C58: 給与 4月分//源泉所得税 4月分 | D58: 204860 | P58: 204860
A59: その他経常収入 | B59: 預り金 | C59: 給与 5月分//源泉所得税 5月分 | E59: 204860 | P59: 204860
A60: その他経常収入 | B60: 預り金 | C60: 給与 6月分//源泉所得税 6月分 | F60: 204860 | P60: 204860
A61: その他経常収入 | B61: 預り金 | C61: 給与 7月分//源泉所得税 7月分 | G61: 204860 | P61: 204860
A62: その他経常収入 | B62: 預り金 | C62: 給与 8月分//源泉所得税 8月分 | H62: 204860 | P62: 204860
A63: その他経常収入 | B63: 預り金 | C63: 給与 9月分//源泉所得税 9月分 | I63: 204860 | P63: 204860
A64: その他経常収入 | B64: 預り金 | C64: 冬季賞与 | L64: 516080 | P64: 516080
A65: その他経常収入 | B65: 預り金 | C65: (空白) | E65: 5000 | F65: 5000 | G65: 38760 | H65: 5000 | I65: 5000 | J65: 5000 | K65: 5000 | L65: 35145 | M65: 5000 | N65: 5000 | O65: 5000 | P65: 118905
A66: その他経常収入 | B66: 立替金 | C66: 弥生幸子 10月分//雇用保険 10月分 | J66: 9877 | P66: 9877
A67: その他経常収入 | B67: 立替金 | C67: 弥生幸子 11月分//雇用保険 11月分 | K67: 9877 | P67: 9877
A68: その他経常収入 | B68: 立替金 | C68: 弥生幸子 12月分//雇用保険 12月分 | L68: 9877 | P68: 9877
A69: その他経常収入 | B69: 立替金 | C69: 弥生幸子 1月分//雇用保険 1月分 | M69: 9877 | P69: 9877
A70: その他経常収入 | B70: 立替金 | C70: 弥生幸子 2月分//雇用保険 2月分 | N70: 9877 | P70: 9877
A71: その他経常収入 | B71: 立替金 | C71: 弥生幸子 3月分//雇用保険 3月分 | O71: 9877 | P71: 9877
A72: その他経常収入 | B72: 立替金 | C72: 弥生幸子 4月分//雇用保険 4月分 | D72: 9877 | P72: 9877
A73: その他経常収入 | B73: 立替金 | C73: 弥生幸子 5月分//雇用保険 5月分 | E73: 9877 | P73: 9877
A74: その他経常収入 | B74: 立替金 | C74: 弥生幸子 6月分//雇用保険 6月分 | F74: 9877 | P74: 9877
A75: その他経常収入 | B75: 立替金 | C75: 弥生幸子 7月分//雇用保険 7月分 | G75: 9877 | P75: 9877
A76: その他経常収入 | B76: 立替金 | C76: 弥生幸子 8月分//雇用保険 8月分 | H76: 9877 | P76: 9877
A77: その他経常収入 | B77: 立替金 | C77: 弥生幸子 9月分//雇用保険 9月分 | I77: 9877 | P77: 9877
A78: その他経常収入 | B78: 立替金 | C78: (空白) | L78: 27458 | P78: 27458
A79: 現金売上 | B79: 売上高 | C79: 本日売上 | D79: 2952629 | E79: 3111196 | F79: 3621918 | G79: 3350444 | H79: 3623791 | I79: 3640449 | J79: 3321745 | K79: 3407612 | L79: 3562395 | M79: 2922534 | N79: 3034107 | O79: 3325582 | P79: 39874402
A80: 支払手形決済 | B80: 支払手形 | C80: 決済 | D80: 1060642 | E80: 3558215 | P80: 4618857
A81: 受取手形期日取立 | B81: 受取手形 | C81: 決済,振出人:九州物産 | D81: 126000 | E81: 583800 | G81: 515000 | H81: 1140000 | I81: 1011920 | J81: 905750 | K81: 829360 | L81: 858800 | M81: 887800 | N81: 1336796 | P81: 8195226
A82: 受取手形期日取立 | B82: 受取手形 | C82: 決済,振出人:中央産業大阪 | E82: 1214100 | F82: 2502150 | H82: 2070920 | I82: 2750765 | J82: 3465000 | K82: 3046000 | L82: 1050000 | N82: 663000 | P82: 16761935
A83: 受取手形期日取立 | B83: 受取手形 | C83: 決済,振出人:中野産業 | D83: 147420 | E83: 587698 | F83: 545621 | G83: 758654 | H83: 524029 | J83: 368550 | K83: 771159 | L83: 519474 | M83: 986300 | O83: 949431 | P83: 6158336
A84: 諸経費支出 | B84: [製]修繕費 | C84: パソコン修理 | D84: 55000 | P84: 55000
A85: 諸経費支出 | B85: [製]修繕費 | C85: 機械部品修理、調整 | F85: 30000 | K85: 30000 | P85: 60000
A86: 諸経費支出 | B86: [製]消耗工具費 | C86: 工具代 山田商店 | F86: 32500 | I86: 15200 | P86: 47700
A87: 諸経費支出 | B87: [製]消耗品費 | C87: ガムテープ セブンマート城西店 | D87: 3560 | P87: 3560
A88: 諸経費支出 | B88: [製]消耗品費 | C88: ゴミ処理券 | E88: 4380 | G88: 4200 | I88: 3000 | L88: 1380 | N88: 1200 | P88: 14160
A89: 諸経費支出 | B89: [製]消耗品費 | C89: ゴミ袋 まるとく商店 | D89: 1560 | H89: 2600 | L89: 560 | P89: 4720
A90: 諸経費支出 | B90: [製]消耗品費 | C90: ダンボール 山本容器 | G90: 35200 | M90: 35200 | P90: 70400
A91: 諸経費支出 | B91: [製]消耗品費 | C91: トイレットペーパー まるとく商店 | D91: 2730 | J91: 2357 | P91: 5087
A92: 諸経費支出 | B92: [製]消耗品費 | C92: トナーカートリッジ代 | E92: 35000 | P92: 35000
A93: 諸経費支出 | B93: [製]消耗品費 | C93: トナーカートリッジ代 弥生文具 | J93: 35000 | P93: 35000
A94: 諸経費支出 | B94: [製]消耗品費 | C94: マット、モップ代 | D94: 8050 | E94: 8050 | F94: 8050 | G94: 8050 | H94: 8050 | I94: 8050 | J94: 8050 | K94: 8050 | L94: 1050 | M94: 1050 | N94: 1050 | O94: 1050 | P94: 68600
A95: 諸経費支出 | B95: [製]消耗品費 | C95: 作業用品 | D95: 18000 | P95: 18000
A96: 諸経費支出 | B96: [製]消耗品費 | C96: 石鹸 セブンマート城西店 | F96: 2945 | P96: 2945
A97: 諸経費支出 | B97: [製]消耗品費 | C97: 洗剤 セブンマート城西店 | H97: 1625 | P97: 1625
A98: 諸経費支出 | B98: [製]消耗品費 | C98: 電池 セブンマート城西店 | G98: 3500 | M98: 1600 | P98: 5100
A99: 諸経費支出 | B99: [製]水道光熱費 | C99: 水道代 城西市水道局 | F99: 24000 | H99: 24000 | J99: 33400 | L99: 203600 | P99: 285000
A100: 諸経費支出 | B100: [製]水道光熱費 | C100: 電気代 関東電力 | D100: 35000 | E100: 45500 | F100: 35600 | G100: 26000 | H100: 38000 | I100: 26600 | J100: 25800 | K100: 25970 | L100: 160000 | M100: 116900 | N100: 160950 | O100: 170000 | P100: 866320
A101: 諸経費支出 | B101: [製]地代家賃 | C101: 10月分 | J101: 115000 | P101: 115000
A102: 諸経費支出 | B102: [製]地代家賃 | C102: 11月分 | K102: 115000 | P102: 115000
A103: 諸経費支出 | B103: [製]地代家賃 | C103: 12月分 | L103: 115000 | P103: 115000
A104: 諸経費支出 | B104: [製]地代家賃 | C104: 1月分 | N104: 115000 | P104: 115000
A105: 諸経費支出 | B105: [製]地代家賃 | C105: 2月分 | N105: 115000 | P105: 115000
A106: 諸経費支出 | B106: [製]地代家賃 | C106: 3月分 | O106: 115000 | P106: 115000
A107: 諸経費支出 | B107: [製]地代家賃 | C107: ４月分 | D107: 115000 | P107: 115000
A108: 諸経費支出 | B108: [製]地代家賃 | C108: 5月分 | E108: 115000 | P108: 115000
A109: 諸経費支出 | B109: [製]地代家賃 | C109: 6月分 | F109: 115000 | P109: 115000
A110: 諸経費支出 | B110: [製]地代家賃 | C110: 7月分 | G110: 115000 | P110: 115000
A111: 諸経費支出 | B111: [製]地代家賃 | C111: 8月分 | H111: 115000 | P111: 115000
A112: 諸経費支出 | B112: [製]地代家賃 | C112: 9月分 | I112: 115000 | P112: 115000
A113: 諸経費支出 | B113: [製]賃借料 | C113: 弥生信販 機械リース 10月分 | K113: 44625 | P113: 44625
A114: 諸経費支出 | B114: [製]賃借料 | C114: 弥生信販 機械リース 11月分 | L114: 44625 | P114: 44625
A115: 諸経費支出 | B115: [製]賃借料 | C115: 弥生信販 機械リース 12月分 | M115: 44625 | P115: 44625
A116: 諸経費支出 | B116: [製]賃借料 | C116: 弥生信販 機械リース １月分 | N116: 44625 | P116: 44625
A117: 諸経費支出 | B117: [製]賃借料 | C117: 弥生信販 機械リース ２月分 | O117: 44625 | P117: 44625
A118: 諸経費支出 | B118: [製]賃借料 | C118: 弥生信販 機械リース ３月分 | D118: 44625 | P118: 44625
A119: 諸経費支出 | B119: [製]賃借料 | C119: 弥生信販 機械リース ４月分 | E119: 44625 | P119: 44625
A120: 諸経費支出 | B120: [製]賃借料 | C120: 弥生信販 機械リース ５月分 | F120: 44625 | P120: 44625
A121: 諸経費支出 | B121: [製]賃借料 | C121: 弥生信販 機械リース ６月分 | G121: 44625 | P121: 44625
A122: 諸経費支出 | B122: [製]賃借料 | C122: 弥生信販 機械リース ７月分 | H122: 44625 | P122: 44625
A123: 諸経費支出 | B123: [製]賃借料 | C123: 弥生信販 機械リース ８月分 | I123: 44625 | J123: 44625 | P123: 89250
A124: 諸経費支出 | B124: [製]通信費 | C124: 電話料 10月分 JＴＴ | K124: 34628 | P124: 34628
A125: 諸経費支出 | B125: [製]通信費 | C125: 電話料 11月分 JTT | L125: 3169 | P125: 3169
A126: 諸経費支出 | B126: [製]通信費 | C126: 電話料 12月分 JTT | M126: 6284 | P126: 6284
A127: 諸経費支出 | B127: [製]通信費 | C127: 電話料 １月分 JTT | N127: 5284 | P127: 5284
A128: 諸経費支出 | B128: [製]通信費 | C128: 電話料 ２月分 JTT | O128: 6008 | P128: 6008
A129: 諸経費支出 | B129: [製]通信費 | C129: 電話料 ３月分 JＴＴ | D129: 36103 | P129: 36103
A130: 諸経費支出 | B130: [製]通信費 | C130: 電話料 ４月分 JＴＴ | E130: 23516 | P130: 23516
A131: 諸経費支出 | B131: [製]通信費 | C131: 電話料 ５月分 JＴＴ | F131: 32987 | P131: 32987
A132: 諸経費支出 | B132: [製]通信費 | C132: 電話料 ６月分 JＴＴ | G132: 44218 | P132: 44218
A133: 諸経費支出 | B133: [製]通信費 | C133: 電話料 ７月分 JＴＴ | H133: 34197 | P133: 34197
A134: 諸経費支出 | B134: [製]通信費 | C134: 電話料 ８月分 JＴＴ | I134: 32987 | P134: 32987
A135: 諸経費支出 | B135: [製]通信費 | C135: 電話料 ９月分 JＴＴ | J135: 45297 | P135: 45297
A136: 諸経費支出 | B136: [製]旅費交通費 | C136: 通勤定期代 | D136: 7800 | E136: 7800 | F136: 7800 | G136: 7800 | H136: 7800 | I136: 7800 | J136: 7800 | K136: 7800 | L136: 7800 | M136: 7800 | N136: 7800 | O136: 7800 | P136: 93600
A137: 諸経費支出 | B137: リース料 | C137: コピーリース料 アジア信販 | D137: 12300 | E137: 12300 | F137: 12300 | G137: 12300 | H137: 12300 | I137: 12300 | J137: 12300 | K137: 12300 | L137: 12300 | M137: 12300 | N137: 12300 | O137: 12300 | P137: 147600
A138: 諸経費支出 | B138: リース料 | C138: レジスターリース料 | N138: 5250 | O138: 5250 | P138: 10500
A139: 諸経費支出 | B139: リース料 | C139: レジスターリース料 ユーロリース | D139: 5250 | E139: 5250 | F139: 5250 | G139: 5250 | H139: 5250 | I139: 5250 | J139: 5250 | K139: 5250 | L139: 5250 | M139: 5250 | P139: 52500
A140: 諸経費支出 | B140: 荷造運賃 | C140: やよい配送・運賃 | D140: 358000 | E140: 356000 | F140: 389500 | G140: 401000 | H140: 421000 | I140: 521500 | J140: 630800 | K140: 268900 | L140: 358000 | M140: 378000 | N140: 398500 | O140: 365200 | P140: 4846400
A141: 諸経費支出 | B141: 交際費 | C141: お歳暮 やよいデパート | O141: 207900 | P141: 207900
A142: 諸経費支出 | B142: 交際費 | C142: お中元 やよいデパート | J142: 165900 | P142: 165900
A143: 諸経費支出 | B143: 交際費 | C143: お土産 なかのせんべい ：ペルシャ | N143: 8700 | P143: 8700
A144: 諸経費支出 | B144: 交際費 | C144: ゴルフコンペ 富士裾野カントリー | F144: 84000 | K144: 165000 | P144: 249000
A145: 諸経費支出 | B145: 交際費 | C145: ミナミ開店祝 花輪代 | E145: 31500 | P145: 31500
A146: 諸経費支出 | B146: 交際費 | C146: 香典 ミナミ | L146: 30000 | P146: 30000
A147: 諸経費支出 | B147: 交際費 | C147: 手土産 銀座屋本店（佐藤）：景徳鎮 | F147: 8400 | P147: 8400
A148: 諸経費支出 | B148: 交際費 | C148: 城西商店会 忘年会 会費 | L148: 15000 | P148: 15000
A149: 諸経費支出 | B149: 交際費 | C149: 接待 割烹 よしの（弥生幸子）：景徳鎮 | E149: 68500 | P149: 68500
A150: 諸経費支出 | B150: 交際費 | C150: 接待 割烹 よしの（弥生幸子）：彫刻 | K150: 108000 | P150: 108000
A151: 諸経費支出 | B151: 交際費 | C151: 組合ゴルフコンペ 伊豆高原カントリー | M151: 86500 | P151: 86500
A152: 諸経費支出 | B152: 交際費 | C152: 得意先接待 パブゴールド（佐藤） | D152: 76280 | H152: 55000 | P152: 131280
A153: 諸経費支出 | B153: 交際費 | C153: 得意先接待 パブゴールド（清水） | G153: 48000 | P153: 48000
A154: 諸経費支出 | B154: 交際費 | C154: 得意先接待 割烹 よしの（佐藤） | M154: 21000 | P154: 21000
A155: 諸経費支出 | B155: 交際費 | C155: 得意先接待 割烹 よしの（上原） | N155: 35000 | P155: 35000
A156: 諸経費支出 | B156: 広告宣伝費 | C156: チラシ印刷代 城西プリント | O156: 420000 | P156: 420000
A157: 諸経費支出 | B157: 広告宣伝費 | C157: パンフ印刷 城西プリント | M157: 472500 | P157: 472500
A158: 諸経費支出 | B158: 広告宣伝費 | C158: やよい広告・雑誌広告 ：銀食器 | F158: 1399000 | P158: 1399000
A159: 諸経費支出 | B159: 広告宣伝費 | C159: 新聞広告代 | J159: 3000000 | P159: 3000000
A160: 諸経費支出 | B160: 雑費 | C160: 弥生会計プロフェッショナルハイパーサポート契約(平成22年9月まで) | I160: 42000 | P160: 42000
A161: 諸経費支出 | B161: 支払手数料 | C161: //給与 10月分 振込 | J161: 2160 | P161: 2160
A162: 諸経費支出 | B162: 支払手数料 | C162: //給与 11月分 振込 | K162: 2160 | P162: 2160
A163: 諸経費支出 | B163: 支払手数料 | C163: //給与 12月分 振込 | L163: 2160 | P163: 2160
A164: 諸経費支出 | B164: 支払手数料 | C164: //給与 1月分 振込 | M164: 2160 | P164: 2160
A165: 諸経費支出 | B165: 支払手数料 | C165: //給与 2月分 振込 | N165: 2160 | P165: 2160
A166: 諸経費支出 | B166: 支払手数料 | C166: //給与 3月分 振込 | O166: 2160 | P166: 2160
A167: 諸経費支出 | B167: 支払手数料 | C167: //給与 4月分 振込 | D167: 2160 | P167: 2160
A168: 諸経費支出 | B168: 支払手数料 | C168: //給与 5月分 振込 | E168: 2160 | P168: 2160
A169: 諸経費支出 | B169: 支払手数料 | C169: //給与 6月分 振込 | F169: 2160 | P169: 2160
A170: 諸経費支出 | B170: 支払手数料 | C170: //給与 7月分 振込 | G170: 2160 | P170: 2160
A171: 諸経費支出 | B171: 支払手数料 | C171: //給与 8月分 振込 | H171: 2160 | P171: 2160
A172: 諸経費支出 | B172: 支払手数料 | C172: //給与 9月分 振込 | I172: 2160 | P172: 2160
A173: 諸経費支出 | B173: 支払手数料 | C173: A002厚木産業 | K173: 540 | P173: 540
A174: 諸経費支出 | B174: 支払手数料 | C174: C001中央産業 | L174: 432 | P174: 432
A175: 諸経費支出 | B175: 支払手数料 | C175: F001ﾌｧﾐﾘｰｽﾄｱふいた | K175: 432 | P175: 432
A176: 諸経費支出 | B176: 支払手数料 | C176: F002福山商店 | K176: 432 | P176: 432
A177: 諸経費支出 | B177: 支払手数料 | C177: G001御殿場リビング | L177: 432 | N177: 432 | P177: 864
A178: 諸経費支出 | B178: 支払手数料 | C178: H001ハマ屋 | M178: 540 | N178: 540 | O178: 540 | P178: 1620
A179: 諸経費支出 | B179: 支払手数料 | C179: H002彦商会 | J179: 432 | K179: 432 | L179: 432 | M179: 432 | N179: 432 | P179: 2160
A180: 諸経費支出 | B180: 支払手数料 | C180: I001池袋リビング | K180: 432 | M180: 432 | N180: 432 | P180: 1296
A181: 諸経費支出 | B181: 支払手数料 | C181: I002市川ストア | K181: 432 | P181: 432
A182: 諸経費支出 | B182: 支払手数料 | C182: K001海北商店 | K182: 540 | L182: 432 | P182: 972
A183: 諸経費支出 | B183: 支払手数料 | C183: K002川崎ﾎｰﾑｼｮｯﾌﾟ | K183: 540 | N183: 540 | O183: 540 | P183: 1620
A184: 諸経費支出 | B184: 支払手数料 | C184: L001ＬＳリビング大 | M184: 432 | N184: 432 | O184: 432 | P184: 1296
A185: 諸経費支出 | B185: 支払手数料 | C185: L003愛知マート | L185: 432 | P185: 432
A186: 諸経費支出 | B186: 支払手数料 | C186: M001三島商会 | E186: 540 | K186: 432 | L186: 432 | M186: 432 | N186: 432 | P186: 2268
A187: 諸経費支出 | B187: 支払手数料 | C187: M002有限会社ミナミ | K187: 540 | M187: 432 | P187: 972
A188: 諸経費支出 | B188: 支払手数料 | C188: N001長島商事 | K188: 432 | P188: 432
A189: 諸経費支出 | B189: 支払手数料 | C189: O002大阪食器 | K189: 540 | M189: 540 | N189: 540 | P189: 1620
A190: 諸経費支出 | B190: 支払手数料 | C190: P001プラザ調布 | J190: 432 | K190: 432 | L190: 432 | M190: 432 | N190: 432 | P190: 2160
A191: 諸経費支出 | B191: 支払手数料 | C191: R001ﾘﾋﾞﾝｸﾞｼｮｯﾌﾟ佐 | K191: 432 | L191: 432 | M191: 432 | N191: 432 | P191: 1728
A192: 諸経費支出 | B192: 支払手数料 | C192: Y001山口商事 | L192: 432 | P192: 432
A193: 諸経費支出 | B193: 支払手数料 | C193: (空白) | L193: 10500 | P193: 10500
A194: 諸経費支出 | B194: 支払報酬料 | C194: 税理士顧問料 10月分 | J194: 50000 | P194: 50000
A195: 諸経費支出 | B195: 支払報酬料 | C195: 税理士顧問料 11月分 | K195: 50000 | P195: 50000
A196: 諸経費支出 | B196: 支払報酬料 | C196: 税理士顧問料 12月分 | L196: 50000 | P196: 50000
A197: 諸経費支出 | B197: 支払報酬料 | C197: 税理士顧問料 １月分 | M197: 50000 | P197: 50000
A198: 諸経費支出 | B198: 支払報酬料 | C198: 税理士顧問料 ２月分 | N198: 50000 | P198: 50000
A199: 諸経費支出 | B199: 支払報酬料 | C199: 税理士顧問料 ３月分 | O199: 50000 | P199: 50000
A200: 諸経費支出 | B200: 支払報酬料 | C200: 税理士顧問料 ５月分 | E200: 50000 | P200: 50000
... 288 more rows

Sheet 日次サマリー基礎 (hidden)
A1: 資金繰り表科目 | B1: 相手科目 | C1: 摘要 | D1: 4月 | E1: 5月 | F1: 6月 | G1: 7月 | H1: 8月 | I1: 9月 | J1: 10月 | K1: 11月 | L1: 12月 | M1: 1月 | N1: 2月 | O1: 3月
A2: 現金売上 | B2: 売上高 | C2: 本日売上 | D2: 2952629 | E2: 3111196 | F2: 3621918 | G2: 3350444 | H2: 3623791 | I2: 3640449 | J2: 3321745 | K2: 3407612 | L2: 3562395 | M2: 2922534 | N2: 3034107 | O2: 3325582 | P2: 39874402 | Q2: 経常収入
A3: 現金売上 | B3: 現金売上 小計 | D3: 2952629 | E3: 3111196 | F3: 3621918 | G3: 3350444 | H3: 3623791 | I3: 3640449 | J3: 3321745 | K3: 3407612 | L3: 3562395 | M3: 2922534 | N3: 3034107 | O3: 3325582 | P3: 39874402 | Q3: 経常収入
A4: 売掛金回収 | B4: 売掛金 | C4: A002厚木産業 | D4: 1645350 | E4: 1645350 | F4: 1018080 | G4: 1559040 | H4: 785400 | I4: 1905960 | J4: 1344000 | K4: 1322160 | P4: 11225340 | Q4: 経常収入
A5: 売掛金回収 | B5: 売掛金 | C5: B001文京食器店 | D5: 1502025 | P5: 1502025 | Q5: 経常収入
A6: 売掛金回収 | B6: 売掛金 | C6: C001中央産業 | K6: 334530 | L6: 614498 | M6: 415800 | P6: 1364828 | Q6: 経常収入
A7: 売掛金回収 | B7: 売掛金 | C7: C002中央産業仙台 | D7: 122010 | F7: 44982 | G7: 435855 | I7: 549780 | J7: 117600 | K7: 135460 | L7: 44982 | M7: 194040 | N7: 65709 | O7: 222852 | P7: 1933270 | Q7: 経常収入
A8: 売掛金回収 | B8: 売掛金 | C8: E001エヌ商会 | E8: 1730400 | P8: 1730400 | Q8: 経常収入
A9: 売掛金回収 | B9: 売掛金 | C9: F001ﾌｧﾐﾘｰｽﾄｱふいた | E9: 1034250 | F9: 2237655 | G9: 1904490 | H9: 1714912 | I9: 1207237 | J9: 1385737 | K9: 1034250 | M9: 1714912 | P9: 12233443 | Q9: 経常収入
A10: 売掛金回収 | B10: 売掛金 | C10: F002福山商店 | E10: 62748 | F10: 372827 | H10: 331430 | J10: 259707 | K10: 62748 | L10: 237919 | M10: 228768 | N10: 62748 | P10: 1618895 | Q10: 経常収入
A11: 売掛金回収 | B11: 売掛金 | C11: G001御殿場リビング | D11: 462000 | E11: 376588 | F11: 556416 | G11: 572544 | H11: 131712 | I11: 16170 | J11: 196896 | K11: 376588 | L11: 160520 | M11: 747812 | N11: 376600 | P11: 3973846 | Q11: 経常収入
A12: 売掛金回収 | B12: 売掛金 | C12: H001ハマ屋 | E12: 255150 | G12: 359887 | H12: 481320 | I12: 387607 | J12: 248850 | L12: 811912 | M12: 240202 | N12: 231540 | O12: 414476 | P12: 3430944 | Q12: 経常収入
A13: 売掛金回収 | B13: 売掛金 | C13: H002彦商会 | E13: 221676 | F13: 378787 | G13: 110565 | H13: 128310 | I13: 92137 | J13: 229320 | K13: 449631 | L13: 379209 | M13: 215682 | N13: 453738 | P13: 2659055 | Q13: 経常収入
A14: 売掛金回収 | B14: 売掛金 | C14: I001池袋リビング | E14: 167580 | F14: 249900 | G14: 173827 | H14: 160650 | I14: 88200 | J14: 259087 | K14: 396900 | L14: 378000 | M14: 146093 | N14: 368212 | P14: 2388449 | Q14: 経常収入
A15: 売掛金回収 | B15: 売掛金 | C15: I002市川ストア | E15: 306600 | F15: 159862 | G15: 176400 | H15: 585900 | I15: 198843 | J15: 177187 | K15: 102375 | L15: 241342 | M15: 184170 | N15: 86205 | O15: 312050 | P15: 2530934 | Q15: 経常収入
A16: 売掛金回収 | B16: 売掛金 | C16: K001海北商店 | E16: 196980 | F16: 88788 | G16: 123480 | I16: 349272 | J16: 115101 | K16: 896700 | L16: 370478 | P16: 2140799 | Q16: 経常収入
A17: 売掛金回収 | B17: 売掛金 | C17: K002川崎ﾎｰﾑｼｮｯﾌﾟ | E17: 386820 | F17: 324891 | G17: 446740 | H17: 380135 | I17: 329616 | K17: 138915 | L17: 418611 | M17: 594130 | N17: 293200 | O17: 350610 | P17: 3663668 | Q17: 経常収入
A18: 売掛金回収 | B18: 売掛金 | C18: L001ＬＳリビング大 | M18: 435127 | N18: 406712 | O18: 226812 | P18: 1068651 | Q18: 経常収入
A19: 売掛金回収 | B19: 売掛金 | C19: L001ＬＳリビング大分 | D19: 376245 | G19: 98846 | H19: 130680 | I19: 166500 | J19: 110340 | K19: 62100 | P19: 944711 | Q19: 経常収入
A20: 売掛金回収 | B20: 売掛金 | C20: L002ＬＳリビング福 | M20: 354690 | N20: 449820 | O20: 326418 | P20: 1130928 | Q20: 経常収入
A21: 売掛金回収 | B21: 売掛金 | C21: L002ＬＳリビング福岡 | D21: 542430 | G21: 108465 | H21: 505575 | I21: 340200 | J21: 106312 | K21: 92043 | P21: 1695025 | Q21: 経常収入
A22: 売掛金回収 | B22: 売掛金 | C22: L003愛知マート | D22: 1958775 | F22: 2101512 | L22: 1555639 | M22: 1555627 | P22: 7171553 | Q22: 経常収入
A23: 売掛金回収 | B23: 売掛金 | C23: M001三島商会 | E23: 360885 | G23: 208740 | H23: 224910 | I23: 158760 | J23: 102900 | K23: 361620 | L23: 269002 | M23: 705612 | N23: 308712 | P23: 2701141 | Q23: 経常収入
A24: 売掛金回収 | B24: 売掛金 | C24: M002有限会社ミナミ | E24: 858480 | F24: 1198785 | G24: 840472 | H24: 545575 | I24: 459170 | J24: 668850 | K24: 2148405 | L24: 688327 | M24: 818802 | P24: 8226866 | Q24: 経常収入
A25: 売掛金回収 | B25: 売掛金 | C25: N001長島商事 | G25: 441000 | H25: 257460 | I25: 331800 | J25: 358260 | K25: 830760 | L25: 756220 | P25: 2975500 | Q25: 経常収入
A26: 売掛金回収 | B26: 売掛金 | C26: O001大津商会 | E26: 145293 | F26: 243810 | G26: 236250 | H26: 225193 | J26: 154035 | K26: 319551 | P26: 1324132 | Q26: 経常収入
A27: 売掛金回収 | B27: 売掛金 | C27: O002大阪食器 | E27: 193158 | F27: 128520 | G27: 252504 | H27: 189000 | I27: 59535 | J27: 97524 | K27: 405972 | L27: 231264 | M27: 140629 | N27: 449657 | P27: 2147763 | Q27: 経常収入
A28: 売掛金回収 | B28: 売掛金 | C28: O003オリエント商会 | E28: 2565485 | J28: 258800 | K28: 71400 | L28: 33600 | M28: 113064 | P28: 3042349 | Q28: 経常収入
A29: 売掛金回収 | B29: 売掛金 | C29: P001プラザ調布 | E29: 134400 | F29: 164220 | G29: 154125 | H29: 254812 | I29: 210375 | J29: 126150 | K29: 126150 | L29: 168732 | M29: 43062 | N29: 151170 | P29: 1533196 | Q29: 経常収入
A30: 売掛金回収 | B30: 売掛金 | C30: R001ﾘﾋﾞﾝｸﾞｼｮｯﾌﾟ佐 | E30: 103477 | J30: 40320 | K30: 265765 | L30: 53772 | M30: 73932 | N30: 103489 | P30: 640755 | Q30: 経常収入
A31: 売掛金回収 | B31: 売掛金 | C31: S001品川屋 | F31: 89040 | G31: 45864 | H31: 17136 | K31: 40320 | L31: 114240 | M31: 85680 | O31: 124320 | P31: 516600 | Q31: 経常収入
A32: 売掛金回収 | B32: 売掛金 | C32: W001ﾜｰｸｼｮｯﾌﾟ鈴鹿 | I32: 16065 | J32: 14085 | K32: 10170 | L32: 23625 | N32: 42997 | O32: 5670 | P32: 112612 | Q32: 経常収入
A33: 売掛金回収 | B33: 売掛金 | C33: Y001山口商事 | E33: 12600 | F33: 12390 | H33: 5376 | K33: 105420 | L33: 14124 | M33: 18900 | N33: 26712 | P33: 195522 | Q33: 経常収入
A34: 売掛金回収 | B34: 売掛金 | C34: 愛知マート | G34: 1109850 | H34: 2932400 | I34: 2024373 | J34: 2395628 | K34: 1890000 | P34: 10352251 | Q34: 経常収入
A35: 売掛金回収 | B35: 売掛金 | C35: 掛代金回収 | E35: 920850 | L35: 1682758 | M35: 4159594 | N35: 14651407 | P35: 21414609 | Q35: 経常収入
A36: 売掛金回収 | B36: 売掛金 | C36: 掛代金回収 B001文京食器店 | E36: 1518760 | F36: 856492 | G36: 557130 | H36: 948920 | I36: 805196 | J36: 1502025 | K36: 626360 | P36: 6814883 | Q36: 経常収入
A37: 売掛金回収 | B37: 売掛金 | C37: 掛代金回収 C001中央産業 | E37: 520905 | F37: 723686 | G37: 461475 | H37: 520905 | I37: 194906 | N37: 549675 | O37: 189225 | P37: 3160777 | Q37: 経常収入
A38: 売掛金回収 | B38: 売掛金 | C38: 掛代金回収 E001エヌ商会 | D38: 758625 | F38: 1575000 | G38: 2777900 | H38: 1091350 | J38: 2234400 | K38: 2507441 | P38: 10944716 | Q38: 経常収入
A39: 売掛金回収 | B39: 売掛金 | C39: 掛代金回収 越後屋 | D39: 1658600 | F39: 589400 | H39: 1732500 | J39: 1956200 | P39: 5936700 | Q39: 経常収入
A40: 売掛金回収 | B40: 売掛金 | C40: 小切手持込み・佐藤 | F40: 5280000 | P40: 5280000 | Q40: 経常収入
A41: 売掛金回収 | B41: 売掛金 | C41: 振込・近藤商会 | J41: 6150000 | P41: 6150000 | Q41: 経常収入
A42: 売掛金回収 | B42: 売掛金 | C42: 振込・斎藤 | L42: 5520000 | P42: 5520000 | Q42: 経常収入
A43: 売掛金回収 | B43: 売掛金 | C43: 振込・山口聖子 | O43: 4100000 | P43: 4100000 | Q43: 経常収入
A44: 売掛金回収 | B44: 売掛金 | C44: 振込・田中 | I44: 6500000 | P44: 6500000 | Q44: 経常収入
A45: 売掛金回収 | B45: 売掛金 | C45: 滞留分売掛金残高回収 | M45: 248445 | N45: 452892 | P45: 701337 | Q45: 経常収入
A46: 売掛金回収 | B46: 売掛金 | C46: 売掛金小切手入金 | F46: 1335284 | G46: 1098527 | H46: 918023 | I46: 1897526 | J46: 1058742 | K46: 664582 | L46: 1354897 | M46: 1263587 | N46: 718955 | O46: 1066778 | P46: 11376901 | Q46: 経常収入
A47: 売掛金回収 | B47: 売掛金 | C47: 売掛金振込入金 | D47: 325452 | E47: 5084143 | F47: 1917297 | G47: 3101168 | H47: 3832683 | I47: 4853164 | J47: 2487409 | K47: 758978 | L47: 4934909 | M47: 4700904 | N47: 7191507 | O47: 3372708 | P47: 42560322 | Q47: 経常収入
A48: 売掛金回収 | B48: 売掛金 | C48: 売掛金請求 | D48: 1856845 | K48: 563257 | P48: 2420102 | Q48: 経常収入
A49: 売掛金回収 | B49: 売掛金 | C49: 未回収売掛金残高回収 | O49: 3024000 | P49: 3024000 | Q49: 経常収入
A50: 売掛金回収 | B50: 売掛金 | C50: (空白) | L50: 1483200 | N50: 985600 | P50: 2468800 | Q50: 経常収入
A51: 売掛金回収 | B51: 売掛金回収 小計 | D51: 11208357 | E51: 18802578 | F51: 21647624 | G51: 17355144 | H51: 19032267 | I51: 23142392 | J51: 24155465 | K51: 17100551 | L51: 22541780 | M51: 19399264 | N51: 28427257 | O51: 13735919 | P51: 236548598 | Q51: 経常収入
A52: 受取手形期日取立 | B52: 受取手形 | C52: 決済,振出人:九州物産 | D52: 126000 | E52: 583800 | G52: 515000 | H52: 1140000 | I52: 1011920 | J52: 905750 | K52: 829360 | L52: 858800 | M52: 887800 | N52: 1336796 | P52: 8195226 | Q52: 経常収入
A53: 受取手形期日取立 | B53: 受取手形 | C53: 決済,振出人:中央産業大阪 | E53: 1214100 | F53: 2502150 | H53: 2070920 | I53: 2750765 | J53: 3465000 | K53: 3046000 | L53: 1050000 | N53: 663000 | P53: 16761935 | Q53: 経常収入
A54: 受取手形期日取立 | B54: 受取手形 | C54: 決済,振出人:中野産業 | D54: 147420 | E54: 587698 | F54: 545621 | G54: 758654 | H54: 524029 | J54: 368550 | K54: 771159 | L54: 519474 | M54: 986300 | O54: 949431 | P54: 6158336 | Q54: 経常収入
A55: 受取手形期日取立 | B55: 受取手形期日取立 小計 | D55: 273420 | E55: 2385598 | F55: 3047771 | G55: 1273654 | H55: 3734949 | I55: 3762685 | J55: 4739300 | K55: 4646519 | L55: 2428274 | M55: 1874100 | N55: 1999796 | O55: 949431 | P55: 31115497 | Q55: 経常収入
A56: 利息等収入 | B56: 受取配当金 | C56: 出資配当 | E56: 640 | P56: 640 | Q56: 経常収入
A57: 利息等収入 | B57: 受取利息 | C57: 源泉所得税 | H57: 463 | N57: 20 | P57: 483 | Q57: 経常収入
A58: 利息等収入 | B58: 受取利息 | C58: 普通預金利息 | H58: 1865 | N58: 80 | P58: 1945 | Q58: 経常収入
A59: 利息等収入 | B59: 受取利息 | C59: 利息 | I59: 5000 | O59: 5000 | P59: 10000 | Q59: 経常収入
A60: 利息等収入 | B60: 利息等収入 小計 | D60: 0 | E60: 640 | F60: 0 | G60: 0 | H60: 2328 | I60: 5000 | J60: 0 | K60: 0 | L60: 0 | M60: 0 | N60: 100 | O60: 5000 | P60: 13068 | Q60: 経常収入
A61: その他経常収入 | B61: 仮受消費税等 | C61: 消費税振替 | O61: -30366605 | P61: -30366605 | Q61: 経常収入
A62: その他経常収入 | B62: 仮払消費税等 | C62: 消費税振替 | O62: 23379058 | P62: 23379058 | Q62: 経常収入
A63: その他経常収入 | B63: 仮払消費税等 | C63: 東京税関 | E63: -360000 | H63: -454700 | I63: -129900 | J63: -353500 | N63: -171000 | P63: -1469100 | Q63: 経常収入
A64: その他経常収入 | B64: 買掛金 | C64: 11/18決済予定支払手形（伝票No.3509）の取立てないため修正 | K64: 2500000 | P64: 2500000 | Q64: 経常収入
A65: その他経常収入 | B65: 未払消費税等 | C65: 確定消費税 | O65: 4598700 | P65: 4598700 | Q65: 経常収入
A66: その他経常収入 | B66: 預り金 | C66: //介護保険料 10月分 | J66: 9050 | P66: 9050 | Q66: 経常収入
A67: その他経常収入 | B67: 預り金 | C67: //介護保険料 11月分 | K67: 9050 | P67: 9050 | Q67: 経常収入
A68: その他経常収入 | B68: 預り金 | C68: //介護保険料 12月分 | L68: 9050 | P68: 9050 | Q68: 経常収入
A69: その他経常収入 | B69: 預り金 | C69: //介護保険料 1月分 | M69: 9050 | P69: 9050 | Q69: 経常収入
A70: その他経常収入 | B70: 預り金 | C70: //介護保険料 2月分 | N70: 9050 | P70: 9050 | Q70: 経常収入
A71: その他経常収入 | B71: 預り金 | C71: //介護保険料 3月分 | O71: 9050 | P71: 9050 | Q71: 経常収入
A72: その他経常収入 | B72: 預り金 | C72: //介護保険料 4月分 | D72: 9050 | P72: 9050 | Q72: 経常収入
A73: その他経常収入 | B73: 預り金 | C73: //介護保険料 5月分 | E73: 9050 | P73: 9050 | Q73: 経常収入
A74: その他経常収入 | B74: 預り金 | C74: //介護保険料 6月分 | F74: 9050 | P74: 9050 | Q74: 経常収入
A75: その他経常収入 | B75: 預り金 | C75: //介護保険料 7月分 | G75: 9050 | P75: 9050 | Q75: 経常収入
A76: その他経常収入 | B76: 預り金 | C76: //介護保険料 8月分 | H76: 9050 | P76: 9050 | Q76: 経常収入
A77: その他経常収入 | B77: 預り金 | C77: //介護保険料 9月分 | I77: 9050 | P77: 9050 | Q77: 経常収入
A78: その他経常収入 | B78: 預り金 | C78: //社会保険料 10月分 | J78: 199567 | P78: 199567 | Q78: 経常収入
A79: その他経常収入 | B79: 預り金 | C79: //社会保険料 11月分 | K79: 199567 | P79: 199567 | Q79: 経常収入
A80: その他経常収入 | B80: 預り金 | C80: //社会保険料 12月分 | L80: 199567 | P80: 199567 | Q80: 経常収入
A81: その他経常収入 | B81: 預り金 | C81: //社会保険料 1月分 | M81: 199567 | P81: 199567 | Q81: 経常収入
A82: その他経常収入 | B82: 預り金 | C82: //社会保険料 2月分 | N82: 199567 | P82: 199567 | Q82: 経常収入
A83: その他経常収入 | B83: 預り金 | C83: //社会保険料 3月分 | O83: 199567 | P83: 199567 | Q83: 経常収入
A84: その他経常収入 | B84: 預り金 | C84: //社会保険料 4月分 | D84: 199567 | P84: 199567 | Q84: 経常収入
A85: その他経常収入 | B85: 預り金 | C85: //社会保険料 5月分 | E85: 199567 | P85: 199567 | Q85: 経常収入
A86: その他経常収入 | B86: 預り金 | C86: //社会保険料 6月分 | F86: 199567 | P86: 199567 | Q86: 経常収入
A87: その他経常収入 | B87: 預り金 | C87: //社会保険料 7月分 | G87: 199567 | P87: 199567 | Q87: 経常収入
A88: その他経常収入 | B88: 預り金 | C88: //社会保険料 8月分 | H88: 199567 | P88: 199567 | Q88: 経常収入
A89: その他経常収入 | B89: 預り金 | C89: //社会保険料 9月分 | I89: 199567 | P89: 199567 | Q89: 経常収入
A90: その他経常収入 | B90: 預り金 | C90: //住民税 10月分 | J90: 37100 | P90: 37100 | Q90: 経常収入
A91: その他経常収入 | B91: 預り金 | C91: //住民税 11月分 | K91: 37100 | P91: 37100 | Q91: 経常収入
A92: その他経常収入 | B92: 預り金 | C92: //住民税 12月分 | L92: 37100 | P92: 37100 | Q92: 経常収入
A93: その他経常収入 | B93: 預り金 | C93: //住民税 1月分 | M93: 37100 | P93: 37100 | Q93: 経常収入
A94: その他経常収入 | B94: 預り金 | C94: //住民税 2月分 | N94: 37100 | P94: 37100 | Q94: 経常収入
A95: その他経常収入 | B95: 預り金 | C95: //住民税 3月分 | O95: 37100 | P95: 37100 | Q95: 経常収入
A96: その他経常収入 | B96: 預り金 | C96: //住民税 4月分 | D96: 37100 | P96: 37100 | Q96: 経常収入
A97: その他経常収入 | B97: 預り金 | C97: //住民税 5月分 | E97: 37100 | P97: 37100 | Q97: 経常収入
A98: その他経常収入 | B98: 預り金 | C98: //住民税 6月分 | F98: 37100 | P98: 37100 | Q98: 経常収入
A99: その他経常収入 | B99: 預り金 | C99: //住民税 7月分 | G99: 37100 | P99: 37100 | Q99: 経常収入
A100: その他経常収入 | B100: 預り金 | C100: //住民税 8月分 | H100: 37100 | P100: 37100 | Q100: 経常収入
A101: その他経常収入 | B101: 預り金 | C101: //住民税 9月分 | I101: 37100 | P101: 37100 | Q101: 経常収入
A102: その他経常収入 | B102: 預り金 | C102: ／顧問料源泉 | D102: 5000 | P102: 5000 | Q102: 経常収入
A103: その他経常収入 | B103: 預り金 | C103: 夏季賞与 | G103: 373276 | P103: 373276 | Q103: 経常収入
A104: その他経常収入 | B104: 預り金 | C104: 給与 10月分//源泉所得税 10月分 | J104: 204860 | P104: 204860 | Q104: 経常収入
A105: その他経常収入 | B105: 預り金 | C105: 給与 11月分//源泉所得税 11月分 | K105: 204860 | P105: 204860 | Q105: 経常収入
A106: その他経常収入 | B106: 預り金 | C106: 給与 12月分//源泉所得税 12月分 | L106: 204860 | P106: 204860 | Q106: 経常収入
A107: その他経常収入 | B107: 預り金 | C107: 給与 1月分//源泉所得税 1月分 | M107: 204860 | P107: 204860 | Q107: 経常収入
A108: その他経常収入 | B108: 預り金 | C108: 給与 2月分//源泉所得税 2月分 | N108: 204860 | P108: 204860 | Q108: 経常収入
A109: その他経常収入 | B109: 預り金 | C109: 給与 3月分//源泉所得税 3月分 | O109: 204860 | P109: 204860 | Q109: 経常収入
A110: その他経常収入 | B110: 預り金 | C110: 給与 4月分//源泉所得税 4月分 | D110: 204860 | P110: 204860 | Q110: 経常収入
A111: その他経常収入 | B111: 預り金 | C111: 給与 5月分//源泉所得税 5月分 | E111: 204860 | P111: 204860 | Q111: 経常収入
A112: その他経常収入 | B112: 預り金 | C112: 給与 6月分//源泉所得税 6月分 | F112: 204860 | P112: 204860 | Q112: 経常収入
A113: その他経常収入 | B113: 預り金 | C113: 給与 7月分//源泉所得税 7月分 | G113: 204860 | P113: 204860 | Q113: 経常収入
A114: その他経常収入 | B114: 預り金 | C114: 給与 8月分//源泉所得税 8月分 | H114: 204860 | P114: 204860 | Q114: 経常収入
A115: その他経常収入 | B115: 預り金 | C115: 給与 9月分//源泉所得税 9月分 | I115: 204860 | P115: 204860 | Q115: 経常収入
A116: その他経常収入 | B116: 預り金 | C116: 冬季賞与 | L116: 516080 | P116: 516080 | Q116: 経常収入
A117: その他経常収入 | B117: 預り金 | C117: (空白) | E117: 5000 | F117: 5000 | G117: 38760 | H117: 5000 | I117: 5000 | J117: 5000 | K117: 5000 | L117: 35145 | M117: 5000 | N117: 5000 | O117: 5000 | P117: 118905 | Q117: 経常収入
A118: その他経常収入 | B118: 立替金 | C118: 弥生幸子 10月分//雇用保険 10月分 | J118: 9877 | P118: 9877 | Q118: 経常収入
A119: その他経常収入 | B119: 立替金 | C119: 弥生幸子 11月分//雇用保険 11月分 | K119: 9877 | P119: 9877 | Q119: 経常収入
A120: その他経常収入 | B120: 立替金 | C120: 弥生幸子 12月分//雇用保険 12月分 | L120: 9877 | P120: 9877 | Q120: 経常収入
A121: その他経常収入 | B121: 立替金 | C121: 弥生幸子 1月分//雇用保険 1月分 | M121: 9877 | P121: 9877 | Q121: 経常収入
A122: その他経常収入 | B122: 立替金 | C122: 弥生幸子 2月分//雇用保険 2月分 | N122: 9877 | P122: 9877 | Q122: 経常収入
A123: その他経常収入 | B123: 立替金 | C123: 弥生幸子 3月分//雇用保険 3月分 | O123: 9877 | P123: 9877 | Q123: 経常収入
A124: その他経常収入 | B124: 立替金 | C124: 弥生幸子 4月分//雇用保険 4月分 | D124: 9877 | P124: 9877 | Q124: 経常収入
A125: その他経常収入 | B125: 立替金 | C125: 弥生幸子 5月分//雇用保険 5月分 | E125: 9877 | P125: 9877 | Q125: 経常収入
A126: その他経常収入 | B126: 立替金 | C126: 弥生幸子 6月分//雇用保険 6月分 | F126: 9877 | P126: 9877 | Q126: 経常収入
A127: その他経常収入 | B127: 立替金 | C127: 弥生幸子 7月分//雇用保険 7月分 | G127: 9877 | P127: 9877 | Q127: 経常収入
A128: その他経常収入 | B128: 立替金 | C128: 弥生幸子 8月分//雇用保険 8月分 | H128: 9877 | P128: 9877 | Q128: 経常収入
A129: その他経常収入 | B129: 立替金 | C129: 弥生幸子 9月分//雇用保険 9月分 | I129: 9877 | P129: 9877 | Q129: 経常収入
A130: その他経常収入 | B130: 立替金 | C130: (空白) | L130: 27458 | P130: 27458 | Q130: 経常収入
A131: その他経常収入 | B131: その他経常収入 小計 | D131: 465454 | E131: 105454 | F131: 465454 | G131: 872490 | H131: 10754 | I131: 335554 | J131: 111954 | K131: 2965454 | L131: 1039137 | M131: 465454 | N131: 294454 | O131: -1923393 | P131: 5208220 | Q131: 経常収入
B132: 経常収入 合計 | D132: 14899860 | E132: 24405466 | F132: 28782767 | G132: 22851732 | H132: 26404089 | I132: 30886080 | J132: 32328464 | K132: 28120136 | L132: 29571586 | M132: 24661352 | N132: 33755714 | O132: 16092539 | P132: 312759785
A133: 買掛金支払 | B133: 買掛金 | C133: ４月仕入分支払い | E133: 208250 | P133: 208250 | Q133: 経常支出
A134: 買掛金支払 | B134: 買掛金 | C134: ５月仕入分支払い | F134: 239400 | P134: 239400 | Q134: 経常支出
A135: 買掛金支払 | B135: 買掛金 | C135: ６月仕入分支払い | G135: 288950 | P135: 288950 | Q135: 経常支出
A136: 買掛金支払 | B136: 買掛金 | C136: ７月仕入分支払い | H136: 6412 | P136: 6412 | Q136: 経常支出
A137: 買掛金支払 | B137: 買掛金 | C137: ９月仕入分支払い | J137: 144000 | K137: 312700 | P137: 456700 | Q137: 経常支出
A138: 買掛金支払 | B138: 買掛金 | C138: A201アトラス | E138: 1197000 | F138: 2456788 | G138: 1716750 | H138: 2190037 | I138: 1305150 | J138: 427875 | K138: 326550 | L138: 296625 | M138: 646800 | N138: 2112600 | P138: 12676175 | Q138: 経常支出
A139: 買掛金支払 | B139: 買掛金 | C139: E001 | L139: 378525 | P139: 378525 | Q139: 経常支出
A140: 買掛金支払 | B140: 買掛金 | C140: F201有限会社富士 | E140: 1118460 | F140: 1053675 | G140: 404075 | H140: 1142312 | I140: 690900 | J140: 231000 | L140: 254940 | P140: 4895362 | Q140: 経常支出
A141: 買掛金支払 | B141: 買掛金 | C141: H001橋本商会 | D141: 3192929 | E141: 1406654 | F141: 2559862 | G141: 1887241 | I141: 918495 | P141: 9965181 | Q141: 経常支出
A142: 買掛金支払 | B142: 買掛金 | C142: H002北海商事 | F142: 1563920 | G142: 1936203 | H142: 623087 | I142: 74700 | J142: 563446 | K142: 394097 | L142: 92100 | M142: 995779 | N142: 919292 | O142: 1986745 | P142: 9149369 | Q142: 経常支出
A143: 買掛金支払 | B143: 買掛金 | C143: I201イーグル | E143: 151200 | F143: 809550 | G143: 616612 | H143: 370650 | I143: 81900 | J143: 339675 | M143: 20160 | N143: 235200 | O143: 260925 | P143: 2885872 | Q143: 経常支出
A144: 買掛金支払 | B144: 買掛金 | C144: M201ミラクル | E144: 12340 | F144: 218400 | G144: 573300 | H144: 651950 | I144: 1219937 | J144: 1519770 | K144: 487950 | L144: 169559 | M144: 319200 | N144: 147000 | O144: 138250 | P144: 5457656 | Q144: 経常支出
A145: 買掛金支払 | B145: 買掛金 | C145: O001オーヤマ | H145: 1034250 | I145: 701449 | K145: 439842 | P145: 2175541 | Q145: 経常支出
A146: 買掛金支払 | B146: 買掛金 | C146: S201ｻﾝﾗｲｽﾞ | E146: 248000 | F146: 206400 | G146: 282175 | H146: 781020 | I146: 140975 | J146: 231740 | K146: 161950 | L146: 204550 | M146: 234930 | N146: 247430 | P146: 2739170 | Q146: 経常支出
A147: 買掛金支払 | B147: 買掛金 | C147: T010日本橋商会 | E147: 2100000 | F147: 2373000 | G147: 2295300 | H147: 2345542 | I147: 2357250 | J147: 2151200 | K147: 2692922 | L147: 2337300 | M147: 94500 | N147: 234097 | P147: 18981111 | Q147: 経常支出
A148: 買掛金支払 | B148: 買掛金 | C148: U001キャラクト株式 | E148: 153405 | F148: 364350 | G148: 261975 | H148: 260400 | I148: 147630 | J148: 252000 | K148: 310275 | L148: 233730 | M148: 252000 | N148: 308700 | P148: 2544465 | Q148: 経常支出
A149: 買掛金支払 | B149: 買掛金 | C149: V001株式会社吉野 | L149: 1494016 | M149: 108000 | N149: 310900 | P149: 1912916 | Q149: 経常支出
A150: 買掛金支払 | B150: 買掛金 | C150: Y001山田商事 | E150: 151199 | F150: 891175 | G150: 536982 | H150: 2461526 | I150: 536548 | J150: 1075978 | P150: 5653408 | Q150: 経常支出
A151: 買掛金支払 | B151: 買掛金 | C151: YU001 | K151: 903000 | M151: 1403850 | N151: 2450752 | P151: 4757602 | Q151: 経常支出
A152: 買掛金支払 | B152: 買掛金 | C152: 掛代金支払 | D152: 964370 | P152: 964370 | Q152: 経常支出
A153: 買掛金支払 | B153: 買掛金 | C153: 買掛金支払 | D153: 4020963 | E153: 3006612 | F153: 4052059 | G153: 4139789 | H153: 9514794 | I153: 4758708 | J153: 10254093 | K153: 5256399 | L153: 8671841 | M153: 8921108 | N153: 10515550 | O153: 9323700 | P153: 82435616 | Q153: 経常支出
A154: 買掛金支払 | B154: 買掛金 | C154: 買掛金支払い | O154: 978600 | P154: 978600 | Q154: 経常支出
A155: 買掛金支払 | B155: 買掛金 | C155: 買掛金送金 | F155: 4500000 | I155: 5685200 | J155: 1624500 | K155: 4420000 | O155: 3420000 | P155: 19649700 | Q155: 経常支出
A156: 買掛金支払 | B156: 買掛金支払 小計 | D156: 8178262 | E156: 9753120 | F156: 21288579 | G156: 14939352 | H156: 21381980 | I156: 18618842 | J156: 18815277 | K156: 15705685 | L156: 14133186 | M156: 12996327 | N156: 17481521 | O156: 16108220 | P156: 189400351 | Q156: 経常支出
A157: 支払手形決済 | B157: 支払手形 | C157: 決済 | D157: 1060642 | E157: 3558215 | P157: 4618857 | Q157: 経常支出
A158: 支払手形決済 | B158: 支払手形決済 小計 | D158: 1060642 | E158: 3558215 | F158: 0 | G158: 0 | H158: 0 | I158: 0 | J158: 0 | K158: 0 | L158: 0 | M158: 0 | N158: 0 | O158: 0 | P158: 4618857 | Q158: 経常支出
A159: 人件費支出 | B159: [製]給料手当 | C159: 給与 10月分//源泉所得税 10月分 | J159: 267600 | P159: 267600 | Q159: 経常支出
A160: 人件費支出 | B160: [製]給料手当 | C160: 給与 11月分//源泉所得税 11月分 | K160: 267600 | P160: 267600 | Q160: 経常支出
A161: 人件費支出 | B161: [製]給料手当 | C161: 給与 12月分//源泉所得税 12月分 | L161: 267600 | P161: 267600 | Q161: 経常支出
A162: 人件費支出 | B162: [製]給料手当 | C162: 給与 1月分//源泉所得税 1月分 | M162: 267600 | P162: 267600 | Q162: 経常支出
A163: 人件費支出 | B163: [製]給料手当 | C163: 給与 2月分//源泉所得税 2月分 | N163: 267600 | P163: 267600 | Q163: 経常支出
A164: 人件費支出 | B164: [製]給料手当 | C164: 給与 3月分//源泉所得税 3月分 | O164: 267600 | P164: 267600 | Q164: 経常支出
A165: 人件費支出 | B165: [製]給料手当 | C165: 給与 4月分//源泉所得税 4月分 | D165: 267600 | P165: 267600 | Q165: 経常支出
A166: 人件費支出 | B166: [製]給料手当 | C166: 給与 5月分//源泉所得税 5月分 | E166: 267600 | P166: 267600 | Q166: 経常支出
A167: 人件費支出 | B167: [製]給料手当 | C167: 給与 6月分//源泉所得税 6月分 | F167: 267600 | P167: 267600 | Q167: 経常支出
A168: 人件費支出 | B168: [製]給料手当 | C168: 給与 7月分//源泉所得税 7月分 | G168: 267600 | P168: 267600 | Q168: 経常支出
A169: 人件費支出 | B169: [製]給料手当 | C169: 給与 8月分//源泉所得税 8月分 | H169: 267600 | P169: 267600 | Q169: 経常支出
A170: 人件費支出 | B170: [製]給料手当 | C170: 給与 9月分//源泉所得税 9月分 | I170: 267600 | P170: 267600 | Q170: 経常支出
A171: 人件費支出 | B171: [製]賞与 | C171: 夏季賞与 | G171: 650000 | P171: 650000 | Q171: 経常支出
A172: 人件費支出 | B172: [製]賞与 | C172: 冬季賞与 | L172: 700000 | P172: 700000 | Q172: 経常支出
A173: 人件費支出 | B173: [製]福利厚生費 | C173: お茶、コンビニストア | O173: 5825 | P173: 5825 | Q173: 経常支出
A174: 人件費支出 | B174: [製]福利厚生費 | C174: お茶等、コンビニストア | E174: 2671 | F174: 1642 | I174: 800 | L174: 3215 | P174: 8328 | Q174: 経常支出
A175: 人件費支出 | B175: [製]福利厚生費 | C175: みんなのユニホーム店、作業服、品 | G175: 16842 | L175: 8527 | N175: 6823 | P175: 32192 | Q175: 経常支出
A176: 人件費支出 | B176: 給料手当 | C176: アルバイト店員 | E176: 68000 | F176: 65800 | G176: 65800 | H176: 56300 | I176: 45800 | J176: 71200 | K176: 75600 | L176: 68500 | M176: 78500 | N176: 53200 | O176: 85200 | P176: 733900 | Q176: 経常支出
A177: 人件費支出 | B177: 給料手当 | C177: 給与 10月分// | J177: 1010800 | P177: 1010800 | Q177: 経常支出
A178: 人件費支出 | B178: 給料手当 | C178: 給与 11月分// | K178: 1010800 | P178: 1010800 | Q178: 経常支出
A179: 人件費支出 | B179: 給料手当 | C179: 給与 12月分// | L179: 1010800 | P179: 1010800 | Q179: 経常支出
A180: 人件費支出 | B180: 給料手当 | C180: 給与 1月分// | M180: 1010800 | P180: 1010800 | Q180: 経常支出
A181: 人件費支出 | B181: 給料手当 | C181: 給与 2月分// | N181: 1010800 | P181: 1010800 | Q181: 経常支出
A182: 人件費支出 | B182: 給料手当 | C182: 給与 3月分// | O182: 1010800 | P182: 1010800 | Q182: 経常支出
A183: 人件費支出 | B183: 給料手当 | C183: 給与 4月分// | D183: 1010800 | P183: 1010800 | Q183: 経常支出
A184: 人件費支出 | B184: 給料手当 | C184: 給与 5月分// | E184: 1010800 | P184: 1010800 | Q184: 経常支出
A185: 人件費支出 | B185: 給料手当 | C185: 給与 6月分// | F185: 1010800 | P185: 1010800 | Q185: 経常支出
A186: 人件費支出 | B186: 給料手当 | C186: 給与 7月分// | G186: 1010800 | P186: 1010800 | Q186: 経常支出
A187: 人件費支出 | B187: 給料手当 | C187: 給与 8月分// | H187: 1010800 | P187: 1010800 | Q187: 経常支出
A188: 人件費支出 | B188: 給料手当 | C188: 給与 9月分// | I188: 1010800 | P188: 1010800 | Q188: 経常支出
A189: 人件費支出 | B189: 採用教育費 | C189: パソコン研修 | N189: 840000 | P189: 840000 | Q189: 経常支出
A190: 人件費支出 | B190: 賞与 | C190: 夏季賞与 | G190: 3245000 | P190: 3245000 | Q190: 経常支出
A191: 人件費支出 | B191: 賞与 | C191: 冬季賞与 | L191: 4210000 | P191: 4210000 | Q191: 経常支出
A192: 人件費支出 | B192: 福利厚生費 | C192: お茶 セブンマート城西店（中村） | F192: 6200 | P192: 6200 | Q192: 経常支出
A193: 人件費支出 | B193: 福利厚生費 | C193: お茶菓子 セブンマート城西店（清水） | F193: 2312 | P193: 2312 | Q193: 経常支出
A194: 人件費支出 | B194: 福利厚生費 | C194: お茶菓子 セブンマート城西店（佐藤） | J194: 4927 | P194: 4927 | Q194: 経常支出
A195: 人件費支出 | B195: 福利厚生費 | C195: お茶菓子 セブンマート城西店（上原） | H195: 4703 | P195: 4703 | Q195: 経常支出
A196: 人件費支出 | B196: 福利厚生費 | C196: お茶菓子 セブンマート城西店（清水） | E196: 1500 | P196: 1500 | Q196: 経常支出
A197: 人件費支出 | B197: 福利厚生費 | C197: お茶菓子 セブンマート城西店（中村） | H197: 2350 | J197: 3336 | O197: 546 | P197: 6232 | Q197: 経常支出
A198: 人件費支出 | B198: 福利厚生費 | C198: お茶菓子 セブンマート城西店（弥生幸子） | H198: 2940 | P198: 2940 | Q198: 経常支出
A199: 人件費支出 | B199: 福利厚生費 | C199: お茶菓子 麻布洋菓子店（弥生幸子） | K199: 1921 | P199: 1921 | Q199: 経常支出
A200: 人件費支出 | B200: 福利厚生費 | C200: お茶菓子 セブンマート城西店（中村） | I200: 3105 | P200: 3105 | Q200: 経常支出
... 313 more rows

Sheet 日次資金繰り表基礎 (hidden)
A1: 相手科目 | B1: 摘要 | C1: 2016-04-05 | D1: 2016-04-06 | E1: 2016-04-07 | F1: 2016-04-08 | G1: 2016-04-09 | H1: 2016-04-10 | I1: 2016-04-11 | J1: 2016-04-12 | K1: 2016-04-13 | L1: 2016-04-14 | M1: 2016-04-15 | N1: 2016-04-16 | O1: 2016-04-17 | P1: 2016-04-19 | Q1: 2016-04-20 | R1: 2016-04-21 | S1: 2016-04-22 | T1: 2016-04-23 | U1: 2016-04-24 | V1: 2016-04-25 | W1: 2016-04-26 | X1: 2016-04-27 | Y1: 2016-04-28 | Z1: 2016-04-29 | AA1: 2016-04-30 | AB1: 2016-05-01 | AC1: 2016-05-03 | AD1: 2016-05-04 | AE1: 2016-05-05 | AF1: 2016-05-06 | AG1: 2016-05-07 | AH1: 2016-05-08 | AI1: 2016-05-09 | AJ1: 2016-05-10 | AK1: 2016-05-11 | AL1: 2016-05-12 | AM1: 2016-05-13 | AN1: 2016-05-14 | AO1: 2016-05-15 | AP1: 2016-05-17 | AQ1: 2016-05-18 | AR1: 2016-05-19 | AS1: 2016-05-20 | AT1: 2016-05-21 | AU1: 2016-05-22 | AV1: 2016-05-24 | AW1: 2016-05-25 | AX1: 2016-05-26 | AY1: 2016-05-27 | AZ1: 2016-05-28 | BA1: 2016-05-29 | BB1: 2016-05-30 | BC1: 2016-05-31 | BD1: 2016-06-01 | BE1: 2016-06-02 | BF1: 2016-06-03 | BG1: 2016-06-04 | BH1: 2016-06-05 | BI1: 2016-06-07 | BJ1: 2016-06-08 | BK1: 2016-06-09 | BL1: 2016-06-10 | BM1: 2016-06-11 | BN1: 2016-06-14 | BO1: 2016-06-15 | BP1: 2016-06-16 | BQ1: 2016-06-17 | BR1: 2016-06-18 | BS1: 2016-06-19 | BT1: 2016-06-20 | BU1: 2016-06-21 | BV1: 2016-06-22 | BW1: 2016-06-23 | BX1: 2016-06-24 | BY1: 2016-06-25 | BZ1: 2016-06-26 | CA1: 2016-06-28 | CB1: 2016-06-29 | CC1: 2016-06-30 | CD1: 2016-07-01 | CE1: 2016-07-02 | CF1: 2016-07-05 | CG1: 2016-07-06 | CH1: 2016-07-07 | CI1: 2016-07-08 | CJ1: 2016-07-09 | CK1: 2016-07-10 | CL1: 2016-07-12 | CM1: 2016-07-13 | CN1: 2016-07-14 | CO1: 2016-07-15 | CP1: 2016-07-16 | CQ1: 2016-07-19 | CR1: 2016-07-20 | CS1: 2016-07-21 | CT1: 2016-07-22 | CU1: 2016-07-23 | CV1: 2016-07-24 | CW1: 2016-07-25 | CX1: 2016-07-26 | CY1: 2016-07-27 | CZ1: 2016-07-28 | DA1: 2016-07-29 | DB1: 2016-07-30 | DC1: 2016-07-31 | DD1: 2016-08-01 | DE1: 2016-08-02 | DF1: 2016-08-03 | DG1: 2016-08-04 | DH1: 2016-08-05 | DI1: 2016-08-06 | DJ1: 2016-08-08 | DK1: 2016-08-09 | DL1: 2016-08-10 | DM1: 2016-08-11 | DN1: 2016-08-12 | DO1: 2016-08-13 | DP1: 2016-08-14 | DQ1: 2016-08-16 | DR1: 2016-08-17 | DS1: 2016-08-18 | DT1: 2016-08-19 | DU1: 2016-08-20 | DV1: 2016-08-22 | DW1: 2016-08-23 | DX1: 2016-08-24 | DY1: 2016-08-25 | DZ1: 2016-08-26 | EA1: 2016-08-27 | EB1: 2016-08-28 | EC1: 2016-08-29 | ED1: 2016-08-30 | EE1: 2016-08-31 | EF1: 2016-09-01 | EG1: 2016-09-02 | EH1: 2016-09-03 | EI1: 2016-09-04 | EJ1: 2016-09-05 | EK1: 2016-09-06 | EL1: 2016-09-07 | EM1: 2016-09-08 | EN1: 2016-09-09 | EO1: 2016-09-10 | EP1: 2016-09-13 | EQ1: 2016-09-14 | ER1: 2016-09-15 | ES1: 2016-09-16 | ET1: 2016-09-17 | EU1: 2016-09-18 | EV1: 2016-09-19 | EW1: 2016-09-20 | EX1: 2016-09-21 | EY1: 2016-09-22 | EZ1: 2016-09-23 | FA1: 2016-09-24 | FB1: 2016-09-25 | FC1: 2016-09-26 | FD1: 2016-09-27 | FE1: 2016-09-28 | FF1: 2016-09-29 | FG1: 2016-09-30 | FH1: 2016-10-01 | FI1: 2016-10-04 | FJ1: 2016-10-05 | FK1: 2016-10-06 | FL1: 2016-10-07 | FM1: 2016-10-08 | FN1: 2016-10-09 | FO1: 2016-10-10 | FP1: 2016-10-11 | FQ1: 2016-10-12 | FR1: 2016-10-13 | FS1: 2016-10-14 | FT1: 2016-10-15 | FU1: 2016-10-18 | FV1: 2016-10-19 | FW1: 2016-10-20 | FX1: 2016-10-21 | FY1: 2016-10-22 | FZ1: 2016-10-23 | GA1: 2016-10-24 | GB1: 2016-10-25 | GC1: 2016-10-26 | GD1: 2016-10-27 | GE1: 2016-10-28 | GF1: 2016-10-29 | GG1: 2016-10-30 | GH1: 2016-10-31 | GI1: 2016-11-01 | GJ1: 2016-11-02 | GK1: 2016-11-03 | GL1: 2016-11-04 | GM1: 2016-11-05 | GN1: 2016-11-08 | GO1: 2016-11-09 | GP1: 2016-11-10 | GQ1: 2016-11-11 | GR1: 2016-11-12 | GS1: 2016-11-13 | GT1: 2016-11-14 | GU1: 2016-11-15 | GV1: 2016-11-16 | GW1: 2016-11-17 | GX1: 2016-11-18 | GY1: 2016-11-19 | GZ1: 2016-11-20 | HA1: 2016-11-22 | HB1: 2016-11-23 | HC1: 2016-11-24 | HD1: 2016-11-25 | HE1: 2016-11-26 | HF1: 2016-11-27 | HG1: 2016-11-28 | HH1: 2016-11-29 | HI1: 2016-11-30 | HJ1: 2016-12-01 | HK1: 2016-12-02 | HL1: 2016-12-03 | HM1: 2016-12-05 | HN1: 2016-12-06 | HO1: 2016-12-07 | HP1: 2016-12-08 | HQ1: 2016-12-09 | HR1: 2016-12-10 | HS1: 2016-12-13 | HT1: 2016-12-14 | HU1: 2016-12-15 | HV1: 2016-12-16 | HW1: 2016-12-17 | HX1: 2016-12-19 | HY1: 2016-12-20 | HZ1: 2016-12-21 | IA1: 2016-12-22 | IB1: 2016-12-23 | IC1: 2016-12-24 | ID1: 2016-12-25 | IE1: 2016-12-26 | IF1: 2016-12-27 | IG1: 2016-12-28 | IH1: 2016-12-29 | II1: 2016-12-30 | IJ1: 2016-12-31 | IK1: 2017-01-03 | IL1: 2017-01-04 | IM1: 2017-01-05 | IN1: 2017-01-06 | IO1: 2017-01-07 | IP1: 2017-01-08 | IQ1: 2017-01-10 | IR1: 2017-01-11 | IS1: 2017-01-12 | IT1: 2017-01-13 | IU1: 2017-01-14 | IV1: 2017-01-15 | IW1: 2017-01-17 | IX1: 2017-01-18 | IY1: 2017-01-19 | IZ1: 2017-01-20 | JA1: 2017-01-21 | JB1: 2017-01-22 | JC1: 2017-01-24 | JD1: 2017-01-25 | JE1: 2017-01-26 | JF1: 2017-01-27 | JG1: 2017-01-28 | JH1: 2017-01-29 | JI1: 2017-01-30 | JJ1: 2017-01-31 | JK1: 2017-02-01 | JL1: 2017-02-02 | JM1: 2017-02-03 | JN1: 2017-02-04 | JO1: 2017-02-05 | JP1: 2017-02-07 | JQ1: 2017-02-08 | JR1: 2017-02-09 | JS1: 2017-02-10 | JT1: 2017-02-11 | JU1: 2017-02-13 | JV1: 2017-02-14 | JW1: 2017-02-15 | JX1: 2017-02-16 | JY1: 2017-02-17 | JZ1: 2017-02-18 | KA1: 2017-02-19 | KB1: 2017-02-20 | KC1: 2017-02-21 | KD1: 2017-02-22 | KE1: 2017-02-23 | KF1: 2017-02-24 | KG1: 2017-02-25 | KH1: 2017-02-26 | KI1: 2017-02-27 | KJ1: 2017-02-28 | KK1: 2017-03-01 | KL1: 2017-03-02 | KM1: 2017-03-03 | KN1: 2017-03-05 | KO1: 2017-03-06 | KP1: 2017-03-07 | KQ1: 2017-03-08 | KR1: 2017-03-09 | KS1: 2017-03-10 | KT1: 2017-03-13 | KU1: 2017-03-14 | KV1: 2017-03-15 | KW1: 2017-03-16 | KX1: 2017-03-17 | KY1: 2017-03-19 | KZ1: 2017-03-20 | LA1: 2017-03-21 | LB1: 2017-03-22 | LC1: 2017-03-23 | LD1: 2017-03-24 | LE1: 2017-03-25 | LF1: 2017-03-27 | LG1: 2017-03-28 | LH1: 2017-03-29 | LI1: 2017-03-30 | LJ1: 2017-03-31 | LK1: 総計
A2: 売上高 | B2: 本日売上 | C2: 230100 | D2: 186345 | E2: 163410 | F2: 182829 | G2: 163997 | J2: 89997 | K2: 162058 | L2: 186068 | M2: 160005 | P2: 135562 | Q2: 163058 | R2: 162591 | S2: 98918 | T2: 88105 | W2: 169449 | X2: 143850 | Y2: 150848 | Z2: 176791 | AA2: 138648 | AC2: 128220 | AD2: 150800 | AE2: 174698 | AF2: 171600 | AG2: 143849 | AJ2: 122039 | AK2: 147477 | AL2: 157591 | AM2: 117324 | AN2: 120343 | AP2: 147660 | AQ2: 142220 | AR2: 162620 | AS2: 148572 | AT2: 127781 | AV2: 146886 | AW2: 167153 | AX2: 157172 | AY2: 167658 | AZ2: 167580 | BC2: 141953 | BD2: 183724 | BE2: 158962 | BF2: 161067 | BG2: 158696 | BI2: 133067 | BJ2: 144572 | BK2: 152781 | BL2: 148620 | BM2: 146724 | BN2: 191220 | BO2: 201020 | BP2: 142172 | BQ2: 180324 | BR2: 160334 | BU2: 153629 | BV2: 209620 | BW2: 196915 | BX2: 172580 | BY2: 172600 | CA2: 161500 | CB2: 169543 | CC2: 122248 | CD2: 136334 | CE2: 119924 | CF2: 147915 | CG2: 201587 | CH2: 161505 | CI2: 128658 | CJ2: 158694 | CL2: 161781 | CM2: 140477 | CN2: 119496 | CO2: 146191 | CP2: 129134 | CQ2: 161429 | CR2: 168077 | CS2: 168696 | CT2: 152039 | CU2: 169962 | CX2: 128829 | CY2: 158943 | CZ2: 165667 | DA2: 174534 | DB2: 150572 | DE2: 146734 | DF2: 267400 | DG2: 275239 | DH2: 183639 | DI2: 187134 | DK2: 147620 | DL2: 178724 | DM2: 160667 | DN2: 146105 | DO2: 118629 | DQ2: 119039 | DR2: 220781 | DS2: 114800 | DT2: 187362 | DU2: 127391 | DW2: 134058 | DX2: 177839 | DY2: 96562 | DZ2: 152858 | EA2: 183543 | ED2: 102724 | EE2: 194943 | EF2: 190991 | EG2: 127772 | EH2: 190353 | EK2: 139677 | EL2: 146877 | EM2: 137191 | EN2: 150696 | EO2: 182696 | EP2: 177458 | EQ2: 152010 | ER2: 150086 | ES2: 175981 | ET2: 180962 | EW2: 174658 | EX2: 181762 | EY2: 167981 | EZ2: 149229 | FA2: 139829 | FD2: 169086 | FE2: 187620 | FF2: 185600 | FG2: 181934 | FH2: 145648 | FI2: 155248 | FJ2: 174210 | FK2: 141905 | FL2: 166810 | FM2: 147048 | FP2: 138086 | FQ2: 174486 | FR2: 134172 | FS2: 185496 | FT2: 137334 | FU2: 127743 | FV2: 209572 | FW2: 178258 | FX2: 133686 | FY2: 169429 | GB2: 170850 | GC2: 175058 | GD2: 187362 | GE2: 145239 | GF2: 124105 | GI2: 130848 | GJ2: 158667 | GK2: 168877 | GL2: 157448 | GM2: 159429 | GN2: 135686 | GO2: 161048 | GP2: 108362 | GQ2: 135820 | GR2: 189420 | GU2: 231686 | GV2: 175020 | GW2: 174220 | GX2: 171153 | GY2: 149477 | HA2: 105915 | HB2: 160581 | HC2: 160762 | HD2: 116039 | HE2: 155353 | HH2: 130724 | HI2: 171077 | HJ2: 161162 | HK2: 137820 | HL2: 163391 | HN2: 163153 | HO2: 195534 | HP2: 143867 | HQ2: 176420 | HR2: 160115 | HS2: 155172 | HT2: 196077 | HU2: 189686 | HV2: 140820 | HW2: 129715 | HY2: 145200 | HZ2: 150467 | IA2: 183353 | IB2: 169867 | IC2: 131610 | IF2: 143829 | IG2: 104972 | IH2: 131781 | II2: 172115 | IJ2: 116269 | IK2: 131362 | IL2: 148781 | IM2: 143581 | IN2: 142772 | IO2: 141667 | IQ2: 112125 | IR2: 177296 | IS2: 188877 | IT2: 135934 | IU2: 122991 | IW2: 107096 | IX2: 131239 | IY2: 138191 | IZ2: 140200 | JA2: 133296 | JC2: 91086 | JD2: 133848 | JE2: 172848 | JF2: 155496 | JG2: 145724 | JJ2: 128124 | JK2: 133620 | JL2: 150496 | JM2: 144534 | JN2: 136505 | JP2: 112039 | JQ2: 168820 | JR2: 120115 | JS2: 147867 | JT2: 153648 | JV2: 131905 | JW2: 153639 | JX2: 125305 | JY2: 146010 | JZ2: 161315 | KC2: 97077 | KD2: 183172 | KE2: 143677 | KF2: 145343 | KG2: 131400 | KJ2: 347620 | KK2: 125439 | KL2: 178572 | KM2: 129400 | KP2: 290886 | KQ2: 137629 | KR2: 182515 | KS2: 183372 | KT2: 193696 | KU2: 116391 | KV2: 100010 | KW2: 165962 | KX2: 119096 | KZ2: 184600 | LA2: 121753 | LB2: 140791 | LC2: 87905 | LD2: 124505 | LF2: 238886 | LG2: 143458 | LH2: 170248 | LI2: 94658 | LJ2: 95810 | LK2: 39874402
A3: 現金売上 小計 | C3: 230100 | D3: 186345 | E3: 163410 | F3: 182829 | G3: 163997 | H3: 0 | I3: 0 | J3: 89997 | K3: 162058 | L3: 186068 | M3: 160005 | N3: 0 | O3: 0 | P3: 135562 | Q3: 163058 | R3: 162591 | S3: 98918 | T3: 88105 | U3: 0 | V3: 0 | W3: 169449 | X3: 143850 | Y3: 150848 | Z3: 176791 | AA3: 138648 | AB3: 0 | AC3: 128220 | AD3: 150800 | AE3: 174698 | AF3: 171600 | AG3: 143849 | AH3: 0 | AI3: 0 | AJ3: 122039 | AK3: 147477 | AL3: 157591 | AM3: 117324 | AN3: 120343 | AO3: 0 | AP3: 147660 | AQ3: 142220 | AR3: 162620 | AS3: 148572 | AT3: 127781 | AU3: 0 | AV3: 146886 | AW3: 167153 | AX3: 157172 | AY3: 167658 | AZ3: 167580 | BA3: 0 | BB3: 0 | BC3: 141953 | BD3: 183724 | BE3: 158962 | BF3: 161067 | BG3: 158696 | BH3: 0 | BI3: 133067 | BJ3: 144572 | BK3: 152781 | BL3: 148620 | BM3: 146724 | BN3: 191220 | BO3: 201020 | BP3: 142172 | BQ3: 180324 | BR3: 160334 | BS3: 0 | BT3: 0 | BU3: 153629 | BV3: 209620 | BW3: 196915 | BX3: 172580 | BY3: 172600 | BZ3: 0 | CA3: 161500 | CB3: 169543 | CC3: 122248 | CD3: 136334 | CE3: 119924 | CF3: 147915 | CG3: 201587 | CH3: 161505 | CI3: 128658 | CJ3: 158694 | CK3: 0 | CL3: 161781 | CM3: 140477 | CN3: 119496 | CO3: 146191 | CP3: 129134 | CQ3: 161429 | CR3: 168077 | CS3: 168696 | CT3: 152039 | CU3: 169962 | CV3: 0 | CW3: 0 | CX3: 128829 | CY3: 158943 | CZ3: 165667 | DA3: 174534 | DB3: 150572 | DC3: 0 | DD3: 0 | DE3: 146734 | DF3: 267400 | DG3: 275239 | DH3: 183639 | DI3: 187134 | DJ3: 0 | DK3: 147620 | DL3: 178724 | DM3: 160667 | DN3: 146105 | DO3: 118629 | DP3: 0 | DQ3: 119039 | DR3: 220781 | DS3: 114800 | DT3: 187362 | DU3: 127391 | DV3: 0 | DW3: 134058 | DX3: 177839 | DY3: 96562 | DZ3: 152858 | EA3: 183543 | EB3: 0 | EC3: 0 | ED3: 102724 | EE3: 194943 | EF3: 190991 | EG3: 127772 | EH3: 190353 | EI3: 0 | EJ3: 0 | EK3: 139677 | EL3: 146877 | EM3: 137191 | EN3: 150696 | EO3: 182696 | EP3: 177458 | EQ3: 152010 | ER3: 150086 | ES3: 175981 | ET3: 180962 | EU3: 0 | EV3: 0 | EW3: 174658 | EX3: 181762 | EY3: 167981 | EZ3: 149229 | FA3: 139829 | FB3: 0 | FC3: 0 | FD3: 169086 | FE3: 187620 | FF3: 185600 | FG3: 181934 | FH3: 145648 | FI3: 155248 | FJ3: 174210 | FK3: 141905 | FL3: 166810 | FM3: 147048 | FN3: 0 | FO3: 0 | FP3: 138086 | FQ3: 174486 | FR3: 134172 | FS3: 185496 | FT3: 137334 | FU3: 127743 | FV3: 209572 | FW3: 178258 | FX3: 133686 | FY3: 169429 | FZ3: 0 | GA3: 0 | GB3: 170850 | GC3: 175058 | GD3: 187362 | GE3: 145239 | GF3: 124105 | GG3: 0 | GH3: 0 | GI3: 130848 | GJ3: 158667 | GK3: 168877 | GL3: 157448 | GM3: 159429 | GN3: 135686 | GO3: 161048 | GP3: 108362 | GQ3: 135820 | GR3: 189420 | GS3: 0 | GT3: 0 | GU3: 231686 | GV3: 175020 | GW3: 174220 | GX3: 171153 | GY3: 149477 | GZ3: 0 | HA3: 105915 | HB3: 160581 | HC3: 160762 | HD3: 116039 | HE3: 155353 | HF3: 0 | HG3: 0 | HH3: 130724 | HI3: 171077 | HJ3: 161162 | HK3: 137820 | HL3: 163391 | HM3: 0 | HN3: 163153 | HO3: 195534 | HP3: 143867 | HQ3: 176420 | HR3: 160115 | HS3: 155172 | HT3: 196077 | HU3: 189686 | HV3: 140820 | HW3: 129715 | HX3: 0 | HY3: 145200 | HZ3: 150467 | IA3: 183353 | IB3: 169867 | IC3: 131610 | ID3: 0 | IE3: 0 | IF3: 143829 | IG3: 104972 | IH3: 131781 | II3: 172115 | IJ3: 116269 | IK3: 131362 | IL3: 148781 | IM3: 143581 | IN3: 142772 | IO3: 141667 | IP3: 0 | IQ3: 112125 | IR3: 177296 | IS3: 188877 | IT3: 135934 | IU3: 122991 | IV3: 0 | IW3: 107096 | IX3: 131239 | IY3: 138191 | IZ3: 140200 | JA3: 133296 | JB3: 0 | JC3: 91086 | JD3: 133848 | JE3: 172848 | JF3: 155496 | JG3: 145724 | JH3: 0 | JI3: 0 | JJ3: 128124 | JK3: 133620 | JL3: 150496 | JM3: 144534 | JN3: 136505 | JO3: 0 | JP3: 112039 | JQ3: 168820 | JR3: 120115 | JS3: 147867 | JT3: 153648 | JU3: 0 | JV3: 131905 | JW3: 153639 | JX3: 125305 | JY3: 146010 | JZ3: 161315 | KA3: 0 | KB3: 0 | KC3: 97077 | KD3: 183172 | KE3: 143677 | KF3: 145343 | KG3: 131400 | KH3: 0 | KI3: 0 | KJ3: 347620 | KK3: 125439 | KL3: 178572 | KM3: 129400 | KN3: 0 | KO3: 0 | KP3: 290886 | KQ3: 137629 | KR3: 182515 | KS3: 183372 | KT3: 193696 | KU3: 116391 | KV3: 100010 | KW3: 165962 | KX3: 119096 | KY3: 0 | KZ3: 184600 | LA3: 121753 | LB3: 140791 | LC3: 87905 | LD3: 124505 | LE3: 0 | LF3: 238886 | LG3: 143458 | LH3: 170248 | LI3: 94658 | LJ3: 95810 | LK3: 39874402
A4: 売掛金 | B4: A002厚木産業 | AA4: 1645350 | BC4: 1645350 | CC4: 1018080 | DA4: 1559040 | ED4: 785400 | FF4: 1905960 | GF4: 1344000 | HI4: 1322160 | LK4: 11225340
A5: 売掛金 | B5: B001文京食器店 | AA5: 1502025 | LK5: 1502025
A6: 売掛金 | B6: C001中央産業 | GP6: 334530 | HR6: 614498 | IQ6: 415800 | LK6: 1364828
A7: 売掛金 | B7: C002中央産業仙台 | G7: 122010 | BK7: 44982 | CI7: 435855 | EO7: 549780 | FO7: 117600 | GP7: 135460 | HR7: 44982 | IQ7: 194040 | JS7: 65709 | KS7: 222852 | LK7: 1933270
A8: 売掛金 | B8: E001エヌ商会 | BC8: 1730400 | LK8: 1730400
A9: 売掛金 | B9: F001ﾌｧﾐﾘｰｽﾄｱふいた | BC9: 1034250 | CB9: 2237655 | DA9: 1904490 | EE9: 1714912 | FG9: 1207237 | GF9: 1385737 | HD9: 1034250 | JJ9: 1714912 | LK9: 12233443
A10: 売掛金 | B10: F002福山商店 | BC10: 62748 | CB10: 372827 | EE10: 331430 | GG10: 259707 | HE10: 62748 | IH10: 237919 | JJ10: 228768 | KJ10: 62748 | LK10: 1618895
A11: 売掛金 | B11: G001御殿場リビング | AA11: 462000 | BA11: 376588 | CC11: 556416 | DC11: 572544 | EE11: 131712 | FG11: 16170 | GG11: 196896 | HI11: 376588 | IH11: 160520 | JJ11: 747812 | KJ11: 376600 | LK11: 3973846
A12: 売掛金 | B12: H001ハマ屋 | AK12: 255150 | CK12: 359887 | DL12: 481320 | EO12: 387607 | FO12: 248850 | HR12: 811912 | IQ12: 240202 | JS12: 231540 | KS12: 414476 | LK12: 3430944
A13: 売掛金 | B13: H002彦商会 | BA13: 221676 | CC13: 378787 | DC13: 110565 | EE13: 128310 | FG13: 92137 | GG13: 229320 | HI13: 449631 | IH13: 379209 | JJ13: 215682 | KJ13: 453738 | LK13: 2659055
A14: 売掛金 | B14: I001池袋リビング | AZ14: 167580 | CC14: 249900 | DA14: 173827 | EE14: 160650 | FG14: 88200 | GF14: 259087 | HH14: 396900 | IC14: 378000 | JJ14: 146093 | KJ14: 368212 | LK14: 2388449
A15: 売掛金 | B15: I002市川ストア | AZ15: 306600 | CC15: 159862 | DA15: 176400 | EE15: 585900 | FG15: 198843 | GF15: 177187 | HH15: 102375 | IH15: 241342 | JJ15: 184170 | KJ15: 86205 | LI15: 312050 | LK15: 2530934
A16: 売掛金 | B16: K001海北商店 | AZ16: 196980 | CC16: 88788 | DA16: 123480 | FG16: 349272 | GF16: 115101 | HH16: 896700 | IC16: 370478 | LK16: 2140799
A17: 売掛金 | B17: K002川崎ﾎｰﾑｼｮｯﾌﾟ | AW17: 386820 | BY17: 324891 | CW17: 446740 | DY17: 380135 | FB17: 329616 | HD17: 138915 | IB17: 418611 | JD17: 594130 | KG17: 293200 | LE17: 350610 | LK17: 3663668
A18: 売掛金 | B18: L001ＬＳリビング大 | JJ18: 435127 | KJ18: 406712 | LJ18: 226812 | LK18: 1068651
A19: 売掛金 | B19: L001ＬＳリビング大分 | AA19: 376245 | DC19: 98846 | EE19: 130680 | FG19: 166500 | GG19: 110340 | HI19: 62100 | LK19: 944711
A20: 売掛金 | B20: L002ＬＳリビング福 | JJ20: 354690 | KJ20: 449820 | LJ20: 326418 | LK20: 1130928
A21: 売掛金 | B21: L002ＬＳリビング福岡 | AA21: 542430 | DC21: 108465 | EE21: 505575 | FG21: 340200 | GG21: 106312 | HI21: 92043 | LK21: 1695025
A22: 売掛金 | B22: L003愛知マート | Y22: 1958775 | BK22: 154350 | CB22: 1947162 | IG22: 1555639 | IQ22: 1555627 | LK22: 7171553
A23: 売掛金 | B23: M001三島商会 | AZ23: 76440 | BA23: 284445 | DC23: 208740 | EE23: 224910 | FG23: 158760 | GF23: 102900 | HI23: 361620 | IH23: 269002 | JJ23: 705612 | KJ23: 308712 | LK23: 2701141
A24: 売掛金 | B24: M002有限会社ミナミ | BA24: 858480 | CC24: 1198785 | DC24: 840472 | EE24: 545575 | FG24: 459170 | GG24: 668850 | HI24: 2148405 | IH24: 688327 | JJ24: 818802 | LK24: 8226866
A25: 売掛金 | B25: N001長島商事 | DC25: 441000 | EE25: 257460 | FG25: 331800 | GG25: 358260 | HI25: 830760 | IB25: 756220 | LK25: 2975500
A26: 売掛金 | B26: O001大津商会 | BA26: 145293 | CC26: 243810 | DC26: 236250 | EE26: 225193 | GG26: 154035 | HI26: 319551 | LK26: 1324132
A27: 売掛金 | B27: O002大阪食器 | BA27: 193158 | CC27: 128520 | DC27: 252504 | EE27: 189000 | FG27: 59535 | GF27: 97524 | HI27: 405972 | IC27: 231264 | JJ27: 140629 | KJ27: 449657 | LK27: 2147763
A28: 売掛金 | B28: O003オリエント商会 | AO28: 2565485 | FT28: 258800 | GS28: 71400 | HU28: 33600 | IV28: 113064 | LK28: 3042349
A29: 売掛金 | B29: P001プラザ調布 | AS29: 134400 | BS29: 164220 | CR29: 154125 | DU29: 254812 | EU29: 210375 | FW29: 126150 | GZ29: 126150 | HY29: 168732 | IZ29: 43062 | KB29: 151170 | LK29: 1533196
A30: 売掛金 | B30: R001ﾘﾋﾞﾝｸﾞｼｮｯﾌﾟ佐 | BA30: 103477 | GG30: 40320 | HI30: 265765 | IF30: 53772 | JI30: 73932 | KJ30: 103489 | LK30: 640755
A31: 売掛金 | B31: S001品川屋 | BL31: 89040 | CK31: 45864 | DL31: 17136 | GP31: 40320 | HR31: 114240 | IQ31: 85680 | KS31: 124320 | LK31: 516600
A32: 売掛金 | B32: W001ﾜｰｸｼｮｯﾌﾟ鈴鹿 | FG32: 16065 | GG32: 14085 | HI32: 10170 | IF32: 23625 | KJ32: 42997 | LJ32: 5670 | LK32: 112612
A33: 売掛金 | B33: Y001山口商事 | BA33: 12600 | CC33: 12390 | EE33: 5376 | HI33: 105420 | IF33: 14124 | JI33: 18900 | KJ33: 26712 | LK33: 195522
A34: 売掛金 | B34: 愛知マート | DA34: 1109850 | ED34: 2932400 | FG34: 2024373 | GF34: 2395628 | HI34: 1890000 | LK34: 10352251
A35: 売掛金 | B35: 掛代金回収 | BC35: 920850 | IH35: 1682758 | JI35: 1308680 | JJ35: 2850914 | KG35: 4741511 | KI35: 8639970 | KJ35: 1269926 | LK35: 21414609
A36: 売掛金 | B36: 掛代金回収 B001文京食器店 | BC36: 1518760 | CC36: 856492 | DA36: 557130 | ED36: 948920 | FF36: 805196 | GF36: 1502025 | HI36: 626360 | LK36: 6814883
A37: 売掛金 | B37: 掛代金回収 C001中央産業 | AJ37: 520905 | BL37: 723686 | CK37: 461475 | DL37: 520905 | EO37: 194906 | JS37: 549675 | KS37: 189225 | LK37: 3160777
A38: 売掛金 | B38: 掛代金回収 E001エヌ商会 | AA38: 758625 | CC38: 1575000 | DB38: 966650 | DC38: 1811250 | EE38: 1091350 | GF38: 2234400 | HH38: 2507441 | LK38: 10944716
A39: 売掛金 | B39: 掛代金回収 越後屋 | C39: 1658600 | BG39: 589400 | DH39: 1732500 | FJ39: 1956200 | LK39: 5936700
A40: 売掛金 | B40: 小切手持込み・佐藤 | CC40: 5280000 | LK40: 5280000
A41: 売掛金 | B41: 振込・近藤商会 | GH41: 6150000 | LK41: 6150000
A42: 売掛金 | B42: 振込・斎藤 | HU42: 5520000 | LK42: 5520000
A43: 売掛金 | B43: 振込・山口聖子 | LJ43: 4100000 | LK43: 4100000
A44: 売掛金 | B44: 振込・田中 | FG44: 6500000 | LK44: 6500000
A45: 売掛金 | B45: 滞留分売掛金残高回収 | JJ45: 248445 | KJ45: 452892 | LK45: 701337
A46: 売掛金 | B46: 売掛金小切手入金 | BO46: 1335284 | CO46: 1098527 | DP46: 918023 | ER46: 1897526 | FT46: 1058742 | GS46: 664582 | HU46: 1354897 | IV46: 1263587 | JW46: 718955 | KV46: 1066778 | LK46: 11376901
A47: 売掛金 | B47: 売掛金振込入金 | W47: 325452 | BA47: 2825687 | BC47: 2258456 | CC47: 1917297 | DC47: 3101168 | EE47: 3832683 | FG47: 4853164 | GG47: 1897653 | GH47: 589756 | HI47: 758978 | IH47: 2296415 | II47: 2638494 | JI47: 1159764 | JJ47: 3541140 | KJ47: 7191507 | LE47: 973643 | LH47: 856478 | LJ47: 1542587 | LK47: 42560322
A48: 売掛金 | B48: 売掛金請求 | M48: 1856845 | HI48: 563257 | LK48: 2420102
A49: 売掛金 | B49: 未回収売掛金残高回収 | LJ49: 3024000 | LK49: 3024000
A50: 売掛金 | B50: (空白) | HM50: 1483200 | JO50: 985600 | LK50: 2468800
A51: 売掛金回収 小計 | C51: 1658600 | D51: 0 | E51: 0 | F51: 0 | G51: 122010 | H51: 0 | I51: 0 | J51: 0 | K51: 0 | L51: 0 | M51: 1856845 | N51: 0 | O51: 0 | P51: 0 | Q51: 0 | R51: 0 | S51: 0 | T51: 0 | U51: 0 | V51: 0 | W51: 325452 | X51: 0 | Y51: 1958775 | Z51: 0 | AA51: 5286675 | AB51: 0 | AC51: 0 | AD51: 0 | AE51: 0 | AF51: 0 | AG51: 0 | AH51: 0 | AI51: 0 | AJ51: 520905 | AK51: 255150 | AL51: 0 | AM51: 0 | AN51: 0 | AO51: 2565485 | AP51: 0 | AQ51: 0 | AR51: 0 | AS51: 134400 | AT51: 0 | AU51: 0 | AV51: 0 | AW51: 386820 | AX51: 0 | AY51: 0 | AZ51: 747600 | BA51: 5021404 | BB51: 0 | BC51: 9170814 | BD51: 0 | BE51: 0 | BF51: 0 | BG51: 589400 | BH51: 0 | BI51: 0 | BJ51: 0 | BK51: 199332 | BL51: 812726 | BM51: 0 | BN51: 0 | BO51: 1335284 | BP51: 0 | BQ51: 0 | BR51: 0 | BS51: 164220 | BT51: 0 | BU51: 0 | BV51: 0 | BW51: 0 | BX51: 0 | BY51: 324891 | BZ51: 0 | CA51: 0 | CB51: 4557644 | CC51: 13664127 | CD51: 0 | CE51: 0 | CF51: 0 | CG51: 0 | CH51: 0 | CI51: 435855 | CJ51: 0 | CK51: 867226 | CL51: 0 | CM51: 0 | CN51: 0 | CO51: 1098527 | CP51: 0 | CQ51: 0 | CR51: 154125 | CS51: 0 | CT51: 0 | CU51: 0 | CV51: 0 | CW51: 446740 | CX51: 0 | CY51: 0 | CZ51: 0 | DA51: 5604217 | DB51: 966650 | DC51: 7781804 | DD51: 0 | DE51: 0 | DF51: 0 | DG51: 0 | DH51: 1732500 | DI51: 0 | DJ51: 0 | DK51: 0 | DL51: 1019361 | DM51: 0 | DN51: 0 | DO51: 0 | DP51: 918023 | DQ51: 0 | DR51: 0 | DS51: 0 | DT51: 0 | DU51: 254812 | DV51: 0 | DW51: 0 | DX51: 0 | DY51: 380135 | DZ51: 0 | EA51: 0 | EB51: 0 | EC51: 0 | ED51: 4666720 | EE51: 10060716 | EF51: 0 | EG51: 0 | EH51: 0 | EI51: 0 | EJ51: 0 | EK51: 0 | EL51: 0 | EM51: 0 | EN51: 0 | EO51: 1132293 | EP51: 0 | EQ51: 0 | ER51: 1897526 | ES51: 0 | ET51: 0 | EU51: 210375 | EV51: 0 | EW51: 0 | EX51: 0 | EY51: 0 | EZ51: 0 | FA51: 0 | FB51: 329616 | FC51: 0 | FD51: 0 | FE51: 0 | FF51: 2711156 | FG51: 16861426 | FH51: 0 | FI51: 0 | FJ51: 1956200 | FK51: 0 | FL51: 0 | FM51: 0 | FN51: 0 | FO51: 366450 | FP51: 0 | FQ51: 0 | FR51: 0 | FS51: 0 | FT51: 1317542 | FU51: 0 | FV51: 0 | FW51: 126150 | FX51: 0 | FY51: 0 | FZ51: 0 | GA51: 0 | GB51: 0 | GC51: 0 | GD51: 0 | GE51: 0 | GF51: 9613589 | GG51: 4035778 | GH51: 6739756 | GI51: 0 | GJ51: 0 | GK51: 0 | GL51: 0 | GM51: 0 | GN51: 0 | GO51: 0 | GP51: 510310 | GQ51: 0 | GR51: 0 | GS51: 735982 | GT51: 0 | GU51: 0 | GV51: 0 | GW51: 0 | GX51: 0 | GY51: 0 | GZ51: 126150 | HA51: 0 | HB51: 0 | HC51: 0 | HD51: 1173165 | HE51: 62748 | HF51: 0 | HG51: 0 | HH51: 3903416 | HI51: 10588780 | HJ51: 0 | HK51: 0 | HL51: 0 | HM51: 1483200 | HN51: 0 | HO51: 0 | HP51: 0 | HQ51: 0 | HR51: 1585632 | HS51: 0 | HT51: 0 | HU51: 6908497 | HV51: 0 | HW51: 0 | HX51: 0 | HY51: 168732 | HZ51: 0 | IA51: 0 | IB51: 1174831 | IC51: 979742 | ID51: 0 | IE51: 0 | IF51: 91521 | IG51: 1555639 | IH51: 5955492 | II51: 2638494 | IJ51: 0 | IK51: 0 | IL51: 0 | IM51: 0 | IN51: 0 | IO51: 0 | IP51: 0 | IQ51: 2491349 | IR51: 0 | IS51: 0 | IT51: 0 | IU51: 0 | IV51: 1376651 | IW51: 0 | IX51: 0 | IY51: 0 | IZ51: 43062 | JA51: 0 | JB51: 0 | JC51: 0 | JD51: 594130 | JE51: 0 | JF51: 0 | JG51: 0 | JH51: 0 | JI51: 2561276 | JJ51: 12332796 | JK51: 0 | JL51: 0 | JM51: 0 | JN51: 0 | JO51: 985600 | JP51: 0 | JQ51: 0 | JR51: 0 | JS51: 846924 | JT51: 0 | JU51: 0 | JV51: 0 | JW51: 718955 | JX51: 0 | JY51: 0 | JZ51: 0 | KA51: 0 | KB51: 151170 | KC51: 0 | KD51: 0 | KE51: 0 | KF51: 0 | KG51: 5034711 | KH51: 0 | KI51: 8639970 | KJ51: 12049927 | KK51: 0 | KL51: 0 | KM51: 0 | KN51: 0 | KO51: 0 | KP51: 0 | KQ51: 0 | KR51: 0 | KS51: 950873 | KT51: 0 | KU51: 0 | KV51: 1066778 | KW51: 0 | KX51: 0 | KY51: 0 | KZ51: 0 | LA51: 0 | LB51: 0 | LC51: 0 | LD51: 0 | LE51: 1324253 | LF51: 0 | LG51: 0 | LH51: 856478 | LI51: 312050 | LJ51: 9225487 | LK51: 236548598
A52: 受取手形 | B52: 決済,振出人:九州物産 | Z52: 126000 | AY52: 583800 | CZ52: 515000 | EB52: 1140000 | FE52: 1011920 | GE52: 905750 | HG52: 829360 | IG52: 858800 | JG52: 887800 | KI52: 1336796 | LK52: 8195226
A53: 受取手形 | B53: 決済,振出人:中央産業大阪 | AR53: 1214100 | BR53: 2502150 | DS53: 2070920 | EU53: 2750765 | FV53: 3465000 | GX53: 3046000 | HX53: 1050000 | KA53: 663000 | LK53: 16761935
A54: 受取手形 | B54: 決済,振出人:中野産業 | E54: 147420 | AI54: 587698 | BJ54: 545621 | CJ54: 758654 | DJ54: 524029 | FM54: 209790 | FN54: 158760 | GO54: 771159 | HQ54: 519474 | IP54: 504350 | JF54: 481950 | KS54: 949431 | LK54: 6158336
A55: 受取手形期日取立 小計 | C55: 0 | D55: 0 | E55: 147420 | F55: 0 | G55: 0 | H55: 0 | I55: 0 | J55: 0 | K55: 0 | L55: 0 | M55: 0 | N55: 0 | O55: 0 | P55: 0 | Q55: 0 | R55: 0 | S55: 0 | T55: 0 | U55: 0 | V55: 0 | W55: 0 | X55: 0 | Y55: 0 | Z55: 126000 | AA55: 0 | AB55: 0 | AC55: 0 | AD55: 0 | AE55: 0 | AF55: 0 | AG55: 0 | AH55: 0 | AI55: 587698 | AJ55: 0 | AK55: 0 | AL55: 0 | AM55: 0 | AN55: 0 | AO55: 0 | AP55: 0 | AQ55: 0 | AR55: 1214100 | AS55: 0 | AT55: 0 | AU55: 0 | AV55: 0 | AW55: 0 | AX55: 0 | AY55: 583800 | AZ55: 0 | BA55: 0 | BB55: 0 | BC55: 0 | BD55: 0 | BE55: 0 | BF55: 0 | BG55: 0 | BH55: 0 | BI55: 0 | BJ55: 545621 | BK55: 0 | BL55: 0 | BM55: 0 | BN55: 0 | BO55: 0 | BP55: 0 | BQ55: 0 | BR55: 2502150 | BS55: 0 | BT55: 0 | BU55: 0 | BV55: 0 | BW55: 0 | BX55: 0 | BY55: 0 | BZ55: 0 | CA55: 0 | CB55: 0 | CC55: 0 | CD55: 0 | CE55: 0 | CF55: 0 | CG55: 0 | CH55: 0 | CI55: 0 | CJ55: 758654 | CK55: 0 | CL55: 0 | CM55: 0 | CN55: 0 | CO55: 0 | CP55: 0 | CQ55: 0 | CR55: 0 | CS55: 0 | CT55: 0 | CU55: 0 | CV55: 0 | CW55: 0 | CX55: 0 | CY55: 0 | CZ55: 515000 | DA55: 0 | DB55: 0 | DC55: 0 | DD55: 0 | DE55: 0 | DF55: 0 | DG55: 0 | DH55: 0 | DI55: 0 | DJ55: 524029 | DK55: 0 | DL55: 0 | DM55: 0 | DN55: 0 | DO55: 0 | DP55: 0 | DQ55: 0 | DR55: 0 | DS55: 2070920 | DT55: 0 | DU55: 0 | DV55: 0 | DW55: 0 | DX55: 0 | DY55: 0 | DZ55: 0 | EA55: 0 | EB55: 1140000 | EC55: 0 | ED55: 0 | EE55: 0 | EF55: 0 | EG55: 0 | EH55: 0 | EI55: 0 | EJ55: 0 | EK55: 0 | EL55: 0 | EM55: 0 | EN55: 0 | EO55: 0 | EP55: 0 | EQ55: 0 | ER55: 0 | ES55: 0 | ET55: 0 | EU55: 2750765 | EV55: 0 | EW55: 0 | EX55: 0 | EY55: 0 | EZ55: 0 | FA55: 0 | FB55: 0 | FC55: 0 | FD55: 0 | FE55: 1011920 | FF55: 0 | FG55: 0 | FH55: 0 | FI55: 0 | FJ55: 0 | FK55: 0 | FL55: 0 | FM55: 209790 | FN55: 158760 | FO55: 0 | FP55: 0 | FQ55: 0 | FR55: 0 | FS55: 0 | FT55: 0 | FU55: 0 | FV55: 3465000 | FW55: 0 | FX55: 0 | FY55: 0 | FZ55: 0 | GA55: 0 | GB55: 0 | GC55: 0 | GD55: 0 | GE55: 905750 | GF55: 0 | GG55: 0 | GH55: 0 | GI55: 0 | GJ55: 0 | GK55: 0 | GL55: 0 | GM55: 0 | GN55: 0 | GO55: 771159 | GP55: 0 | GQ55: 0 | GR55: 0 | GS55: 0 | GT55: 0 | GU55: 0 | GV55: 0 | GW55: 0 | GX55: 3046000 | GY55: 0 | GZ55: 0 | HA55: 0 | HB55: 0 | HC55: 0 | HD55: 0 | HE55: 0 | HF55: 0 | HG55: 829360 | HH55: 0 | HI55: 0 | HJ55: 0 | HK55: 0 | HL55: 0 | HM55: 0 | HN55: 0 | HO55: 0 | HP55: 0 | HQ55: 519474 | HR55: 0 | HS55: 0 | HT55: 0 | HU55: 0 | HV55: 0 | HW55: 0 | HX55: 1050000 | HY55: 0 | HZ55: 0 | IA55: 0 | IB55: 0 | IC55: 0 | ID55: 0 | IE55: 0 | IF55: 0 | IG55: 858800 | IH55: 0 | II55: 0 | IJ55: 0 | IK55: 0 | IL55: 0 | IM55: 0 | IN55: 0 | IO55: 0 | IP55: 504350 | IQ55: 0 | IR55: 0 | IS55: 0 | IT55: 0 | IU55: 0 | IV55: 0 | IW55: 0 | IX55: 0 | IY55: 0 | IZ55: 0 | JA55: 0 | JB55: 0 | JC55: 0 | JD55: 0 | JE55: 0 | JF55: 481950 | JG55: 887800 | JH55: 0 | JI55: 0 | JJ55: 0 | JK55: 0 | JL55: 0 | JM55: 0 | JN55: 0 | JO55: 0 | JP55: 0 | JQ55: 0 | JR55: 0 | JS55: 0 | JT55: 0 | JU55: 0 | JV55: 0 | JW55: 0 | JX55: 0 | JY55: 0 | JZ55: 0 | KA55: 663000 | KB55: 0 | KC55: 0 | KD55: 0 | KE55: 0 | KF55: 0 | KG55: 0 | KH55: 0 | KI55: 1336796 | KJ55: 0 | KK55: 0 | KL55: 0 | KM55: 0 | KN55: 0 | KO55: 0 | KP55: 0 | KQ55: 0 | KR55: 0 | KS55: 949431 | KT55: 0 | KU55: 0 | KV55: 0 | KW55: 0 | KX55: 0 | KY55: 0 | KZ55: 0 | LA55: 0 | LB55: 0 | LC55: 0 | LD55: 0 | LE55: 0 | LF55: 0 | LG55: 0 | LH55: 0 | LI55: 0 | LJ55: 0 | LK55: 31115497
A56: 受取配当金 | B56: 出資配当 | BC56: 640 | LK56: 640
A57: 受取利息 | B57: 源泉所得税 | DS57: 463 | JZ57: 20 | LK57: 483
A58: 受取利息 | B58: 普通預金利息 | DS58: 1865 | JZ58: 80 | LK58: 1945
A59: 受取利息 | B59: 利息 | EJ59: 5000 | KN59: 5000 | LK59: 10000
A60: 利息等収入 小計 | C60: 0 | D60: 0 | E60: 0 | F60: 0 | G60: 0 | H60: 0 | I60: 0 | J60: 0 | K60: 0 | L60: 0 | M60: 0 | N60: 0 | O60: 0 | P60: 0 | Q60: 0 | R60: 0 | S60: 0 | T60: 0 | U60: 0 | V60: 0 | W60: 0 | X60: 0 | Y60: 0 | Z60: 0 | AA60: 0 | AB60: 0 | AC60: 0 | AD60: 0 | AE60: 0 | AF60: 0 | AG60: 0 | AH60: 0 | AI60: 0 | AJ60: 0 | AK60: 0 | AL60: 0 | AM60: 0 | AN60: 0 | AO60: 0 | AP60: 0 | AQ60: 0 | AR60: 0 | AS60: 0 | AT60: 0 | AU60: 0 | AV60: 0 | AW60: 0 | AX60: 0 | AY60: 0 | AZ60: 0 | BA60: 0 | BB60: 0 | BC60: 640 | BD60: 0 | BE60: 0 | BF60: 0 | BG60: 0 | BH60: 0 | BI60: 0 | BJ60: 0 | BK60: 0 | BL60: 0 | BM60: 0 | BN60: 0 | BO60: 0 | BP60: 0 | BQ60: 0 | BR60: 0 | BS60: 0 | BT60: 0 | BU60: 0 | BV60: 0 | BW60: 0 | BX60: 0 | BY60: 0 | BZ60: 0 | CA60: 0 | CB60: 0 | CC60: 0 | CD60: 0 | CE60: 0 | CF60: 0 | CG60: 0 | CH60: 0 | CI60: 0 | CJ60: 0 | CK60: 0 | CL60: 0 | CM60: 0 | CN60: 0 | CO60: 0 | CP60: 0 | CQ60: 0 | CR60: 0 | CS60: 0 | CT60: 0 | CU60: 0 | CV60: 0 | CW60: 0 | CX60: 0 | CY60: 0 | CZ60: 0 | DA60: 0 | DB60: 0 | DC60: 0 | DD60: 0 | DE60: 0 | DF60: 0 | DG60: 0 | DH60: 0 | DI60: 0 | DJ60: 0 | DK60: 0 | DL60: 0 | DM60: 0 | DN60: 0 | DO60: 0 | DP60: 0 | DQ60: 0 | DR60: 0 | DS60: 2328 | DT60: 0 | DU60: 0 | DV60: 0 | DW60: 0 | DX60: 0 | DY60: 0 | DZ60: 0 | EA60: 0 | EB60: 0 | EC60: 0 | ED60: 0 | EE60: 0 | EF60: 0 | EG60: 0 | EH60: 0 | EI60: 0 | EJ60: 5000 | EK60: 0 | EL60: 0 | EM60: 0 | EN60: 0 | EO60: 0 | EP60: 0 | EQ60: 0 | ER60: 0 | ES60: 0 | ET60: 0 | EU60: 0 | EV60: 0 | EW60: 0 | EX60: 0 | EY60: 0 | EZ60: 0 | FA60: 0 | FB60: 0 | FC60: 0 | FD60: 0 | FE60: 0 | FF60: 0 | FG60: 0 | FH60: 0 | FI60: 0 | FJ60: 0 | FK60: 0 | FL60: 0 | FM60: 0 | FN60: 0 | FO60: 0 | FP60: 0 | FQ60: 0 | FR60: 0 | FS60: 0 | FT60: 0 | FU60: 0 | FV60: 0 | FW60: 0 | FX60: 0 | FY60: 0 | FZ60: 0 | GA60: 0 | GB60: 0 | GC60: 0 | GD60: 0 | GE60: 0 | GF60: 0 | GG60: 0 | GH60: 0 | GI60: 0 | GJ60: 0 | GK60: 0 | GL60: 0 | GM60: 0 | GN60: 0 | GO60: 0 | GP60: 0 | GQ60: 0 | GR60: 0 | GS60: 0 | GT60: 0 | GU60: 0 | GV60: 0 | GW60: 0 | GX60: 0 | GY60: 0 | GZ60: 0 | HA60: 0 | HB60: 0 | HC60: 0 | HD60: 0 | HE60: 0 | HF60: 0 | HG60: 0 | HH60: 0 | HI60: 0 | HJ60: 0 | HK60: 0 | HL60: 0 | HM60: 0 | HN60: 0 | HO60: 0 | HP60: 0 | HQ60: 0 | HR60: 0 | HS60: 0 | HT60: 0 | HU60: 0 | HV60: 0 | HW60: 0 | HX60: 0 | HY60: 0 | HZ60: 0 | IA60: 0 | IB60: 0 | IC60: 0 | ID60: 0 | IE60: 0 | IF60: 0 | IG60: 0 | IH60: 0 | II60: 0 | IJ60: 0 | IK60: 0 | IL60: 0 | IM60: 0 | IN60: 0 | IO60: 0 | IP60: 0 | IQ60: 0 | IR60: 0 | IS60: 0 | IT60: 0 | IU60: 0 | IV60: 0 | IW60: 0 | IX60: 0 | IY60: 0 | IZ60: 0 | JA60: 0 | JB60: 0 | JC60: 0 | JD60: 0 | JE60: 0 | JF60: 0 | JG60: 0 | JH60: 0 | JI60: 0 | JJ60: 0 | JK60: 0 | JL60: 0 | JM60: 0 | JN60: 0 | JO60: 0 | JP60: 0 | JQ60: 0 | JR60: 0 | JS60: 0 | JT60: 0 | JU60: 0 | JV60: 0 | JW60: 0 | JX60: 0 | JY60: 0 | JZ60: 100 | KA60: 0 | KB60: 0 | KC60: 0 | KD60: 0 | KE60: 0 | KF60: 0 | KG60: 0 | KH60: 0 | KI60: 0 | KJ60: 0 | KK60: 0 | KL60: 0 | KM60: 0 | KN60: 5000 | KO60: 0 | KP60: 0 | KQ60: 0 | KR60: 0 | KS60: 0 | KT60: 0 | KU60: 0 | KV60: 0 | KW60: 0 | KX60: 0 | KY60: 0 | KZ60: 0 | LA60: 0 | LB60: 0 | LC60: 0 | LD60: 0 | LE60: 0 | LF60: 0 | LG60: 0 | LH60: 0 | LI60: 0 | LJ60: 0 | LK60: 13068
A61: 仮受消費税等 | B61: 消費税振替 | LJ61: -30366605 | LK61: -30366605
A62: 仮払消費税等 | B62: 消費税振替 | LJ62: 23379058 | LK62: 23379058
A63: 仮払消費税等 | B63: 東京税関 | AU63: -360000 | DY63: -454700 | FB63: -129900 | FW63: -353500 | KB63: -171000 | LK63: -1469100
A64: 買掛金 | B64: 11/18決済予定支払手形（伝票No.3509）の取立てないため修正 | GZ64: 2500000 | LK64: 2500000
A65: 未払消費税等 | B65: 確定消費税 | LJ65: 4598700 | LK65: 4598700
A66: 預り金 | B66: //介護保険料 10月分 | GB66: 9050 | LK66: 9050
A67: 預り金 | B67: //介護保険料 11月分 | HD67: 9050 | LK67: 9050
A68: 預り金 | B68: //介護保険料 12月分 | ID68: 9050 | LK68: 9050
A69: 預り金 | B69: //介護保険料 1月分 | JD69: 9050 | LK69: 9050
A70: 預り金 | B70: //介護保険料 2月分 | KE70: 9050 | LK70: 9050
A71: 預り金 | B71: //介護保険料 3月分 | LC71: 9050 | LK71: 9050
A72: 預り金 | B72: //介護保険料 4月分 | V72: 9050 | LK72: 9050
A73: 預り金 | B73: //介護保険料 5月分 | AW73: 9050 | LK73: 9050
A74: 預り金 | B74: //介護保険料 6月分 | BY74: 9050 | LK74: 9050
A75: 預り金 | B75: //介護保険料 7月分 | CW75: 9050 | LK75: 9050
A76: 預り金 | B76: //介護保険料 8月分 | DX76: 9050 | LK76: 9050
A77: 預り金 | B77: //介護保険料 9月分 | FB77: 9050 | LK77: 9050
A78: 預り金 | B78: //社会保険料 10月分 | GB78: 199567 | LK78: 199567
A79: 預り金 | B79: //社会保険料 11月分 | HD79: 199567 | LK79: 199567
A80: 預り金 | B80: //社会保険料 12月分 | ID80: 199567 | LK80: 199567
A81: 預り金 | B81: //社会保険料 1月分 | JD81: 199567 | LK81: 199567
A82: 預り金 | B82: //社会保険料 2月分 | KE82: 199567 | LK82: 199567
A83: 預り金 | B83: //社会保険料 3月分 | LC83: 199567 | LK83: 199567
A84: 預り金 | B84: //社会保険料 4月分 | V84: 199567 | LK84: 199567
A85: 預り金 | B85: //社会保険料 5月分 | AW85: 199567 | LK85: 199567
A86: 預り金 | B86: //社会保険料 6月分 | BY86: 199567 | LK86: 199567
A87: 預り金 | B87: //社会保険料 7月分 | CW87: 199567 | LK87: 199567
A88: 預り金 | B88: //社会保険料 8月分 | DX88: 199567 | LK88: 199567
A89: 預り金 | B89: //社会保険料 9月分 | FB89: 199567 | LK89: 199567
A90: 預り金 | B90: //住民税 10月分 | GB90: 37100 | LK90: 37100
A91: 預り金 | B91: //住民税 11月分 | HD91: 37100 | LK91: 37100
A92: 預り金 | B92: //住民税 12月分 | ID92: 37100 | LK92: 37100
A93: 預り金 | B93: //住民税 1月分 | JD93: 37100 | LK93: 37100
A94: 預り金 | B94: //住民税 2月分 | KE94: 37100 | LK94: 37100
A95: 預り金 | B95: //住民税 3月分 | LC95: 37100 | LK95: 37100
A96: 預り金 | B96: //住民税 4月分 | V96: 37100 | LK96: 37100
A97: 預り金 | B97: //住民税 5月分 | AW97: 37100 | LK97: 37100
A98: 預り金 | B98: //住民税 6月分 | BY98: 37100 | LK98: 37100
A99: 預り金 | B99: //住民税 7月分 | CW99: 37100 | LK99: 37100
A100: 預り金 | B100: //住民税 8月分 | DX100: 37100 | LK100: 37100
A101: 預り金 | B101: //住民税 9月分 | FB101: 37100 | LK101: 37100
A102: 預り金 | B102: ／顧問料源泉 | AA102: 5000 | LK102: 5000
A103: 預り金 | B103: 夏季賞与 | CK103: 373276 | LK103: 373276
A104: 預り金 | B104: 給与 10月分//源泉所得税 10月分 | GB104: 204860 | LK104: 204860
A105: 預り金 | B105: 給与 11月分//源泉所得税 11月分 | HD105: 204860 | LK105: 204860
A106: 預り金 | B106: 給与 12月分//源泉所得税 12月分 | ID106: 204860 | LK106: 204860
A107: 預り金 | B107: 給与 1月分//源泉所得税 1月分 | JD107: 204860 | LK107: 204860
A108: 預り金 | B108: 給与 2月分//源泉所得税 2月分 | KE108: 204860 | LK108: 204860
A109: 預り金 | B109: 給与 3月分//源泉所得税 3月分 | LC109: 204860 | LK109: 204860
A110: 預り金 | B110: 給与 4月分//源泉所得税 4月分 | V110: 204860 | LK110: 204860
A111: 預り金 | B111: 給与 5月分//源泉所得税 5月分 | AW111: 204860 | LK111: 204860
A112: 預り金 | B112: 給与 6月分//源泉所得税 6月分 | BY112: 204860 | LK112: 204860
A113: 預り金 | B113: 給与 7月分//源泉所得税 7月分 | CW113: 204860 | LK113: 204860
A114: 預り金 | B114: 給与 8月分//源泉所得税 8月分 | DX114: 204860 | LK114: 204860
A115: 預り金 | B115: 給与 9月分//源泉所得税 9月分 | FB115: 204860 | LK115: 204860
A116: 預り金 | B116: 冬季賞与 | HR116: 516080 | LK116: 516080
A117: 預り金 | B117: (空白) | AZ117: 5000 | CC117: 5000 | CK117: 33760 | DC117: 5000 | EC117: 5000 | FG117: 5000 | GH117: 5000 | HG117: 5000 | HR117: 30145 | IH117: 5000 | JI117: 5000 | KI117: 5000 | LG117: 5000 | LK117: 118905
A118: 立替金 | B118: 弥生幸子 10月分//雇用保険 10月分 | GB118: 9877 | LK118: 9877
A119: 立替金 | B119: 弥生幸子 11月分//雇用保険 11月分 | HD119: 9877 | LK119: 9877
A120: 立替金 | B120: 弥生幸子 12月分//雇用保険 12月分 | ID120: 9877 | LK120: 9877
A121: 立替金 | B121: 弥生幸子 1月分//雇用保険 1月分 | JD121: 9877 | LK121: 9877
A122: 立替金 | B122: 弥生幸子 2月分//雇用保険 2月分 | KE122: 9877 | LK122: 9877
A123: 立替金 | B123: 弥生幸子 3月分//雇用保険 3月分 | LC123: 9877 | LK123: 9877
A124: 立替金 | B124: 弥生幸子 4月分//雇用保険 4月分 | V124: 9877 | LK124: 9877
A125: 立替金 | B125: 弥生幸子 5月分//雇用保険 5月分 | AW125: 9877 | LK125: 9877
... 156 more rows

Sheet 補助ピボット
A1: 合計 / 金額 | D1: 年 | E1: 日付
D2: 2016年 | M2: 2017年 | P2: 総計
A3: 資金繰り表科目 | B3: 相手科目 | C3: 相手補助科目 | D3: 4月 | E3: 5月 | F3: 6月 | G3: 7月 | H3: 8月 | I3: 9月 | J3: 10月 | K3: 11月 | L3: 12月 | M3: 1月 | N3: 2月 | O3: 3月
A4: その他経常支出 | B4: 雑損失 | C4: (空白) | O4: -2388847 | P4: -2388847
A5: その他経常支出 | B5: 預り金 | C5: 源泉所得税 | G5: 1259160 | M5: 2106436 | P5: 3365596
A6: その他経常支出 | B6: 預り金 | C6: 社会保険料 | E6: 399134 | F6: 199567 | G6: 199567 | H6: 199567 | I6: 199567 | J6: 199567 | K6: 199567 | L6: 199567 | M6: 241647 | N6: 199567 | O6: 199567 | P6: 2436884
A7: その他経常支出 | B7: 預り金 | C7: 住民税 | D7: 37100 | E7: 37100 | F7: 37100 | G7: 37100 | H7: 37100 | I7: 37100 | J7: 37100 | K7: 37100 | L7: 37100 | M7: 37100 | N7: 37100 | O7: 37100 | P7: 445200
A8: その他経常支出 | B8: 立替金 | C8: 雇用保険 | D8: 175897 | P8: 175897
A9: その他経常収入 | B9: 仮受消費税等 | C9: (空白) | O9: -30366605 | P9: -30366605
A10: その他経常収入 | B10: 仮払消費税等 | C10: (空白) | E10: -360000 | H10: -454700 | I10: -129900 | J10: -353500 | N10: -171000 | O10: 23379058 | P10: 21909958
A11: その他経常収入 | B11: 買掛金 | C11: アンデス | K11: 2500000 | P11: 2500000
A12: その他経常収入 | B12: 未払消費税等 | C12: (空白) | O12: 4598700 | P12: 4598700
A13: その他経常収入 | B13: 預り金 | C13: 介護保険料 | D13: 9050 | E13: 9050 | F13: 9050 | G13: 9050 | H13: 9050 | I13: 9050 | J13: 9050 | K13: 9050 | L13: 39195 | M13: 9050 | N13: 9050 | O13: 9050 | P13: 138745
A14: その他経常収入 | B14: 預り金 | C14: 源泉所得税 | D14: 209860 | E14: 209860 | F14: 209860 | G14: 583136 | H14: 209860 | I14: 209860 | J14: 209860 | K14: 209860 | L14: 683860 | M14: 209860 | N14: 209860 | O14: 209860 | P14: 3365596
A15: その他経常収入 | B15: 預り金 | C15: 社会保険料 | D15: 199567 | E15: 199567 | F15: 199567 | G15: 233327 | H15: 199567 | I15: 199567 | J15: 199567 | K15: 199567 | L15: 241647 | M15: 199567 | N15: 199567 | O15: 199567 | P15: 2470644
A16: その他経常収入 | B16: 預り金 | C16: 住民税 | D16: 37100 | E16: 37100 | F16: 37100 | G16: 37100 | H16: 37100 | I16: 37100 | J16: 37100 | K16: 37100 | L16: 37100 | M16: 37100 | N16: 37100 | O16: 37100 | P16: 445200
A17: その他経常収入 | B17: 立替金 | C17: 雇用保険 | D17: 9877 | E17: 9877 | F17: 9877 | G17: 9877 | H17: 9877 | I17: 9877 | J17: 9877 | K17: 9877 | L17: 37335 | M17: 9877 | N17: 9877 | O17: 9877 | P17: 145982
A18: 現金売上 | B18: 売上高 | C18: (空白) | D18: 2952629 | E18: 3111196 | F18: 3621918 | G18: 3350444 | H18: 3623791 | I18: 3640449 | J18: 3321745 | K18: 3407612 | L18: 3562395 | M18: 2922534 | N18: 3034107 | O18: 3325582 | P18: 39874402
A19: 支払手形決済 | B19: 支払手形 | C19: (空白) | D19: 1060642 | E19: 3558215 | P19: 4618857
A20: 受取手形期日取立 | B20: 受取手形 | C20: (空白) | D20: 273420 | E20: 2385598 | F20: 3047771 | G20: 1273654 | H20: 3734949 | I20: 3762685 | J20: 4739300 | K20: 4646519 | L20: 2428274 | M20: 1874100 | N20: 1999796 | O20: 949431 | P20: 31115497
A21: 諸経費支出 | B21: [製]修繕費 | C21: (空白) | D21: 55000 | F21: 30000 | K21: 30000 | P21: 115000
A22: 諸経費支出 | B22: [製]消耗工具費 | C22: (空白) | F22: 32500 | I22: 15200 | P22: 47700
A23: 諸経費支出 | B23: [製]消耗品費 | C23: (空白) | D23: 33900 | E23: 47430 | F23: 10995 | G23: 50950 | H23: 12275 | I23: 11050 | J23: 45407 | K23: 8050 | L23: 2990 | M23: 37850 | N23: 2250 | O23: 1050 | P23: 264197
A24: 諸経費支出 | B24: [製]水道光熱費 | C24: (空白) | D24: 35000 | E24: 45500 | F24: 59600 | G24: 26000 | H24: 62000 | I24: 26600 | J24: 59200 | K24: 25970 | L24: 363600 | M24: 116900 | N24: 160950 | O24: 170000 | P24: 1151320
A25: 諸経費支出 | B25: [製]地代家賃 | C25: (空白) | D25: 115000 | E25: 115000 | F25: 115000 | G25: 115000 | H25: 115000 | I25: 115000 | J25: 115000 | K25: 115000 | L25: 115000 | N25: 230000 | O25: 115000 | P25: 1380000
A26: 諸経費支出 | B26: [製]賃借料 | C26: (空白) | D26: 44625 | E26: 44625 | F26: 44625 | G26: 44625 | H26: 44625 | I26: 44625 | J26: 44625 | K26: 44625 | L26: 44625 | M26: 44625 | N26: 44625 | O26: 44625 | P26: 535500
A27: 諸経費支出 | B27: [製]通信費 | C27: (空白) | D27: 36103 | E27: 23516 | F27: 32987 | G27: 44218 | H27: 34197 | I27: 32987 | J27: 45297 | K27: 34628 | L27: 3169 | M27: 6284 | N27: 5284 | O27: 6008 | P27: 304678
A28: 諸経費支出 | B28: [製]旅費交通費 | C28: (空白) | D28: 7800 | E28: 7800 | F28: 7800 | G28: 7800 | H28: 7800 | I28: 7800 | J28: 7800 | K28: 7800 | L28: 7800 | M28: 7800 | N28: 7800 | O28: 7800 | P28: 93600
A29: 諸経費支出 | B29: リース料 | C29: (空白) | D29: 17550 | E29: 17550 | F29: 17550 | G29: 17550 | H29: 17550 | I29: 17550 | J29: 17550 | K29: 17550 | L29: 17550 | M29: 17550 | N29: 17550 | O29: 17550 | P29: 210600
A30: 諸経費支出 | B30: 荷造運賃 | C30: (空白) | D30: 358000 | E30: 356000 | F30: 389500 | G30: 401000 | H30: 421000 | I30: 521500 | J30: 630800 | K30: 268900 | L30: 358000 | M30: 378000 | N30: 398500 | O30: 365200 | P30: 4846400
A31: 諸経費支出 | B31: 交際費 | C31: (空白) | D31: 76280 | E31: 100000 | F31: 92400 | G31: 48000 | H31: 55000 | J31: 165900 | K31: 273000 | L31: 45000 | M31: 107500 | N31: 43700 | O31: 207900 | P31: 1214680
A32: 諸経費支出 | B32: 広告宣伝費 | C32: (空白) | F32: 1399000 | J32: 3000000 | M32: 472500 | O32: 420000 | P32: 5291500
A33: 諸経費支出 | B33: 雑費 | C33: (空白) | I33: 42000 | P33: 42000
A34: 諸経費支出 | B34: 支払手数料 | C34: (空白) | D34: 2160 | E34: 2700 | F34: 2160 | G34: 2160 | H34: 2160 | I34: 2160 | J34: 3024 | K34: 8748 | L34: 16548 | M34: 6264 | N34: 6804 | O34: 3672 | P34: 58560
A35: 諸経費支出 | B35: 支払報酬料 | C35: (空白) | D35: 50000 | E35: 50000 | F35: 50000 | G35: 50000 | H35: 50000 | I35: 50000 | J35: 50000 | K35: 50000 | L35: 50000 | M35: 50000 | N35: 50000 | O35: 50000 | P35: 600000
A36: 諸経費支出 | B36: 事務用品費 | C36: (空白) | D36: 6650 | F36: 10500 | G36: 12100 | H36: 15015 | I36: 2100 | J36: 10287 | L36: 31500 | M36: 3200 | N36: 38400 | O36: 7530 | P36: 137282
A37: 諸経費支出 | B37: 車両費 | C37: ガソリン | D37: 87953 | E37: 89561 | F37: 92512 | G37: 79851 | H37: 89561 | I37: 102512 | J37: 89563 | K37: 98562 | L37: 97632 | M37: 89561 | N37: 98524 | O37: 89653 | P37: 1105445
A38: 諸経費支出 | B38: 車両費 | C38: その他 | E38: 2210 | H38: 165900 | I38: 1410 | J38: 8200 | K38: 2610 | L38: 7210 | O38: 1210 | P38: 188750
A39: 諸経費支出 | B39: 修繕費 | C39: (空白) | D39: 85000 | G39: 51000 | K39: 53000 | L39: 15000 | N39: 21545 | P39: 225545
A40: 諸経費支出 | B40: 消耗品費 | C40: (空白) | D40: 46800 | F40: 79458 | G40: 9014 | I40: 4502 | J40: 8400 | K40: 7595 | L40: 48812 | M40: 1125 | N40: 2239 | P40: 207945
A41: 諸経費支出 | B41: 水道光熱費 | C41: (空白) | D41: 77047 | E41: 85825 | F41: 127447 | G41: 81483 | H41: 150606 | I41: 82451 | J41: 142232 | K41: 101497 | L41: 154303 | M41: 86600 | N41: 76266 | O41: 77607 | P41: 1243364
A42: 諸経費支出 | B42: 租税公課 | C42: (空白) | D42: 135400 | E42: 25000 | F42: 5000 | G42: 5000 | I42: 8000 | M42: 40000 | N42: 0 | P42: 218400
A43: 諸経費支出 | B43: 地代家賃 | C43: ABビル | D43: 492000 | E43: 492000 | F43: 492000 | G43: 492000 | H43: 492000 | I43: 492000 | J43: 492000 | K43: 492000 | L43: 252000 | M43: 252000 | N43: 240000 | O43: 252000 | P43: 4932000
A44: 諸経費支出 | B44: 地代家賃 | C44: 山田さん | D44: 189000 | E44: 189000 | F44: 189000 | H44: 378000 | I44: 189000 | J44: 189000 | K44: 189000 | L44: 189000 | M44: 189000 | N44: 189000 | O44: 189000 | P44: 2268000
A45: 諸経費支出 | B45: 地代家賃 | C45: 駐車場 | D45: 6000 | E45: 6000 | F45: 6000 | G45: 6000 | H45: 6000 | I45: 6000 | J45: 6000 | K45: 6000 | L45: 21000 | M45: 21000 | N45: 21000 | O45: 21000 | P45: 132000
A46: 諸経費支出 | B46: 通信費 | C46: 国際電話 | D46: 5630 | F46: 63250 | H46: 5230 | I46: 4250 | J46: 3250 | L46: 12158 | M46: 6897 | N46: 12350 | O46: 2513 | P46: 115528
A47: 諸経費支出 | B47: 通信費 | C47: (空白) | D47: 36520 | E47: 159537 | F47: 114886 | G47: 133061 | H47: 43250 | I47: 156338 | J47: 104290 | K47: 88521 | L47: 152267 | M47: 137512 | N47: 119782 | O47: 168948 | P47: 1414912
A48: 諸経費支出 | B48: 保険料 | C48: 損害保険 | D48: 92000 | E48: 92000 | F48: 92000 | G48: 92000 | H48: 92000 | I48: 92000 | J48: 92000 | K48: 92000 | L48: 322000 | M48: 97258 | N48: 69000 | O48: 69000 | P48: 1293258
A49: 諸経費支出 | B49: 旅費交通費 | C49: (空白) | D49: 132440 | E49: 138860 | F49: 138280 | G49: 138860 | H49: 297440 | I49: 139440 | J49: 141020 | K49: 139440 | L49: 138280 | M49: 139440 | N49: 139440 | O49: 138280 | P49: 1821220
A50: 消費税等支払 | B50: 未払消費税等 | C50: (空白) | E50: 2421600 | K50: 2280850 | P50: 4702450
A51: 人件費支出 | B51: [製]給料手当 | C51: (空白) | D51: 267600 | E51: 267600 | F51: 267600 | G51: 267600 | H51: 267600 | I51: 267600 | J51: 267600 | K51: 267600 | L51: 267600 | M51: 267600 | N51: 267600 | O51: 267600 | P51: 3211200
A52: 人件費支出 | B52: [製]賞与 | C52: (空白) | G52: 650000 | L52: 700000 | P52: 1350000
A53: 人件費支出 | B53: [製]福利厚生費 | C53: (空白) | E53: 2671 | F53: 1642 | G53: 16842 | I53: 800 | L53: 11742 | N53: 6823 | O53: 5825 | P53: 46345
A54: 人件費支出 | B54: 給料手当 | C54: (空白) | D54: 1010800 | E54: 1078800 | F54: 1076600 | G54: 1076600 | H54: 1067100 | I54: 1056600 | J54: 1082000 | K54: 1086400 | L54: 1079300 | M54: 1089300 | N54: 1064000 | O54: 1096000 | P54: 12863500
A55: 人件費支出 | B55: 採用教育費 | C55: (空白) | N55: 840000 | P55: 840000
A56: 人件費支出 | B56: 賞与 | C56: (空白) | G56: 3245000 | L56: 4210000 | P56: 7455000
A57: 人件費支出 | B57: 福利厚生費 | C57: (空白) | D57: 4200 | E57: 2480 | F57: 11312 | H57: 119925 | I57: 5555 | J57: 8263 | K57: 1921 | L57: 45800 | M57: 108400 | O57: 5246 | P57: 313102
A58: 人件費支出 | B58: 法定福利費 | C58: (空白) | E58: 430864 | F58: 215432 | G58: 215432 | H58: 243512 | I58: 243512 | J58: 243512 | K58: 243512 | L58: 243512 | M58: 285592 | N58: 243512 | O58: 243512 | P58: 2851904
A59: 人件費支出 | B59: 役員報酬 | C59: (空白) | D59: 800000 | E59: 800000 | F59: 800000 | G59: 800000 | H59: 800000 | I59: 800000 | J59: 800000 | K59: 800000 | L59: 800000 | M59: 800000 | N59: 800000 | O59: 800000 | P59: 9600000
A60: 短期借入金借入 | B60: 短期借入金 | C60: 港銀行 城西支店 | L60: 6000000 | P60: 6000000
A61: 短期借入金返済 | B61: 短期借入金 | C61: 港銀行 城西支店 | D61: 500000 | E61: 500000 | F61: 500000 | G61: 500000 | H61: 500000 | I61: 500000 | J61: 500000 | K61: 500000 | L61: 500000 | M61: 500000 | N61: 500000 | O61: 500000 | P61: 6000000
A62: 長期借入金返済 | B62: 長期借入金 | C62: 北東銀行 築地支店 | D62: 202333 | E62: 202789 | F62: 203245 | G62: 203702 | H62: 204161 | I62: 204620 | J62: 205080 | K62: 205542 | L62: 206004 | M62: 206468 | N62: 206932 | O62: 207398 | P62: 2458274
A63: 定期性預金預入 | B63: 定期預金 | C63: 北東銀行 築地支店 | I63: 4000 | O63: 4000 | P63: 8000
A64: 買掛金支払 | B64: 買掛金 | C64: アース商店 | D64: 236000 | E64: 1220000 | F64: 1515000 | G64: 1235000 | H64: 2213000 | I64: 1224000 | J64: 3210000 | K64: 1220000 | L64: 3216000 | M64: 210000 | N64: 235000 | O64: 220000 | P64: 15954000
A65: 買掛金支払 | B65: 買掛金 | C65: アトラス | E65: 1197000 | F65: 2456788 | G65: 1716750 | H65: 2190037 | I65: 1305150 | J65: 427875 | K65: 326550 | L65: 296625 | M65: 646800 | N65: 2112600 | O65: 978600 | P65: 13654775
A66: 買掛金支払 | B66: 買掛金 | C66: イーグル | E66: 151200 | F66: 809550 | G66: 616612 | H66: 370650 | I66: 81900 | J66: 339675 | L66: 378525 | M66: 20160 | N66: 235200 | O66: 260925 | P66: 3264397
A67: 買掛金支払 | B67: 買掛金 | C67: オーヤマ | E67: 1234612 | F67: 536185 | G67: 1243205 | H67: 1034250 | I67: 1194595 | J67: 701449 | K67: 439842 | L67: 1367376 | M67: 791298 | N67: 1487081 | O67: 1258756 | P67: 11288649
A68: 買掛金支払 | B68: 買掛金 | C68: キャラクト | E68: 153405 | F68: 364350 | G68: 261975 | H68: 260400 | I68: 147630 | J68: 252000 | K68: 310275 | L68: 233730 | M68: 252000 | N68: 308700 | P68: 2544465
A69: 買掛金支払 | B69: 買掛金 | C69: コスモ | D69: 78000 | E69: 372000 | F69: 800000 | G69: 674000 | H69: 1172300 | I69: 1071000 | J69: 2876500 | K69: 1971000 | L69: 1072000 | M69: 74000 | N69: 72500 | O69: 72000 | P69: 10305300
A70: 買掛金支払 | B70: 買掛金 | C70: サンライズ | E70: 248000 | F70: 206400 | G70: 282175 | H70: 781020 | I70: 140975 | J70: 231740 | K70: 161950 | L70: 204550 | M70: 234930 | N70: 247430 | P70: 2739170
A71: 買掛金支払 | B71: 買掛金 | C71: スター工芸 | D71: 198000 | E71: 180000 | F71: 185000 | G71: 170000 | H71: 178000 | I71: 190000 | J71: 886000 | K71: 1200000 | L71: 1195000 | M71: 198000 | N71: 185000 | O71: 199500 | P71: 4964500
A72: 買掛金支払 | B72: 買掛金 | C72: ソウル美術 | O72: 3420000 | P72: 3420000
A73: 買掛金支払 | B73: 買掛金 | C73: タンランド興商 | J73: 1624500 | P73: 1624500
A74: 買掛金支払 | B74: 買掛金 | C74: マレー物産 | I74: 5685200 | P74: 5685200
A75: 買掛金支払 | B75: 買掛金 | C75: ミラクル | E75: 12340 | F75: 218400 | G75: 573300 | H75: 651950 | I75: 1219937 | J75: 1519770 | K75: 487950 | L75: 169559 | M75: 319200 | N75: 147000 | O75: 138250 | P75: 5457656
A76: 買掛金支払 | B76: 買掛金 | C76: 株式会社吉野 | E76: 208250 | F76: 239400 | G76: 288950 | H76: 6412 | J76: 144000 | K76: 312700 | L76: 225275 | M76: 108000 | N76: 310900 | P76: 1843887
A77: 買掛金支払 | B77: 買掛金 | C77: 橋本商会 | D77: 3192929 | E77: 1406654 | F77: 2559862 | G77: 1887241 | H77: 1963749 | I77: 918495 | J77: 1016265 | K77: 147525 | L77: 1312939 | M77: 2255004 | N77: 3156349 | O77: 2058793 | P77: 21875805
A78: 買掛金支払 | B78: 買掛金 | C78: 広東公司 | K78: 4420000 | P78: 4420000
A79: 買掛金支払 | B79: 買掛金 | C79: 山田商事 | E79: 151199 | F79: 891175 | G79: 536982 | H79: 2461526 | I79: 536548 | J79: 1075978 | K79: 612616 | L79: 1268741 | M79: 1845954 | N79: 1320996 | O79: 985687 | P79: 11687402
A80: 買掛金支払 | B80: 買掛金 | C80: 中東貿易 | F80: 4500000 | P80: 4500000
A81: 買掛金支払 | B81: 買掛金 | C81: 日本橋商会 | E81: 2100000 | F81: 2373000 | G81: 2295300 | H81: 2345542 | I81: 2357250 | J81: 2151200 | K81: 2692922 | L81: 2337300 | M81: 94500 | N81: 234097 | P81: 18981111
A82: 買掛金支払 | B82: 買掛金 | C82: 富士興産 | D82: 3508963 | F82: 1015874 | G82: 817584 | H82: 3987745 | I82: 1780562 | J82: 1563879 | K82: 105258 | L82: 508526 | M82: 3546852 | N82: 4058624 | O82: 4528964 | P82: 25422831
A83: 買掛金支払 | B83: 買掛金 | C83: 北海商事 | D83: 964370 | F83: 1563920 | G83: 1936203 | H83: 623087 | I83: 74700 | J83: 563446 | K83: 394097 | L83: 92100 | M83: 995779 | N83: 919292 | O83: 1986745 | P83: 10113739
A84: 買掛金支払 | B84: 買掛金 | C84: 有限会社富士 | E84: 1118460 | F84: 1053675 | G84: 404075 | H84: 1142312 | I84: 690900 | J84: 231000 | K84: 903000 | L84: 254940 | M84: 1403850 | N84: 2450752 | P84: 9652964
A85: 売掛金回収 | B85: 売掛金 | C85: ＬＳリビング 大分店 | D85: 376245 | G85: 98846 | H85: 130680 | I85: 166500 | J85: 110340 | K85: 62100 | M85: 435127 | N85: 406712 | O85: 226812 | P85: 2013362
A86: 売掛金回収 | B86: 売掛金 | C86: ＬＳリビング 福岡店 | D86: 542430 | G86: 108465 | H86: 505575 | I86: 340200 | J86: 106312 | K86: 92043 | M86: 354690 | N86: 449820 | O86: 326418 | P86: 2825953
A87: 売掛金回収 | B87: 売掛金 | C87: エヌ商会 | D87: 758625 | E87: 1730400 | F87: 1575000 | G87: 2777900 | H87: 1091350 | J87: 2234400 | K87: 2507441 | L87: 2638494 | M87: 1159764 | N87: 2515872 | O87: 856478 | P87: 19845724
A88: 売掛金回収 | B88: 売掛金 | C88: オリエント商会 | D88: 1856845 | E88: 2565485 | F88: 1335284 | G88: 1098527 | H88: 918023 | I88: 1897526 | J88: 1317542 | K88: 735982 | L88: 1388497 | M88: 1376651 | N88: 718955 | O88: 1066778 | P88: 16276095
A89: 売掛金回収 | B89: 売掛金 | C89: ハマ屋 | E89: 255150 | G89: 359887 | H89: 481320 | I89: 387607 | J89: 248850 | L89: 811912 | M89: 240202 | N89: 231540 | O89: 414476 | P89: 3430944
A90: 売掛金回収 | B90: 売掛金 | C90: ﾌｧﾐﾘｰｽﾄｱふいた | E90: 1034250 | F90: 2237655 | G90: 1904490 | H90: 1714912 | I90: 1207237 | J90: 1385737 | K90: 1034250 | M90: 1714912 | N90: 2930156 | P90: 15163599
A91: 売掛金回収 | B91: 売掛金 | C91: プラザ調布 | E91: 134400 | F91: 164220 | G91: 154125 | H91: 254812 | I91: 210375 | J91: 126150 | K91: 126150 | L91: 168732 | M91: 43062 | N91: 151170 | P91: 1533196
A92: 売掛金回収 | B92: 売掛金 | C92: ミナミ産業 | D92: 325452 | E92: 2258456 | F92: 929643 | G92: 1548790 | H92: 1010109 | I92: 1254689 | J92: 589756 | K92: 758978 | L92: 1008950 | M92: 768975 | N92: 1070394 | O92: 973643 | P92: 12497835
A93: 売掛金回収 | B93: 売掛金 | C93: リビングショップ佐渡 | E93: 103477 | J93: 40320 | K93: 265765 | L93: 53772 | M93: 73932 | N93: 103489 | P93: 640755
A94: 売掛金回収 | B94: 売掛金 | C94: ﾜｰｸｼｮｯﾌﾟ鈴鹿 | I94: 16065 | J94: 14085 | K94: 10170 | L94: 23625 | N94: 42997 | O94: 5670 | P94: 112612
A95: 売掛金回収 | B95: 売掛金 | C95: 愛知マート | D95: 1958775 | E95: 920850 | F95: 2101512 | G95: 1109850 | H95: 2932400 | I95: 2024373 | J95: 2395628 | K95: 1890000 | L95: 1555639 | M95: 2983756 | N95: 870617 | P95: 20743400
A96: 売掛金回収 | B96: 売掛金 | C96: 越後屋百貨店 | D96: 1658600 | F96: 589400 | H96: 1732500 | J96: 1956200 | L96: 1483200 | N96: 985600 | P96: 8405500
A97: 売掛金回収 | B97: 売掛金 | C97: 海北商店 | E97: 196980 | F97: 88788 | G97: 123480 | I97: 349272 | J97: 115101 | K97: 896700 | L97: 370478 | M97: 248445 | N97: 452892 | P97: 2842136
A98: 売掛金回収 | B98: 売掛金 | C98: 近藤商会 | J98: 6150000 | P98: 6150000
A99: 売掛金回収 | B99: 売掛金 | C99: 御殿場リビング | D99: 462000 | E99: 376588 | F99: 556416 | G99: 572544 | H99: 131712 | I99: 16170 | J99: 196896 | K99: 376588 | L99: 160520 | M99: 747812 | N99: 376600 | P99: 3973846
A100: 売掛金回収 | B100: 売掛金 | C100: 厚木産業 | D100: 1645350 | E100: 1645350 | F100: 1018080 | G100: 1559040 | H100: 785400 | I100: 1905960 | J100: 1344000 | K100: 1322160 | L100: 814800 | M100: 1308680 | N100: 3999660 | P100: 17348480
A101: 売掛金回収 | B101: 売掛金 | C101: 佐藤角栄 | F101: 5280000 | P101: 5280000
A102: 売掛金回収 | B102: 売掛金 | C102: 斎藤涼子 | L102: 5520000 | P102: 5520000
A103: 売掛金回収 | B103: 売掛金 | C103: 三島商会 | E103: 360885 | G103: 208740 | H103: 224910 | I103: 158760 | J103: 102900 | K103: 361620 | L103: 269002 | M103: 705612 | N103: 308712 | P103: 2701141
A104: 売掛金回収 | B104: 売掛金 | C104: 山口商事 | E104: 12600 | F104: 12390 | H104: 5376 | K104: 105420 | L104: 14124 | M104: 18900 | N104: 26712 | P104: 195522
A105: 売掛金回収 | B105: 売掛金 | C105: 山口聖子 | O105: 4100000 | P105: 4100000
A106: 売掛金回収 | B106: 売掛金 | C106: 市川ストア | E106: 306600 | F106: 159862 | G106: 176400 | H106: 585900 | I106: 198843 | J106: 177187 | K106: 102375 | L106: 241342 | M106: 184170 | N106: 86205 | O106: 312050 | P106: 2530934
A107: 売掛金回収 | B107: 売掛金 | C107: 川崎ﾎｰﾑｼｮｯﾌﾟ | E107: 386820 | F107: 324891 | G107: 446740 | H107: 380135 | I107: 329616 | K107: 138915 | L107: 418611 | M107: 594130 | N107: 293200 | O107: 350610 | P107: 3663668
A108: 売掛金回収 | B108: 売掛金 | C108: 大阪食器 | E108: 193158 | F108: 128520 | G108: 252504 | H108: 189000 | I108: 59535 | J108: 97524 | K108: 405972 | L108: 231264 | M108: 140629 | N108: 449657 | P108: 2147763
A109: 売掛金回収 | B109: 売掛金 | C109: 大津商会 | E109: 145293 | F109: 243810 | G109: 236250 | H109: 225193 | J109: 154035 | K109: 319551 | L109: 384615 | M109: 204120 | N109: 399309 | P109: 2312176
